Workbook

Sheet PROVEEDORES
A1: PROVEEDOR | B1: CODIGO DE SUSTENTO | C1: TIPO ID | D1: IDENTIFICACION No. | E1: COMPROBANTE | F1: ESTAB. | G1: PUNTO EMI. | H1: AUTORIZACIÓN | I1: TIPO GASTO

Sheet TABLAS
A1: Tipos de Comprobantes para Ventas | D1: Tipos de Comprobantes para Compras | G1: Tipos de Retenciones | L1: Tabla 6: Distrito Aduanero | P1: Tabla 7.1: Código Régimen | T1: Tipos de Comprobantes para Exportaciones | W1: TIPO DE GASTOS | Y1: TABLA 19: Tipos de regímen fiscal del exterior | AB1: Tipos de Sustentos Tributarios | AE1: Tipos de Comprobantes Anulados | AI1: TABLA 18: PAÍS | AM1: TABLA 17: Paraísos Fiscales | AU1: TABLA 18: Tipos de Ingresos del exterior | BA1: TABLA 21: Tipos de compensaciones | BF1: TABLA 13: Formas de pago / cobro | BH1: Preferencia sobre Posición y Tamaño de Ventanas | BP1: PERIODOS | BQ1: MESES | BR1: SEMESTRE | BS1: ANUAL | BU1: PERIODOSATS | BV1: MES | BW1: SEMESTRAL | BX1: ANUAL | CB1: AÑOS | CD1: NOMBRES RECIBIDOS | CG1: Tipos de Retenciones HASTA FEB 2024 | CL1: Tipos de Retenciones DESDE MARZO 2024 | CQ1: Tipos de Retenciones DESDE SEP 2025
A2: CODIGO | B2: Descripcion | D2: CODIGO | E2: Descripcion | G2: Código & Concepto / Retención | H2: Código | I2: Concepto de Retención | J2: Porcentaje | L2: Código | M2: Descripción | N2: Cod & descripción | P2: Código | Q2: Descripción | R2: Cod & descp | T2: CODIGO | U2: Descripcion | W2: ALIMENTACIÓN | Y2: Tipo | Z2: Código | AB2: Codigo | AC2: Descripcion | AE2: COD & DESCRIP | AF2: CODIGO | AG2: Descripcion | AI2: PAÍS | AJ2: COD | AK2: PAIS&COD | AM2: PARAÍSO FISCAL | AN2: PARAÍSO FISCAL2 | AO2: CÓDIGO | AP2: PAÍS AL QUE SE DEBE LIGAR | AQ2: CÓDIGO DE PAÍS | AR2: Fecha Inicio | AS2: COD Y PAÍS AL QUE SE DEBE LIGAR | AU2: Tipo de Ingreso | AV2: Código Operación | AW2: Fecha Inicio | AX2: Fecha fin | AY2: CÓDIGO Y TIPO | BA2: Tipo de Ingreso | BB2: Código Operación | BC2: Fecha Inicio | BD2: Fecha fin | BF2: 01-SIN UTILIZACION DEL SISTEMA FINANCIERO | BH2: Barra Lateral | BI2: -5 | BJ2: 929.25 | BK2: 547.75 | BL2: 107 | BM2: 110 | BP2: MESES | BQ2: 01-Enero | BR2: ENERO-JUNIO | BS2: ENERO-DICIEMBRE | BU2: MES | BV2: 01-Enero | BW2: ENERO-JUNIO | BX2: ENERO-DICIEMBRE | CB2: =YEAR(TODAY())-7 -> 2018 | CD2: FECHA | CG2: Código & Concepto / Retención | CH2: Código | CI2: Concepto de Retención | CJ2: Porcentaje | CL2: Código & Concepto / Retención | CM2: Código | CN2: Concepto de Retención | CO2: Porcentaje | CQ2: Código & Concepto / Retención | CR2: Código | CS2: Concepto de Retención | CT2: Porcentaje
A3: =MID(B3,1,2) -> 04 | B3: 04-Nota de crédito | D3: =MID(E3,1,2) -> 01 | E3: 01-Factura | G3: =IF(ADMI!$J$21="HASTA 02-2024",TABLAS!CG3,IF(ADMI!$J$21="DESDE 03-2024",TABLAS!CL3,CQ3)) -> 302-Ingresos del trabajo en relación de dependencia | H3: =IF(ADMI!$J$21="HASTA 02-2024",TABLAS!CH3,IF(ADMI!$J$21="DESDE 03-2024",TABLAS!CM3,CR3)) -> 302 | I3: =IF(ADMI!$J$21="HASTA 02-2024",TABLAS!CI3,IF(ADMI!$J$21="DESDE 03-2024",TABLAS!CN3,CS3)) -> Ingresos del trabajo en relación de dependencia | J3: =IF(ADMI!$J$21="HASTA 02-2024",TABLAS!CJ3,IF(ADMI!$J$21="DESDE 03-2024",TABLAS!CO3,CT3)) -> 0 | L3: 019 | M3: Gquil-Aéreo | N3: =CONCATENATE(L3&"-"&M3) -> 019-Gquil-Aéreo | P3: 40 | Q3: Exportación definitiva | R3: =CONCATENATE(P3&"-"&Q3) -> 40-Exportación definitiva | T3: =MID(U3,1,2) -> 01 | U3: 01-Factura | W3: VIVIENDA | Y3: 01-Régimen general | Z3: 01 | AB3: =MID(AC3,1,2) -> 01 | AC3: 01- Crédito Tributario para declaración de IVA (servicios y bienes distintos de inventarios y activos fijos) | AE3: =AF3&"-"&AG3 -> 01-Factura | AF3: 01 | AG3: Factura | AI3: AMERICAN SAMOA | AJ3: 016 | AK3: =CONCATENATE(AJ3&"-"&AI3) -> 016-AMERICAN SAMOA | AM3: =+AO3&"-"&AN3 -> 1-ANGUILA (Territorio no autónomo del Reino Unido) | AN3: ANGUILA (Territorio no autónomo del Reino Unido) | AO3: 1 | AP3: ANGUILA | AQ3: 109 | AR3: 2007-05-01 | AS3: =+AQ3&"-"&AP3 -> 109-ANGUILA | AU3: Rentas Inmobiliarias | AV3: 401 | AW3: 2007-05-01 | AY3: =AV3&"-"&AU3 -> 401- Rentas Inmobiliarias | BA3: 01-Ley Solidaridad -Zonas Afectadas | BB3: 01 | BC3: 2007-01-01 | BF3: 15-COMPENSACIÓN DE DEUDAS | BH3: Ventana sistema | BI3: -0.75 | BJ3: 4 | BK3: 543.75 | BL3: 933.75 | BM3: NO | BN3: SI | BP3: SEMESTRE | BQ3: 02-Febrero | BR3: JULIO-DICIEMBRE | BU3: SEMESTRAL | BV3: 02-Febrero | BW3: JULIO-DICIEMBRE | CB3: =YEAR(TODAY())-6 -> 2019 | CD3: NOMBRE | CG3: =CH3&"-"&CI3 -> 303-Honorarios profesionales y demás pagos por servicios relacionados con el título profesional | CH3: 303 | CI3: Honorarios profesionales y demás pagos por servicios relacionados con el título profesional | CJ3: 10 | CL3: =CM3&"-"&CN3 -> 302-Ingresos del trabajo en relación de dependencia | CM3: 302 | CN3: Ingresos del trabajo en relación de dependencia | CO3: 0 | CQ3: =CR3&"-"&CS3 -> 303-Honorarios profesionales y demás pagos por servicios relacionados con el título profesional | CR3: 303 | CS3: Honorarios profesionales y demás pagos por servicios relacionados con el título profesional | CT3: 10
A4: 05 | B4: 05-Nota de débito | D4: 02 | E4: 02-Nota o boleta de venta | G4: =IF(ADMI!$J$21="HASTA 02-2024",TABLAS!CG4,IF(ADMI!$J$21="DESDE 03-2024",TABLAS!CL4,CQ4)) -> 303-Honorarios profesionales y demás pagos por servicios relacionados con el título profesional | H4: =IF(ADMI!$J$21="HASTA 02-2024",TABLAS!CH4,IF(ADMI!$J$21="DESDE 03-2024",TABLAS!CM4,CR4)) -> 303 | I4: =IF(ADMI!$J$21="HASTA 02-2024",TABLAS!CI4,IF(ADMI!$J$21="DESDE 03-2024",TABLAS!CN4,CS4)) -> Honorarios profesionales y demás pagos por servicios relacionados con el título profesional | J4: =IF(ADMI!$J$21="HASTA 02-2024",TABLAS!CJ4,IF(ADMI!$J$21="DESDE 03-2024",TABLAS!CO4,CT4)) -> 10 | L4: 028 | M4: Gquil-Marítimo | N4: =CONCATENATE(L4&"-"&M4) -> 028-Gquil-Marítimo | P4: 50 | Q4: Exportación temporal para reimportación en el mismo estado | R4: 50-Exportación temporal para reimportación en el mismo estado | T4: 04 | U4: 04-Notas de Crédito Exportación | W4: SALUD | Y4: 02-Paraíso fiscal | Z4: 02 | AB4: 02 | AC4: 02- Costo o Gasto para declaración de IR (servicios y bienes distintos de inventarios y activos fijos) | AE4: =AF4&"-"&AG4 -> 02-Nota o boleta de venta | AF4: 02 | AG4: Nota o boleta de venta | AI4: BOUVET ISLAND | AJ4: 074 | AK4: 074-BOUVET ISLAND | AM4: =+AO4&"-"&AN4 -> 2-ANTIGUA Y BARBUDA (Estado independiente) | AN4: ANTIGUA Y BARBUDA (Estado independiente) | AO4: 2 | AP4: ANTIGUA Y BARBUDA | AQ4: 134 | AR4: 2007-05-01 | AS4: =+AQ4&"-"&AP4 -> 134-ANTIGUA Y BARBUDA | AU4: Beneficios y servicios Empresariales / Asistencia técnica | AV4: 402 | AW4: 2007-05-01 | AY4: =AV4&"-"&AU4 -> 402- Beneficios y servicios Empresariales / Asistencia técnica | BA4: 02-Medios Electrónicos | BB4: 02 | BC4: 2007-05-01 | BF4: 16-TARJETA DE DÉBITO | BH4: Lista de hojas | BI4: 20 | BJ4: 1 | BK4: 334.25 | BL4: 77.5 | BP4: ANUAL | BQ4: 03-Marzo | BU4: ANUAL | BV4: 03-Marzo | CB4: =YEAR(TODAY())-5 -> 2020 | CD4: SERIE | CG4: =CH4&"-"&CI4 -> 304-Servicios predomina el intelecto no relacionados con el título profesional | CH4: 304 | CI4: Servicios predomina el intelecto no relacionados con el título profesional | CJ4: 8 | CL4: =CM4&"-"&CN4 -> 303-Honorarios profesionales y demás pagos por servicios relacionados con el título profesional | CM4: 303 | CN4: Honorarios profesionales y demás pagos por servicios relacionados con el título profesional | CO4: 10 | CQ4: 303A-Servicios profesionales prestados por sociedades residentes | CR4: 303A | CS4: Servicios profesionales prestados por sociedades residentes | CT4: 3
A5: 18 | B5: 18-Documentos autorizados utilizados en ventas excepto N/C N/D | D5: 03 | E5: 03-Liquidación de compra de Bienes o Prestación de servicios | G5: =IF(ADMI!$J$21="HASTA 02-2024",TABLAS!CG5,IF(ADMI!$J$21="DESDE 03-2024",TABLAS!CL5,CQ5)) -> 303A-Servicios profesionales prestados por sociedades residentes | H5: =IF(ADMI!$J$21="HASTA 02-2024",TABLAS!CH5,IF(ADMI!$J$21="DESDE 03-2024",TABLAS!CM5,CR5)) -> 303A | I5: =IF(ADMI!$J$21="HASTA 02-2024",TABLAS!CI5,IF(ADMI!$J$21="DESDE 03-2024",TABLAS!CN5,CS5)) -> Servicios profesionales prestados por sociedades residentes | J5: =IF(ADMI!$J$21="HASTA 02-2024",TABLAS!CJ5,IF(ADMI!$J$21="DESDE 03-2024",TABLAS!CO5,CT5)) -> 3 | L5: 037 | M5: Manta | N5: 037-Manta | P5: 51 | Q5: Exportación temporal para perfeccionamiento pasivo | R5: 51-Exportación temporal para perfeccionamiento pasivo | T5: 05 | U5: 05-Notas de Débito Exportación | W5: VESTIMENTA | Y5: 03-Régimen fiscal preferente o jurisdicción de menor imposición | Z5: 03 | AB5: 03 | AC5: 03- Activo Fijo - Crédito Tributario para declaración de IVA | AE5: 03-Liquidación de compra de Bienes o Prestación de servicios | AF5: 03 | AG5: Liquidación de compra de Bienes o Prestación de servicios | AI5: ARGENTINA | AJ5: 101 | AK5: 101-ARGENTINA | AM5: 3-ARCHIPIÉLAGO DE SVALBARD | AN5: ARCHIPIÉLAGO DE SVALBARD | AO5: 3 | AP5: NORUEGA | AQ5: 222 | AR5: 2007-05-01 | AS5: 222-NORUEGA | AU5: Beneficios y servicios Empresariales / Comisiones | AV5: 403 | AW5: 2007-05-01 | AY5: 403- Beneficios y servicios Empresariales / Comisiones | BF5: 17-DINERO ELECTRÓNICO | BH5: Lista de hojas 2 | BI5: 355 | BJ5: 1 | BK5: 112.1500015 | BL5: 77.5 | BQ5: 04-Abril | BV5: 04-Abril | CB5: =YEAR(TODAY())-4 -> 2021 | CD5: RUC | CG5: 304A-Comisiones y demás pagos por servicios predomina intelecto no relacionados con el título profesional | CH5: 304A | CI5: Comisiones y demás pagos por servicios predomina intelecto no relacionados con el título profesional | CJ5: 8 | CL5: =CM5&"-"&CN5 -> 303A-Servicios profesionales prestados por sociedades residentes | CM5: 303A | CN5: Servicios profesionales prestados por sociedades residentes | CO5: 3 | CQ5: 304-Servicios predomina el intelecto no relacionados con el título profesional | CR5: 304 | CS5: Servicios predomina el intelecto no relacionados con el título profesional | CT5: 10
A6: 41 | B6: 41-Comprobante de venta emitido por reembolso | D6: 04 | E6: 04-N/C Compras | G6: =IF(ADMI!$J$21="HASTA 02-2024",TABLAS!CG6,IF(ADMI!$J$21="DESDE 03-2024",TABLAS!CL6,CQ6)) -> 304-Servicios predomina el intelecto no relacionados con el título profesional | H6: =IF(ADMI!$J$21="HASTA 02-2024",TABLAS!CH6,IF(ADMI!$J$21="DESDE 03-2024",TABLAS!CM6,CR6)) -> 304 | I6: =IF(ADMI!$J$21="HASTA 02-2024",TABLAS!CI6,IF(ADMI!$J$21="DESDE 03-2024",TABLAS!CN6,CS6)) -> Servicios predomina el intelecto no relacionados con el título profesional | J6: =IF(ADMI!$J$21="HASTA 02-2024",TABLAS!CJ6,IF(ADMI!$J$21="DESDE 03-2024",TABLAS!CO6,CT6)) -> 10 | L6: 046 | M6: Esmeraldas | N6: 046-Esmeraldas | P6: 60 | Q6: Reexp. de mercancías en el mismo estado | R6: 60-Reexp. de mercancías en el mismo estado | T6: 16 | U6: 16-Formulario Único de Exportación (FUE) o Declaración Aduanera Única (DAU) o DAV | W6: EDUCACIÓN, ARTE Y CULTURA | AB6: 04 | AC6: 04- Activo Fijo - Costo o Gasto para declaración de IR | AE6: 04-Nota de crédito | AF6: 04 | AG6: Nota de crédito | AI6: BOLIVIA | AJ6: 102 | AK6: 102-BOLIVIA | AM6: 4-ARUBA | AN6: ARUBA | AO6: 4 | AP6: ARUBA | AQ6: 141 | AR6: 2007-05-01 | AS6: 141-ARUBA | AU6: Beneficios y servicios Empresariales / Comisiones sobre préstamos | AV6: 404 | AW6: 2007-05-01 | AY6: 404- Beneficios y servicios Empresariales / Comisiones sobre préstamos | BF6: 18-TARJETA PREPAGO | BQ6: 05-Mayo | BV6: 05-Mayo | CB6: =YEAR(TODAY())-3 -> 2022 | CD6: TIPO | CG6: 304B-Pagos a notarios y registradores de la propiedad y mercantil por sus actividades ejercidas como tales | CH6: 304B | CI6: Pagos a notarios y registradores de la propiedad y mercantil por sus actividades ejercidas como tales | CJ6: 8 | CL6: 304-Servicios predomina el intelecto no relacionados con el título profesional | CM6: 304 | CN6: Servicios predomina el intelecto no relacionados con el título profesional | CO6: 10 | CQ6: 304A-Comisiones y demás pagos por servicios predomina intelecto no relacionados con el título profesional | CR6: 304A | CS6: Comisiones y demás pagos por servicios predomina intelecto no relacionados con el título profesional | CT6: 10
A7: 44 | B7: 44-Comprobante de Contribuciones y Aportes | D7: 05 | E7: 05-N/D Compras | G7: =IF(ADMI!$J$21="HASTA 02-2024",TABLAS!CG7,IF(ADMI!$J$21="DESDE 03-2024",TABLAS!CL7,CQ7)) -> 304A-Comisiones y demás pagos por servicios predomina intelecto no relacionados con el título profesional | H7: =IF(ADMI!$J$21="HASTA 02-2024",TABLAS!CH7,IF(ADMI!$J$21="DESDE 03-2024",TABLAS!CM7,CR7)) -> 304A | I7: =IF(ADMI!$J$21="HASTA 02-2024",TABLAS!CI7,IF(ADMI!$J$21="DESDE 03-2024",TABLAS!CN7,CS7)) -> Comisiones y demás pagos por servicios predomina intelecto no relacionados con el título profesional | J7: =IF(ADMI!$J$21="HASTA 02-2024",TABLAS!CJ7,IF(ADMI!$J$21="DESDE 03-2024",TABLAS!CO7,CT7)) -> 10 | L7: 055 | M7: Quito | N7: 055-Quito | P7: 61 | Q7: Reexportación de mercancías que fueron importadas para perfeccionamiento activo | R7: 61-Reexportación de mercancías que fueron importadas para perfeccionamiento activo | T7: 41 | U7: 41-Comprobante de venta emitido por reembolso | W7: TURISMO | AB7: 05 | AC7: 05- Liquidación Gastos de Viaje, hospedaje y alimentación Gastos IR (a nombre de empleados y no de la empresa) | AE7: 05-Nota de débito | AF7: 05 | AG7: Nota de débito | AI7: BRASIL | AJ7: 103 | AK7: 103-BRASIL | AM7: 5-BARBADOS (Estado independiente) | AN7: BARBADOS (Estado independiente) | AO7: 5 | AP7: BARBADOS | AQ7: 130 | AR7: 2007-05-01 | AS7: 130-BARBADOS | AU7: Beneficios y servicios Empresariales/Honorarios | AV7: 405 | AW7: 2007-05-01 | AY7: 405- Beneficios y servicios Empresariales/Honorarios | BF7: 19-TARJETA DE CRÉDITO | BQ7: 06-Junio | BV7: 06-Junio | CB7: =YEAR(TODAY())-2 -> 2023 | CG7: 304C-Pagos a deportistas, entrenadores, árbitros, miembros del cuerpo técnico por sus actividades ejercidas como tales | CH7: 304C | CI7: Pagos a deportistas, entrenadores, árbitros, miembros del cuerpo técnico por sus actividades ejercidas como tales | CJ7: 8 | CL7: 304A-Comisiones y demás pagos por servicios predomina intelecto no relacionados con el título profesional | CM7: 304A | CN7: Comisiones y demás pagos por servicios predomina intelecto no relacionados con el título profesional | CO7: 10 | CQ7: 304B-Pagos a notarios y registradores de la propiedad y mercantil por sus actividades ejercidas como tales | CR7: 304B | CS7: Pagos a notarios y registradores de la propiedad y mercantil por sus actividades ejercidas como tales | CT7: 10
A8: 47 | B8: 47-Nota de Crédito por Reembolso Emitida por Intermediario | D8: 08 | E8: 08-Boletos o entradas a espectáculos públicos | G8: =IF(ADMI!$J$21="HASTA 02-2024",TABLAS!CG8,IF(ADMI!$J$21="DESDE 03-2024",TABLAS!CL8,CQ8)) -> 304B-Pagos a notarios y registradores de la propiedad y mercantil por sus actividades ejercidas como tales | H8: =IF(ADMI!$J$21="HASTA 02-2024",TABLAS!CH8,IF(ADMI!$J$21="DESDE 03-2024",TABLAS!CM8,CR8)) -> 304B | I8: =IF(ADMI!$J$21="HASTA 02-2024",TABLAS!CI8,IF(ADMI!$J$21="DESDE 03-2024",TABLAS!CN8,CS8)) -> Pagos a notarios y registradores de la propiedad y mercantil por sus actividades ejercidas como tales | J8: =IF(ADMI!$J$21="HASTA 02-2024",TABLAS!CJ8,IF(ADMI!$J$21="DESDE 03-2024",TABLAS!CO8,CT8)) -> 10 | L8: 064 | M8: Pto-Bolívar | N8: 064-Pto-Bolívar | P8: 79 | Q8: Exportación a consumo desde Zona Franca | R8: 79-Exportación a consumo desde Zona Franca | T8: 47 | U8: 47-N/C por Reembolso Emitida por Intermediario | AB8: 06 | AC8: 06- Inventario - Crédito Tributario para declaración de IVA | AE8: 06-Guías de Remisión | AF8: 06 | AG8: Guías de Remisión | AI8: CANADA | AJ8: 104 | AK8: 104-CANADA | AM8: 6-BELICE (Estado independiente) | AN8: BELICE (Estado independiente) | AO8: 6 | AP8: BELICE | AQ8: 135 | AR8: 2007-05-01 | AS8: 135-BELICE | AU8: Beneficios y servicios Empresariales / Publicidad | AV8: 406 | AW8: 2007-05-01 | AY8: 406- Beneficios y servicios Empresariales / Publicidad | BF8: 20-OTROS CON UTILIZACION DEL SISTEMA FINANCIERO | BH8: RANGOS FECHAS GP | BQ8: 07-Julio | BV8: 07-Julio | CB8: =YEAR(TODAY())-1 -> 2024 | CG8: 304D-Pagos a artistas por sus actividades ejercidas como tales | CH8: 304D | CI8: Pagos a artistas por sus actividades ejercidas como tales | CJ8: 8 | CL8: 304B-Pagos a notarios y registradores de la propiedad y mercantil por sus actividades ejercidas como tales | CM8: 304B | CN8: Pagos a notarios y registradores de la propiedad y mercantil por sus actividades ejercidas como tales | CO8: 10 | CQ8: 304C-Pagos a deportistas, entrenadores, árbitros, miembros del cuerpo técnico por sus actividades ejercidas como tales | CR8: 304C | CS8: Pagos a deportistas, entrenadores, árbitros, miembros del cuerpo técnico por sus actividades ejercidas como tales | CT8: 8
A9: 48 | B9: 48-Nota de Débito por Reembolso Emitida por Intermediario | D9: 09 | E9: 09-Tiquetes o vales emitidos por máquinas registradoras | G9: =IF(ADMI!$J$21="HASTA 02-2024",TABLAS!CG9,IF(ADMI!$J$21="DESDE 03-2024",TABLAS!CL9,CQ9)) -> 304C-Pagos a deportistas, entrenadores, árbitros, miembros del cuerpo técnico por sus actividades ejercidas como tales | H9: =IF(ADMI!$J$21="HASTA 02-2024",TABLAS!CH9,IF(ADMI!$J$21="DESDE 03-2024",TABLAS!CM9,CR9)) -> 304C | I9: =IF(ADMI!$J$21="HASTA 02-2024",TABLAS!CI9,IF(ADMI!$J$21="DESDE 03-2024",TABLAS!CN9,CS9)) -> Pagos a deportistas, entrenadores, árbitros, miembros del cuerpo técnico por sus actividades ejercidas como tales | J9: =IF(ADMI!$J$21="HASTA 02-2024",TABLAS!CJ9,IF(ADMI!$J$21="DESDE 03-2024",TABLAS!CO9,CT9)) -> 8 | L9: 073 | M9: Tulcán | N9: 073-Tulcán | P9: 83 | Q9: Reembarque | R9: 83-Reembarque | T9: 48 | U9: 48-N/D por Reembolso Emitida por Intermediario | AB9: 07 | AC9: 07- Inventario - Costo o Gasto para declaración de IR | AE9: 07-Comprobante de Retención | AF9: 07 | AG9: Comprobante de Retención | AI9: COLOMBIA | AJ9: 105 | AK9: 105-COLOMBIA | AM9: 7-BERMUDAS (Territorio no autónomo del Reino Unido) | AN9: BERMUDAS (Territorio no autónomo del Reino Unido) | AO9: 7 | AP9: BERMUDA | AQ9: 142 | AR9: 2007-05-01 | AS9: 142-BERMUDA | AU9: Beneficios y servicios Empresariales / Servicios administrativos | AV9: 407 | AW9: 2007-05-01 | AY9: 407- Beneficios y servicios Empresariales / Servicios administrativos | BF9: 21-ENDOSO DE TÍTULOS | BH9: =IF(GP!AI5="MESES","1/"&MID(GP!AJ5,1,2)&"/"&GP!AJ4,IF(GP!AJ5="ENERO-JUNIO","1/6/"&GP!AJ4,"1/12/"&GP!AJ4)) -> 1/02/2021 | BI9: =EOMONTH(BH9, 0) -> 2021-02-28 | BQ9: 08-Agosto | BV9: 08-Agosto | CB9: =YEAR(TODAY()) -> 2025 | CG9: 304E-Honorarios y demás pagos por servicios de docencia | CH9: 304E | CI9: Honorarios y demás pagos por servicios de docencia | CJ9: 8 | CL9: 304C-Pagos a deportistas, entrenadores, árbitros, miembros del cuerpo técnico por sus actividades ejercidas como tales | CM9: 304C | CN9: Pagos a deportistas, entrenadores, árbitros, miembros del cuerpo técnico por sus actividades ejercidas como tales | CO9: 8 | CQ9: 304D-Pagos a artistas por sus actividades ejercidas como tales | CR9: 304D | CS9: Pagos a artistas por sus actividades ejercidas como tales | CT9: 8
A10: 49 | B10: 49-Proveedor Directo de Exportador Bajo Régimen Especial | D10: 11 | E10: 11-Pasajes expedidos por empresas de aviación | G10: =IF(ADMI!$J$21="HASTA 02-2024",TABLAS!CG10,IF(ADMI!$J$21="DESDE 03-2024",TABLAS!CL10,CQ10)) -> 304D-Pagos a artistas por sus actividades ejercidas como tales | H10: =IF(ADMI!$J$21="HASTA 02-2024",TABLAS!CH10,IF(ADMI!$J$21="DESDE 03-2024",TABLAS!CM10,CR10)) -> 304D | I10: =IF(ADMI!$J$21="HASTA 02-2024",TABLAS!CI10,IF(ADMI!$J$21="DESDE 03-2024",TABLAS!CN10,CS10)) -> Pagos a artistas por sus actividades ejercidas como tales | J10: =IF(ADMI!$J$21="HASTA 02-2024",TABLAS!CJ10,IF(ADMI!$J$21="DESDE 03-2024",TABLAS!CO10,CT10)) -> 8 | L10: 082 | M10: Huaquillas | N10: 082-Huaquillas | P10: 94 | Q10: Courier exportación | R10: 94-Courier exportación | U10: --- | AB10: 08 | AC10: 08- Valor pagado para solicitar Reembolso de Gasto (intermediario) | AE10: 08-Boletos o entradas a espectáculos públicos | AF10: 08 | AG10: Boletos o entradas a espectáculos públicos | AI10: COSTA RICA | AJ10: 106 | AK10: 106-COSTA RICA | AM10: 8-BONAIRE, SABA Y SAN EUSTAQUIO | AN10: BONAIRE, SABA Y SAN EUSTAQUIO | AO10: 8 | AP10: PAISES BAJOS (HOLANDA) | AQ10: 215 | AR10: 2007-05-01 | AS10: 215-PAISES BAJOS (HOLANDA) | AU10: Beneficios y servicios Empresariales / Servicios financieros | AV10: 408 | AW10: 2007-05-01 | AY10: 408- Beneficios y servicios Empresariales / Servicios financieros | BF10: --- | BH10: SEMESTRE: | BI10: =EOMONTH(BI9,-6)+1 -> 2020-09-01 | BQ10: 09-Septiembre | BV10: 09-Septiembre | CG10: 307-Servicios predomina la mano de obra | CH10: 307 | CI10: Servicios predomina la mano de obra | CJ10: 2 | CL10: 304D-Pagos a artistas por sus actividades ejercidas como tales | CM10: 304D | CN10: Pagos a artistas por sus actividades ejercidas como tales | CO10: 8 | CQ10: 304E-Honorarios y demás pagos por servicios de docencia | CR10: 304E | CS10: Honorarios y demás pagos por servicios de docencia | CT10: 10
A11: 50 | B11: 50-A Inst. Estado y Empr. Públicas que percibe ingreso exento de Imp. Renta | D11: 12 | E11: 12-Documentos emitidos por instituciones financieras | G11: =IF(ADMI!$J$21="HASTA 02-2024",TABLAS!CG11,IF(ADMI!$J$21="DESDE 03-2024",TABLAS!CL11,CQ11)) -> 304E-Honorarios y demás pagos por servicios de docencia | H11: =IF(ADMI!$J$21="HASTA 02-2024",TABLAS!CH11,IF(ADMI!$J$21="DESDE 03-2024",TABLAS!CM11,CR11)) -> 304E | I11: =IF(ADMI!$J$21="HASTA 02-2024",TABLAS!CI11,IF(ADMI!$J$21="DESDE 03-2024",TABLAS!CN11,CS11)) -> Honorarios y demás pagos por servicios de docencia | J11: =IF(ADMI!$J$21="HASTA 02-2024",TABLAS!CJ11,IF(ADMI!$J$21="DESDE 03-2024",TABLAS!CO11,CT11)) -> 10 | L11: 091 | M11: Cuenca | N11: 091-Cuenca | P11: 95 | Q11: Exportaciones Correos del Ecuador | R11: 95-Exportaciones Correos del Ecuador | AB11: 09 | AC11: 09- Reembolso por Siniestros | AE11: 7-Tiquetes o vales emitidos por máquinas registradoras | AF11: 7 | AG11: Tiquetes o vales emitidos por máquinas registradoras | AI11: CUBA | AJ11: 107 | AK11: 107-CUBA | AM11: 9-BRUNEI DARUSSALAM (Estado independiente) | AN11: BRUNEI DARUSSALAM (Estado independiente) | AO11: 9 | AP11: BRUNEI DARUSSALAM | AQ11: 344 | AR11: 2007-05-01 | AS11: 344-BRUNEI DARUSSALAM | AU11: Beneficios y servicios Empresariales /Servicios intermedios de la producción (maquila) | AV11: 409 | AW11: 2007-05-01 | AY11: 409- Beneficios y servicios Empresariales /Servicios intermedios de la producción (maquila) | BH11: RANGOS FECHAS ATS ( NO MODIFICAR FÓRMULAS) | BK11: RANGOS FECHAS DEC IVA | BQ11: 10-Octubre | BV11: 10-Octubre | CG11: 308-Utilización o aprovechamiento de la imagen o renombre | CH11: 308 | CI11: Utilización o aprovechamiento de la imagen o renombre | CJ11: 10 | CL11: 304E-Honorarios y demás pagos por servicios de docencia | CM11: 304E | CN11: Honorarios y demás pagos por servicios de docencia | CO11: 10 | CQ11: 307-Servicios predomina la mano de obra | CR11: 307 | CS11: Servicios predomina la mano de obra | CT11: 2
A12: 51 | B12: 51-N/C A Inst. Estado y Empr. Públicas que percibe ingreso exento de Imp. Renta | D12: 13 | E12: 13-Documentos emitidos por compañías de seguros | G12: =IF(ADMI!$J$21="HASTA 02-2024",TABLAS!CG12,IF(ADMI!$J$21="DESDE 03-2024",TABLAS!CL12,CQ12)) -> 307-Servicios predomina la mano de obra | H12: =IF(ADMI!$J$21="HASTA 02-2024",TABLAS!CH12,IF(ADMI!$J$21="DESDE 03-2024",TABLAS!CM12,CR12)) -> 307 | I12: =IF(ADMI!$J$21="HASTA 02-2024",TABLAS!CI12,IF(ADMI!$J$21="DESDE 03-2024",TABLAS!CN12,CS12)) -> Servicios predomina la mano de obra | J12: =IF(ADMI!$J$21="HASTA 02-2024",TABLAS!CJ12,IF(ADMI!$J$21="DESDE 03-2024",TABLAS!CO12,CT12)) -> 2 | L12: 109 | M12: Loja-Macara | N12: 109-Loja-Macara | Q12: --- | R12: --- | AB12: =MID(AC10,1,2) -> 08 | AC12: 10-Distribución de Dividendos, Beneficios o Utilidades | AE12: 11-Pasajes expedidos por empresas de aviación | AF12: 11 | AG12: Pasajes expedidos por empresas de aviación | AI12: CHILE | AJ12: 108 | AK12: 108-CHILE | AM12: 10-CAMPIONE D'ITALIA (Comune di Campioned'Italia) | AN12: CAMPIONE D'ITALIA (Comune di Campioned'Italia) | AO12: 10 | AP12: ITALIA | AQ12: 219 | AR12: 2007-05-01 | AS12: 219-ITALIA | AU12: Beneficios y servicios Empresariales /Servicios técnicos | AV12: 410 | AW12: 2007-05-01 | AY12: 410- Beneficios y servicios Empresariales /Servicios técnicos | BH12: 2025-08-01 | BI12: =EOMONTH(BH12, 0) -> 2025-08-31 | BK12: =IF(IVA!$A$3="MESES","1/"&MID(IVA!$B$3,1,2)&"/"&IVA!$B$2,IF(IVA!$B$3="ENERO-JUNIO","1/6/"&IVA!$B$2,"1/12/"&IVA!$B$2)) -> 1/02/2025 | BL12: =EOMONTH(BK12, 0) -> 2025-02-28 | BQ12: 11-Noviembre | BV12: 11-Noviembre | CG12: 309-Servicios prestados por medios de comunicación y agencias de publicidad | CH12: 309 | CI12: Servicios prestados por medios de comunicación y agencias de publicidad | CJ12: 1.75 | CL12: 307-Servicios predomina la mano de obra | CM12: 307 | CN12: Servicios predomina la mano de obra | CO12: 2 | CQ12: 308-Utilización o aprovechamiento de la imagen o renombre (personas naturales, sociedades," influencers") | CR12: 308 | CS12: Utilización o aprovechamiento de la imagen o renombre (personas naturales, sociedades," influencers") | CT12: 10
A13: 52 | B13: 52-N/D A Inst. Estado y Empr. Públicas que percibe ingreso exento de Imp. Renta | D13: 14 | E13: 14-Comprobantes emitidos por empresas de telecomunicaciones | G13: =IF(ADMI!$J$21="HASTA 02-2024",TABLAS!CG13,IF(ADMI!$J$21="DESDE 03-2024",TABLAS!CL13,CQ13)) -> 308-Utilización o aprovechamiento de la imagen o renombre (personas naturales, sociedades," influencers") | H13: =IF(ADMI!$J$21="HASTA 02-2024",TABLAS!CH13,IF(ADMI!$J$21="DESDE 03-2024",TABLAS!CM13,CR13)) -> 308 | I13: =IF(ADMI!$J$21="HASTA 02-2024",TABLAS!CI13,IF(ADMI!$J$21="DESDE 03-2024",TABLAS!CN13,CS13)) -> Utilización o aprovechamiento de la imagen o renombre (personas naturales, sociedades," influencers") | J13: =IF(ADMI!$J$21="HASTA 02-2024",TABLAS!CJ13,IF(ADMI!$J$21="DESDE 03-2024",TABLAS!CO13,CT13)) -> 10 | L13: 118 | M13: Sta Elena | N13: 118-Sta Elena | AB13: 11 | AC13: 11-Convenios de débito o recaudación para IFI´s | AE13: 12-Documentos emitidos por instituciones financieras | AF13: 12 | AG13: Documentos emitidos por instituciones financieras | AI13: ANGUILA | AJ13: 107 | AK13: 107-ANGUILA | AM13: 11-COLONIA DE GIBRALTAR | AN13: COLONIA DE GIBRALTAR | AO13: 11 | AP13: GIBRALTAR | AQ13: 239 | AR13: 2007-05-01 | AS13: 239-GIBRALTAR | AU13: Navegación Marítima y/o aérea | AV13: 411 | AW13: 2007-05-01 | AY13: 411- Navegación Marítima y/o aérea | BH13: MENSUAL | BI13: =EOMONTH(finmesats,-6)+1 -> 2025-03-01 | BK13: SEMESTRE: | BL13: =EOMONTH(BL12,-6)+1 -> 2024-09-01 | BQ13: 12-Diciembre | BV13: 12-Diciembre | CG13: 310-Servicio de transporte privado de pasajeros o transporte público o privado de carga | CH13: 310 | CI13: Servicio de transporte privado de pasajeros o transporte público o privado de carga | CJ13: 1 | CL13: 308-Utilización o aprovechamiento de la imagen o renombre (personas naturales, sociedades," influencers") | CM13: 308 | CN13: Utilización o aprovechamiento de la imagen o renombre (personas naturales, sociedades," influencers") | CO13: 10 | CQ13: 309-Servicios prestados por medios de comunicación y agencias de publicidad | CR13: 309 | CS13: Servicios prestados por medios de comunicación y agencias de publicidad | CT13: 2.75
A14: 370 | B14: 370-Factura operadora transporte / socio | D14: 15 | E14: 15-Comprobantes de venta emitidos en exterior | G14: =IF(ADMI!$J$21="HASTA 02-2024",TABLAS!CG14,IF(ADMI!$J$21="DESDE 03-2024",TABLAS!CL14,CQ14)) -> 309-Servicios prestados por medios de comunicación y agencias de publicidad | H14: =IF(ADMI!$J$21="HASTA 02-2024",TABLAS!CH14,IF(ADMI!$J$21="DESDE 03-2024",TABLAS!CM14,CR14)) -> 309 | I14: =IF(ADMI!$J$21="HASTA 02-2024",TABLAS!CI14,IF(ADMI!$J$21="DESDE 03-2024",TABLAS!CN14,CS14)) -> Servicios prestados por medios de comunicación y agencias de publicidad | J14: =IF(ADMI!$J$21="HASTA 02-2024",TABLAS!CJ14,IF(ADMI!$J$21="DESDE 03-2024",TABLAS!CO14,CT14)) -> 2.75 | L14: 127 | M14: Latacunga | N14: 127-Latacunga | AB14: 12 | AC14: 12- Impuestos y retenciones presuntivos | AE14: 15-Comprobante de venta emitido en el Exterior | AF14: 15 | AG14: Comprobante de venta emitido en el Exterior | AI14: ESTADOS UNIDOS | AJ14: 110 | AK14: 110-ESTADOS UNIDOS | AM14: 12-COMUNIDAD DE LAS BAHAMAS (Estado independiente) | AN14: COMUNIDAD DE LAS BAHAMAS (Estado independiente) | AO14: 12 | AP14: BAHAMAS | AQ14: 129 | AR14: 2007-05-01 | AS14: 129-BAHAMAS | AU14: Dividendos | AV14: 412 | AW14: 2007-05-01 | AY14: 412-Dividendos | CG14: 311-Pagos a través de liquidación de compra (nivel cultural o rusticidad) | CH14: 311 | CI14: Pagos a través de liquidación de compra (nivel cultural o rusticidad) | CJ14: 2 | CL14: 309-Servicios prestados por medios de comunicación y agencias de publicidad | CM14: 309 | CN14: Servicios prestados por medios de comunicación y agencias de publicidad | CO14: 2.75 | CQ14: 310-Servicio de transporte privado de pasajeros o transporte público o privado de carga | CR14: 310 | CS14: Servicio de transporte privado de pasajeros o transporte público o privado de carga | CT14: 1
A15: 371 | B15: 371-Comprobante socio a operadora de transporte | D15: 19 | E15: 19-Comprobantes de Pago de Cuotas o Aportes | G15: =IF(ADMI!$J$21="HASTA 02-2024",TABLAS!CG15,IF(ADMI!$J$21="DESDE 03-2024",TABLAS!CL15,CQ15)) -> 310-Servicio de transporte privado de pasajeros o transporte público o privado de carga | H15: =IF(ADMI!$J$21="HASTA 02-2024",TABLAS!CH15,IF(ADMI!$J$21="DESDE 03-2024",TABLAS!CM15,CR15)) -> 310 | I15: =IF(ADMI!$J$21="HASTA 02-2024",TABLAS!CI15,IF(ADMI!$J$21="DESDE 03-2024",TABLAS!CN15,CS15)) -> Servicio de transporte privado de pasajeros o transporte público o privado de carga | J15: =IF(ADMI!$J$21="HASTA 02-2024",TABLAS!CJ15,IF(ADMI!$J$21="DESDE 03-2024",TABLAS!CO15,CT15)) -> 1 | L15: 136 | M15: Gerencia General | N15: 136-Gerencia General | AB15: 13 | AC15: 13-Valores reconocidos por entidades del sector público a favor de sujetos pasivos | AE15: 16-Formulario Único de Exportación (FUE) o Declaración Aduanera Única (DAU) o Declaración Andina de Valor (DAV) | AF15: 16 | AG15: Formulario Único de Exportación (FUE) o Declaración Aduanera Única (DAU) o Declaración Andina de Valor (DAV) | AI15: GUATEMALA | AJ15: 111 | AK15: 111-GUATEMALA | AM15: 13-CURAZAO | AN15: CURAZAO | AO15: 13 | AP15: CURAZAO | AQ15: 127 | AR15: 2007-05-01 | AS15: 127-CURAZAO | AU15: Rendimientos financieros / Comisiones sobre préstamos | AV15: 413 | AW15: 2007-05-01 | AY15: 413-Rendimientos financieros / Comisiones sobre préstamos | CG15: 312-Transferencia de bienes muebles de naturaleza corporal | CH15: 312 | CI15: Transferencia de bienes muebles de naturaleza corporal | CJ15: 1.75 | CL15: 310-Servicio de transporte privado de pasajeros o transporte público o privado de carga | CM15: 310 | CN15: Servicio de transporte privado de pasajeros o transporte público o privado de carga | CO15: 1 | CQ15: 311-Pagos a través de liquidación de compra (nivel cultural o rusticidad) | CR15: 311 | CS15: Pagos a través de liquidación de compra (nivel cultural o rusticidad) | CT15: 2
A16: 372 | B16: 372-Nota de crédito operadora transporte / socio | D16: 20 | E16: 20-Documentos por Servicios Administrativos emitidos por Inst. del Estado | G16: =IF(ADMI!$J$21="HASTA 02-2024",TABLAS!CG16,IF(ADMI!$J$21="DESDE 03-2024",TABLAS!CL16,CQ16)) -> 311-Pagos a través de liquidación de compra (nivel cultural o rusticidad) | H16: =IF(ADMI!$J$21="HASTA 02-2024",TABLAS!CH16,IF(ADMI!$J$21="DESDE 03-2024",TABLAS!CM16,CR16)) -> 311 | I16: =IF(ADMI!$J$21="HASTA 02-2024",TABLAS!CI16,IF(ADMI!$J$21="DESDE 03-2024",TABLAS!CN16,CS16)) -> Pagos a través de liquidación de compra (nivel cultural o rusticidad) | J16: =IF(ADMI!$J$21="HASTA 02-2024",TABLAS!CJ16,IF(ADMI!$J$21="DESDE 03-2024",TABLAS!CO16,CT16)) -> 2 | L16: 145 | M16: CEBAF – San Miguel | N16: 145-CEBAF – San Miguel | AB16: 14 | AC16: 14-Valores facturados por socios a operadoras de transporte (que no constituyen gasto de dicha operadora) | AE16: 18-Documentos autorizados utilizados en ventas excepto N/C N/D | AF16: 18 | AG16: Documentos autorizados utilizados en ventas excepto N/C N/D | AI16: HAITI | AJ16: 112 | AK16: 112-HAITI | AM16: 14-ESTADO ASOCIADO DE GRANADA (Estado independiente) | AN16: ESTADO ASOCIADO DE GRANADA (Estado independiente) | AO16: 14 | AP16: GRANADA | AQ16: 131 | AR16: 2007-05-01 | AS16: 131-GRANADA | AU16: Rendimientos financieros / Otras inversiones | AV16: 414 | AW16: 2007-05-01 | AY16: 414-Rendimientos financieros / Otras inversiones | BH16: RANGOS FECHAS TALON RESUMEN | BK16: RANGOS FECHAS DEC RETENCIONES | CG16: 312A-Compra de bienes de origen agrícola, avícola, pecuario, apícola, cunícula, bioacuático, forestal y carnes en estado natural | CH16: 312A | CI16: Compra de bienes de origen agrícola, avícola, pecuario, apícola, cunícula, bioacuático, forestal y carnes en estado natural | CJ16: 1 | CL16: 311-Pagos a través de liquidación de compra (nivel cultural o rusticidad) | CM16: 311 | CN16: Pagos a través de liquidación de compra (nivel cultural o rusticidad) | CO16: 2 | CQ16: 312-Transferencia de bienes muebles de naturaleza corporal | CR16: 312 | CS16: Transferencia de bienes muebles de naturaleza corporal | CT16: 1.75
A17: 373 | B17: 373-Nota de débito operadora transporte / socio | D17: 21 | E17: 21-Carta de Porte Aéreo | G17: =IF(ADMI!$J$21="HASTA 02-2024",TABLAS!CG17,IF(ADMI!$J$21="DESDE 03-2024",TABLAS!CL17,CQ17)) -> 312-Transferencia de bienes muebles de naturaleza corporal | H17: =IF(ADMI!$J$21="HASTA 02-2024",TABLAS!CH17,IF(ADMI!$J$21="DESDE 03-2024",TABLAS!CM17,CR17)) -> 312 | I17: =IF(ADMI!$J$21="HASTA 02-2024",TABLAS!CI17,IF(ADMI!$J$21="DESDE 03-2024",TABLAS!CN17,CS17)) -> Transferencia de bienes muebles de naturaleza corporal | J17: =IF(ADMI!$J$21="HASTA 02-2024",TABLAS!CJ17,IF(ADMI!$J$21="DESDE 03-2024",TABLAS!CO17,CT17)) -> 1.75 | M17: --- | N17: --- | AB17: 15 | AC17: 15-Pagos efectuados por consumos propios y de terceros de servicios digitales | AE17: 19-Comprobantes de Pago de Cuotas o Aportes | AF17: 19 | AG17: Comprobantes de Pago de Cuotas o Aportes | AI17: HONDURAS | AJ17: 113 | AK17: 113-HONDURAS | AM17: 15-ESTADO DE BAHREIN (Estado independiente) | AN17: ESTADO DE BAHREIN (Estado independiente) | AO17: 15 | AP17: BAHREIN | AQ17: 327 | AR17: 2007-05-01 | AS17: 327-BAHREIN | AU17: Garantías | AV17: 415 | AW17: 2007-05-01 | AY17: 415-Garantías | BH17: =IF('TALON RESUMEN'!C2="MESES","1/"&MID('TALON RESUMEN'!D2,1,2)&"/"&'TALON RESUMEN'!D1,IF('TALON RESUMEN'!D2="ENERO-JUNIO","1/6/"&'TALON RESUMEN'!D1,"1/12/"&'TALON RESUMEN'!D1)) -> 1/07/2025 | BI17: =EOMONTH(BH17, 0) -> 2025-07-31 | BK17: =IF(RETENCIONES!$A$3="MESES","1/"&MID(RETENCIONES!$B$3,1,2)&"/"&RETENCIONES!$B$2,IF(RETENCIONES!$B$3="ENERO-JUNIO","1/6/"&RETENCIONES!$B$2,"1/12/"&RETENCIONES!$B$2)) -> 1/01/2025 | BL17: =EOMONTH(BK17, 0) -> 2025-01-31 | CG17: 312B-Impuesto a la Renta único para la actividad de producción y cultivo de palma aceitera | CH17: 312B | CI17: Impuesto a la Renta único para la actividad de producción y cultivo de palma aceitera | CJ17: 1 | CL17: 312-Transferencia de bienes muebles de naturaleza corporal | CM17: 312 | CN17: Transferencia de bienes muebles de naturaleza corporal | CO17: 1.75 | CQ17: 312A-COMPRAS AL PRODUCTOR: de bienes de origen bioacuático, forestal y los descritos el art.27.1 de LRTI | CR17: 312A | CS17: COMPRAS AL PRODUCTOR: de bienes de origen bioacuático, forestal y los descritos el art.27.1 de LRTI | CT17: 1
A18: =MID(B18,1,2) -> 37 | B18: 374-Nota de débito operadora transporte / socio | D18: 41 | E18: 41-Comprobante de venta emitido por reembolso | G18: =IF(ADMI!$J$21="HASTA 02-2024",TABLAS!CG18,IF(ADMI!$J$21="DESDE 03-2024",TABLAS!CL18,CQ18)) -> 312A-COMPRAS AL PRODUCTOR: de bienes de origen bioacuático, forestal y los descritos el art.27.1 de LRTI | H18: =IF(ADMI!$J$21="HASTA 02-2024",TABLAS!CH18,IF(ADMI!$J$21="DESDE 03-2024",TABLAS!CM18,CR18)) -> 312A | I18: =IF(ADMI!$J$21="HASTA 02-2024",TABLAS!CI18,IF(ADMI!$J$21="DESDE 03-2024",TABLAS!CN18,CS18)) -> COMPRAS AL PRODUCTOR: de bienes de origen bioacuático, forestal y los descritos el art.27.1 de LRTI | J18: =IF(ADMI!$J$21="HASTA 02-2024",TABLAS!CJ18,IF(ADMI!$J$21="DESDE 03-2024",TABLAS!CO18,CT18)) -> 1 | AB18: 00 | AC18: 00-Casos especiales cuyo sustento no aplica en las opciones anteriores | AE18: 20-Documentos por Servicios Administrativos emitidos por Inst. del Estado | AF18: 20 | AG18: Documentos por Servicios Administrativos emitidos por Inst. del Estado | AI18: JAMAICA | AJ18: 114 | AK18: 114-JAMAICA | AM18: 16-ESTADO DE KUWAIT (Estado independiente) | AN18: ESTADO DE KUWAIT (Estado independiente) | AO18: 16 | AP18: KUWAIT | AQ18: 316 | AR18: 2007-05-01 | AS18: 316-KUWAIT | AU18: Servicios profesionales independientes /dependientes | AV18: 416 | AW18: 2007-05-01 | AY18: 416- Servicios profesionales independientes /dependientes | BH18: SEMESTRE: | BI18: =EOMONTH(BI17,-6)+1 -> 2025-02-01 | BK18: SEMESTRE: | BL18: =EOMONTH(BL17,-6)+1 -> 2024-08-01 | CG18: 314A-Regalías por concepto de franquicias de acuerdo a Ley de Propiedad Intelectual - pago a personas naturales | CH18: 314A | CI18: Regalías por concepto de franquicias de acuerdo a Ley de Propiedad Intelectual - pago a personas naturales | CJ18: 8 | CL18: 312A-COMPRAS AL PRODUCTOR: de bienes de origen bioacuático, forestal y los descritos el art.27.1 de LRTI | CM18: 312A | CN18: COMPRAS AL PRODUCTOR: de bienes de origen bioacuático, forestal y los descritos el art.27.1 de LRTI | CO18: 1 | CQ18: 312C-COMPRAS AL COMERCIALIZADOR: de bienes de origen bioacuático, forestal y los descritos el art.27.1 de LRTI | CR18: 312C | CS18: COMPRAS AL COMERCIALIZADOR: de bienes de origen bioacuático, forestal y los descritos el art.27.1 de LRTI | CT18: 1.75
B19: --- | D19: 42 | E19: 42-Documento agente de retención Presuntiva | G19: =IF(ADMI!$J$21="HASTA 02-2024",TABLAS!CG19,IF(ADMI!$J$21="DESDE 03-2024",TABLAS!CL19,CQ19)) -> 312C-COMPRAS AL COMERCIALIZADOR: de bienes de origen bioacuático, forestal y los descritos el art.27.1 de LRTI | H19: =IF(ADMI!$J$21="HASTA 02-2024",TABLAS!CH19,IF(ADMI!$J$21="DESDE 03-2024",TABLAS!CM19,CR19)) -> 312C | I19: =IF(ADMI!$J$21="HASTA 02-2024",TABLAS!CI19,IF(ADMI!$J$21="DESDE 03-2024",TABLAS!CN19,CS19)) -> COMPRAS AL COMERCIALIZADOR: de bienes de origen bioacuático, forestal y los descritos el art.27.1 de LRTI | J19: =IF(ADMI!$J$21="HASTA 02-2024",TABLAS!CJ19,IF(ADMI!$J$21="DESDE 03-2024",TABLAS!CO19,CT19)) -> 1.75 | AC19: --- | AE19: 21-Carta de Porte Aéreo | AF19: 21 | AG19: Carta de Porte Aéreo | AI19: MALVINAS ISLAS | AJ19: 115 | AK19: 115-MALVINAS ISLAS | AM19: 17-ESTADO LIBRE ASOCIADO DE PUERTO RICO (Estado asociado a los EEUU) | AN19: ESTADO LIBRE ASOCIADO DE PUERTO RICO (Estado asociado a los EEUU) | AO19: 17 | AP19: PUERTO RICO | AQ19: 121 | AR19: 2007-05-01 | AS19: 121-PUERTO RICO | AU19: Intereses sobre préstamos | AV19: 417 | AW19: 2007-05-01 | AY19: 417-Intereses sobre préstamos | CG19: 314B-Cánones, derechos de autor, marcas, patentes y similares de acuerdo a Ley de Propiedad Intelectual – pago a personas naturales | CH19: 314B | CI19: Cánones, derechos de autor, marcas, patentes y similares de acuerdo a Ley de Propiedad Intelectual – pago a personas naturales | CJ19: 8 | CL19: 312C-COMPRAS AL COMERCIALIZADOR: de bienes de origen bioacuático, forestal y los descritos el art.27.1 de LRTI | CM19: 312C | CN19: COMPRAS AL COMERCIALIZADOR: de bienes de origen bioacuático, forestal y los descritos el art.27.1 de LRTI | CO19: 1.75 | CQ19: 314A-Regalías por concepto de franquicias de acuerdo al Código INGENIOS (COESCCI) - pago a personas naturales | CR19: 314A | CS19: Regalías por concepto de franquicias de acuerdo al Código INGENIOS (COESCCI) - pago a personas naturales | CT19: 10
D20: 43 | E20: 43-Liquidacion para Explotacion y Exploracion de Hidrocarburos | G20: =IF(ADMI!$J$21="HASTA 02-2024",TABLAS!CG20,IF(ADMI!$J$21="DESDE 03-2024",TABLAS!CL20,CQ20)) -> 314A-Regalías por concepto de franquicias de acuerdo al Código INGENIOS (COESCCI) - pago a personas naturales | H20: =IF(ADMI!$J$21="HASTA 02-2024",TABLAS!CH20,IF(ADMI!$J$21="DESDE 03-2024",TABLAS!CM20,CR20)) -> 314A | I20: =IF(ADMI!$J$21="HASTA 02-2024",TABLAS!CI20,IF(ADMI!$J$21="DESDE 03-2024",TABLAS!CN20,CS20)) -> Regalías por concepto de franquicias de acuerdo al Código INGENIOS (COESCCI) - pago a personas naturales | J20: =IF(ADMI!$J$21="HASTA 02-2024",TABLAS!CJ20,IF(ADMI!$J$21="DESDE 03-2024",TABLAS!CO20,CT20)) -> 10 | AE20: 22-RECAP | AF20: 22 | AG20: RECAP | AI20: MEXICO | AJ20: 116 | AK20: 116-MEXICO | AM20: 18-EMIRATOS ÁRABES UNIDOS (Estado independiente) | AN20: EMIRATOS ÁRABES UNIDOS (Estado independiente) | AO20: 18 | AP20: EMIRATOS ARABES UNIDOS | AQ20: 333 | AR20: 2007-05-01 | AS20: 333-EMIRATOS ARABES UNIDOS | AU20: Intereses créditos en ventas | AV20: 418 | AW20: 2007-05-01 | AY20: 418-Intereses créditos en ventas | CG20: 314C-Regalías por concepto de franquicias de acuerdo a Ley de Propiedad Intelectual - pago a sociedades | CH20: 314C | CI20: Regalías por concepto de franquicias de acuerdo a Ley de Propiedad Intelectual - pago a sociedades | CJ20: 8 | CL20: 314A-Regalías por concepto de franquicias de acuerdo al Código INGENIOS (COESCCI) - pago a personas naturales | CM20: 314A | CN20: Regalías por concepto de franquicias de acuerdo al Código INGENIOS (COESCCI) - pago a personas naturales | CO20: 10 | CQ20: 314B-Cánones, derechos de autor, marcas, patentes y similares de acuerdo al Código INGENIOS (COESCCI) – pago a personas naturales | CR20: 314B | CS20: Cánones, derechos de autor, marcas, patentes y similares de acuerdo al Código INGENIOS (COESCCI) – pago a personas naturales | CT20: 10
D21: 45 | E21: 45-Liquidación de medicina prepagada | G21: =IF(ADMI!$J$21="HASTA 02-2024",TABLAS!CG21,IF(ADMI!$J$21="DESDE 03-2024",TABLAS!CL21,CQ21)) -> 314B-Cánones, derechos de autor, marcas, patentes y similares de acuerdo al Código INGENIOS (COESCCI) – pago a personas naturales | H21: =IF(ADMI!$J$21="HASTA 02-2024",TABLAS!CH21,IF(ADMI!$J$21="DESDE 03-2024",TABLAS!CM21,CR21)) -> 314B | I21: =IF(ADMI!$J$21="HASTA 02-2024",TABLAS!CI21,IF(ADMI!$J$21="DESDE 03-2024",TABLAS!CN21,CS21)) -> Cánones, derechos de autor, marcas, patentes y similares de acuerdo al Código INGENIOS (COESCCI) – pago a personas naturales | J21: =IF(ADMI!$J$21="HASTA 02-2024",TABLAS!CJ21,IF(ADMI!$J$21="DESDE 03-2024",TABLAS!CO21,CT21)) -> 10 | AE21: 23-Nota de Crédito TC | AF21: 23 | AG21: Nota de Crédito TC | AI21: NICARAGUA | AJ21: 117 | AK21: 117-NICARAGUA | AM21: 19-FEDERACIÓN DE SAN CRISTÓBAL (Islas Saint Kitts and Nevis: independientes) | AN21: FEDERACIÓN DE SAN CRISTÓBAL (Islas Saint Kitts and Nevis: independientes) | AO21: 19 | AP21: SAN CRISTOBAL Y NEVIS | AQ21: 137 | AR21: 2007-05-01 | AS21: 137-SAN CRISTOBAL Y NEVIS | AU21: Regalías /Cánones, derechos de autor, marcas, patentes y similares | AV21: 419 | AW21: 2007-05-01 | AY21: 419-Regalías /Cánones, derechos de autor, marcas, patentes y similares | BH21: RANGOS FECHAS ADMI | CG21: 314D-Cánones, derechos de autor, marcas, patentes y similares de acuerdo a Ley de Propiedad Intelectual – pago a sociedades | CH21: 314D | CI21: Cánones, derechos de autor, marcas, patentes y similares de acuerdo a Ley de Propiedad Intelectual – pago a sociedades | CJ21: 8 | CL21: 314B-Cánones, derechos de autor, marcas, patentes y similares de acuerdo al Código INGENIOS (COESCCI) – pago a personas naturales | CM21: 314B | CN21: Cánones, derechos de autor, marcas, patentes y similares de acuerdo al Código INGENIOS (COESCCI) – pago a personas naturales | CO21: 10 | CQ21: 314C-Regalías por concepto de franquicias de acuerdo al Código INGENIOS (COESCCI) - pago a sociades | CR21: 314C | CS21: Regalías por concepto de franquicias de acuerdo al Código INGENIOS (COESCCI) - pago a sociades | CT21: 10
D22: 47 | E22: 47-N/C por Reembolso Emitida por Intermediario | G22: =IF(ADMI!$J$21="HASTA 02-2024",TABLAS!CG22,IF(ADMI!$J$21="DESDE 03-2024",TABLAS!CL22,CQ22)) -> 314C-Regalías por concepto de franquicias de acuerdo al Código INGENIOS (COESCCI) - pago a sociades | H22: =IF(ADMI!$J$21="HASTA 02-2024",TABLAS!CH22,IF(ADMI!$J$21="DESDE 03-2024",TABLAS!CM22,CR22)) -> 314C | I22: =IF(ADMI!$J$21="HASTA 02-2024",TABLAS!CI22,IF(ADMI!$J$21="DESDE 03-2024",TABLAS!CN22,CS22)) -> Regalías por concepto de franquicias de acuerdo al Código INGENIOS (COESCCI) - pago a sociades | J22: =IF(ADMI!$J$21="HASTA 02-2024",TABLAS!CJ22,IF(ADMI!$J$21="DESDE 03-2024",TABLAS!CO22,CT22)) -> 10 | AE22: 24-Nota de Débito TC | AF22: 24 | AG22: Nota de Débito TC | AI22: PANAMA | AJ22: 118 | AK22: 118-PANAMA | AM22: 20-GRAN DUCADO DE LUXEMBURGO | AN22: GRAN DUCADO DE LUXEMBURGO | AO22: 20 | AP22: LUXEMBURGO | AQ22: 220 | AR22: 2007-05-01 | AS22: 220-LUXEMBURGO | AU22: Regalías / Por concepto de franquicias | AV22: 420 | AW22: 2007-05-01 | AY22: 420-Regalías / Por concepto de franquicias | BH22: =IF(GP!AI5="MESES","1/"&MID(GP!AJ5,1,2)&"/"&GP!AJ4,IF(GP!AJ5="ENERO-JUNIO","1/6/"&GP!AJ4,"1/12/"&GP!AJ4)) -> 1/02/2021 | BI22: =EOMONTH(BH22, 0) -> 2021-02-28 | CG22: 319-Cuotas de arrendamiento mercantil (prestado por sociedades), inclusive la de opción de compra | CH22: 319 | CI22: Cuotas de arrendamiento mercantil (prestado por sociedades), inclusive la de opción de compra | CJ22: 1.75 | CL22: 314C-Regalías por concepto de franquicias de acuerdo al Código INGENIOS (COESCCI) - pago a sociades | CM22: 314C | CN22: Regalías por concepto de franquicias de acuerdo al Código INGENIOS (COESCCI) - pago a sociades | CO22: 10 | CQ22: 314D-Cánones, derechos de autor, marcas, patentes y similares de acuerdo al Código INGENIOS (COESCCI) | CR22: 314D | CS22: Cánones, derechos de autor, marcas, patentes y similares de acuerdo al Código INGENIOS (COESCCI) | CT22: 10
D23: 48 | E23: 48-N/D por Reembolso Emitida por Intermediario | G23: =IF(ADMI!$J$21="HASTA 02-2024",TABLAS!CG23,IF(ADMI!$J$21="DESDE 03-2024",TABLAS!CL23,CQ23)) -> 314D-Cánones, derechos de autor, marcas, patentes y similares de acuerdo al Código INGENIOS (COESCCI) | H23: =IF(ADMI!$J$21="HASTA 02-2024",TABLAS!CH23,IF(ADMI!$J$21="DESDE 03-2024",TABLAS!CM23,CR23)) -> 314D | I23: =IF(ADMI!$J$21="HASTA 02-2024",TABLAS!CI23,IF(ADMI!$J$21="DESDE 03-2024",TABLAS!CN23,CS23)) -> Cánones, derechos de autor, marcas, patentes y similares de acuerdo al Código INGENIOS (COESCCI) | J23: =IF(ADMI!$J$21="HASTA 02-2024",TABLAS!CJ23,IF(ADMI!$J$21="DESDE 03-2024",TABLAS!CO23,CT23)) -> 10 | AE23: 41-Comprobante de venta emitido por reembolso | AF23: 41 | AG23: Comprobante de venta emitido por reembolso | AI23: PARAGUAY | AJ23: 119 | AK23: 119-PARAGUAY | AM23: 21-GROENLANDIA | AN23: GROENLANDIA | AO23: 21 | AP23: GROENLANDIA | AQ23: 247 | AR23: 2007-05-01 | AS23: 247-GROENLANDIA | AU23: Seguros y reaseguros (primas y cesiones) | AV23: 421 | AW23: 2007-05-01 | AY23: 421-Seguros y reaseguros (primas y cesiones) | BH23: SEMESTRE: | BI23: =EOMONTH(BI22,-6)+1 -> 2020-09-01 | CG23: 320-Arrendamiento bienes inmuebles | CH23: 320 | CI23: Arrendamiento bienes inmuebles | CJ23: 8 | CL23: 314D-Cánones, derechos de autor, marcas, patentes y similares de acuerdo al Código INGENIOS (COESCCI) | CM23: 314D | CN23: Cánones, derechos de autor, marcas, patentes y similares de acuerdo al Código INGENIOS (COESCCI) | CO23: 10 | CQ23: 319-Cuotas de arrendamiento mercantil (prestado por sociedades), inclusive la de opción de compra | CR23: 319 | CS23: Cuotas de arrendamiento mercantil (prestado por sociedades), inclusive la de opción de compra | CT23: 2
D24: =MID(E24,1,3) -> 294 | E24: 294-Liquidación de compra de Bienes Muebles Usados | G24: =IF(ADMI!$J$21="HASTA 02-2024",TABLAS!CG24,IF(ADMI!$J$21="DESDE 03-2024",TABLAS!CL24,CQ24)) -> 319-Cuotas de arrendamiento mercantil (prestado por sociedades), inclusive la de opción de compra | H24: =IF(ADMI!$J$21="HASTA 02-2024",TABLAS!CH24,IF(ADMI!$J$21="DESDE 03-2024",TABLAS!CM24,CR24)) -> 319 | I24: =IF(ADMI!$J$21="HASTA 02-2024",TABLAS!CI24,IF(ADMI!$J$21="DESDE 03-2024",TABLAS!CN24,CS24)) -> Cuotas de arrendamiento mercantil (prestado por sociedades), inclusive la de opción de compra | J24: =IF(ADMI!$J$21="HASTA 02-2024",TABLAS!CJ24,IF(ADMI!$J$21="DESDE 03-2024",TABLAS!CO24,CT24)) -> 2 | AE24: 42-Documento agente de retención Presuntiva | AF24: 42 | AG24: Documento agente de retención Presuntiva | AI24: PERU | AJ24: 120 | AK24: 120-PERU | AM24: 22-GUAM (Territorio no autónomo de los EEUU) | AN24: GUAM (Territorio no autónomo de los EEUU) | AO24: 22 | AP24: GUAM | AQ24: 517 | AR24: 2007-05-01 | AS24: 517-GUAM | AU24: Utilidad o pérdida por derivados financieros | AV24: 422 | AW24: 2007-05-01 | AY24: 422-Utilidad o pérdida por derivados financieros | CG24: 322-Seguros y reaseguros (primas y cesiones) | CH24: 322 | CI24: Seguros y reaseguros (primas y cesiones) | CJ24: 1.75 | CL24: 319-Cuotas de arrendamiento mercantil (prestado por sociedades), inclusive la de opción de compra | CM24: 319 | CN24: Cuotas de arrendamiento mercantil (prestado por sociedades), inclusive la de opción de compra | CO24: 2 | CQ24: 320-Arrendamiento bienes inmuebles | CR24: 320 | CS24: Arrendamiento bienes inmuebles | CT24: 10
D25: =MID(E25,1,3) -> 364 | E25: 364-Acta Entrega-Recepción PET | G25: =IF(ADMI!$J$21="HASTA 02-2024",TABLAS!CG25,IF(ADMI!$J$21="DESDE 03-2024",TABLAS!CL25,CQ25)) -> 320-Arrendamiento bienes inmuebles | H25: =IF(ADMI!$J$21="HASTA 02-2024",TABLAS!CH25,IF(ADMI!$J$21="DESDE 03-2024",TABLAS!CM25,CR25)) -> 320 | I25: =IF(ADMI!$J$21="HASTA 02-2024",TABLAS!CI25,IF(ADMI!$J$21="DESDE 03-2024",TABLAS!CN25,CS25)) -> Arrendamiento bienes inmuebles | J25: =IF(ADMI!$J$21="HASTA 02-2024",TABLAS!CJ25,IF(ADMI!$J$21="DESDE 03-2024",TABLAS!CO25,CT25)) -> 10 | AE25: 43-Liquidación para Explotación y Exploracion de Hidrocarburos | AF25: 43 | AG25: Liquidación para Explotación y Exploracion de Hidrocarburos | AI25: PUERTO RICO | AJ25: 121 | AK25: 121-PUERTO RICO | AM25: 23-ISLA DE ASCENSIÓN | AN25: ISLA DE ASCENSIÓN | AO25: 23 | AP25: SANTA ELENA | AQ25: 466 | AR25: 2007-05-01 | AS25: 466-SANTA ELENA | AU25: Utilidad por operaciones de futuros distintas de las del sector financiero | AV25: 423 | AW25: 2007-05-01 | AY25: 423-Utilidad por operaciones de futuros distintas de las del sector financiero | CG25: 323-Rendimientos financieros pagados a naturales y sociedades (No a IFIs) | CH25: 323 | CI25: Rendimientos financieros pagados a naturales y sociedades (No a IFIs) | CJ25: 2 | CL25: 320-Arrendamiento bienes inmuebles | CM25: 320 | CN25: Arrendamiento bienes inmuebles | CO25: 10 | CQ25: 322-Seguros y reaseguros (primas y cesiones) | CR25: 322 | CS25: Seguros y reaseguros (primas y cesiones) | CT25: 1
D26: =MID(E26,1,3) -> 374 | E26: 374-Liquidación de compra RISE de bienes o prestación de servicios | G26: =IF(ADMI!$J$21="HASTA 02-2024",TABLAS!CG26,IF(ADMI!$J$21="DESDE 03-2024",TABLAS!CL26,CQ26)) -> 322-Seguros y reaseguros (primas y cesiones) | H26: =IF(ADMI!$J$21="HASTA 02-2024",TABLAS!CH26,IF(ADMI!$J$21="DESDE 03-2024",TABLAS!CM26,CR26)) -> 322 | I26: =IF(ADMI!$J$21="HASTA 02-2024",TABLAS!CI26,IF(ADMI!$J$21="DESDE 03-2024",TABLAS!CN26,CS26)) -> Seguros y reaseguros (primas y cesiones) | J26: =IF(ADMI!$J$21="HASTA 02-2024",TABLAS!CJ26,IF(ADMI!$J$21="DESDE 03-2024",TABLAS!CO26,CT26)) -> 1 | AE26: 44-Comprobante de Contribuciones y Aportes | AF26: 44 | AG26: Comprobante de Contribuciones y Aportes | AI26: REPUBLICA DOMINICANA | AJ26: 122 | AK26: 122-REPUBLICA DOMINICANA | AM26: 24-ISLAS AZORES | AN26: ISLAS AZORES | AO26: 24 | AP26: PORTUGAL | AQ26: 224 | AR26: 2007-05-01 | AS26: 224-PORTUGAL | AU26: Venta de bienes intangibles | AV26: 424 | AW26: 2007-05-01 | AY26: 424-Venta de bienes intangibles | CG26: 323A-Rendimientos financieros: depósitos Cta. Corriente | CH26: 323A | CI26: Rendimientos financieros: depósitos Cta. Corriente | CJ26: 2 | CL26: 322-Seguros y reaseguros (primas y cesiones) | CM26: 322 | CN26: Seguros y reaseguros (primas y cesiones) | CO26: 1 | CQ26: 323-Rendimientos financieros pagados a naturales y sociedades (No a IFIs) | CR26: 323 | CS26: Rendimientos financieros pagados a naturales y sociedades (No a IFIs) | CT26: 2
D27: =MID(E27,1,2) -> 34 | E27: 344-Liquidación de compra de vehículos usados | G27: =IF(ADMI!$J$21="HASTA 02-2024",TABLAS!CG27,IF(ADMI!$J$21="DESDE 03-2024",TABLAS!CL27,CQ27)) -> 323-Rendimientos financieros pagados a naturales y sociedades (No a IFIs) | H27: =IF(ADMI!$J$21="HASTA 02-2024",TABLAS!CH27,IF(ADMI!$J$21="DESDE 03-2024",TABLAS!CM27,CR27)) -> 323 | I27: =IF(ADMI!$J$21="HASTA 02-2024",TABLAS!CI27,IF(ADMI!$J$21="DESDE 03-2024",TABLAS!CN27,CS27)) -> Rendimientos financieros pagados a naturales y sociedades (No a IFIs) | J27: =IF(ADMI!$J$21="HASTA 02-2024",TABLAS!CJ27,IF(ADMI!$J$21="DESDE 03-2024",TABLAS!CO27,CT27)) -> 2 | AE27: 45-Liquidación por reclamos de aseguradoras | AF27: 45 | AG27: Liquidación por reclamos de aseguradoras | AI27: EL SALVADOR | AJ27: 123 | AK27: 123-EL SALVADOR | AM27: 25-ISLAS CAIMÁN (Territorio no autónomo del Reino Unido) | AN27: ISLAS CAIMÁN (Territorio no autónomo del Reino Unido) | AO27: 25 | AP27: ISLAS CAIMAN | AQ27: 145 | AR27: 2007-05-01 | AS27: 145-ISLAS CAIMAN | AU27: Enajenación de derechos representativos de capital | AV27: 425 | AW27: 2007-05-01 | AY27: 425-Enajenación de derechos representativos de capital | CG27: 323B1-Rendimientos financieros: depósitos Cta. Ahorros Sociedades | CH27: 323B1 | CI27: Rendimientos financieros: depósitos Cta. Ahorros Sociedades | CJ27: 2 | CL27: 323-Rendimientos financieros pagados a naturales y sociedades (No a IFIs) | CM27: 323 | CN27: Rendimientos financieros pagados a naturales y sociedades (No a IFIs) | CO27: 2 | CQ27: 323A-Rendimientos financieros depósitos Cta. Corriente | CR27: 323A | CS27: Rendimientos financieros depósitos Cta. Corriente | CT27: 2
E28: --- | G28: =IF(ADMI!$J$21="HASTA 02-2024",TABLAS!CG28,IF(ADMI!$J$21="DESDE 03-2024",TABLAS!CL28,CQ28)) -> 323A-Rendimientos financieros depósitos Cta. Corriente | H28: =IF(ADMI!$J$21="HASTA 02-2024",TABLAS!CH28,IF(ADMI!$J$21="DESDE 03-2024",TABLAS!CM28,CR28)) -> 323A | I28: =IF(ADMI!$J$21="HASTA 02-2024",TABLAS!CI28,IF(ADMI!$J$21="DESDE 03-2024",TABLAS!CN28,CS28)) -> Rendimientos financieros depósitos Cta. Corriente | J28: =IF(ADMI!$J$21="HASTA 02-2024",TABLAS!CJ28,IF(ADMI!$J$21="DESDE 03-2024",TABLAS!CO28,CT28)) -> 2 | AE28: 47-Nota de Crédito por Reembolso Emitida por Intermediario | AF28: 47 | AG28: Nota de Crédito por Reembolso Emitida por Intermediario | AI28: TRINIDAD Y TOBAGO | AJ28: 124 | AK28: 124-TRINIDAD Y TOBAGO | AM28: 26-ISLAS CHRISTMAS | AN28: ISLAS CHRISTMAS | AO28: 26 | AP28: ISLAS NAVIDAD | AQ28: 520 | AR28: 2007-05-01 | AS28: 520-ISLAS NAVIDAD | AU28: Enajenación de obligaciones | AV28: 426 | AW28: 2007-05-01 | AY28: 426-Enajenación de obligaciones | CG28: 323E-Rendimientos financieros: depósito a plazo fijo gravados | CH28: 323E | CI28: Rendimientos financieros: depósito a plazo fijo gravados | CJ28: 2 | CL28: 323A-Rendimientos financieros depósitos Cta. Corriente | CM28: 323A | CN28: Rendimientos financieros depósitos Cta. Corriente | CO28: 2 | CQ28: 323B1-Rendimientos financieros depósitos Cta. Ahorros Sociedades | CR28: 323B1 | CS28: Rendimientos financieros depósitos Cta. Ahorros Sociedades | CT28: 2
G29: =IF(ADMI!$J$21="HASTA 02-2024",TABLAS!CG29,IF(ADMI!$J$21="DESDE 03-2024",TABLAS!CL29,CQ29)) -> 323B1-Rendimientos financieros depósitos Cta. Ahorros Sociedades | H29: =IF(ADMI!$J$21="HASTA 02-2024",TABLAS!CH29,IF(ADMI!$J$21="DESDE 03-2024",TABLAS!CM29,CR29)) -> 323B1 | I29: =IF(ADMI!$J$21="HASTA 02-2024",TABLAS!CI29,IF(ADMI!$J$21="DESDE 03-2024",TABLAS!CN29,CS29)) -> Rendimientos financieros depósitos Cta. Ahorros Sociedades | J29: =IF(ADMI!$J$21="HASTA 02-2024",TABLAS!CJ29,IF(ADMI!$J$21="DESDE 03-2024",TABLAS!CO29,CT29)) -> 2 | AE29: 48-Nota de Débito por Reembolso Emitida por Intermediario | AF29: 48 | AG29: Nota de Débito por Reembolso Emitida por Intermediario | AI29: URUGUAY | AJ29: 125 | AK29: 125-URUGUAY | AM29: 27-ISLA DE COCOS O KEELING | AN29: ISLA DE COCOS O KEELING | AO29: 27 | AP29: ISLAS COCOS (KEELING) | AQ29: 518 | AR29: 2007-05-01 | AS29: 518-ISLAS COCOS (KEELING) | AU29: Artistas | AV29: 427 | AW29: 2007-05-01 | AY29: 427-Artistas | CG29: 323E2-Rendimientos financieros: depósito a plazo fijo exentos | CH29: 323E2 | CI29: Rendimientos financieros: depósito a plazo fijo exentos | CJ29: 0 | CL29: 323B1-Rendimientos financieros depósitos Cta. Ahorros Sociedades | CM29: 323B1 | CN29: Rendimientos financieros depósitos Cta. Ahorros Sociedades | CO29: 2 | CQ29: 323E-Rendimientos financieros depósito a plazo fijo gravados | CR29: 323E | CS29: Rendimientos financieros depósito a plazo fijo gravados | CT29: 2
G30: =IF(ADMI!$J$21="HASTA 02-2024",TABLAS!CG30,IF(ADMI!$J$21="DESDE 03-2024",TABLAS!CL30,CQ30)) -> 323E-Rendimientos financieros depósito a plazo fijo gravados | H30: =IF(ADMI!$J$21="HASTA 02-2024",TABLAS!CH30,IF(ADMI!$J$21="DESDE 03-2024",TABLAS!CM30,CR30)) -> 323E | I30: =IF(ADMI!$J$21="HASTA 02-2024",TABLAS!CI30,IF(ADMI!$J$21="DESDE 03-2024",TABLAS!CN30,CS30)) -> Rendimientos financieros depósito a plazo fijo gravados | J30: =IF(ADMI!$J$21="HASTA 02-2024",TABLAS!CJ30,IF(ADMI!$J$21="DESDE 03-2024",TABLAS!CO30,CT30)) -> 2 | AE30: 49-Proveedor Directo de Exportador Bajo Régimen Especial | AF30: 49 | AG30: Proveedor Directo de Exportador Bajo Régimen Especial | AI30: VENEZUELA | AJ30: 126 | AK30: 126-VENEZUELA | AM30: 28-ISLA DE COOK (Territorio autónomo asociado a Nueva Zelanda) | AN30: ISLA DE COOK (Territorio autónomo asociado a Nueva Zelanda) | AO30: 28 | AP30: ISLAS COOK | AQ30: 519 | AR30: 2007-05-01 | AS30: 519-ISLAS COOK | AU30: Deportistas | AV30: 428 | AW30: 2007-05-01 | AY30: 428-Deportistas | CG30: 323F-Rendimientos financieros: operaciones de reporto - repos | CH30: 323F | CI30: Rendimientos financieros: operaciones de reporto - repos | CJ30: 2 | CL30: 323E-Rendimientos financieros depósito a plazo fijo gravados | CM30: 323E | CN30: Rendimientos financieros depósito a plazo fijo gravados | CO30: 2 | CQ30: 323E2-Rendimientos financieros depósito a plazo fijo exentos | CR30: 323E2 | CS30: Rendimientos financieros depósito a plazo fijo exentos | CT30: 0
G31: =IF(ADMI!$J$21="HASTA 02-2024",TABLAS!CG31,IF(ADMI!$J$21="DESDE 03-2024",TABLAS!CL31,CQ31)) -> 323E2-Rendimientos financieros depósito a plazo fijo exentos | H31: =IF(ADMI!$J$21="HASTA 02-2024",TABLAS!CH31,IF(ADMI!$J$21="DESDE 03-2024",TABLAS!CM31,CR31)) -> 323E2 | I31: =IF(ADMI!$J$21="HASTA 02-2024",TABLAS!CI31,IF(ADMI!$J$21="DESDE 03-2024",TABLAS!CN31,CS31)) -> Rendimientos financieros depósito a plazo fijo exentos | J31: =IF(ADMI!$J$21="HASTA 02-2024",TABLAS!CJ31,IF(ADMI!$J$21="DESDE 03-2024",TABLAS!CO31,CT31)) -> 0 | AE31: 50-A Inst. Estado y Empr. Públicas que percibe ingreso exento de Imp. Renta | AF31: 50 | AG31: A Inst. Estado y Empr. Públicas que percibe ingreso exento de Imp. Renta | AI31: CURAZAO | AJ31: 127 | AK31: 127-CURAZAO | AM31: 29-ISLA DE MAN (Territorio del Reino Unido) | AN31: ISLA DE MAN (Territorio del Reino Unido) | AO31: 29 | AP31: ISLE OF MAN | AQ31: 833 | AR31: 2007-05-01 | AS31: 833-ISLE OF MAN | AU31: Participación de consejeros | AV31: 429 | AW31: 2007-05-01 | AY31: 429-Participación de consejeros | CG31: 323G-Inversiones (captaciones) rendimientos distintos de aquellos pagados a IFIs | CH31: 323G | CI31: Inversiones (captaciones) rendimientos distintos de aquellos pagados a IFIs | CJ31: 2 | CL31: 323E2-Rendimientos financieros depósito a plazo fijo exentos | CM31: 323E2 | CN31: Rendimientos financieros depósito a plazo fijo exentos | CO31: 0 | CQ31: 323F-Rendimientos financieros operaciones de reporto - repos | CR31: 323F | CS31: Rendimientos financieros operaciones de reporto - repos | CT31: 2
G32: =IF(ADMI!$J$21="HASTA 02-2024",TABLAS!CG32,IF(ADMI!$J$21="DESDE 03-2024",TABLAS!CL32,CQ32)) -> 323F-Rendimientos financieros operaciones de reporto - repos | H32: =IF(ADMI!$J$21="HASTA 02-2024",TABLAS!CH32,IF(ADMI!$J$21="DESDE 03-2024",TABLAS!CM32,CR32)) -> 323F | I32: =IF(ADMI!$J$21="HASTA 02-2024",TABLAS!CI32,IF(ADMI!$J$21="DESDE 03-2024",TABLAS!CN32,CS32)) -> Rendimientos financieros operaciones de reporto - repos | J32: =IF(ADMI!$J$21="HASTA 02-2024",TABLAS!CJ32,IF(ADMI!$J$21="DESDE 03-2024",TABLAS!CO32,CT32)) -> 2 | AE32: 51-N/C A Inst. Estado y Empr. Públicas que percibe ingreso exento de Imp. Renta | AF32: 51 | AG32: N/C A Inst. Estado y Empr. Públicas que percibe ingreso exento de Imp. Renta | AI32: BAHAMAS | AJ32: 129 | AK32: 129-BAHAMAS | AM32: 30-ISLA DE NORFOLK | AN32: ISLA DE NORFOLK | AO32: 30 | AP32: NORFOLK ISLA | AQ32: 523 | AR32: 2007-05-01 | AS32: 523-NORFOLK ISLA | AU32: Entretenimiento Público | AV32: 430 | AW32: 2007-05-01 | AY32: 430- Entretenimiento Público | CG32: 323H-Rendimientos financieros: obligaciones | CH32: 323H | CI32: Rendimientos financieros: obligaciones | CJ32: 2 | CL32: 323F-Rendimientos financieros operaciones de reporto - repos | CM32: 323F | CN32: Rendimientos financieros operaciones de reporto - repos | CO32: 2 | CQ32: 323G-Inversiones (captaciones) rendimientos distintos de aquellos pagados a IFIs | CR32: 323G | CS32: Inversiones (captaciones) rendimientos distintos de aquellos pagados a IFIs | CT32: 2
G33: =IF(ADMI!$J$21="HASTA 02-2024",TABLAS!CG33,IF(ADMI!$J$21="DESDE 03-2024",TABLAS!CL33,CQ33)) -> 323G-Inversiones (captaciones) rendimientos distintos de aquellos pagados a IFIs | H33: =IF(ADMI!$J$21="HASTA 02-2024",TABLAS!CH33,IF(ADMI!$J$21="DESDE 03-2024",TABLAS!CM33,CR33)) -> 323G | I33: =IF(ADMI!$J$21="HASTA 02-2024",TABLAS!CI33,IF(ADMI!$J$21="DESDE 03-2024",TABLAS!CN33,CS33)) -> Inversiones (captaciones) rendimientos distintos de aquellos pagados a IFIs | J33: =IF(ADMI!$J$21="HASTA 02-2024",TABLAS!CJ33,IF(ADMI!$J$21="DESDE 03-2024",TABLAS!CO33,CT33)) -> 2 | AE33: 52-N/D A Inst. Estado y Empr. Públicas que percibe ingreso exento de Imp. Renta | AF33: 52 | AG33: N/D A Inst. Estado y Empr. Públicas que percibe ingreso exento de Imp. Renta | AI33: BARBADOS | AJ33: 130 | AK33: 130-BARBADOS | AM33: 31-ISLA DE SAN PEDRO Y MIGUELÓN | AN33: ISLA DE SAN PEDRO Y MIGUELÓN | AO33: 31 | AP33: ST. PIERRE AND MIQUE | AQ33: 604 | AR33: 2007-05-01 | AS33: 604-ST. PIERRE AND MIQUE | AU33: Pensiones | AV33: 431 | AW33: 2007-05-01 | AY33: 431-Pensiones | CG33: 323I-Rendimientos financieros: bonos convertible en acciones | CH33: 323I | CI33: Rendimientos financieros: bonos convertible en acciones | CJ33: 2 | CL33: 323G-Inversiones (captaciones) rendimientos distintos de aquellos pagados a IFIs | CM33: 323G | CN33: Inversiones (captaciones) rendimientos distintos de aquellos pagados a IFIs | CO33: 2 | CQ33: 323H-Rendimientos financieros obligaciones | CR33: 323H | CS33: Rendimientos financieros obligaciones | CT33: 2
G34: =IF(ADMI!$J$21="HASTA 02-2024",TABLAS!CG34,IF(ADMI!$J$21="DESDE 03-2024",TABLAS!CL34,CQ34)) -> 323H-Rendimientos financieros obligaciones | H34: =IF(ADMI!$J$21="HASTA 02-2024",TABLAS!CH34,IF(ADMI!$J$21="DESDE 03-2024",TABLAS!CM34,CR34)) -> 323H | I34: =IF(ADMI!$J$21="HASTA 02-2024",TABLAS!CI34,IF(ADMI!$J$21="DESDE 03-2024",TABLAS!CN34,CS34)) -> Rendimientos financieros obligaciones | J34: =IF(ADMI!$J$21="HASTA 02-2024",TABLAS!CJ34,IF(ADMI!$J$21="DESDE 03-2024",TABLAS!CO34,CT34)) -> 2 | AE34: 294-Liquidación de compra de Bienes Muebles Usados | AF34: 294 | AG34: Liquidación de compra de Bienes Muebles Usados | AI34: GRANADA | AJ34: 131 | AK34: 131-GRANADA | AM34: 32-ISLAS DEL CANAL (Guernesey, Alderney, Isla de Great Stark, Herm, Little Sark, Brechou, Jethou, Lihou) | AN34: ISLAS DEL CANAL (Guernesey, Alderney, Isla de Great Stark, Herm, Little Sark, Brechou, Jethou, Lihou) | AO34: 32 | AP34: GUERNSEY | AQ34: 831 | AR34: 2007-05-01 | AS34: 831-GUERNSEY | AU34: Reembolso de Gastos | AV34: 432 | AW34: 2007-05-01 | AY34: 432-Reembolso de Gastos | CG34: 323 M-Rendimientos financieros: Inversiones en títulos valores en renta fija gravados | CH34: 323 M | CI34: Rendimientos financieros: Inversiones en títulos valores en renta fija gravados | CJ34: 2 | CL34: 323H-Rendimientos financieros obligaciones | CM34: 323H | CN34: Rendimientos financieros obligaciones | CO34: 2 | CQ34: 323I-Rendimientos financieros bonos convertible en acciones | CR34: 323I | CS34: Rendimientos financieros bonos convertible en acciones | CT34: 2
G35: =IF(ADMI!$J$21="HASTA 02-2024",TABLAS!CG35,IF(ADMI!$J$21="DESDE 03-2024",TABLAS!CL35,CQ35)) -> 323I-Rendimientos financieros bonos convertible en acciones | H35: =IF(ADMI!$J$21="HASTA 02-2024",TABLAS!CH35,IF(ADMI!$J$21="DESDE 03-2024",TABLAS!CM35,CR35)) -> 323I | I35: =IF(ADMI!$J$21="HASTA 02-2024",TABLAS!CI35,IF(ADMI!$J$21="DESDE 03-2024",TABLAS!CN35,CS35)) -> Rendimientos financieros bonos convertible en acciones | J35: =IF(ADMI!$J$21="HASTA 02-2024",TABLAS!CJ35,IF(ADMI!$J$21="DESDE 03-2024",TABLAS!CO35,CT35)) -> 2 | AE35: 344-Liquidación de compra de vehículos usados | AF35: 344 | AG35: Liquidación de compra de vehículos usados | AI35: GUYANA | AJ35: 132 | AK35: 132-GUYANA | AM35: 88-ISLAS DEL CANAL (Jersey) | AN35: ISLAS DEL CANAL (Jersey) | AO35: 88 | AP35: JERSEY | AQ35: 499 | AR35: 2007-05-01 | AS35: 499-JERSEY | AU35: Funciones Públicas | AV35: 433 | AW35: 2007-05-01 | AY35: 433-Funciones Públicas | CG35: 323 N-Rendimientos financieros: Inversiones en títulos valores en renta fija exentos | CH35: 323 N | CI35: Rendimientos financieros: Inversiones en títulos valores en renta fija exentos | CJ35: 0 | CL35: 323I-Rendimientos financieros bonos convertible en acciones | CM35: 323I | CN35: Rendimientos financieros bonos convertible en acciones | CO35: 2 | CQ35: 323 M-Rendimientos financieros : Inversiones en títulos valores en renta fija gravados | CR35: 323 M | CS35: Rendimientos financieros : Inversiones en títulos valores en renta fija gravados | CT35: 2
G36: =IF(ADMI!$J$21="HASTA 02-2024",TABLAS!CG36,IF(ADMI!$J$21="DESDE 03-2024",TABLAS!CL36,CQ36)) -> 323 M-Rendimientos financieros : Inversiones en títulos valores en renta fija gravados | H36: =IF(ADMI!$J$21="HASTA 02-2024",TABLAS!CH36,IF(ADMI!$J$21="DESDE 03-2024",TABLAS!CM36,CR36)) -> 323 M | I36: =IF(ADMI!$J$21="HASTA 02-2024",TABLAS!CI36,IF(ADMI!$J$21="DESDE 03-2024",TABLAS!CN36,CS36)) -> Rendimientos financieros : Inversiones en títulos valores en renta fija gravados | J36: =IF(ADMI!$J$21="HASTA 02-2024",TABLAS!CJ36,IF(ADMI!$J$21="DESDE 03-2024",TABLAS!CO36,CT36)) -> 2 | AE36: --- | AF36: --- | AG36: --- | AI36: SURINAM | AJ36: 133 | AK36: 133-SURINAM | AM36: 33-ISLA QESHM | AN36: ISLA QESHM | AO36: 33 | AP36: IRAN (REPUBLICA ISLAMICA) | AQ36: 312 | AR36: 2007-05-01 | AS36: 312-IRAN (REPUBLICA ISLAMICA) | AU36: Estudiantes | AV36: 434 | AW36: 2007-05-01 | AY36: 434- Estudiantes | CG36: 323 O-Intereses y demás rendimientos financieros pagados a bancos y otras entidades sometidas al control de la Superintendencia de Bancos y de la Economía Popular y Solidaria | CH36: 323 O | CI36: Intereses y demás rendimientos financieros pagados a bancos y otras entidades sometidas al control de la Superintendencia de Bancos y de la Economía Popular y Solidaria | CJ36: 0 | CL36: 323 M-Rendimientos financieros : Inversiones en títulos valores en renta fija gravados | CM36: 323 M | CN36: Rendimientos financieros : Inversiones en títulos valores en renta fija gravados | CO36: 2 | CQ36: 323 N-Rendimientos financieros Inversiones en títulos valores en renta fija exentos | CR36: 323 N | CS36: Rendimientos financieros Inversiones en títulos valores en renta fija exentos | CT36: 0
G37: =IF(ADMI!$J$21="HASTA 02-2024",TABLAS!CG37,IF(ADMI!$J$21="DESDE 03-2024",TABLAS!CL37,CQ37)) -> 323 N-Rendimientos financieros Inversiones en títulos valores en renta fija exentos | H37: =IF(ADMI!$J$21="HASTA 02-2024",TABLAS!CH37,IF(ADMI!$J$21="DESDE 03-2024",TABLAS!CM37,CR37)) -> 323 N | I37: =IF(ADMI!$J$21="HASTA 02-2024",TABLAS!CI37,IF(ADMI!$J$21="DESDE 03-2024",TABLAS!CN37,CS37)) -> Rendimientos financieros Inversiones en títulos valores en renta fija exentos | J37: =IF(ADMI!$J$21="HASTA 02-2024",TABLAS!CJ37,IF(ADMI!$J$21="DESDE 03-2024",TABLAS!CO37,CT37)) -> 0 | AI37: ANTIGUA Y BARBUDA | AJ37: 134 | AK37: 134-ANTIGUA Y BARBUDA | AM37: 34-ISLAS SALOMÓN | AN37: ISLAS SALOMÓN | AO37: 34 | AP37: SALOMON ISLAS | AQ37: 514 | AR37: 2007-05-01 | AS37: 514-SALOMON ISLAS | AU37: Arrendamientos mercantil internacional | AV37: 435 | AW37: 2007-05-01 | AY37: 435-Arrendamientos mercantil internacional | CG37: 323 P-Intereses pagados por entidades del sector público a favor de sujetos pasivos | CH37: 323 P | CI37: Intereses pagados por entidades del sector público a favor de sujetos pasivos | CJ37: 2 | CL37: 323 N-Rendimientos financieros Inversiones en títulos valores en renta fija exentos | CM37: 323 N | CN37: Rendimientos financieros Inversiones en títulos valores en renta fija exentos | CO37: 0 | CQ37: 323 O-Intereses y demás rendimientos financieros pagados a bancos y otras entidades sometidas al control de la Superintendencia de Bancos y de la Economía Popular y Solidaria | CR37: 323 O | CS37: Intereses y demás rendimientos financieros pagados a bancos y otras entidades sometidas al control de la Superintendencia de Bancos y de la Economía Popular y Solidaria | CT37: 0
G38: =IF(ADMI!$J$21="HASTA 02-2024",TABLAS!CG38,IF(ADMI!$J$21="DESDE 03-2024",TABLAS!CL38,CQ38)) -> 323 O-Intereses y demás rendimientos financieros pagados a bancos y otras entidades sometidas al control de la Superintendencia de Bancos y de la Economía Popular y Solidaria | H38: =IF(ADMI!$J$21="HASTA 02-2024",TABLAS!CH38,IF(ADMI!$J$21="DESDE 03-2024",TABLAS!CM38,CR38)) -> 323 O | I38: =IF(ADMI!$J$21="HASTA 02-2024",TABLAS!CI38,IF(ADMI!$J$21="DESDE 03-2024",TABLAS!CN38,CS38)) -> Intereses y demás rendimientos financieros pagados a bancos y otras entidades sometidas al control de la Superintendencia de Bancos y de la Economía Popular y Solidaria | J38: =IF(ADMI!$J$21="HASTA 02-2024",TABLAS!CJ38,IF(ADMI!$J$21="DESDE 03-2024",TABLAS!CO38,CT38)) -> 0 | AI38: BELICE | AJ38: 135 | AK38: 135-BELICE | AM38: 35-ISLAS TURKAS E ISLAS CAICOS (Territorio no autónomo del Reino Unido) | AN38: ISLAS TURKAS E ISLAS CAICOS (Territorio no autónomo del Reino Unido) | AO38: 35 | AP38: TURCAS Y CAICOS ISLAS | AQ38: 151 | AR38: 2007-05-01 | AS38: 151-TURCAS Y CAICOS ISLAS | AU38: Contratos de fletamento de naves para empresas de transporte aéreo o marítimo internacional | AV38: 436 | AW38: 2007-05-01 | AY38: 436- Contratos de fletamento de naves para empresas de transporte aéreo o marítimo internacional | CG38: 323Q-Otros intereses y rendimientos financieros gravados | CH38: 323Q | CI38: Otros intereses y rendimientos financieros gravados | CJ38: 2 | CL38: 323 O-Intereses y demás rendimientos financieros pagados a bancos y otras entidades sometidas al control de la Superintendencia de Bancos y de la Economía Popular y Solidaria | CM38: 323 O | CN38: Intereses y demás rendimientos financieros pagados a bancos y otras entidades sometidas al control de la Superintendencia de Bancos y de la Economía Popular y Solidaria | CO38: 0 | CQ38: 323 P- Intereses pagados por entidades del sector público a favor de sujetos pasivos | CR38: 323 P | CS38: Intereses pagados por entidades del sector público a favor de sujetos pasivos | CT38: 2
G39: =IF(ADMI!$J$21="HASTA 02-2024",TABLAS!CG39,IF(ADMI!$J$21="DESDE 03-2024",TABLAS!CL39,CQ39)) -> 323 P- Intereses pagados por entidades del sector público a favor de sujetos pasivos | H39: =IF(ADMI!$J$21="HASTA 02-2024",TABLAS!CH39,IF(ADMI!$J$21="DESDE 03-2024",TABLAS!CM39,CR39)) -> 323 P | I39: =IF(ADMI!$J$21="HASTA 02-2024",TABLAS!CI39,IF(ADMI!$J$21="DESDE 03-2024",TABLAS!CN39,CS39)) -> Intereses pagados por entidades del sector público a favor de sujetos pasivos | J39: =IF(ADMI!$J$21="HASTA 02-2024",TABLAS!CJ39,IF(ADMI!$J$21="DESDE 03-2024",TABLAS!CO39,CT39)) -> 2 | AI39: DOMINICA | AJ39: 136 | AK39: 136-DOMINICA | AM39: 36-ISLAS VÍRGENES BRITÁNICAS (Territorio no autónomo del Reino Unido) | AN39: ISLAS VÍRGENES BRITÁNICAS (Territorio no autónomo del Reino Unido) | AO39: 36 | AP39: ISLAS VIRGENES (BRITANICAS) | AQ39: 146 | AR39: 2007-05-01 | AS39: 146-ISLAS VIRGENES (BRITANICAS) | AU39: Seguros y reaseguros (primas y cesiones) | AV39: 437 | AW39: 2007-05-01 | AY39: 437-Seguros y reaseguros (primas y cesiones) | CG39: 323R-Otros intereses y rendimientos financieros exentos | CH39: 323R | CI39: Otros intereses y rendimientos financieros exentos | CJ39: 0 | CL39: 323 P- Intereses pagados por entidades del sector público a favor de sujetos pasivos | CM39: 323 P | CN39: Intereses pagados por entidades del sector público a favor de sujetos pasivos | CO39: 2 | CQ39: 323Q-Otros intereses y rendimientos financieros gravados | CR39: 323Q | CS39: Otros intereses y rendimientos financieros gravados | CT39: 2
G40: =IF(ADMI!$J$21="HASTA 02-2024",TABLAS!CG40,IF(ADMI!$J$21="DESDE 03-2024",TABLAS!CL40,CQ40)) -> 323Q-Otros intereses y rendimientos financieros gravados | H40: =IF(ADMI!$J$21="HASTA 02-2024",TABLAS!CH40,IF(ADMI!$J$21="DESDE 03-2024",TABLAS!CM40,CR40)) -> 323Q | I40: =IF(ADMI!$J$21="HASTA 02-2024",TABLAS!CI40,IF(ADMI!$J$21="DESDE 03-2024",TABLAS!CN40,CS40)) -> Otros intereses y rendimientos financieros gravados | J40: =IF(ADMI!$J$21="HASTA 02-2024",TABLAS!CJ40,IF(ADMI!$J$21="DESDE 03-2024",TABLAS!CO40,CT40)) -> 2 | AI40: SAN CRISTOBAL Y NEVIS | AJ40: 137 | AK40: 137-SAN CRISTOBAL Y NEVIS | AM40: 37-ISLAS VÍRGENES DE ESTADOS UNIDOS DE AMÉRICA | AN40: ISLAS VÍRGENES DE ESTADOS UNIDOS DE AMÉRICA | AO40: 37 | AP40: VIRGENES,ISLAS(NORT.AMER.) | AQ40: 152 | AR40: 2007-05-01 | AS40: 152-VIRGENES,ISLAS(NORT.AMER.) | AU40: Otros ingresos | AV40: 438 | AW40: 2007-05-01 | AY40: 438-Otros ingresos | CG40: 323S-Pagos y créditos en cuenta efectuados por el BCE y los depósitos centralizados de valores, en calidad de intermediarios, a instituciones del sistema financiero por cuenta de otras personas naturales y sociedades | CH40: 323S | CI40: Pagos y créditos en cuenta efectuados por el BCE y los depósitos centralizados de valores, en calidad de intermediarios, a instituciones del sistema financiero por cuenta de otras personas naturales y sociedades | CJ40: 2 | CL40: 323Q-Otros intereses y rendimientos financieros gravados | CM40: 323Q | CN40: Otros intereses y rendimientos financieros gravados | CO40: 2 | CQ40: 323R-Otros intereses y rendimientos financieros exentos | CR40: 323R | CS40: Otros intereses y rendimientos financieros exentos | CT40: 0
G41: =IF(ADMI!$J$21="HASTA 02-2024",TABLAS!CG41,IF(ADMI!$J$21="DESDE 03-2024",TABLAS!CL41,CQ41)) -> 323R-Otros intereses y rendimientos financieros exentos | H41: =IF(ADMI!$J$21="HASTA 02-2024",TABLAS!CH41,IF(ADMI!$J$21="DESDE 03-2024",TABLAS!CM41,CR41)) -> 323R | I41: =IF(ADMI!$J$21="HASTA 02-2024",TABLAS!CI41,IF(ADMI!$J$21="DESDE 03-2024",TABLAS!CN41,CS41)) -> Otros intereses y rendimientos financieros exentos | J41: =IF(ADMI!$J$21="HASTA 02-2024",TABLAS!CJ41,IF(ADMI!$J$21="DESDE 03-2024",TABLAS!CO41,CT41)) -> 0 | AI41: SANTA LUCIA | AJ41: 138 | AK41: 138-SANTA LUCIA | AM41: 38-KIRIBATI | AN41: KIRIBATI | AO41: 38 | AP41: KIRIBATI | AQ41: 510 | AR41: 2007-05-01 | AS41: 510-KIRIBATI | AU41: Otros servicios | AV41: 439 | AW41: 2007-05-01 | AY41: 439-Otros servicios | CG41: 323T-Rendimientos financieros originados en la deuda pública ecuatoriana | CH41: 323T | CI41: Rendimientos financieros originados en la deuda pública ecuatoriana | CJ41: 0 | CL41: 323R-Otros intereses y rendimientos financieros exentos | CM41: 323R | CN41: Otros intereses y rendimientos financieros exentos | CO41: 0 | CQ41: 323S-Pagos y créditos en cuenta efectuados por el BCE y los depósitos centralizados de valores, en calidad de intermediarios, a instituciones del sistema financiero por cuenta de otras personas naturales y sociedades | CR41: 323S | CS41: Pagos y créditos en cuenta efectuados por el BCE y los depósitos centralizados de valores, en calidad de intermediarios, a instituciones del sistema financiero por cuenta de otras personas naturales y sociedades | CT41: 2
G42: =IF(ADMI!$J$21="HASTA 02-2024",TABLAS!CG42,IF(ADMI!$J$21="DESDE 03-2024",TABLAS!CL42,CQ42)) -> 323S-Pagos y créditos en cuenta efectuados por el BCE y los depósitos centralizados de valores, en calidad de intermediarios, a instituciones del sistema financiero por cuenta de otras personas naturales y sociedades | H42: =IF(ADMI!$J$21="HASTA 02-2024",TABLAS!CH42,IF(ADMI!$J$21="DESDE 03-2024",TABLAS!CM42,CR42)) -> 323S | I42: =IF(ADMI!$J$21="HASTA 02-2024",TABLAS!CI42,IF(ADMI!$J$21="DESDE 03-2024",TABLAS!CN42,CS42)) -> Pagos y créditos en cuenta efectuados por el BCE y los depósitos centralizados de valores, en calidad de intermediarios, a instituciones del sistema financiero por cuenta de otras personas naturales y sociedades | J42: =IF(ADMI!$J$21="HASTA 02-2024",TABLAS!CJ42,IF(ADMI!$J$21="DESDE 03-2024",TABLAS!CO42,CT42)) -> 2 | AI42: SAN VICENTE Y LAS GRANAD. | AJ42: 139 | AK42: 139-SAN VICENTE Y LAS GRANAD. | AM42: 39-LABUAN | AN42: LABUAN | AO42: 39 | AP42: MALASIA | AQ42: 319 | AR42: 2007-05-01 | AS42: 319-MALASIA | AY42: --- | CG42: 323U-Rendimientos financieros originados en títulos valores de obligaciones de 360 días o más para el financiamiento de proyectos públicos en asociación público-privada | CH42: 323U | CI42: Rendimientos financieros originados en títulos valores de obligaciones de 360 días o más para el financiamiento de proyectos públicos en asociación público-privada | CJ42: 0 | CL42: 323S-Pagos y créditos en cuenta efectuados por el BCE y los depósitos centralizados de valores, en calidad de intermediarios, a instituciones del sistema financiero por cuenta de otras personas naturales y sociedades | CM42: 323S | CN42: Pagos y créditos en cuenta efectuados por el BCE y los depósitos centralizados de valores, en calidad de intermediarios, a instituciones del sistema financiero por cuenta de otras personas naturales y sociedades | CO42: 2 | CQ42: 323T-Rendimientos financieros originados en la deuda pública ecuatoriana | CR42: 323T | CS42: Rendimientos financieros originados en la deuda pública ecuatoriana | CT42: 0
G43: =IF(ADMI!$J$21="HASTA 02-2024",TABLAS!CG43,IF(ADMI!$J$21="DESDE 03-2024",TABLAS!CL43,CQ43)) -> 323T-Rendimientos financieros originados en la deuda pública ecuatoriana | H43: =IF(ADMI!$J$21="HASTA 02-2024",TABLAS!CH43,IF(ADMI!$J$21="DESDE 03-2024",TABLAS!CM43,CR43)) -> 323T | I43: =IF(ADMI!$J$21="HASTA 02-2024",TABLAS!CI43,IF(ADMI!$J$21="DESDE 03-2024",TABLAS!CN43,CS43)) -> Rendimientos financieros originados en la deuda pública ecuatoriana | J43: =IF(ADMI!$J$21="HASTA 02-2024",TABLAS!CJ43,IF(ADMI!$J$21="DESDE 03-2024",TABLAS!CO43,CT43)) -> 0 | AI43: ANTILLAS HOLANDESAS | AJ43: 140 | AK43: 140-ANTILLAS HOLANDESAS | AM43: 40-MACAO | AN43: MACAO | AO43: 40 | AP43: MACAO | AQ43: 355 | AR43: 2007-05-01 | AS43: 355-MACAO | CG43: 324A-Intereses y comisiones en operaciones de crédito entre instituciones del sistema financiero y entidades economía popular y solidaria. | CH43: 324A | CI43: Intereses y comisiones en operaciones de crédito entre instituciones del sistema financiero y entidades economía popular y solidaria. | CJ43: 1 | CL43: 323T-Rendimientos financieros originados en la deuda pública ecuatoriana | CM43: 323T | CN43: Rendimientos financieros originados en la deuda pública ecuatoriana | CO43: 0 | CQ43: 323U-Rendimientos financieros originados en títulos valores de obligaciones de 360 días o más para el financiamiento de proyectos públicos en asociación público-privada | CR43: 323U | CS43: Rendimientos financieros originados en títulos valores de obligaciones de 360 días o más para el financiamiento de proyectos públicos en asociación público-privada | CT43: 0
G44: =IF(ADMI!$J$21="HASTA 02-2024",TABLAS!CG44,IF(ADMI!$J$21="DESDE 03-2024",TABLAS!CL44,CQ44)) -> 323U-Rendimientos financieros originados en títulos valores de obligaciones de 360 días o más para el financiamiento de proyectos públicos en asociación público-privada | H44: =IF(ADMI!$J$21="HASTA 02-2024",TABLAS!CH44,IF(ADMI!$J$21="DESDE 03-2024",TABLAS!CM44,CR44)) -> 323U | I44: =IF(ADMI!$J$21="HASTA 02-2024",TABLAS!CI44,IF(ADMI!$J$21="DESDE 03-2024",TABLAS!CN44,CS44)) -> Rendimientos financieros originados en títulos valores de obligaciones de 360 días o más para el financiamiento de proyectos públicos en asociación público-privada | J44: =IF(ADMI!$J$21="HASTA 02-2024",TABLAS!CJ44,IF(ADMI!$J$21="DESDE 03-2024",TABLAS!CO44,CT44)) -> 0 | AI44: ARUBA | AJ44: 141 | AK44: 141-ARUBA | AM44: 41-MADEIRA (Territorio de Portugal) | AN44: MADEIRA (Territorio de Portugal) | AO44: 41 | AP44: PORTUGAL | AQ44: 224 | AR44: 2007-05-01 | AS44: 224-PORTUGAL | CG44: 324B-Inversiones entre instituciones del sistema financiero y entidades economía popular y solidaria | CH44: 324B | CI44: Inversiones entre instituciones del sistema financiero y entidades economía popular y solidaria | CJ44: 1 | CL44: 323U-Rendimientos financieros originados en títulos valores de obligaciones de 360 días o más para el financiamiento de proyectos públicos en asociación público-privada | CM44: 323U | CN44: Rendimientos financieros originados en títulos valores de obligaciones de 360 días o más para el financiamiento de proyectos públicos en asociación público-privada | CO44: 0 | CQ44: 324A- Intereses en operaciones de crédito entre instituciones del sistema financiero y entidades economía popular y solidaria. | CR44: 324A | CS44: Intereses en operaciones de crédito entre instituciones del sistema financiero y entidades economía popular y solidaria. | CT44: 1
G45: =IF(ADMI!$J$21="HASTA 02-2024",TABLAS!CG45,IF(ADMI!$J$21="DESDE 03-2024",TABLAS!CL45,CQ45)) -> 323T-Rendimientos financieros originados en la deuda pública ecuatoriana | H45: =IF(ADMI!$J$21="HASTA 02-2024",TABLAS!CH45,IF(ADMI!$J$21="DESDE 03-2024",TABLAS!CM45,CR45)) -> 324A | I45: =IF(ADMI!$J$21="HASTA 02-2024",TABLAS!CI45,IF(ADMI!$J$21="DESDE 03-2024",TABLAS!CN45,CS45)) -> Intereses en operaciones de crédito entre instituciones del sistema financiero y entidades economía popular y solidaria. | J45: =IF(ADMI!$J$21="HASTA 02-2024",TABLAS!CJ45,IF(ADMI!$J$21="DESDE 03-2024",TABLAS!CO45,CT45)) -> 1 | AI45: BERMUDA | AJ45: 142 | AK45: 142-BERMUDA | AM45: 42-MANCOMUNIDAD DE DOMINICA (Estado asociado) | AN45: MANCOMUNIDAD DE DOMINICA (Estado asociado) | AO45: 42 | AP45: DOMINICA | AQ45: 136 | AR45: 2007-05-01 | AS45: 136-DOMINICA | CG45: =CH43&"-"&CI43 -> 324A-Intereses y comisiones en operaciones de crédito entre instituciones del sistema financiero y entidades economía popular y solidaria. | CH45: 324C | CI45: Pagos y créditos en cuenta efectuados por el BCE y los depósitos centralizados de valores, en calidad de intermediarios, a instituciones del sistema financiero por cuenta de otras instituciones del sistema financiero | CJ45: 1 | CL45: =CM43&"-"&CN43 -> 323T-Rendimientos financieros originados en la deuda pública ecuatoriana | CM45: 324A | CN45: Intereses en operaciones de crédito entre instituciones del sistema financiero y entidades economía popular y solidaria. | CO45: 1 | CQ45: 324B-Inversiones entre instituciones del sistema financiero y entidades economía popular y solidaria | CR45: 324B | CS45: Inversiones entre instituciones del sistema financiero y entidades economía popular y solidaria | CT45: 1
G46: =IF(ADMI!$J$21="HASTA 02-2024",TABLAS!CG46,IF(ADMI!$J$21="DESDE 03-2024",TABLAS!CL46,CQ46)) -> 324B-Inversiones entre instituciones del sistema financiero y entidades economía popular y solidaria | H46: =IF(ADMI!$J$21="HASTA 02-2024",TABLAS!CH46,IF(ADMI!$J$21="DESDE 03-2024",TABLAS!CM46,CR46)) -> 324B | I46: =IF(ADMI!$J$21="HASTA 02-2024",TABLAS!CI46,IF(ADMI!$J$21="DESDE 03-2024",TABLAS!CN46,CS46)) -> Inversiones entre instituciones del sistema financiero y entidades economía popular y solidaria | J46: =IF(ADMI!$J$21="HASTA 02-2024",TABLAS!CJ46,IF(ADMI!$J$21="DESDE 03-2024",TABLAS!CO46,CT46)) -> 1 | AI46: GUADALUPE | AJ46: 143 | AK46: 143-GUADALUPE | AM46: 43-MONTSERRAT (Territorio no autónomo del Reino Unido) | AN46: MONTSERRAT (Territorio no autónomo del Reino Unido) | AO46: 43 | AP46: MONTSERRAT ISLA | AQ46: 149 | AR46: 2007-05-01 | AS46: 149-MONTSERRAT ISLA | CG46: =CH46&"-"&CI46 -> 325-Anticipo dividendos | CH46: 325 | CI46: Anticipo dividendos | CJ46: 22 ó 25 | CL46: =CM46&"-"&CN46 -> 324B-Inversiones entre instituciones del sistema financiero y entidades economía popular y solidaria | CM46: 324B | CN46: Inversiones entre instituciones del sistema financiero y entidades economía popular y solidaria | CO46: 1 | CQ46: 324C-Pagos y créditos en cuenta efectuados por el BCE y los depósitos centralizados de valores, en calidad de intermediarios, a instituciones del sistema financiero por cuenta de otras instituciones del sistema financiero | CR46: 324C | CS46: Pagos y créditos en cuenta efectuados por el BCE y los depósitos centralizados de valores, en calidad de intermediarios, a instituciones del sistema financiero por cuenta de otras instituciones del sistema financiero | CT46: 1
G47: =IF(ADMI!$J$21="HASTA 02-2024",TABLAS!CG47,IF(ADMI!$J$21="DESDE 03-2024",TABLAS!CL47,CQ47)) -> 324C-Pagos y créditos en cuenta efectuados por el BCE y los depósitos centralizados de valores, en calidad de intermediarios, a instituciones del sistema financiero por cuenta de otras instituciones del sistema financiero | H47: =IF(ADMI!$J$21="HASTA 02-2024",TABLAS!CH47,IF(ADMI!$J$21="DESDE 03-2024",TABLAS!CM47,CR47)) -> 324C | I47: =IF(ADMI!$J$21="HASTA 02-2024",TABLAS!CI47,IF(ADMI!$J$21="DESDE 03-2024",TABLAS!CN47,CS47)) -> Pagos y créditos en cuenta efectuados por el BCE y los depósitos centralizados de valores, en calidad de intermediarios, a instituciones del sistema financiero por cuenta de otras instituciones del sistema financiero | J47: =IF(ADMI!$J$21="HASTA 02-2024",TABLAS!CJ47,IF(ADMI!$J$21="DESDE 03-2024",TABLAS!CO47,CT47)) -> 1 | AI47: GUYANA FRANCESA | AJ47: 144 | AK47: 144-GUYANA FRANCESA | AM47: 44-MYANMAR (ex Birmania) | AN47: MYANMAR (ex Birmania) | AO47: 44 | AP47: MYANMAR (BURMA) | AQ47: 303 | AR47: 2007-05-01 | AS47: 303-MYANMAR (BURMA) | CG47: 325A-Préstamos accionistas, beneficiarios o partícipes residentes o establecidos en el Ecuador | CH47: 325A | CI47: Préstamos accionistas, beneficiarios o partícipes residentes o establecidos en el Ecuador | CJ47: 22 ó 25 | CL47: 324C-Pagos y créditos en cuenta efectuados por el BCE y los depósitos centralizados de valores, en calidad de intermediarios, a instituciones del sistema financiero por cuenta de otras instituciones del sistema financiero | CM47: 324C | CN47: Pagos y créditos en cuenta efectuados por el BCE y los depósitos centralizados de valores, en calidad de intermediarios, a instituciones del sistema financiero por cuenta de otras instituciones del sistema financiero | CO47: 1 | CQ47: 325-Anticipo dividendos | CR47: 325 | CS47: Anticipo dividendos | CT47: 25
G48: =IF(ADMI!$J$21="HASTA 02-2024",TABLAS!CG48,IF(ADMI!$J$21="DESDE 03-2024",TABLAS!CL48,CQ48)) -> 325-Anticipo dividendos | H48: =IF(ADMI!$J$21="HASTA 02-2024",TABLAS!CH48,IF(ADMI!$J$21="DESDE 03-2024",TABLAS!CM48,CR48)) -> 325 | I48: =IF(ADMI!$J$21="HASTA 02-2024",TABLAS!CI48,IF(ADMI!$J$21="DESDE 03-2024",TABLAS!CN48,CS48)) -> Anticipo dividendos | J48: =IF(ADMI!$J$21="HASTA 02-2024",TABLAS!CJ48,IF(ADMI!$J$21="DESDE 03-2024",TABLAS!CO48,CT48)) -> 22 o 25 | AI48: ISLAS CAIMAN | AJ48: 145 | AK48: 145-ISLAS CAIMAN | AM48: 45-NIGERIA | AN48: NIGERIA | AO48: 45 | AP48: NIGERIA | AQ48: 417 | AR48: 2007-05-01 | AS48: 417-NIGERIA | CG48: 326-Dividendos distribuidos que correspondan al impuesto a la renta único establecido en el art. 27 de la LRTI | CH48: 326 | CI48: Dividendos distribuidos que correspondan al impuesto a la renta único establecido en el art. 27 de la LRTI | CJ48: Hasta 25 y conforme la Resolución NAC-DGERCGC20-000000013 | CL48: 325-Anticipo dividendos | CM48: 325 | CN48: Anticipo dividendos | CO48: 22 o 25 | CQ48: 325A-Préstamos accionistas, beneficiarios o partícipes residentes o establecidos en el Ecuador | CR48: 325A | CS48: Préstamos accionistas, beneficiarios o partícipes residentes o establecidos en el Ecuador | CT48: 25
G49: =IF(ADMI!$J$21="HASTA 02-2024",TABLAS!CG49,IF(ADMI!$J$21="DESDE 03-2024",TABLAS!CL49,CQ49)) -> 325A-Préstamos accionistas, beneficiarios o partícipes residentes o establecidos en el Ecuador | H49: =IF(ADMI!$J$21="HASTA 02-2024",TABLAS!CH49,IF(ADMI!$J$21="DESDE 03-2024",TABLAS!CM49,CR49)) -> 325A | I49: =IF(ADMI!$J$21="HASTA 02-2024",TABLAS!CI49,IF(ADMI!$J$21="DESDE 03-2024",TABLAS!CN49,CS49)) -> Préstamos accionistas, beneficiarios o partícipes residentes o establecidos en el Ecuador | J49: =IF(ADMI!$J$21="HASTA 02-2024",TABLAS!CJ49,IF(ADMI!$J$21="DESDE 03-2024",TABLAS!CO49,CT49)) -> 22 o 25 | AI49: ISLAS VIRGENES (BRITANICAS) | AJ49: 146 | AK49: 146-ISLAS VIRGENES (BRITANICAS) | AM49: 46-NIUE | AN49: NIUE | AO49: 46 | AP49: NIUE ISLA | AQ49: 522 | AR49: 2007-05-01 | AS49: 522-NIUE ISLA | CG49: 327-Dividendos distribuidos a personas naturales residentes | CH49: 327 | CI49: Dividendos distribuidos a personas naturales residentes | CJ49: Hasta 25 y conforme la Resolución NAC-DGERCGC20-000000013 | CL49: 325A-Préstamos accionistas, beneficiarios o partícipes residentes o establecidos en el Ecuador | CM49: 325A | CN49: Préstamos accionistas, beneficiarios o partícipes residentes o establecidos en el Ecuador | CO49: 22 o 25 | CQ49: 3250-Dividendos exentos (por no llegar a franja exenta o beneficio de otras leyes) | CR49: 3250 | CS49: Dividendos exentos (por no llegar a franja exenta o beneficio de otras leyes) | CT49: 0
G50: =IF(ADMI!$J$21="HASTA 02-2024",TABLAS!CG50,IF(ADMI!$J$21="DESDE 03-2024",TABLAS!CL50,CQ50)) -> 326-Dividendos distribuidos que correspondan al impuesto a la renta único establecido en el art. 27 de la LRTI | H50: =IF(ADMI!$J$21="HASTA 02-2024",TABLAS!CH50,IF(ADMI!$J$21="DESDE 03-2024",TABLAS!CM50,CR50)) -> 326 | I50: =IF(ADMI!$J$21="HASTA 02-2024",TABLAS!CI50,IF(ADMI!$J$21="DESDE 03-2024",TABLAS!CN50,CS50)) -> Dividendos distribuidos que correspondan al impuesto a la renta único establecido en el art. 27 de la LRTI | J50: =IF(ADMI!$J$21="HASTA 02-2024",TABLAS!CJ50,IF(ADMI!$J$21="DESDE 03-2024",TABLAS!CO50,CT50)) -> Hasta 25 y conforme la Resolución NAC-DGERCGC20-000000013 | AI50: JOHNSTON ISLA | AJ50: 147 | AK50: 147-JOHNSTON ISLA | AM50: 47-PALAU | AN50: PALAU | AO50: 47 | AP50: PALAO (BELAU) ISLAS | AQ50: 509 | AR50: 2007-05-01 | AS50: 509-PALAO (BELAU) ISLAS | CG50: 328-Dividendos distribuidos a sociedades residentes | CH50: 328 | CI50: Dividendos distribuidos a sociedades residentes | CJ50: 0 | CL50: 326-Dividendos distribuidos que correspondan al impuesto a la renta único establecido en el art. 27 de la LRTI | CM50: 326 | CN50: Dividendos distribuidos que correspondan al impuesto a la renta único establecido en el art. 27 de la LRTI | CO50: Hasta 25 y conforme la Resolución NAC-DGERCGC20-000000013 | CQ50: 326-Dividendos distribuidos que correspondan al impuesto a la renta único establecido en el art. 27 de la LRTI | CR50: 326 | CS50: Dividendos distribuidos que correspondan al impuesto a la renta único establecido en el art. 27 de la LRTI | CT50: 12 o 14
G51: =IF(ADMI!$J$21="HASTA 02-2024",TABLAS!CG51,IF(ADMI!$J$21="DESDE 03-2024",TABLAS!CL51,CQ51)) -> 327-Dividendos distribuidos a personas naturales residentes | H51: =IF(ADMI!$J$21="HASTA 02-2024",TABLAS!CH51,IF(ADMI!$J$21="DESDE 03-2024",TABLAS!CM51,CR51)) -> 327 | I51: =IF(ADMI!$J$21="HASTA 02-2024",TABLAS!CI51,IF(ADMI!$J$21="DESDE 03-2024",TABLAS!CN51,CS51)) -> Dividendos distribuidos a personas naturales residentes | J51: =IF(ADMI!$J$21="HASTA 02-2024",TABLAS!CJ51,IF(ADMI!$J$21="DESDE 03-2024",TABLAS!CO51,CT51)) -> Hasta 25 y conforme la Resolución NAC-DGERCGC20-000000013 | AI51: MARTINICA | AJ51: 148 | AK51: 148-MARTINICA | AM51: 48-PITCAIRN | AN51: PITCAIRN | AO51: 48 | AP51: PITCAIRN, ISLA | AQ51: 525 | AR51: 2007-05-01 | AS51: 525-PITCAIRN, ISLA | CG51: 329-Dividendos distribuidos a fideicomisos residentes | CH51: 329 | CI51: Dividendos distribuidos a fideicomisos residentes | CJ51: 0 | CL51: 327-Dividendos distribuidos a personas naturales residentes | CM51: 327 | CN51: Dividendos distribuidos a personas naturales residentes | CO51: Hasta 25 y conforme la Resolución NAC-DGERCGC20-000000013 | CQ51: 327-Dividendos distribuidos a personas naturales residentes | CR51: 327 | CS51: Dividendos distribuidos a personas naturales residentes | CT51: 12 o 14
G52: =IF(ADMI!$J$21="HASTA 02-2024",TABLAS!CG52,IF(ADMI!$J$21="DESDE 03-2024",TABLAS!CL52,CQ52)) -> 328-Dividendos distribuidos a sociedades residentes | H52: =IF(ADMI!$J$21="HASTA 02-2024",TABLAS!CH52,IF(ADMI!$J$21="DESDE 03-2024",TABLAS!CM52,CR52)) -> 328 | I52: =IF(ADMI!$J$21="HASTA 02-2024",TABLAS!CI52,IF(ADMI!$J$21="DESDE 03-2024",TABLAS!CN52,CS52)) -> Dividendos distribuidos a sociedades residentes | J52: =IF(ADMI!$J$21="HASTA 02-2024",TABLAS!CJ52,IF(ADMI!$J$21="DESDE 03-2024",TABLAS!CO52,CT52)) -> 0 | AI52: MONTSERRAT ISLA | AJ52: 149 | AK52: 149-MONTSERRAT ISLA | AM52: 49-POLINESIA FRANCESA (Territorio de Ultramar de Francia) | AN52: POLINESIA FRANCESA (Territorio de Ultramar de Francia) | AO52: 49 | AP52: FRENCH SOUTHERN TERRITORIES | AQ52: 260 | AR52: 2007-05-01 | AS52: 260-FRENCH SOUTHERN TERRITORIES | CG52: 331-Dividendos en acciones (capitalización de utilidades) | CH52: 331 | CI52: Dividendos en acciones (capitalización de utilidades) | CJ52: 0 | CL52: 328-Dividendos distribuidos a sociedades residentes | CM52: 328 | CN52: Dividendos distribuidos a sociedades residentes | CO52: 0 | CQ52: 328-Dividendos distribuidos a sociedades residentes | CR52: 328 | CS52: Dividendos distribuidos a sociedades residentes | CT52: 0
G53: =IF(ADMI!$J$21="HASTA 02-2024",TABLAS!CG53,IF(ADMI!$J$21="DESDE 03-2024",TABLAS!CL53,CQ53)) -> 329-dividendos distribuidos a fideicomisos residentes | H53: =IF(ADMI!$J$21="HASTA 02-2024",TABLAS!CH53,IF(ADMI!$J$21="DESDE 03-2024",TABLAS!CM53,CR53)) -> 329 | I53: =IF(ADMI!$J$21="HASTA 02-2024",TABLAS!CI53,IF(ADMI!$J$21="DESDE 03-2024",TABLAS!CN53,CS53)) -> dividendos distribuidos a fideicomisos residentes | J53: =IF(ADMI!$J$21="HASTA 02-2024",TABLAS!CJ53,IF(ADMI!$J$21="DESDE 03-2024",TABLAS!CO53,CT53)) -> 0 | AI53: TURCAS Y CAICOS ISLAS | AJ53: 151 | AK53: 151-TURCAS Y CAICOS ISLAS | AM53: 50-PRINCIPADO DE LIECHTENSTEIN (Estado independiente) | AN53: PRINCIPADO DE LIECHTENSTEIN (Estado independiente) | AO53: 50 | AP53: LIECHTENSTEIN | AQ53: 234 | AR53: 2007-05-01 | AS53: 234-LIECHTENSTEIN | CG53: 332-Otras compras de bienes y servicios no sujetas a retención (incluye régimen RIMPE - Negocios Populares, para este caso aplica con cualquier forma de pago inclusive los pagos que deban realizar las tarjetas de crédito/débito) | CH53: 332 | CI53: Otras compras de bienes y servicios no sujetas a retención (incluye régimen RIMPE - Negocios Populares, para este caso aplica con cualquier forma de pago inclusive los pagos que deban realizar las tarjetas de crédito/débito) | CJ53: 0 | CL53: 329-dividendos distribuidos a fideicomisos residentes | CM53: 329 | CN53: dividendos distribuidos a fideicomisos residentes | CO53: 0 | CQ53: 329-dividendos distribuidos a fideicomisos residentes | CR53: 329 | CS53: dividendos distribuidos a fideicomisos residentes | CT53: 0
G54: =IF(ADMI!$J$21="HASTA 02-2024",TABLAS!CG54,IF(ADMI!$J$21="DESDE 03-2024",TABLAS!CL54,CQ54)) -> 331-Dividendos en acciones (capitalización de utilidades) | H54: =IF(ADMI!$J$21="HASTA 02-2024",TABLAS!CH54,IF(ADMI!$J$21="DESDE 03-2024",TABLAS!CM54,CR54)) -> 331 | I54: =IF(ADMI!$J$21="HASTA 02-2024",TABLAS!CI54,IF(ADMI!$J$21="DESDE 03-2024",TABLAS!CN54,CS54)) -> Dividendos en acciones (capitalización de utilidades) | J54: =IF(ADMI!$J$21="HASTA 02-2024",TABLAS!CJ54,IF(ADMI!$J$21="DESDE 03-2024",TABLAS!CO54,CT54)) -> 0 | AI54: VIRGENES,ISLAS(NORT.AMER.) | AJ54: 152 | AK54: 152-VIRGENES,ISLAS(NORT.AMER.) | AM54: 51-PRINCIPADO DE MÓNACO | AN54: PRINCIPADO DE MÓNACO | AO54: 51 | AP54: MONACO | AQ54: 235 | AR54: 2007-05-01 | AS54: 235-MONACO | CG54: 332B-Compra de bienes inmuebles | CH54: 332B | CI54: Compra de bienes inmuebles | CJ54: 0 | CL54: 331-Dividendos en acciones (capitalización de utilidades) | CM54: 331 | CN54: Dividendos en acciones (capitalización de utilidades) | CO54: 0 | CQ54: 331-Dividendos en acciones (capitalización de utilidades) | CR54: 331 | CS54: Dividendos en acciones (capitalización de utilidades) | CT54: 0
G55: =IF(ADMI!$J$21="HASTA 02-2024",TABLAS!CG55,IF(ADMI!$J$21="DESDE 03-2024",TABLAS!CL55,CQ55)) -> 332-Otras compras de bienes y servicios no sujetas a retención (incluye régimen RIMPE - Negocios Populares, para este caso aplica con cualquier forma de pago inclusive los pagos que deban realizar las tarjetas de crédito/débito) | H55: =IF(ADMI!$J$21="HASTA 02-2024",TABLAS!CH55,IF(ADMI!$J$21="DESDE 03-2024",TABLAS!CM55,CR55)) -> 332 | I55: =IF(ADMI!$J$21="HASTA 02-2024",TABLAS!CI55,IF(ADMI!$J$21="DESDE 03-2024",TABLAS!CN55,CS55)) -> Otras compras de bienes y servicios no sujetas a retención (incluye régimen RIMPE - Negocios Populares, para este caso aplica con cualquier forma de pago inclusive los pagos que deban realizar las tarjetas de crédito/débito) | J55: =IF(ADMI!$J$21="HASTA 02-2024",TABLAS!CJ55,IF(ADMI!$J$21="DESDE 03-2024",TABLAS!CO55,CT55)) -> 0 | AI55: ALBANIA | AJ55: 201 | AK55: 201-ALBANIA | AM55: 52-PRINCIPADO DEL VALLE DE ANDORRA | AN55: PRINCIPADO DEL VALLE DE ANDORRA | AO55: 52 | AP55: ANDORRA | AQ55: 233 | AR55: 2007-05-01 | AS55: 233-ANDORRA | CG55: 332C-Transporte público de pasajeros | CH55: 332C | CI55: Transporte público de pasajeros | CJ55: 0 | CL55: 332-Otras compras de bienes y servicios no sujetas a retención (incluye régimen RIMPE - Negocios Populares, para este caso aplica con cualquier forma de pago inclusive los pagos que deban realizar las tarjetas de crédito/débito) | CM55: 332 | CN55: Otras compras de bienes y servicios no sujetas a retención (incluye régimen RIMPE - Negocios Populares, para este caso aplica con cualquier forma de pago inclusive los pagos que deban realizar las tarjetas de crédito/débito) | CO55: 0 | CQ55: 332-Otras compras de bienes y servicios no sujetas a retención (incluye régimen RIMPE - Negocios Populares, para este caso aplica con cualquier forma de pago inclusive los pagos que deban realizar las tarjetas de crédito/débito) | CR55: 332 | CS55: Otras compras de bienes y servicios no sujetas a retención (incluye régimen RIMPE - Negocios Populares, para este caso aplica con cualquier forma de pago inclusive los pagos que deban realizar las tarjetas de crédito/débito) | CT55: 0
G56: =IF(ADMI!$J$21="HASTA 02-2024",TABLAS!CG56,IF(ADMI!$J$21="DESDE 03-2024",TABLAS!CL56,CQ56)) -> 332B-Compra de bienes inmuebles | H56: =IF(ADMI!$J$21="HASTA 02-2024",TABLAS!CH56,IF(ADMI!$J$21="DESDE 03-2024",TABLAS!CM56,CR56)) -> 332B | I56: =IF(ADMI!$J$21="HASTA 02-2024",TABLAS!CI56,IF(ADMI!$J$21="DESDE 03-2024",TABLAS!CN56,CS56)) -> Compra de bienes inmuebles | J56: =IF(ADMI!$J$21="HASTA 02-2024",TABLAS!CJ56,IF(ADMI!$J$21="DESDE 03-2024",TABLAS!CO56,CT56)) -> 0 | AI56: ALEMANIA | AJ56: 202 | AK56: 202-ALEMANIA | AM56: 53-REINO DE SWAZILANDIA (Estado independiente) | AN56: REINO DE SWAZILANDIA (Estado independiente) | AO56: 53 | AP56: SWAZILANDIA | AQ56: 450 | AR56: 2007-05-01 | AS56: 450-SWAZILANDIA | CG56: 332D-Pagos en el país por transporte de pasajeros o transporte internacional de carga, a compañías nacionales o extranjeras de aviación o marítimas | CH56: 332D | CI56: Pagos en el país por transporte de pasajeros o transporte internacional de carga, a compañías nacionales o extranjeras de aviación o marítimas | CJ56: 0 | CL56: 332B-Compra de bienes inmuebles | CM56: 332B | CN56: Compra de bienes inmuebles | CO56: 0 | CQ56: 332B-Compra de bienes inmuebles | CR56: 332B | CS56: Compra de bienes inmuebles | CT56: 0
G57: =IF(ADMI!$J$21="HASTA 02-2024",TABLAS!CG57,IF(ADMI!$J$21="DESDE 03-2024",TABLAS!CL57,CQ57)) -> 332C-Transporte público de pasajeros | H57: =IF(ADMI!$J$21="HASTA 02-2024",TABLAS!CH57,IF(ADMI!$J$21="DESDE 03-2024",TABLAS!CM57,CR57)) -> 332C | I57: =IF(ADMI!$J$21="HASTA 02-2024",TABLAS!CI57,IF(ADMI!$J$21="DESDE 03-2024",TABLAS!CN57,CS57)) -> Transporte público de pasajeros | J57: =IF(ADMI!$J$21="HASTA 02-2024",TABLAS!CJ57,IF(ADMI!$J$21="DESDE 03-2024",TABLAS!CO57,CT57)) -> 0 | AI57: AUSTRIA | AJ57: 203 | AK57: 203-AUSTRIA | AM57: 54-REINO DE TONGA (Estado independiente) | AN57: REINO DE TONGA (Estado independiente) | AO57: 54 | AP57: TONGA | AQ57: 508 | AR57: 2007-05-01 | AS57: 508-TONGA | CG57: 332E-Valores entregados por las cooperativas de transporte a sus socios | CH57: 332E | CI57: Valores entregados por las cooperativas de transporte a sus socios | CJ57: 0 | CL57: 332C-Transporte público de pasajeros | CM57: 332C | CN57: Transporte público de pasajeros | CO57: 0 | CQ57: 332C-Transporte público de pasajeros | CR57: 332C | CS57: Transporte público de pasajeros | CT57: 0
G58: =IF(ADMI!$J$21="HASTA 02-2024",TABLAS!CG58,IF(ADMI!$J$21="DESDE 03-2024",TABLAS!CL58,CQ58)) -> 332D-Pagos en el país por transporte de pasajeros o transporte internacional de carga, a compañías nacionales o extranjeras de aviación o marítimas | H58: =IF(ADMI!$J$21="HASTA 02-2024",TABLAS!CH58,IF(ADMI!$J$21="DESDE 03-2024",TABLAS!CM58,CR58)) -> 332D | I58: =IF(ADMI!$J$21="HASTA 02-2024",TABLAS!CI58,IF(ADMI!$J$21="DESDE 03-2024",TABLAS!CN58,CS58)) -> Pagos en el país por transporte de pasajeros o transporte internacional de carga, a compañías nacionales o extranjeras de aviación o marítimas | J58: =IF(ADMI!$J$21="HASTA 02-2024",TABLAS!CJ58,IF(ADMI!$J$21="DESDE 03-2024",TABLAS!CO58,CT58)) -> 0 | AI58: BELGICA | AJ58: 204 | AK58: 204-BELGICA | AM58: 55-REINO HACHEMITA DE JORDANIA | AN58: REINO HACHEMITA DE JORDANIA | AO58: 55 | AP58: JORDANIA | AQ58: 315 | AR58: 2007-05-01 | AS58: 315-JORDANIA | CG58: 332F-Compraventa de divisas distintas al dólar de los Estados Unidos de América | CH58: 332F | CI58: Compraventa de divisas distintas al dólar de los Estados Unidos de América | CJ58: 0 | CL58: 332D-Pagos en el país por transporte de pasajeros o transporte internacional de carga, a compañías nacionales o extranjeras de aviación o marítimas | CM58: 332D | CN58: Pagos en el país por transporte de pasajeros o transporte internacional de carga, a compañías nacionales o extranjeras de aviación o marítimas | CO58: 0 | CQ58: 332D-Pagos en el país por transporte de pasajeros o transporte internacional de carga, a compañías nacionales o extranjeras de aviación o marítimas | CR58: 332D | CS58: Pagos en el país por transporte de pasajeros o transporte internacional de carga, a compañías nacionales o extranjeras de aviación o marítimas | CT58: 0
G59: =IF(ADMI!$J$21="HASTA 02-2024",TABLAS!CG59,IF(ADMI!$J$21="DESDE 03-2024",TABLAS!CL59,CQ59)) -> 332E-Valores entregados por las cooperativas de transporte a sus socios | H59: =IF(ADMI!$J$21="HASTA 02-2024",TABLAS!CH59,IF(ADMI!$J$21="DESDE 03-2024",TABLAS!CM59,CR59)) -> 332E | I59: =IF(ADMI!$J$21="HASTA 02-2024",TABLAS!CI59,IF(ADMI!$J$21="DESDE 03-2024",TABLAS!CN59,CS59)) -> Valores entregados por las cooperativas de transporte a sus socios | J59: =IF(ADMI!$J$21="HASTA 02-2024",TABLAS!CJ59,IF(ADMI!$J$21="DESDE 03-2024",TABLAS!CO59,CT59)) -> 0 | AI59: BULGARIA | AJ59: 205 | AK59: 205-BULGARIA | AM59: 56-REPÚBLICA COOPERATIVA DE GUYANA (Estado independiente) | AN59: REPÚBLICA COOPERATIVA DE GUYANA (Estado independiente) | AO59: 56 | AP59: GUYANA | AQ59: 132 | AR59: 2007-05-01 | AS59: 132-GUYANA | CG59: 332G-Pagos con tarjeta de crédito | CH59: 332G | CI59: Pagos con tarjeta de crédito | CJ59: 0 | CL59: 332E-Valores entregados por las cooperativas de transporte a sus socios | CM59: 332E | CN59: Valores entregados por las cooperativas de transporte a sus socios | CO59: 0 | CQ59: 332E-Valores entregados por las cooperativas de transporte a sus socios | CR59: 332E | CS59: Valores entregados por las cooperativas de transporte a sus socios | CT59: 0
G60: =IF(ADMI!$J$21="HASTA 02-2024",TABLAS!CG60,IF(ADMI!$J$21="DESDE 03-2024",TABLAS!CL60,CQ60)) -> 332F-Compraventa de divisas distintas al dólar de los Estados Unidos de América | H60: =IF(ADMI!$J$21="HASTA 02-2024",TABLAS!CH60,IF(ADMI!$J$21="DESDE 03-2024",TABLAS!CM60,CR60)) -> 332F | I60: =IF(ADMI!$J$21="HASTA 02-2024",TABLAS!CI60,IF(ADMI!$J$21="DESDE 03-2024",TABLAS!CN60,CS60)) -> Compraventa de divisas distintas al dólar de los Estados Unidos de América | J60: =IF(ADMI!$J$21="HASTA 02-2024",TABLAS!CJ60,IF(ADMI!$J$21="DESDE 03-2024",TABLAS!CO60,CT60)) -> 0 | AI60: ALBORAN Y PEREJIL | AJ60: 207 | AK60: 207-ALBORAN Y PEREJIL | AM60: 57-REPÚBLICA DE ALBANIA | AN60: REPÚBLICA DE ALBANIA | AO60: 57 | AP60: ALBANIA | AQ60: 201 | AR60: 2007-05-01 | AS60: 201-ALBANIA | CG60: 332H-Pago al exterior tarjeta de crédito reportada por la Emisora de tarjeta de crédito, solo RECAP | CH60: 332H | CI60: Pago al exterior tarjeta de crédito reportada por la Emisora de tarjeta de crédito, solo RECAP | CJ60: 0 | CL60: 332F-Compraventa de divisas distintas al dólar de los Estados Unidos de América | CM60: 332F | CN60: Compraventa de divisas distintas al dólar de los Estados Unidos de América | CO60: 0 | CQ60: 332F-Compraventa de divisas distintas al dólar de los Estados Unidos de América | CR60: 332F | CS60: Compraventa de divisas distintas al dólar de los Estados Unidos de América | CT60: 0
G61: =IF(ADMI!$J$21="HASTA 02-2024",TABLAS!CG61,IF(ADMI!$J$21="DESDE 03-2024",TABLAS!CL61,CQ61)) -> 332G-Pagos con tarjeta de crédito | H61: =IF(ADMI!$J$21="HASTA 02-2024",TABLAS!CH61,IF(ADMI!$J$21="DESDE 03-2024",TABLAS!CM61,CR61)) -> 332G | I61: =IF(ADMI!$J$21="HASTA 02-2024",TABLAS!CI61,IF(ADMI!$J$21="DESDE 03-2024",TABLAS!CN61,CS61)) -> Pagos con tarjeta de crédito | J61: =IF(ADMI!$J$21="HASTA 02-2024",TABLAS!CJ61,IF(ADMI!$J$21="DESDE 03-2024",TABLAS!CO61,CT61)) -> 0 | AI61: DINAMARCA | AJ61: 208 | AK61: 208-DINAMARCA | AM61: 58-REPÚBLICA DE ANGOLA | AN61: REPÚBLICA DE ANGOLA | AO61: 58 | AP61: ANGOLA | AQ61: 454 | AR61: 2007-05-01 | AS61: 454-ANGOLA | CG61: 332I-Pago a través de convenio de debito (Clientes IFI`s) | CH61: 332I | CI61: Pago a través de convenio de debito (Clientes IFI`s) | CJ61: 0 | CL61: 332G-Pagos con tarjeta de crédito | CM61: 332G | CN61: Pagos con tarjeta de crédito | CO61: 0 | CQ61: 332G-Pagos con tarjeta de crédito | CR61: 332G | CS61: Pagos con tarjeta de crédito | CT61: 0
G62: =IF(ADMI!$J$21="HASTA 02-2024",TABLAS!CG62,IF(ADMI!$J$21="DESDE 03-2024",TABLAS!CL62,CQ62)) -> 332H-Pago al exterior tarjeta de crédito reportada por la Emisora de tarjeta de crédito, solo recap | H62: =IF(ADMI!$J$21="HASTA 02-2024",TABLAS!CH62,IF(ADMI!$J$21="DESDE 03-2024",TABLAS!CM62,CR62)) -> 332H | I62: =IF(ADMI!$J$21="HASTA 02-2024",TABLAS!CI62,IF(ADMI!$J$21="DESDE 03-2024",TABLAS!CN62,CS62)) -> Pago al exterior tarjeta de crédito reportada por la Emisora de tarjeta de crédito, solo recap | J62: =IF(ADMI!$J$21="HASTA 02-2024",TABLAS!CJ62,IF(ADMI!$J$21="DESDE 03-2024",TABLAS!CO62,CT62)) -> 0 | AI62: ESPAÑA | AJ62: 207 | AK62: 207-ESPAÑA | AM62: 59-REPÚBLICA DE CABO VERDE (Estado independiente) | AN62: REPÚBLICA DE CABO VERDE (Estado independiente) | AO62: 59 | AP62: CABO VERDE | AQ62: 456 | AR62: 2007-05-01 | AS62: 456-CABO VERDE | CG62: 333-Ganancia en la enajenación de derechos representativos de capital u otros derechos que permitan la exploración, explotación, concesión o similares de sociedades, que se coticen en bolsa de valores del Ecuador | CH62: 333 | CI62: Ganancia en la enajenación de derechos representativos de capital u otros derechos que permitan la exploración, explotación, concesión o similares de sociedades, que se coticen en bolsa de valores del Ecuador | CJ62: 10 | CL62: 332H-Pago al exterior tarjeta de crédito reportada por la Emisora de tarjeta de crédito, solo recap | CM62: 332H | CN62: Pago al exterior tarjeta de crédito reportada por la Emisora de tarjeta de crédito, solo recap | CO62: 0 | CQ62: 332H-Pago al exterior tarjeta de crédito reportada por la Emisora de tarjeta de crédito, solo recap | CR62: 332H | CS62: Pago al exterior tarjeta de crédito reportada por la Emisora de tarjeta de crédito, solo recap | CT62: 0
G63: =IF(ADMI!$J$21="HASTA 02-2024",TABLAS!CG63,IF(ADMI!$J$21="DESDE 03-2024",TABLAS!CL63,CQ63)) -> 332I-Pago a través de convenio de debito (Clientes IFI`s) | H63: =IF(ADMI!$J$21="HASTA 02-2024",TABLAS!CH63,IF(ADMI!$J$21="DESDE 03-2024",TABLAS!CM63,CR63)) -> 332I | I63: =IF(ADMI!$J$21="HASTA 02-2024",TABLAS!CI63,IF(ADMI!$J$21="DESDE 03-2024",TABLAS!CN63,CS63)) -> Pago a través de convenio de debito (Clientes IFI`s) | J63: =IF(ADMI!$J$21="HASTA 02-2024",TABLAS!CJ63,IF(ADMI!$J$21="DESDE 03-2024",TABLAS!CO63,CT63)) -> 0 | AI63: FRANCIA | AJ63: 211 | AK63: 211-FRANCIA | AM63: 60-REPÚBLICA DE CHIPRE | AN63: REPÚBLICA DE CHIPRE | AO63: 60 | AP63: CHIPRE | AQ63: 332 | AR63: 2007-05-01 | AS63: 332-CHIPRE | CG63: 334-Contraprestación producida por la enajenación de derechos representativos de capital u otros derechos que permitan la exploración, explotación, concesión o similares de sociedades, no cotizados en bolsa de valores del Ecuador | CH63: 334 | CI63: Contraprestación producida por la enajenación de derechos representativos de capital u otros derechos que permitan la exploración, explotación, concesión o similares de sociedades, no cotizados en bolsa de valores del Ecuador | CJ63: 1 | CL63: 332I-Pago a través de convenio de debito (Clientes IFI`s) | CM63: 332I | CN63: Pago a través de convenio de debito (Clientes IFI`s) | CO63: 0 | CQ63: 332I-Pago a través de convenio de debito (Clientes IFI`s) | CR63: 332I | CS63: Pago a través de convenio de debito (Clientes IFI`s) | CT63: 0
G64: =IF(ADMI!$J$21="HASTA 02-2024",TABLAS!CG64,IF(ADMI!$J$21="DESDE 03-2024",TABLAS!CL64,CQ64)) -> 333-Ganancia en la enajenación de derechos representativos de capital u otros derechos que permitan la exploración, explotación, concesión o similares de sociedades, que se coticen en bolsa de valores del Ecuador | H64: =IF(ADMI!$J$21="HASTA 02-2024",TABLAS!CH64,IF(ADMI!$J$21="DESDE 03-2024",TABLAS!CM64,CR64)) -> 333 | I64: =IF(ADMI!$J$21="HASTA 02-2024",TABLAS!CI64,IF(ADMI!$J$21="DESDE 03-2024",TABLAS!CN64,CS64)) -> Ganancia en la enajenación de derechos representativos de capital u otros derechos que permitan la exploración, explotación, concesión o similares de sociedades, que se coticen en bolsa de valores del Ecuador | J64: =IF(ADMI!$J$21="HASTA 02-2024",TABLAS!CJ64,IF(ADMI!$J$21="DESDE 03-2024",TABLAS!CO64,CT64)) -> 10 | AI64: FINLANDIA | AJ64: 212 | AK64: 212-FINLANDIA | AM64: 61-REPÚBLICA DE DJIBOUTI (Estado independiente) | AN64: REPÚBLICA DE DJIBOUTI (Estado independiente) | AO64: 61 | AP64: DJIBOUTI | AQ64: 459 | AR64: 2007-05-01 | AS64: 459-DJIBOUTI | CG64: 335-Loterías, rifas, apuestas y similares | CH64: 335 | CI64: Loterías, rifas, apuestas y similares | CJ64: 15 | CL64: 333-Ganancia en la enajenación de derechos representativos de capital u otros derechos que permitan la exploración, explotación, concesión o similares de sociedades, que se coticen en bolsa de valores del Ecuador | CM64: 333 | CN64: Ganancia en la enajenación de derechos representativos de capital u otros derechos que permitan la exploración, explotación, concesión o similares de sociedades, que se coticen en bolsa de valores del Ecuador | CO64: 10 | CQ64: 333-Ganancia en la enajenación de derechos representativos de capital u otros derechos que permitan la exploración, explotación, concesión o similares de sociedades, que se coticen en bolsa de valores del Ecuador | CR64: 333 | CS64: Ganancia en la enajenación de derechos representativos de capital u otros derechos que permitan la exploración, explotación, concesión o similares de sociedades, que se coticen en bolsa de valores del Ecuador | CT64: 10
G65: =IF(ADMI!$J$21="HASTA 02-2024",TABLAS!CG65,IF(ADMI!$J$21="DESDE 03-2024",TABLAS!CL65,CQ65)) -> 334-Contraprestación producida por la enajenación de derechos representativos de capital u otros derechos que permitan la exploración, explotación, concesión o similares de sociedades, no cotizados en bolsa de valores del Ecuador | H65: =IF(ADMI!$J$21="HASTA 02-2024",TABLAS!CH65,IF(ADMI!$J$21="DESDE 03-2024",TABLAS!CM65,CR65)) -> 334 | I65: =IF(ADMI!$J$21="HASTA 02-2024",TABLAS!CI65,IF(ADMI!$J$21="DESDE 03-2024",TABLAS!CN65,CS65)) -> Contraprestación producida por la enajenación de derechos representativos de capital u otros derechos que permitan la exploración, explotación, concesión o similares de sociedades, no cotizados en bolsa de valores del Ecuador | J65: =IF(ADMI!$J$21="HASTA 02-2024",TABLAS!CJ65,IF(ADMI!$J$21="DESDE 03-2024",TABLAS!CO65,CT65)) -> 1 | AI65: REINO UNIDO | AJ65: 213 | AK65: 213-REINO UNIDO | AM65: 62-REPÚBLICA DE LAS ISLAS MARSHALL (Estado independiente) | AN65: REPÚBLICA DE LAS ISLAS MARSHALL (Estado independiente) | AO65: 62 | AP65: MARSHALL ISLAS | AQ65: 511 | AR65: 2007-05-01 | AS65: 511-MARSHALL ISLAS | CG65: 336-Venta de combustibles a comercializadoras | CH65: 336 | CI65: Venta de combustibles a comercializadoras | CJ65: 2/mil | CL65: 334-Contraprestación producida por la enajenación de derechos representativos de capital u otros derechos que permitan la exploración, explotación, concesión o similares de sociedades, no cotizados en bolsa de valores del Ecuador | CM65: 334 | CN65: Contraprestación producida por la enajenación de derechos representativos de capital u otros derechos que permitan la exploración, explotación, concesión o similares de sociedades, no cotizados en bolsa de valores del Ecuador | CO65: 1 | CQ65: 334-Contraprestación producida por la enajenación de derechos representativos de capital u otros derechos que permitan la exploración, explotación, concesión o similares de sociedades, no cotizados en bolsa de valores del Ecuador | CR65: 334 | CS65: Contraprestación producida por la enajenación de derechos representativos de capital u otros derechos que permitan la exploración, explotación, concesión o similares de sociedades, no cotizados en bolsa de valores del Ecuador | CT65: 1
G66: =IF(ADMI!$J$21="HASTA 02-2024",TABLAS!CG66,IF(ADMI!$J$21="DESDE 03-2024",TABLAS!CL66,CQ66)) -> 335-Loterías, rifas, pronósticos deportivos, apuestas y similares | H66: =IF(ADMI!$J$21="HASTA 02-2024",TABLAS!CH66,IF(ADMI!$J$21="DESDE 03-2024",TABLAS!CM66,CR66)) -> 335 | I66: =IF(ADMI!$J$21="HASTA 02-2024",TABLAS!CI66,IF(ADMI!$J$21="DESDE 03-2024",TABLAS!CN66,CS66)) -> Loterías, rifas, pronósticos deportivos, apuestas y similares | J66: =IF(ADMI!$J$21="HASTA 02-2024",TABLAS!CJ66,IF(ADMI!$J$21="DESDE 03-2024",TABLAS!CO66,CT66)) -> 15 | AI66: GRECIA | AJ66: 214 | AK66: 214-GRECIA | AM66: 63-REPÚBLICA DE LIBERIA (Estado independiente) | AN66: REPÚBLICA DE LIBERIA (Estado independiente) | AO66: 63 | AP66: LIBERIA | AQ66: 410 | AR66: 2007-05-01 | AS66: 410-LIBERIA | CG66: 337-Venta de combustibles a distribuidores | CH66: 337 | CI66: Venta de combustibles a distribuidores | CJ66: 3/mil | CL66: 335-Loterías, rifas, pronósticos deportivos, apuestas y similares | CM66: 335 | CN66: Loterías, rifas, pronósticos deportivos, apuestas y similares | CO66: 15 | CQ66: 335-Loterías, rifas, pronósticos deportivos, apuestas y similares | CR66: 335 | CS66: Loterías, rifas, pronósticos deportivos, apuestas y similares | CT66: 15
G67: =IF(ADMI!$J$21="HASTA 02-2024",TABLAS!CG67,IF(ADMI!$J$21="DESDE 03-2024",TABLAS!CL67,CQ67)) -> 336-Venta de combustibles a comercializadoras | H67: =IF(ADMI!$J$21="HASTA 02-2024",TABLAS!CH67,IF(ADMI!$J$21="DESDE 03-2024",TABLAS!CM67,CR67)) -> 336 | I67: =IF(ADMI!$J$21="HASTA 02-2024",TABLAS!CI67,IF(ADMI!$J$21="DESDE 03-2024",TABLAS!CN67,CS67)) -> Venta de combustibles a comercializadoras | J67: =IF(ADMI!$J$21="HASTA 02-2024",TABLAS!CJ67,IF(ADMI!$J$21="DESDE 03-2024",TABLAS!CO67,CT67)) -> 2/mil | AI67: PAISES BAJOS (HOLANDA) | AJ67: 215 | AK67: =CONCATENATE(AJ67&"-"&AI67) -> 215-PAISES BAJOS (HOLANDA) | AM67: 64-REPÚBLICA DE MALDIVAS (Estado independiente) | AN67: REPÚBLICA DE MALDIVAS (Estado independiente) | AO67: 64 | AP67: MALDIVAS | AQ67: 335 | AR67: 2007-05-01 | AS67: 335-MALDIVAS | CG67: 338-Producción y venta local de banano producido o no por el mismo sujeto pasivo | CH67: 338 | CI67: Producción y venta local de banano producido o no por el mismo sujeto pasivo | CJ67: 2022-02-01 | CL67: 336-Venta de combustibles a comercializadoras | CM67: 336 | CN67: Venta de combustibles a comercializadoras | CO67: 2/mil | CQ67: =CR67&"-"&CS67 -> 336-Venta de combustibles a comercializadoras | CR67: 336 | CS67: Venta de combustibles a comercializadoras | CT67: 2/mil
G68: =IF(ADMI!$J$21="HASTA 02-2024",TABLAS!CG68,IF(ADMI!$J$21="DESDE 03-2024",TABLAS!CL68,CQ68)) -> 337-Venta de combustibles a distribuidores | H68: =IF(ADMI!$J$21="HASTA 02-2024",TABLAS!CH68,IF(ADMI!$J$21="DESDE 03-2024",TABLAS!CM68,CR68)) -> 337 | I68: =IF(ADMI!$J$21="HASTA 02-2024",TABLAS!CI68,IF(ADMI!$J$21="DESDE 03-2024",TABLAS!CN68,CS68)) -> Venta de combustibles a distribuidores | J68: =IF(ADMI!$J$21="HASTA 02-2024",TABLAS!CJ68,IF(ADMI!$J$21="DESDE 03-2024",TABLAS!CO68,CT68)) -> 3/mil | AI68: HUNGRIA | AJ68: 216 | AK68: 216-HUNGRIA | AM68: =+AO68&"-"&AN68 -> 65-REPÚBLICA DE MALTA (Estado independiente) | AN68: REPÚBLICA DE MALTA (Estado independiente) | AO68: 65 | AP68: MALTA | AQ68: 221 | AR68: 2007-05-01 | AS68: =+AQ68&"-"&AP68 -> 221-MALTA | CG68: 340-Impuesto único a la exportación de banano | CH68: 340 | CI68: Impuesto único a la exportación de banano | CJ68: 3 | CL68: 337-Venta de combustibles a distribuidores | CM68: 337 | CN68: Venta de combustibles a distribuidores | CO68: 3/mil | CQ68: 337-Venta de combustibles a distribuidores | CR68: 337 | CS68: Venta de combustibles a distribuidores | CT68: 3/mil
G69: =IF(ADMI!$J$21="HASTA 02-2024",TABLAS!CG69,IF(ADMI!$J$21="DESDE 03-2024",TABLAS!CL69,CQ69)) -> 338-Producción y venta local de banano producido o no por el mismo sujeto pasivo | H69: =IF(ADMI!$J$21="HASTA 02-2024",TABLAS!CH69,IF(ADMI!$J$21="DESDE 03-2024",TABLAS!CM69,CR69)) -> 338 | I69: =IF(ADMI!$J$21="HASTA 02-2024",TABLAS!CI69,IF(ADMI!$J$21="DESDE 03-2024",TABLAS!CN69,CS69)) -> Producción y venta local de banano producido o no por el mismo sujeto pasivo | J69: =IF(ADMI!$J$21="HASTA 02-2024",TABLAS!CJ69,IF(ADMI!$J$21="DESDE 03-2024",TABLAS!CO69,CT69)) -> 1 a 2 | AI69: IRLANDA | AJ69: 217 | AK69: 217-IRLANDA | AM69: 66-REPÚBLICA DE MAURICIO | AN69: REPÚBLICA DE MAURICIO | AO69: 66 | AP69: MAURICIO | AQ69: 441 | AR69: 2007-05-01 | AS69: 441-MAURICIO | CG69: 343-Otras retenciones aplicables el 1% (incluye régimen RIMPE - Emprendedores, para este caso aplica con cualquier forma de pago inclusive los pagos que deban realizar las tarjetas de crédito/débito) | CH69: 343 | CI69: Otras retenciones aplicables el 1% (incluye régimen RIMPE - Emprendedores, para este caso aplica con cualquier forma de pago inclusive los pagos que deban realizar las tarjetas de crédito/débito) | CJ69: 1 | CL69: 338-Producción y venta local de banano producido o no por el mismo sujeto pasivo | CM69: 338 | CN69: Producción y venta local de banano producido o no por el mismo sujeto pasivo | CO69: 1 a 2 | CQ69: 338-Producción y venta local de banano producido o no por el mismo sujeto pasivo | CR69: 338 | CS69: Producción y venta local de banano producido o no por el mismo sujeto pasivo | CT69: 1 a 2
G70: =IF(ADMI!$J$21="HASTA 02-2024",TABLAS!CG70,IF(ADMI!$J$21="DESDE 03-2024",TABLAS!CL70,CQ70)) -> 340-Impuesto único a la exportación de banano | H70: =IF(ADMI!$J$21="HASTA 02-2024",TABLAS!CH70,IF(ADMI!$J$21="DESDE 03-2024",TABLAS!CM70,CR70)) -> 340 | I70: =IF(ADMI!$J$21="HASTA 02-2024",TABLAS!CI70,IF(ADMI!$J$21="DESDE 03-2024",TABLAS!CN70,CS70)) -> Impuesto único a la exportación de banano | J70: =IF(ADMI!$J$21="HASTA 02-2024",TABLAS!CJ70,IF(ADMI!$J$21="DESDE 03-2024",TABLAS!CO70,CT70)) -> 3 | AI70: ISLANDIA | AJ70: 218 | AK70: 218-ISLANDIA | AM70: 67-REPÚBLICA DE NAURU (Estado independiente) | AN70: REPÚBLICA DE NAURU (Estado independiente) | AO70: 67 | AP70: NAURU | AQ70: 513 | AR70: 2007-05-01 | AS70: 513-NAURU | CG70: 343A-Energía eléctrica | CH70: 343A | CI70: Energía eléctrica | CJ70: 1 | CL70: 340-Impuesto único a la exportación de banano | CM70: 340 | CN70: Impuesto único a la exportación de banano | CO70: 3 | CQ70: 340-Impuesto único a la exportación de banano | CR70: 340 | CS70: Impuesto único a la exportación de banano | CT70: 3
G71: =IF(ADMI!$J$21="HASTA 02-2024",TABLAS!CG71,IF(ADMI!$J$21="DESDE 03-2024",TABLAS!CL71,CQ71)) -> 343-Otras retenciones aplicables el 1% (incluye régimen RIMPE - Emprendedores, para este caso aplica con cualquier forma de pago inclusive los pagos que deban realizar las tarjetas de crédito/débito) | H71: =IF(ADMI!$J$21="HASTA 02-2024",TABLAS!CH71,IF(ADMI!$J$21="DESDE 03-2024",TABLAS!CM71,CR71)) -> 343 | I71: =IF(ADMI!$J$21="HASTA 02-2024",TABLAS!CI71,IF(ADMI!$J$21="DESDE 03-2024",TABLAS!CN71,CS71)) -> Otras retenciones aplicables el 1% (incluye régimen RIMPE - Emprendedores, para este caso aplica con cualquier forma de pago inclusive los pagos que deban realizar las tarjetas de crédito/débito) | J71: =IF(ADMI!$J$21="HASTA 02-2024",TABLAS!CJ71,IF(ADMI!$J$21="DESDE 03-2024",TABLAS!CO71,CT71)) -> 1 | AI71: ITALIA | AJ71: 219 | AK71: 219-ITALIA | AM71: 68-REPÚBLICA DE PANAMÁ (Estado independiente) | AN71: REPÚBLICA DE PANAMÁ (Estado independiente) | AO71: 68 | AP71: PANAMA | AQ71: 118 | AR71: 2007-05-01 | AS71: 118-PANAMA | CG71: 343B-Actividades de construcción de obra material inmueble, urbanización, lotización o actividades similares | CH71: 343B | CI71: Actividades de construcción de obra material inmueble, urbanización, lotización o actividades similares | CJ71: 0.0175 | CL71: 343-Otras retenciones aplicables el 1% (incluye régimen RIMPE - Emprendedores, para este caso aplica con cualquier forma de pago inclusive los pagos que deban realizar las tarjetas de crédito/débito) | CM71: 343 | CN71: Otras retenciones aplicables el 1% (incluye régimen RIMPE - Emprendedores, para este caso aplica con cualquier forma de pago inclusive los pagos que deban realizar las tarjetas de crédito/débito) | CO71: 1 | CQ71: 343-Otras retenciones aplicables el 1% (incluye régimen RIMPE - Emprendedores, para este caso aplica con cualquier forma de pago inclusive los pagos que deban realizar las tarjetas de crédito/débito) | CR71: 343 | CS71: Otras retenciones aplicables el 1% (incluye régimen RIMPE - Emprendedores, para este caso aplica con cualquier forma de pago inclusive los pagos que deban realizar las tarjetas de crédito/débito) | CT71: 1
G72: =IF(ADMI!$J$21="HASTA 02-2024",TABLAS!CG72,IF(ADMI!$J$21="DESDE 03-2024",TABLAS!CL72,CQ72)) -> 343A-Energía eléctrica | H72: =IF(ADMI!$J$21="HASTA 02-2024",TABLAS!CH72,IF(ADMI!$J$21="DESDE 03-2024",TABLAS!CM72,CR72)) -> 343A | I72: =IF(ADMI!$J$21="HASTA 02-2024",TABLAS!CI72,IF(ADMI!$J$21="DESDE 03-2024",TABLAS!CN72,CS72)) -> Energía eléctrica | J72: =IF(ADMI!$J$21="HASTA 02-2024",TABLAS!CJ72,IF(ADMI!$J$21="DESDE 03-2024",TABLAS!CO72,CT72)) -> 1 | AI72: LUXEMBURGO | AJ72: 220 | AK72: 220-LUXEMBURGO | AM72: 69-REPÚBLICA DE SEYCHELLES (Estado independiente) | AN72: REPÚBLICA DE SEYCHELLES (Estado independiente) | AO72: 69 | AP72: SEYCHELLES | AQ72: 446 | AR72: 2007-05-01 | AS72: 446-SEYCHELLES | CG72: 343C-Impuesto Redimible a las botellas plásticas - IRBP | CH72: 343C | CI72: Impuesto Redimible a las botellas plásticas - IRBP | CJ72: 1 | CL72: 343A-Energía eléctrica | CM72: 343A | CN72: Energía eléctrica | CO72: 1 | CQ72: 343A-Energía eléctrica | CR72: 343A | CS72: Energía eléctrica | CT72: 1
G73: =IF(ADMI!$J$21="HASTA 02-2024",TABLAS!CG73,IF(ADMI!$J$21="DESDE 03-2024",TABLAS!CL73,CQ73)) -> 343B-Actividades de construcción de obra material inmueble, urbanización, lotización o actividades similares | H73: =IF(ADMI!$J$21="HASTA 02-2024",TABLAS!CH73,IF(ADMI!$J$21="DESDE 03-2024",TABLAS!CM73,CR73)) -> 343B | I73: =IF(ADMI!$J$21="HASTA 02-2024",TABLAS!CI73,IF(ADMI!$J$21="DESDE 03-2024",TABLAS!CN73,CS73)) -> Actividades de construcción de obra material inmueble, urbanización, lotización o actividades similares | J73: =IF(ADMI!$J$21="HASTA 02-2024",TABLAS!CJ73,IF(ADMI!$J$21="DESDE 03-2024",TABLAS!CO73,CT73)) -> 1.75 | AI73: MALTA | AJ73: 221 | AK73: 221-MALTA | AM73: 70-REPÚBLICA DE TRINIDAD Y TOBAGO | AN73: REPÚBLICA DE TRINIDAD Y TOBAGO | AO73: 70 | AP73: TRINIDAD Y TOBAGO | AQ73: 124 | AR73: 2007-05-01 | AS73: 124-TRINIDAD Y TOBAGO | CG73: 3440-Otras retenciones aplicables el 2,75% | CH73: 3440 | CI73: Otras retenciones aplicables el 2,75% | CJ73: 2.75 | CL73: 343B-Actividades de construcción de obra material inmueble, urbanización, lotización o actividades similares | CM73: 343B | CN73: Actividades de construcción de obra material inmueble, urbanización, lotización o actividades similares | CO73: 1.75 | CQ73: 343B-Actividades de construcción de obra material inmueble, urbanización, lotización o actividades similares | CR73: 343B | CS73: Actividades de construcción de obra material inmueble, urbanización, lotización o actividades similares | CT73: 1.75
G74: =IF(ADMI!$J$21="HASTA 02-2024",TABLAS!CG74,IF(ADMI!$J$21="DESDE 03-2024",TABLAS!CL74,CQ74)) -> 343C-Recepción de botellas plásticas no retornables de PET | H74: =IF(ADMI!$J$21="HASTA 02-2024",TABLAS!CH74,IF(ADMI!$J$21="DESDE 03-2024",TABLAS!CM74,CR74)) -> 343C | I74: =IF(ADMI!$J$21="HASTA 02-2024",TABLAS!CI74,IF(ADMI!$J$21="DESDE 03-2024",TABLAS!CN74,CS74)) -> Recepción de botellas plásticas no retornables de PET | J74: =IF(ADMI!$J$21="HASTA 02-2024",TABLAS!CJ74,IF(ADMI!$J$21="DESDE 03-2024",TABLAS!CO74,CT74)) -> 2 | AI74: NORUEGA | AJ74: 222 | AK74: 222-NORUEGA | AM74: 71-REPÚBLICA DE TÚNEZ | AN74: REPÚBLICA DE TÚNEZ | AO74: 71 | AP74: TUNEZ | AQ74: 452 | AR74: 2007-05-01 | AS74: 452-TUNEZ | CG74: 344A-Pago local tarjeta de crédito /débito reportada por la Emisora de tarjeta de crédito / entidades del sistema financiero | CH74: 344A | CI74: Pago local tarjeta de crédito /débito reportada por la Emisora de tarjeta de crédito / entidades del sistema financiero | CJ74: 2 | CL74: 343C-Recepción de botellas plásticas no retornables de PET | CM74: 343C | CN74: Recepción de botellas plásticas no retornables de PET | CO74: 2 | CQ74: 343C-Recepción de botellas plásticas no retornables de PET | CR74: 343C | CS74: Recepción de botellas plásticas no retornables de PET | CT74: 2
G75: =IF(ADMI!$J$21="HASTA 02-2024",TABLAS!CG75,IF(ADMI!$J$21="DESDE 03-2024",TABLAS!CL75,CQ75)) -> 3440-Otras retenciones aplicables el 2,75% | H75: =IF(ADMI!$J$21="HASTA 02-2024",TABLAS!CH75,IF(ADMI!$J$21="DESDE 03-2024",TABLAS!CM75,CR75)) -> 3440 | I75: =IF(ADMI!$J$21="HASTA 02-2024",TABLAS!CI75,IF(ADMI!$J$21="DESDE 03-2024",TABLAS!CN75,CS75)) -> Otras retenciones aplicables el 2,75% | J75: =IF(ADMI!$J$21="HASTA 02-2024",TABLAS!CJ75,IF(ADMI!$J$21="DESDE 03-2024",TABLAS!CO75,CT75)) -> 2.75 | AI75: POLONIA | AJ75: 223 | AK75: 223-POLONIA | AM75: 72-REPÚBLICA DE VANUATU | AN75: REPÚBLICA DE VANUATU | AO75: 72 | AP75: VANUATU | AQ75: 516 | AR75: 2007-05-01 | AS75: 516-VANUATU | CG75: 344B-Adquisición de sustancias minerales dentro del territorio nacional | CH75: 344B | CI75: Adquisición de sustancias minerales dentro del territorio nacional | CJ75: 2 | CL75: 3440-Otras retenciones aplicables el 2,75% | CM75: 3440 | CN75: Otras retenciones aplicables el 2,75% | CO75: 2.75 | CQ75: 3440-Otras retenciones aplicables el 2,75% | CR75: 3440 | CS75: Otras retenciones aplicables el 2,75% | CT75: 2.75
G76: =IF(ADMI!$J$21="HASTA 02-2024",TABLAS!CG76,IF(ADMI!$J$21="DESDE 03-2024",TABLAS!CL76,CQ76)) -> 344A-Pago local tarjeta de crédito /débito reportada por la Emisora de tarjeta de crédito / entidades del sistema financiero | H76: =IF(ADMI!$J$21="HASTA 02-2024",TABLAS!CH76,IF(ADMI!$J$21="DESDE 03-2024",TABLAS!CM76,CR76)) -> 344A | I76: =IF(ADMI!$J$21="HASTA 02-2024",TABLAS!CI76,IF(ADMI!$J$21="DESDE 03-2024",TABLAS!CN76,CS76)) -> Pago local tarjeta de crédito /débito reportada por la Emisora de tarjeta de crédito / entidades del sistema financiero | J76: =IF(ADMI!$J$21="HASTA 02-2024",TABLAS!CJ76,IF(ADMI!$J$21="DESDE 03-2024",TABLAS!CO76,CT76)) -> 2 | AI76: PORTUGAL | AJ76: 224 | AK76: 224-PORTUGAL | AM76: 73-REPÚBLICA DEL YEMEN | AN76: REPÚBLICA DEL YEMEN | AO76: 73 | AP76: YEMEN | AQ76: 342 | AR76: 2007-05-01 | AS76: 342-YEMEN | CG76: 345-Otras retenciones aplicables el 8% | CH76: 345 | CI76: Otras retenciones aplicables el 8% | CJ76: 8 | CL76: 344A-Pago local tarjeta de crédito /débito reportada por la Emisora de tarjeta de crédito / entidades del sistema financiero | CM76: 344A | CN76: Pago local tarjeta de crédito /débito reportada por la Emisora de tarjeta de crédito / entidades del sistema financiero | CO76: 2 | CQ76: 344A-Pago local tarjeta de crédito /débito reportada por la Emisora de tarjeta de crédito / entidades del sistema financiero | CR76: 344A | CS76: Pago local tarjeta de crédito /débito reportada por la Emisora de tarjeta de crédito / entidades del sistema financiero | CT76: 2
G77: =IF(ADMI!$J$21="HASTA 02-2024",TABLAS!CG77,IF(ADMI!$J$21="DESDE 03-2024",TABLAS!CL77,CQ77)) -> 344B-Adquisición de sustancias minerales dentro del territorio nacional | H77: =IF(ADMI!$J$21="HASTA 02-2024",TABLAS!CH77,IF(ADMI!$J$21="DESDE 03-2024",TABLAS!CM77,CR77)) -> 344B | I77: =IF(ADMI!$J$21="HASTA 02-2024",TABLAS!CI77,IF(ADMI!$J$21="DESDE 03-2024",TABLAS!CN77,CS77)) -> Adquisición de sustancias minerales dentro del territorio nacional | J77: =IF(ADMI!$J$21="HASTA 02-2024",TABLAS!CJ77,IF(ADMI!$J$21="DESDE 03-2024",TABLAS!CO77,CT77)) -> 2 | AI77: RUMANIA | AJ77: 225 | AK77: 225-RUMANIA | AM77: 74-REPÚBLICA DEMOCRÁTICA SOCIALISTA DE SRI LANKA | AN77: REPÚBLICA DEMOCRÁTICA SOCIALISTA DE SRI LANKA | AO77: 74 | AP77: SRI LANKA (CEILAN) | AQ77: 339 | AR77: 2007-05-01 | AS77: 339-SRI LANKA (CEILAN) | CG77: 346-Otras retenciones aplicables a otros porcentajes | CH77: 346 | CI77: Otras retenciones aplicables a otros porcentajes | CJ77: 1 | CL77: 344B-Adquisición de sustancias minerales dentro del territorio nacional | CM77: 344B | CN77: Adquisición de sustancias minerales dentro del territorio nacional | CO77: 2 | CQ77: 344B-Adquisición de sustancias minerales dentro del territorio nacional | CR77: 344B | CS77: Adquisición de sustancias minerales dentro del territorio nacional | CT77: 2
G78: =IF(ADMI!$J$21="HASTA 02-2024",TABLAS!CG78,IF(ADMI!$J$21="DESDE 03-2024",TABLAS!CL78,CQ78)) -> 346-Otras retenciones aplicables a otros porcentajes | H78: =IF(ADMI!$J$21="HASTA 02-2024",TABLAS!CH78,IF(ADMI!$J$21="DESDE 03-2024",TABLAS!CM78,CR78)) -> 346 | I78: =IF(ADMI!$J$21="HASTA 02-2024",TABLAS!CI78,IF(ADMI!$J$21="DESDE 03-2024",TABLAS!CN78,CS78)) -> Otras retenciones aplicables a otros porcentajes | J78: =IF(ADMI!$J$21="HASTA 02-2024",TABLAS!CJ78,IF(ADMI!$J$21="DESDE 03-2024",TABLAS!CO78,CT78)) -> varios porcentajes | AI78: SUECIA | AJ78: 226 | AK78: 226-SUECIA | AM78: 75-SAMOA AMERICANA (Territorio no autónomo de los EEUU) | AN78: SAMOA AMERICANA (Territorio no autónomo de los EEUU) | AO78: 75 | AP78: AMERICAN SAMOA | AQ78: 016 | AR78: 2007-05-01 | AS78: 016-AMERICAN SAMOA | CG78: 351-REGIMEN MICRO EMPRESARIAL | CH78: 351 | CI78: REGIMEN MICRO EMPRESARIAL | CJ78: 1.75 | CL78: 346-Otras retenciones aplicables a otros porcentajes | CM78: 346 | CN78: Otras retenciones aplicables a otros porcentajes | CO78: varios porcentajes | CQ78: 346-Otras retenciones aplicables a otros porcentajes | CR78: 346 | CS78: Otras retenciones aplicables a otros porcentajes | CT78: varios porcentajes
G79: =IF(ADMI!$J$21="HASTA 02-2024",TABLAS!CG79,IF(ADMI!$J$21="DESDE 03-2024",TABLAS!CL79,CQ79)) -> 346A-Otras ganancias de capital distintas de enajenación de derechos representativos de capital | H79: =IF(ADMI!$J$21="HASTA 02-2024",TABLAS!CH79,IF(ADMI!$J$21="DESDE 03-2024",TABLAS!CM79,CR79)) -> 346A | I79: =IF(ADMI!$J$21="HASTA 02-2024",TABLAS!CI79,IF(ADMI!$J$21="DESDE 03-2024",TABLAS!CN79,CS79)) -> Otras ganancias de capital distintas de enajenación de derechos representativos de capital | J79: =IF(ADMI!$J$21="HASTA 02-2024",TABLAS!CJ79,IF(ADMI!$J$21="DESDE 03-2024",TABLAS!CO79,CT79)) -> varios porcentajes | AI79: SUIZA | AJ79: 227 | AK79: 227-SUIZA | AM79: 76-SAMOA OCCIDENTAL | AN79: SAMOA OCCIDENTAL | AO79: 76 | AP79: SAMOA OCCIDENTAL | AQ79: 504 | AR79: 2007-05-01 | AS79: 504-SAMOA OCCIDENTAL | CG79: 346A-Otras ganancias de capital distintas de enajenación de derechos representativos de capital | CH79: 346A | CI79: Otras ganancias de capital distintas de enajenación de derechos representativos de capital | CJ79: varios porcentajes | CL79: 346A-Otras ganancias de capital distintas de enajenación de derechos representativos de capital | CM79: 346A | CN79: Otras ganancias de capital distintas de enajenación de derechos representativos de capital | CO79: varios porcentajes | CQ79: 346A-Otras ganancias de capital distintas de enajenación de derechos representativos de capital | CR79: 346A | CS79: Otras ganancias de capital distintas de enajenación de derechos representativos de capital | CT79: varios porcentajes
G80: =IF(ADMI!$J$21="HASTA 02-2024",TABLAS!CG80,IF(ADMI!$J$21="DESDE 03-2024",TABLAS!CL80,CQ80)) -> 346B-Donaciones en dinero -Impuesto a las donaciones | H80: =IF(ADMI!$J$21="HASTA 02-2024",TABLAS!CH80,IF(ADMI!$J$21="DESDE 03-2024",TABLAS!CM80,CR80)) -> 346B | I80: =IF(ADMI!$J$21="HASTA 02-2024",TABLAS!CI80,IF(ADMI!$J$21="DESDE 03-2024",TABLAS!CN80,CS80)) -> Donaciones en dinero -Impuesto a las donaciones | J80: =IF(ADMI!$J$21="HASTA 02-2024",TABLAS!CJ80,IF(ADMI!$J$21="DESDE 03-2024",TABLAS!CO80,CT80)) -> Conforme Art 36 LRTI literal d) | AI80: CANARIAS ISLAS | AJ80: 228 | AK80: 228-CANARIAS ISLAS | AM80: 77-SAN VICENTE Y LAS GRANADINAS (Estado independiente) | AN80: SAN VICENTE Y LAS GRANADINAS (Estado independiente) | AO80: 77 | AP80: SAN VICENTE Y LAS GRANAD. | AQ80: 139 | AR80: 2007-05-01 | AS80: 139-SAN VICENTE Y LAS GRANAD. | CG80: 346B-Donaciones en dinero -Impuesto a la donaciones | CH80: 346B | CI80: Donaciones en dinero -Impuesto a la donaciones | CJ80: Según art 36 LRTI literal d) | CL80: 346B-Donaciones en dinero -Impuesto a las donaciones | CM80: 346B | CN80: Donaciones en dinero -Impuesto a las donaciones | CO80: Conforme Art 36 LRTI literal d) | CQ80: 346B-Donaciones en dinero -Impuesto a las donaciones | CR80: 346B | CS80: Donaciones en dinero -Impuesto a las donaciones | CT80: Conforme Art 36 LRTI literal d)
G81: =IF(ADMI!$J$21="HASTA 02-2024",TABLAS!CG81,IF(ADMI!$J$21="DESDE 03-2024",TABLAS!CL81,CQ81)) -> 346C-Retención a cargo del propio sujeto pasivo por la producción y/o comercialización de minerales y otros bienes | H81: =IF(ADMI!$J$21="HASTA 02-2024",TABLAS!CH81,IF(ADMI!$J$21="DESDE 03-2024",TABLAS!CM81,CR81)) -> 346C | I81: =IF(ADMI!$J$21="HASTA 02-2024",TABLAS!CI81,IF(ADMI!$J$21="DESDE 03-2024",TABLAS!CN81,CS81)) -> Retención a cargo del propio sujeto pasivo por la producción y/o comercialización de minerales y otros bienes | J81: =IF(ADMI!$J$21="HASTA 02-2024",TABLAS!CJ81,IF(ADMI!$J$21="DESDE 03-2024",TABLAS!CO81,CT81)) -> 0 o 10 | AI81: UCRANIA | AJ81: 229 | AK81: 229-UCRANIA | AM81: 78-SANTA ELENA | AN81: SANTA ELENA | AO81: 78 | AP81: SANTA ELENA | AQ81: 466 | AR81: 2007-05-01 | AS81: 466-SANTA ELENA | CG81: 346C-Retención a cargo del propio sujeto pasivo por la exportación de concentrados y/o elementos metálicos | CH81: 346C | CI81: Retención a cargo del propio sujeto pasivo por la exportación de concentrados y/o elementos metálicos | CJ81: 0 ó 10 | CL81: 346C-Retención a cargo del propio sujeto pasivo por la producción y/o comercialización de minerales y otros bienes | CM81: 346C | CN81: Retención a cargo del propio sujeto pasivo por la producción y/o comercialización de minerales y otros bienes | CO81: 0 o 10 | CQ81: 346C-Retención a cargo del propio sujeto pasivo por la producción y/o comercialización de minerales y otros bienes | CR81: 346C | CS81: Retención a cargo del propio sujeto pasivo por la producción y/o comercialización de minerales y otros bienes | CT81: 0 o 10
G82: =IF(ADMI!$J$21="HASTA 02-2024",TABLAS!CG82,IF(ADMI!$J$21="DESDE 03-2024",TABLAS!CL82,CQ82)) -> 346D-Retención a cargo del propio sujeto pasivo por la comercialización de productos forestales | H82: =IF(ADMI!$J$21="HASTA 02-2024",TABLAS!CH82,IF(ADMI!$J$21="DESDE 03-2024",TABLAS!CM82,CR82)) -> 346D | I82: =IF(ADMI!$J$21="HASTA 02-2024",TABLAS!CI82,IF(ADMI!$J$21="DESDE 03-2024",TABLAS!CN82,CS82)) -> Retención a cargo del propio sujeto pasivo por la comercialización de productos forestales | J82: =IF(ADMI!$J$21="HASTA 02-2024",TABLAS!CJ82,IF(ADMI!$J$21="DESDE 03-2024",TABLAS!CO82,CT82)) -> 0 o 10 | AI82: RUSIA | AJ82: 230 | AK82: 230-RUSIA | AM82: 79-SANTA LUCÍA | AN82: SANTA LUCÍA | AO82: 79 | AP82: SANTA LUCIA | AQ82: 138 | AR82: 2007-05-01 | AS82: 138-SANTA LUCIA | CG82: 346D-Retención a cargo del propio sujeto pasivo por la comercialización de productos forestales | CH82: 346D | CI82: Retención a cargo del propio sujeto pasivo por la comercialización de productos forestales | CJ82: 0 ó 10 | CL82: 346D-Retención a cargo del propio sujeto pasivo por la comercialización de productos forestales | CM82: 346D | CN82: Retención a cargo del propio sujeto pasivo por la comercialización de productos forestales | CO82: 0 o 10 | CQ82: 346D-Retención a cargo del propio sujeto pasivo por la comercialización de productos forestales | CR82: 346D | CS82: Retención a cargo del propio sujeto pasivo por la comercialización de productos forestales | CT82: 0 o 10
G83: =IF(ADMI!$J$21="HASTA 02-2024",TABLAS!CG83,IF(ADMI!$J$21="DESDE 03-2024",TABLAS!CL83,CQ83)) -> 350-Otras autorretenciones (inciso 1 y 2 Art.92.1 RLRTI) | H83: =IF(ADMI!$J$21="HASTA 02-2024",TABLAS!CH83,IF(ADMI!$J$21="DESDE 03-2024",TABLAS!CM83,CR83)) -> 350 | I83: =IF(ADMI!$J$21="HASTA 02-2024",TABLAS!CI83,IF(ADMI!$J$21="DESDE 03-2024",TABLAS!CN83,CS83)) -> Otras autorretenciones (inciso 1 y 2 Art.92.1 RLRTI) | J83: =IF(ADMI!$J$21="HASTA 02-2024",TABLAS!CJ83,IF(ADMI!$J$21="DESDE 03-2024",TABLAS!CO83,CT83)) -> 1,50 o 1,75 | AI83: YUGOSLAVIA | AJ83: 231 | AK83: 231-YUGOSLAVIA | AM83: 80-SAN MARTÍN | AN83: SAN MARTÍN | AO83: 80 | AP83: SINT MAARTEN (DUTCH PART) | AQ83: 534 | AR83: 2007-05-01 | AS83: 534-SINT MAARTEN (DUTCH PART) | CG83: 348-Impuesto único a ingresos provenientes de actividades agropecuarias en etapa de producción / comercialización local o exportación | CH83: 348 | CI83: Impuesto único a ingresos provenientes de actividades agropecuarias en etapa de producción / comercialización local o exportación | CJ83: 1 | CL83: 350-Otras autorretenciones (inciso 1 y 2 Art.92.1 RLRTI) | CM83: 350 | CN83: Otras autorretenciones (inciso 1 y 2 Art.92.1 RLRTI) | CO83: 1,50 o 1,75 | CQ83: 350-Otras autorretenciones (inciso 1 y 2 Art.92.1 RLRTI) | CR83: 350 | CS83: Otras autorretenciones (inciso 1 y 2 Art.92.1 RLRTI) | CT83: 1,50 o 1,75
G84: =IF(ADMI!$J$21="HASTA 02-2024",TABLAS!CG84,IF(ADMI!$J$21="DESDE 03-2024",TABLAS!CL84,CQ84)) -> 3481-Autorretenciones Sociedades Grandes Contribuyentes | H84: =IF(ADMI!$J$21="HASTA 02-2024",TABLAS!CH84,IF(ADMI!$J$21="DESDE 03-2024",TABLAS!CM84,CR84)) -> 3481 | I84: =IF(ADMI!$J$21="HASTA 02-2024",TABLAS!CI84,IF(ADMI!$J$21="DESDE 03-2024",TABLAS!CN84,CS84)) -> Autorretenciones Sociedades Grandes Contribuyentes | J84: =IF(ADMI!$J$21="HASTA 02-2024",TABLAS!CJ84,IF(ADMI!$J$21="DESDE 03-2024",TABLAS!CO84,CT84)) -> Conforme Nro. NAC-DGERCGC24-00000003 , del 12 de enero de 2024 | AI84: ANDORRA | AJ84: 233 | AK84: 233-ANDORRA | AM84: 81-SERENÍSIMA REPÚBLICA DE SAN MARINO (Estado independiente) | AN84: SERENÍSIMA REPÚBLICA DE SAN MARINO (Estado independiente) | AO84: 81 | AP84: SAN MARINO | AQ84: 237 | AR84: 2007-05-01 | AS84: 237-SAN MARINO | CG84: 350-Otras autoretenciones | CH84: 350 | CI84: Otras autoretenciones | CJ84: 1,50 ó 1,75 | CL84: 3481-Autorretenciones Sociedades Grandes Contribuyentes | CM84: 3481 | CN84: Autorretenciones Sociedades Grandes Contribuyentes | CO84: Conforme Nro. NAC-DGERCGC24-00000003 , del 12 de enero de 2024 | CQ84: 3480-Impuesto a la renta único sobre los ingresos percibidos por los operadores de pronósticos deportivos | CR84: 3480 | CS84: Impuesto a la renta único sobre los ingresos percibidos por los operadores de pronósticos deportivos | CT84: 15
G85: =IF(ADMI!$J$21="HASTA 02-2024",TABLAS!CG85,IF(ADMI!$J$21="DESDE 03-2024",TABLAS!CL85,CQ85)) -> 3482-Comisiones a sociedades, nacionales o extranjeras residentes y establecimientos permanentes domiciliados en el país | H85: =IF(ADMI!$J$21="HASTA 02-2024",TABLAS!CH85,IF(ADMI!$J$21="DESDE 03-2024",TABLAS!CM85,CR85)) -> 3482 | I85: =IF(ADMI!$J$21="HASTA 02-2024",TABLAS!CI85,IF(ADMI!$J$21="DESDE 03-2024",TABLAS!CN85,CS85)) -> Comisiones a sociedades, nacionales o extranjeras residentes y establecimientos permanentes domiciliados en el país | J85: =IF(ADMI!$J$21="HASTA 02-2024",TABLAS!CJ85,IF(ADMI!$J$21="DESDE 03-2024",TABLAS!CO85,CT85)) -> 3 | AI85: LIECHTENSTEIN | AJ85: 234 | AK85: 234-LIECHTENSTEIN | AM85: 82-SULTANADO DE OMAN | AN85: SULTANADO DE OMAN | AO85: 82 | AP85: OMAN | AQ85: 337 | AR85: 2007-05-01 | AS85: 337-OMAN | CG85: 500-Pago a no residentes - Rentas Inmobiliarias | CH85: 500 | CI85: Pago a no residentes - Rentas Inmobiliarias | CJ85: 25 o 37 | CL85: 3482-Comisiones a sociedades, nacionales o extranjeras residentes y establecimientos permanentes domiciliados en el país | CM85: 3482 | CN85: Comisiones a sociedades, nacionales o extranjeras residentes y establecimientos permanentes domiciliados en el país | CO85: 3 | CQ85: 3481-Autorretenciones Sociedades Grandes Contribuyentes | CR85: 3481 | CS85: Autorretenciones Sociedades Grandes Contribuyentes | CT85: Conforme Nro. NAC-DGERCGC24-00000003 , del 12 de enero de 2024
G86: =IF(ADMI!$J$21="HASTA 02-2024",TABLAS!CG86,IF(ADMI!$J$21="DESDE 03-2024",TABLAS!CL86,CQ86)) -> 500-Pago a no residentes - Rentas Inmobiliarias | H86: =IF(ADMI!$J$21="HASTA 02-2024",TABLAS!CH86,IF(ADMI!$J$21="DESDE 03-2024",TABLAS!CM86,CR86)) -> 500 | I86: =IF(ADMI!$J$21="HASTA 02-2024",TABLAS!CI86,IF(ADMI!$J$21="DESDE 03-2024",TABLAS!CN86,CS86)) -> Pago a no residentes - Rentas Inmobiliarias | J86: =IF(ADMI!$J$21="HASTA 02-2024",TABLAS!CJ86,IF(ADMI!$J$21="DESDE 03-2024",TABLAS!CO86,CT86)) -> 25 o 37 | AI86: MONACO | AJ86: 235 | AK86: 235-MONACO | AM86: 83-TOKELAU | AN86: TOKELAU | AO86: 83 | AP86: TOKELAI | AQ86: 530 | AR86: 2007-05-01 | AS86: 530-TOKELAI | CG86: 501-Pago a no residentes - Beneficios/Servicios Empresariales | CH86: 501 | CI86: Pago a no residentes - Beneficios/Servicios Empresariales | CJ86: 25 o 37 | CL86: 500-Pago a no residentes - Rentas Inmobiliarias | CM86: 500 | CN86: Pago a no residentes - Rentas Inmobiliarias | CO86: 25 o 37 | CQ86: 3482-Comisiones a sociedades, nacionales o extranjeras residentes y establecimientos permanentes domiciliados en el país | CR86: 3482 | CS86: Comisiones a sociedades, nacionales o extranjeras residentes y establecimientos permanentes domiciliados en el país | CT86: 3
G87: =IF(ADMI!$J$21="HASTA 02-2024",TABLAS!CG87,IF(ADMI!$J$21="DESDE 03-2024",TABLAS!CL87,CQ87)) -> 501-Pago a no residentes - Beneficios/Servicios Empresariales | H87: =IF(ADMI!$J$21="HASTA 02-2024",TABLAS!CH87,IF(ADMI!$J$21="DESDE 03-2024",TABLAS!CM87,CR87)) -> 501 | I87: =IF(ADMI!$J$21="HASTA 02-2024",TABLAS!CI87,IF(ADMI!$J$21="DESDE 03-2024",TABLAS!CN87,CS87)) -> Pago a no residentes - Beneficios/Servicios Empresariales | J87: =IF(ADMI!$J$21="HASTA 02-2024",TABLAS!CJ87,IF(ADMI!$J$21="DESDE 03-2024",TABLAS!CO87,CT87)) -> 25 o 37 | AI87: SAN MARINO | AJ87: 237 | AK87: 237-SAN MARINO | AM87: 84-TRISTAN DA CUNHA (SH Saint Helena) | AN87: TRISTAN DA CUNHA (SH Saint Helena) | AO87: 84 | AP87: SANTA ELENA | AQ87: 466 | AR87: 2007-05-01 | AS87: 466-SANTA ELENA | CG87: 501A-Pago a no residentes - Servicios técnicos, administrativos o de consultoría y regalías | CH87: 501A | CI87: Pago a no residentes - Servicios técnicos, administrativos o de consultoría y regalías | CJ87: 25 o 37 | CL87: 501-Pago a no residentes - Beneficios/Servicios Empresariales | CM87: 501 | CN87: Pago a no residentes - Beneficios/Servicios Empresariales | CO87: 25 o 37 | CQ87: 500-Pago a no residentes - Rentas Inmobiliarias | CR87: 500 | CS87: Pago a no residentes - Rentas Inmobiliarias | CT87: 25 o 37
G88: =IF(ADMI!$J$21="HASTA 02-2024",TABLAS!CG88,IF(ADMI!$J$21="DESDE 03-2024",TABLAS!CL88,CQ88)) -> 501A-Pago a no residentes - Servicios técnicos, administrativos o de consultoría y regalías | H88: =IF(ADMI!$J$21="HASTA 02-2024",TABLAS!CH88,IF(ADMI!$J$21="DESDE 03-2024",TABLAS!CM88,CR88)) -> 501A | I88: =IF(ADMI!$J$21="HASTA 02-2024",TABLAS!CI88,IF(ADMI!$J$21="DESDE 03-2024",TABLAS!CN88,CS88)) -> Pago a no residentes - Servicios técnicos, administrativos o de consultoría y regalías | J88: =IF(ADMI!$J$21="HASTA 02-2024",TABLAS!CJ88,IF(ADMI!$J$21="DESDE 03-2024",TABLAS!CO88,CT88)) -> 25 o 37 | AI88: VATICANO (SANTA SEDE) | AJ88: 238 | AK88: 238-VATICANO (SANTA SEDE) | AM88: 85-TUVALU | AN88: TUVALU | AO88: 85 | AP88: TUVALU | AQ88: 515 | AR88: 2007-05-01 | AS88: 515-TUVALU | CG88: 503-Pago a no residentes- Navegación Marítima y/o aérea | CH88: 503 | CI88: Pago a no residentes- Navegación Marítima y/o aérea | CJ88: 0 o 25 o 37 | CL88: 501A-Pago a no residentes - Servicios técnicos, administrativos o de consultoría y regalías | CM88: 501A | CN88: Pago a no residentes - Servicios técnicos, administrativos o de consultoría y regalías | CO88: 25 o 37 | CQ88: 501-Pago a no residentes - Beneficios/Servicios Empresariales | CR88: 501 | CS88: Pago a no residentes - Beneficios/Servicios Empresariales | CT88: 25 o 37
G89: =IF(ADMI!$J$21="HASTA 02-2024",TABLAS!CG89,IF(ADMI!$J$21="DESDE 03-2024",TABLAS!CL89,CQ89)) -> 503-Pago a no residentes- Navegación Marítima y/o aérea | H89: =IF(ADMI!$J$21="HASTA 02-2024",TABLAS!CH89,IF(ADMI!$J$21="DESDE 03-2024",TABLAS!CM89,CR89)) -> 503 | I89: =IF(ADMI!$J$21="HASTA 02-2024",TABLAS!CI89,IF(ADMI!$J$21="DESDE 03-2024",TABLAS!CN89,CS89)) -> Pago a no residentes- Navegación Marítima y/o aérea | J89: =IF(ADMI!$J$21="HASTA 02-2024",TABLAS!CJ89,IF(ADMI!$J$21="DESDE 03-2024",TABLAS!CO89,CT89)) -> 0 o 25 o 37 | AI89: GIBRALTAR | AJ89: 239 | AK89: 239-GIBRALTAR | AM89: 86-ZONA LIBRE DE OSTRAVA | AN89: ZONA LIBRE DE OSTRAVA | AO89: 86 | AP89: REPUBLICA CHECA | AQ89: 599 | AR89: 2007-05-01 | AS89: 599-REPUBLICA CHECA | CG89: 504-Pago a no residentes- Dividendos distribuidos a personas naturales (domicilados o no en paraiso fiscal) o a sociedades sin beneficiario efectivo persona natural residente en Ecuador | CH89: 504 | CI89: Pago a no residentes- Dividendos distribuidos a personas naturales (domicilados o no en paraiso fiscal) o a sociedades sin beneficiario efectivo persona natural residente en Ecuador | CJ89: 25 | CL89: 503-Pago a no residentes- Navegación Marítima y/o aérea | CM89: 503 | CN89: Pago a no residentes- Navegación Marítima y/o aérea | CO89: 0 o 25 o 37 | CQ89: 501A-Pago a no residentes - Servicios técnicos, administrativos o de consultoría y regalías | CR89: 501A | CS89: Pago a no residentes - Servicios técnicos, administrativos o de consultoría y regalías | CT89: 25 o 37
G90: =IF(ADMI!$J$21="HASTA 02-2024",TABLAS!CG90,IF(ADMI!$J$21="DESDE 03-2024",TABLAS!CL90,CQ90)) -> 504-Pago a no residentes- Dividendos distribuidos a personas naturales (domiciliados o no en paraíso fiscal) o a sociedades sin beneficiario efectivo persona natural residente en Ecuador | H90: =IF(ADMI!$J$21="HASTA 02-2024",TABLAS!CH90,IF(ADMI!$J$21="DESDE 03-2024",TABLAS!CM90,CR90)) -> 504 | I90: =IF(ADMI!$J$21="HASTA 02-2024",TABLAS!CI90,IF(ADMI!$J$21="DESDE 03-2024",TABLAS!CN90,CS90)) -> Pago a no residentes- Dividendos distribuidos a personas naturales (domiciliados o no en paraíso fiscal) o a sociedades sin beneficiario efectivo persona natural residente en Ecuador | J90: =IF(ADMI!$J$21="HASTA 02-2024",TABLAS!CJ90,IF(ADMI!$J$21="DESDE 03-2024",TABLAS!CO90,CT90)) -> 25 | AI90: BELARUS | AJ90: 241 | AK90: 241-BELARUS | AM90: --- | AN90: --- | AO90: --- | AP90: --- | AQ90: --- | AR90: --- | AS90: --- | CG90: 504A-Dividendos a sociedades con beneficiario efectivo persona natural residente en el Ecuador | CH90: 504A | CI90: Dividendos a sociedades con beneficiario efectivo persona natural residente en el Ecuador | CJ90: Hasta 25 y conforme la Resolución NAC-DGERCGC20-000000013 | CL90: 504-Pago a no residentes- Dividendos distribuidos a personas naturales (domiciliados o no en paraíso fiscal) o a sociedades sin beneficiario efectivo persona natural residente en Ecuador | CM90: 504 | CN90: Pago a no residentes- Dividendos distribuidos a personas naturales (domiciliados o no en paraíso fiscal) o a sociedades sin beneficiario efectivo persona natural residente en Ecuador | CO90: 25 | CQ90: 503-Pago a no residentes- Navegación Marítima y/o aérea | CR90: 503 | CS90: Pago a no residentes- Navegación Marítima y/o aérea | CT90: 0 o 25 o 37
G91: =IF(ADMI!$J$21="HASTA 02-2024",TABLAS!CG91,IF(ADMI!$J$21="DESDE 03-2024",TABLAS!CL91,CQ91)) -> 504A-Dividendos a sociedades con beneficiario efectivo persona natural residente en el Ecuador | H91: =IF(ADMI!$J$21="HASTA 02-2024",TABLAS!CH91,IF(ADMI!$J$21="DESDE 03-2024",TABLAS!CM91,CR91)) -> 504A | I91: =IF(ADMI!$J$21="HASTA 02-2024",TABLAS!CI91,IF(ADMI!$J$21="DESDE 03-2024",TABLAS!CN91,CS91)) -> Dividendos a sociedades con beneficiario efectivo persona natural residente en el Ecuador | J91: =IF(ADMI!$J$21="HASTA 02-2024",TABLAS!CJ91,IF(ADMI!$J$21="DESDE 03-2024",TABLAS!CO91,CT91)) -> Hasta 25 y conforme la Resolución NAC-DGERCGC20-000000013 | AI91: BOSNIA Y HERZEGOVINA | AJ91: 242 | AK91: 242-BOSNIA Y HERZEGOVINA | CG91: 504B-Dividendos a no residentes incumpliendo el deber de informar la composición societaria | CH91: 504B | CI91: Dividendos a no residentes incumpliendo el deber de informar la composición societaria | CJ91: 37 | CL91: 504A-Dividendos a sociedades con beneficiario efectivo persona natural residente en el Ecuador | CM91: 504A | CN91: Dividendos a sociedades con beneficiario efectivo persona natural residente en el Ecuador | CO91: Hasta 25 y conforme la Resolución NAC-DGERCGC20-000000013 | CQ91: 504-Pago a no residentes- Dividendos distribuidos a personas naturales (domiciliados o no en paraíso fiscal) o a sociedades sin beneficiario efectivo persona natural residente en Ecuador | CR91: 504 | CS91: Pago a no residentes- Dividendos distribuidos a personas naturales (domiciliados o no en paraíso fiscal) o a sociedades sin beneficiario efectivo persona natural residente en Ecuador | CT91: 10
G92: =IF(ADMI!$J$21="HASTA 02-2024",TABLAS!CG92,IF(ADMI!$J$21="DESDE 03-2024",TABLAS!CL92,CQ92)) -> 504B-Dividendos a no residentes incumpliendo el deber de informar la composición societaria | H92: =IF(ADMI!$J$21="HASTA 02-2024",TABLAS!CH92,IF(ADMI!$J$21="DESDE 03-2024",TABLAS!CM92,CR92)) -> 504B | I92: =IF(ADMI!$J$21="HASTA 02-2024",TABLAS!CI92,IF(ADMI!$J$21="DESDE 03-2024",TABLAS!CN92,CS92)) -> Dividendos a no residentes incumpliendo el deber de informar la composición societaria | J92: =IF(ADMI!$J$21="HASTA 02-2024",TABLAS!CJ92,IF(ADMI!$J$21="DESDE 03-2024",TABLAS!CO92,CT92)) -> 37 | AI92: CROACIA | AJ92: 243 | AK92: 243-CROACIA | CG92: 504C-Dividendos a residentes o establecidos en paraísos fiscales o regímenes de menor imposición (con beneficiario Persona Natural residente en Ecuador) | CH92: 504C | CI92: Dividendos a residentes o establecidos en paraísos fiscales o regímenes de menor imposición (con beneficiario Persona Natural residente en Ecuador) | CJ92: Hasta 25 y conforme la Resolución NAC-DGERCGC20-000000013 | CL92: 504B-Dividendos a no residentes incumpliendo el deber de informar la composición societaria | CM92: 504B | CN92: Dividendos a no residentes incumpliendo el deber de informar la composición societaria | CO92: 37 | CQ92: 504A-Dividendos a sociedades con beneficiario efectivo persona natural residente en el Ecuador | CR92: 504A | CS92: Dividendos a sociedades con beneficiario efectivo persona natural residente en el Ecuador | CT92: 10
G93: =IF(ADMI!$J$21="HASTA 02-2024",TABLAS!CG93,IF(ADMI!$J$21="DESDE 03-2024",TABLAS!CL93,CQ93)) -> 504C-Dividendos a residentes o establecidos en paraísos fiscales o regímenes de menor imposición (con beneficiario Persona Natural residente en Ecuador) | H93: =IF(ADMI!$J$21="HASTA 02-2024",TABLAS!CH93,IF(ADMI!$J$21="DESDE 03-2024",TABLAS!CM93,CR93)) -> 504C | I93: =IF(ADMI!$J$21="HASTA 02-2024",TABLAS!CI93,IF(ADMI!$J$21="DESDE 03-2024",TABLAS!CN93,CS93)) -> Dividendos a residentes o establecidos en paraísos fiscales o regímenes de menor imposición (con beneficiario Persona Natural residente en Ecuador) | J93: =IF(ADMI!$J$21="HASTA 02-2024",TABLAS!CJ93,IF(ADMI!$J$21="DESDE 03-2024",TABLAS!CO93,CT93)) -> Hasta 25 y conforme la Resolución NAC-DGERCGC20-000000013 | AI93: ESLOVENIA | AJ93: 244 | AK93: 244-ESLOVENIA | CG93: 504D-Pago a no residentes - Dividendos a fideicomisos domiciladas en paraísos fiscales o regímenes de menor imposición (con beneficiario efectivo persona natural residente en el Ecuador) | CH93: 504D | CI93: Pago a no residentes - Dividendos a fideicomisos domiciladas en paraísos fiscales o regímenes de menor imposición (con beneficiario efectivo persona natural residente en el Ecuador) | CJ93: Hasta 25 y conforme la Resolución NAC-DGERCGC20-000000013 | CL93: 504C-Dividendos a residentes o establecidos en paraísos fiscales o regímenes de menor imposición (con beneficiario Persona Natural residente en Ecuador) | CM93: 504C | CN93: Dividendos a residentes o establecidos en paraísos fiscales o regímenes de menor imposición (con beneficiario Persona Natural residente en Ecuador) | CO93: Hasta 25 y conforme la Resolución NAC-DGERCGC20-000000013 | CQ93: 504B-Dividendos a no residentes incumpliendo el deber de informar la composición societaria | CR93: 504B | CS93: Dividendos a no residentes incumpliendo el deber de informar la composición societaria | CT93: 14
G94: =IF(ADMI!$J$21="HASTA 02-2024",TABLAS!CG94,IF(ADMI!$J$21="DESDE 03-2024",TABLAS!CL94,CQ94)) -> 504D-Dividendos a fideicomisos o establecidos en paraísos fiscales o regímenes de menor imposición (con beneficiario Persona Natural residente en Ecuador) | H94: =IF(ADMI!$J$21="HASTA 02-2024",TABLAS!CH94,IF(ADMI!$J$21="DESDE 03-2024",TABLAS!CM94,CR94)) -> 504D | I94: =IF(ADMI!$J$21="HASTA 02-2024",TABLAS!CI94,IF(ADMI!$J$21="DESDE 03-2024",TABLAS!CN94,CS94)) -> Dividendos a fideicomisos o establecidos en paraísos fiscales o regímenes de menor imposición (con beneficiario Persona Natural residente en Ecuador) | J94: =IF(ADMI!$J$21="HASTA 02-2024",TABLAS!CJ94,IF(ADMI!$J$21="DESDE 03-2024",TABLAS!CO94,CT94)) -> Hasta 25 y conforme la Resolución NAC-DGERCGC20-000000013 | AI94: ESTONIA | AJ94: 245 | AK94: 245-ESTONIA | CG94: 504E-Pago a no residentes - Anticipo dividendos (no domiciliada en paraísos fiscales o regímenes de menor imposición) | CH94: 504E | CI94: Pago a no residentes - Anticipo dividendos (no domiciliada en paraísos fiscales o regímenes de menor imposición) | CJ94: 22 ó 25 | CL94: 504D-Dividendos a fideicomisos o establecidos en paraísos fiscales o regímenes de menor imposición (con beneficiario Persona Natural residente en Ecuador) | CM94: 504D | CN94: Dividendos a fideicomisos o establecidos en paraísos fiscales o regímenes de menor imposición (con beneficiario Persona Natural residente en Ecuador) | CO94: Hasta 25 y conforme la Resolución NAC-DGERCGC20-000000013 | CQ94: 504C-Dividendos a residentes o establecidos en paraísos fiscales o regímenes de menor imposición (con beneficiario Persona Natural residente en Ecuador) | CR94: 504C | CS94: Dividendos a residentes o establecidos en paraísos fiscales o regímenes de menor imposición (con beneficiario Persona Natural residente en Ecuador) | CT94: 14
G95: =IF(ADMI!$J$21="HASTA 02-2024",TABLAS!CG95,IF(ADMI!$J$21="DESDE 03-2024",TABLAS!CL95,CQ95)) -> 504E-Pago a no residentes - Anticipo dividendos (no domiciliada en paraísos fiscales o regímenes de menor imposición) | H95: =IF(ADMI!$J$21="HASTA 02-2024",TABLAS!CH95,IF(ADMI!$J$21="DESDE 03-2024",TABLAS!CM95,CR95)) -> 504E | I95: =IF(ADMI!$J$21="HASTA 02-2024",TABLAS!CI95,IF(ADMI!$J$21="DESDE 03-2024",TABLAS!CN95,CS95)) -> Pago a no residentes - Anticipo dividendos (no domiciliada en paraísos fiscales o regímenes de menor imposición) | J95: =IF(ADMI!$J$21="HASTA 02-2024",TABLAS!CJ95,IF(ADMI!$J$21="DESDE 03-2024",TABLAS!CO95,CT95)) -> 22 o 25 | AI95: GEORGIA | AJ95: 246 | AK95: 246-GEORGIA | CG95: 504F-Pago a no residentes - Anticipo dividendos (domiciliadas en paraísos fiscales o regímenes de menor imposición) | CH95: 504F | CI95: Pago a no residentes - Anticipo dividendos (domiciliadas en paraísos fiscales o regímenes de menor imposición) | CJ95: 22, 25 ó 28 | CL95: 504E-Pago a no residentes - Anticipo dividendos (no domiciliada en paraísos fiscales o regímenes de menor imposición) | CM95: 504E | CN95: Pago a no residentes - Anticipo dividendos (no domiciliada en paraísos fiscales o regímenes de menor imposición) | CO95: 22 o 25 | CQ95: 504D-Dividendos a fideicomisos o establecidos en paraísos fiscales o regímenes de menor imposición (con beneficiario Persona Natural residente en Ecuador) | CR95: 504D | CS95: Dividendos a fideicomisos o establecidos en paraísos fiscales o regímenes de menor imposición (con beneficiario Persona Natural residente en Ecuador) | CT95: 14
G96: =IF(ADMI!$J$21="HASTA 02-2024",TABLAS!CG96,IF(ADMI!$J$21="DESDE 03-2024",TABLAS!CL96,CQ96)) -> 504F-Pago a no residentes - Anticipo dividendos (domiciliadas en paraísos fiscales o regímenes de menor imposición) | H96: =IF(ADMI!$J$21="HASTA 02-2024",TABLAS!CH96,IF(ADMI!$J$21="DESDE 03-2024",TABLAS!CM96,CR96)) -> 504F | I96: =IF(ADMI!$J$21="HASTA 02-2024",TABLAS!CI96,IF(ADMI!$J$21="DESDE 03-2024",TABLAS!CN96,CS96)) -> Pago a no residentes - Anticipo dividendos (domiciliadas en paraísos fiscales o regímenes de menor imposición) | J96: =IF(ADMI!$J$21="HASTA 02-2024",TABLAS!CJ96,IF(ADMI!$J$21="DESDE 03-2024",TABLAS!CO96,CT96)) -> 22 o 25 o 28 | AI96: GROENLANDIA | AJ96: 247 | AK96: 247-GROENLANDIA | CG96: 504G-Pago a no residentes - Préstamos accionistas, beneficiarios o partìcipes (no domiciladas en paraísos fiscales o regímenes de menor imposición) | CH96: 504G | CI96: Pago a no residentes - Préstamos accionistas, beneficiarios o partìcipes (no domiciladas en paraísos fiscales o regímenes de menor imposición) | CJ96: 22 ó 25 | CL96: 504F-Pago a no residentes - Anticipo dividendos (domiciliadas en paraísos fiscales o regímenes de menor imposición) | CM96: 504F | CN96: Pago a no residentes - Anticipo dividendos (domiciliadas en paraísos fiscales o regímenes de menor imposición) | CO96: 22 o 25 o 28 | CQ96: 504E-Pago a no residentes - Anticipo dividendos (no domiciliada en paraísos fiscales o regímenes de menor imposición) | CR96: 504E | CS96: Pago a no residentes - Anticipo dividendos (no domiciliada en paraísos fiscales o regímenes de menor imposición) | CT96: 25
G97: =IF(ADMI!$J$21="HASTA 02-2024",TABLAS!CG97,IF(ADMI!$J$21="DESDE 03-2024",TABLAS!CL97,CQ97)) -> 504G-Pago a no residentes - Préstamos accionistas, beneficiarios o partícipes (no domiciliadas en paraísos fiscales o regímenes de menor imposición) | H97: =IF(ADMI!$J$21="HASTA 02-2024",TABLAS!CH97,IF(ADMI!$J$21="DESDE 03-2024",TABLAS!CM97,CR97)) -> 504G | I97: =IF(ADMI!$J$21="HASTA 02-2024",TABLAS!CI97,IF(ADMI!$J$21="DESDE 03-2024",TABLAS!CN97,CS97)) -> Pago a no residentes - Préstamos accionistas, beneficiarios o partícipes (no domiciliadas en paraísos fiscales o regímenes de menor imposición) | J97: =IF(ADMI!$J$21="HASTA 02-2024",TABLAS!CJ97,IF(ADMI!$J$21="DESDE 03-2024",TABLAS!CO97,CT97)) -> 22 o 25 | AI97: LETONIA | AJ97: 248 | AK97: 248-LETONIA | CG97: 504H-Pago a no residentes - Préstamos accionistas, beneficiarios o partìcipes (domiciladas en paraísos fiscales o regímenes de menor imposición) | CH97: 504H | CI97: Pago a no residentes - Préstamos accionistas, beneficiarios o partìcipes (domiciladas en paraísos fiscales o regímenes de menor imposición) | CJ97: 22, 25 ó 28 | CL97: 504G-Pago a no residentes - Préstamos accionistas, beneficiarios o partícipes (no domiciliadas en paraísos fiscales o regímenes de menor imposición) | CM97: 504G | CN97: Pago a no residentes - Préstamos accionistas, beneficiarios o partícipes (no domiciliadas en paraísos fiscales o regímenes de menor imposición) | CO97: 22 o 25 | CQ97: 504F-Pago a no residentes - Anticipo dividendos (domiciliadas en paraísos fiscales o regímenes de menor imposición) | CR97: 504F | CS97: Pago a no residentes - Anticipo dividendos (domiciliadas en paraísos fiscales o regímenes de menor imposición) | CT97: 25
G98: =IF(ADMI!$J$21="HASTA 02-2024",TABLAS!CG98,IF(ADMI!$J$21="DESDE 03-2024",TABLAS!CL98,CQ98)) -> 504H-Pago a no residentes - Préstamos accionistas, beneficiarios o partícipes (domiciliadas en paraísos fiscales o regímenes de menor imposición) | H98: =IF(ADMI!$J$21="HASTA 02-2024",TABLAS!CH98,IF(ADMI!$J$21="DESDE 03-2024",TABLAS!CM98,CR98)) -> 504H | I98: =IF(ADMI!$J$21="HASTA 02-2024",TABLAS!CI98,IF(ADMI!$J$21="DESDE 03-2024",TABLAS!CN98,CS98)) -> Pago a no residentes - Préstamos accionistas, beneficiarios o partícipes (domiciliadas en paraísos fiscales o regímenes de menor imposición) | J98: =IF(ADMI!$J$21="HASTA 02-2024",TABLAS!CJ98,IF(ADMI!$J$21="DESDE 03-2024",TABLAS!CO98,CT98)) -> 22 o 25 o 28 | AI98: LITUANIA | AJ98: 249 | AK98: 249-LITUANIA | CG98: 504I-Pago a no residentes - Préstamos no comerciales a partes relacionadas (no domiciladas en paraísos fiscales o regímenes de menor imposición) | CH98: 504I | CI98: Pago a no residentes - Préstamos no comerciales a partes relacionadas (no domiciladas en paraísos fiscales o regímenes de menor imposición) | CJ98: 22 ó 25 | CL98: 504H-Pago a no residentes - Préstamos accionistas, beneficiarios o partícipes (domiciliadas en paraísos fiscales o regímenes de menor imposición) | CM98: 504H | CN98: Pago a no residentes - Préstamos accionistas, beneficiarios o partícipes (domiciliadas en paraísos fiscales o regímenes de menor imposición) | CO98: 22 o 25 o 28 | CQ98: 504G-Pago a no residentes - Préstamos accionistas, beneficiarios o partícipes (no domiciliadas en paraísos fiscales o regímenes de menor imposición) | CR98: 504G | CS98: Pago a no residentes - Préstamos accionistas, beneficiarios o partícipes (no domiciliadas en paraísos fiscales o regímenes de menor imposición) | CT98: 25
G99: =IF(ADMI!$J$21="HASTA 02-2024",TABLAS!CG99,IF(ADMI!$J$21="DESDE 03-2024",TABLAS!CL99,CQ99)) -> 504I-Pago a no residentes - Préstamos no comerciales a partes relacionadas (no domiciliadas en paraísos fiscales o regímenes de menor imposición) | H99: =IF(ADMI!$J$21="HASTA 02-2024",TABLAS!CH99,IF(ADMI!$J$21="DESDE 03-2024",TABLAS!CM99,CR99)) -> 504I | I99: =IF(ADMI!$J$21="HASTA 02-2024",TABLAS!CI99,IF(ADMI!$J$21="DESDE 03-2024",TABLAS!CN99,CS99)) -> Pago a no residentes - Préstamos no comerciales a partes relacionadas (no domiciliadas en paraísos fiscales o regímenes de menor imposición) | J99: =IF(ADMI!$J$21="HASTA 02-2024",TABLAS!CJ99,IF(ADMI!$J$21="DESDE 03-2024",TABLAS!CO99,CT99)) -> 22 o 25 | AI99: MOLDOVA | AJ99: 250 | AK99: =CONCATENATE(AJ97&"-"&AI97) -> 248-LETONIA | CG99: 504J-Pago a no residentes - Préstamos no comerciales a partes relacionadas (domiciladas en paraísos fiscales o regímenes de menor imposición) | CH99: 504J | CI99: Pago a no residentes - Préstamos no comerciales a partes relacionadas (domiciladas en paraísos fiscales o regímenes de menor imposición) | CJ99: 22, 25 ó 28 | CL99: 504I-Pago a no residentes - Préstamos no comerciales a partes relacionadas (no domiciliadas en paraísos fiscales o regímenes de menor imposición) | CM99: 504I | CN99: Pago a no residentes - Préstamos no comerciales a partes relacionadas (no domiciliadas en paraísos fiscales o regímenes de menor imposición) | CO99: 22 o 25 | CQ99: 504H-Pago a no residentes - Préstamos accionistas, beneficiarios o partícipes (domiciliadas en paraísos fiscales o regímenes de menor imposición) | CR99: 504H | CS99: Pago a no residentes - Préstamos accionistas, beneficiarios o partícipes (domiciliadas en paraísos fiscales o regímenes de menor imposición) | CT99: 25
G100: =IF(ADMI!$J$21="HASTA 02-2024",TABLAS!CG100,IF(ADMI!$J$21="DESDE 03-2024",TABLAS!CL100,CQ100)) -> 504J-Pago a no residentes - Préstamos no comerciales a partes relacionadas (domiciliadas en paraísos fiscales o regímenes de menor imposición) | H100: =IF(ADMI!$J$21="HASTA 02-2024",TABLAS!CH100,IF(ADMI!$J$21="DESDE 03-2024",TABLAS!CM100,CR100)) -> 504J | I100: =IF(ADMI!$J$21="HASTA 02-2024",TABLAS!CI100,IF(ADMI!$J$21="DESDE 03-2024",TABLAS!CN100,CS100)) -> Pago a no residentes - Préstamos no comerciales a partes relacionadas (domiciliadas en paraísos fiscales o regímenes de menor imposición) | J100: =IF(ADMI!$J$21="HASTA 02-2024",TABLAS!CJ100,IF(ADMI!$J$21="DESDE 03-2024",TABLAS!CO100,CT100)) -> 22 o 25 o 28 | AI100: MACEDONIA | AJ100: 251 | AK100: 251-MACEDONIA | CG100: 505-Pago a no residentes - Rendimientos financieros | CH100: 505 | CI100: Pago a no residentes - Rendimientos financieros | CJ100: 25 o 37 | CL100: 504J-Pago a no residentes - Préstamos no comerciales a partes relacionadas (domiciliadas en paraísos fiscales o regímenes de menor imposición) | CM100: 504J | CN100: Pago a no residentes - Préstamos no comerciales a partes relacionadas (domiciliadas en paraísos fiscales o regímenes de menor imposición) | CO100: 22 o 25 o 28 | CQ100: 504I-Pago a no residentes - Préstamos no comerciales a partes relacionadas (no domiciliadas en paraísos fiscales o regímenes de menor imposición) | CR100: 504I | CS100: Pago a no residentes - Préstamos no comerciales a partes relacionadas (no domiciliadas en paraísos fiscales o regímenes de menor imposición) | CT100: 25
G101: =IF(ADMI!$J$21="HASTA 02-2024",TABLAS!CG101,IF(ADMI!$J$21="DESDE 03-2024",TABLAS!CL101,CQ101)) -> 505-Pago a no residentes - Rendimientos financieros | H101: =IF(ADMI!$J$21="HASTA 02-2024",TABLAS!CH101,IF(ADMI!$J$21="DESDE 03-2024",TABLAS!CM101,CR101)) -> 505 | I101: =IF(ADMI!$J$21="HASTA 02-2024",TABLAS!CI101,IF(ADMI!$J$21="DESDE 03-2024",TABLAS!CN101,CS101)) -> Pago a no residentes - Rendimientos financieros | J101: =IF(ADMI!$J$21="HASTA 02-2024",TABLAS!CJ101,IF(ADMI!$J$21="DESDE 03-2024",TABLAS!CO101,CT101)) -> 25 o 37 | AI101: ESLOVAQUIA | AJ101: 252 | AK101: 252-ESLOVAQUIA | CG101: 505A-Pago a no residentes – Intereses de créditos de Instituciones Financieras del exterior | CH101: 505A | CI101: Pago a no residentes – Intereses de créditos de Instituciones Financieras del exterior | CJ101: 0 ó 25 | CL101: 505-Pago a no residentes - Rendimientos financieros | CM101: 505 | CN101: Pago a no residentes - Rendimientos financieros | CO101: 25 o 37 | CQ101: 504J-Pago a no residentes - Préstamos no comerciales a partes relacionadas (domiciliadas en paraísos fiscales o regímenes de menor imposición) | CR101: 504J | CS101: Pago a no residentes - Préstamos no comerciales a partes relacionadas (domiciliadas en paraísos fiscales o regímenes de menor imposición) | CT101: 25
G102: =IF(ADMI!$J$21="HASTA 02-2024",TABLAS!CG102,IF(ADMI!$J$21="DESDE 03-2024",TABLAS!CL102,CQ102)) -> 505A-Pago a no residentes – Intereses de créditos de Instituciones Financieras del exterior | H102: =IF(ADMI!$J$21="HASTA 02-2024",TABLAS!CH102,IF(ADMI!$J$21="DESDE 03-2024",TABLAS!CM102,CR102)) -> 505A | I102: =IF(ADMI!$J$21="HASTA 02-2024",TABLAS!CI102,IF(ADMI!$J$21="DESDE 03-2024",TABLAS!CN102,CS102)) -> Pago a no residentes – Intereses de créditos de Instituciones Financieras del exterior | J102: =IF(ADMI!$J$21="HASTA 02-2024",TABLAS!CJ102,IF(ADMI!$J$21="DESDE 03-2024",TABLAS!CO102,CT102)) -> 0 o 25 | AI102: ISLAS FAROE | AJ102: 253 | AK102: 253-ISLAS FAROE | CG102: 505B-Pago a no residentes – Intereses de créditos de gobierno a gobierno | CH102: 505B | CI102: Pago a no residentes – Intereses de créditos de gobierno a gobierno | CJ102: 0 ó 25 | CL102: 505A-Pago a no residentes – Intereses de créditos de Instituciones Financieras del exterior | CM102: 505A | CN102: Pago a no residentes – Intereses de créditos de Instituciones Financieras del exterior | CO102: 0 o 25 | CQ102: 505-Pago a no residentes - Rendimientos financieros | CR102: 505 | CS102: Pago a no residentes - Rendimientos financieros | CT102: 25 o 37
G103: =IF(ADMI!$J$21="HASTA 02-2024",TABLAS!CG103,IF(ADMI!$J$21="DESDE 03-2024",TABLAS!CL103,CQ103)) -> 505B-Pago a no residentes – Intereses de créditos de gobierno a gobierno | H103: =IF(ADMI!$J$21="HASTA 02-2024",TABLAS!CH103,IF(ADMI!$J$21="DESDE 03-2024",TABLAS!CM103,CR103)) -> 505B | I103: =IF(ADMI!$J$21="HASTA 02-2024",TABLAS!CI103,IF(ADMI!$J$21="DESDE 03-2024",TABLAS!CN103,CS103)) -> Pago a no residentes – Intereses de créditos de gobierno a gobierno | J103: =IF(ADMI!$J$21="HASTA 02-2024",TABLAS!CJ103,IF(ADMI!$J$21="DESDE 03-2024",TABLAS!CO103,CT103)) -> 0 o 25 | AI103: FRENCH SOUTHERN TERRITORIES | AJ103: 260 | AK103: 260-FRENCH SOUTHERN TERRITORIES | CG103: 505C-Pago a no residentes – Intereses de créditos de organismos multilaterales | CH103: 505C | CI103: Pago a no residentes – Intereses de créditos de organismos multilaterales | CJ103: 0 ó 25 | CL103: 505B-Pago a no residentes – Intereses de créditos de gobierno a gobierno | CM103: 505B | CN103: Pago a no residentes – Intereses de créditos de gobierno a gobierno | CO103: 0 o 25 | CQ103: 505A-Pago a no residentes – Intereses de créditos de Instituciones Financieras del exterior | CR103: 505A | CS103: Pago a no residentes – Intereses de créditos de Instituciones Financieras del exterior | CT103: 0 o 25
G104: =IF(ADMI!$J$21="HASTA 02-2024",TABLAS!CG104,IF(ADMI!$J$21="DESDE 03-2024",TABLAS!CL104,CQ104)) -> 505C-Pago a no residentes – Intereses de créditos de organismos multilaterales | H104: =IF(ADMI!$J$21="HASTA 02-2024",TABLAS!CH104,IF(ADMI!$J$21="DESDE 03-2024",TABLAS!CM104,CR104)) -> 505C | I104: =IF(ADMI!$J$21="HASTA 02-2024",TABLAS!CI104,IF(ADMI!$J$21="DESDE 03-2024",TABLAS!CN104,CS104)) -> Pago a no residentes – Intereses de créditos de organismos multilaterales | J104: =IF(ADMI!$J$21="HASTA 02-2024",TABLAS!CJ104,IF(ADMI!$J$21="DESDE 03-2024",TABLAS!CO104,CT104)) -> 0 o 25 | AI104: AFGANISTAN | AJ104: 301 | AK104: 301-AFGANISTAN | CG104: 505D-Pago a no residentes - Intereses por financiamiento de proveedores externos | CH104: 505D | CI104: Pago a no residentes - Intereses por financiamiento de proveedores externos | CJ104: 25 | CL104: 505C-Pago a no residentes – Intereses de créditos de organismos multilaterales | CM104: 505C | CN104: Pago a no residentes – Intereses de créditos de organismos multilaterales | CO104: 0 o 25 | CQ104: 505B-Pago a no residentes – Intereses de créditos de gobierno a gobierno | CR104: 505B | CS104: Pago a no residentes – Intereses de créditos de gobierno a gobierno | CT104: 0 o 25
G105: =IF(ADMI!$J$21="HASTA 02-2024",TABLAS!CG105,IF(ADMI!$J$21="DESDE 03-2024",TABLAS!CL105,CQ105)) -> 505D-Pago a no residentes - Intereses por financiamiento de proveedores externos | H105: =IF(ADMI!$J$21="HASTA 02-2024",TABLAS!CH105,IF(ADMI!$J$21="DESDE 03-2024",TABLAS!CM105,CR105)) -> 505D | I105: =IF(ADMI!$J$21="HASTA 02-2024",TABLAS!CI105,IF(ADMI!$J$21="DESDE 03-2024",TABLAS!CN105,CS105)) -> Pago a no residentes - Intereses por financiamiento de proveedores externos | J105: =IF(ADMI!$J$21="HASTA 02-2024",TABLAS!CJ105,IF(ADMI!$J$21="DESDE 03-2024",TABLAS!CO105,CT105)) -> 25 | AI105: ARABIA SAUDITA | AJ105: 302 | AK105: 302-ARABIA SAUDITA | CG105: 505E-Pago a no residentes - Intereses de otros créditos externos | CH105: 505E | CI105: Pago a no residentes - Intereses de otros créditos externos | CJ105: 25 | CL105: 505D-Pago a no residentes - Intereses por financiamiento de proveedores externos | CM105: 505D | CN105: Pago a no residentes - Intereses por financiamiento de proveedores externos | CO105: 25 | CQ105: 505C-Pago a no residentes – Intereses de créditos de organismos multilaterales | CR105: 505C | CS105: Pago a no residentes – Intereses de créditos de organismos multilaterales | CT105: 0 o 25
G106: =IF(ADMI!$J$21="HASTA 02-2024",TABLAS!CG106,IF(ADMI!$J$21="DESDE 03-2024",TABLAS!CL106,CQ106)) -> 505E-Pago a no residentes - Intereses de otros créditos externos | H106: =IF(ADMI!$J$21="HASTA 02-2024",TABLAS!CH106,IF(ADMI!$J$21="DESDE 03-2024",TABLAS!CM106,CR106)) -> 505E | I106: =IF(ADMI!$J$21="HASTA 02-2024",TABLAS!CI106,IF(ADMI!$J$21="DESDE 03-2024",TABLAS!CN106,CS106)) -> Pago a no residentes - Intereses de otros créditos externos | J106: =IF(ADMI!$J$21="HASTA 02-2024",TABLAS!CJ106,IF(ADMI!$J$21="DESDE 03-2024",TABLAS!CO106,CT106)) -> 25 | AI106: MYANMAR (BURMA) | AJ106: 303 | AK106: 303-MYANMAR (BURMA) | CG106: 505F-Pago a no residentes - Otros Intereses y Rendimientos Financieros | CH106: 505F | CI106: Pago a no residentes - Otros Intereses y Rendimientos Financieros | CJ106: 25 o 37 | CL106: 505E-Pago a no residentes - Intereses de otros créditos externos | CM106: 505E | CN106: Pago a no residentes - Intereses de otros créditos externos | CO106: 25 | CQ106: 505D-Pago a no residentes - Intereses por financiamiento de proveedores externos | CR106: 505D | CS106: Pago a no residentes - Intereses por financiamiento de proveedores externos | CT106: 25
G107: =IF(ADMI!$J$21="HASTA 02-2024",TABLAS!CG107,IF(ADMI!$J$21="DESDE 03-2024",TABLAS!CL107,CQ107)) -> 505F-Pago a no residentes - Otros Intereses y Rendimientos Financieros | H107: =IF(ADMI!$J$21="HASTA 02-2024",TABLAS!CH107,IF(ADMI!$J$21="DESDE 03-2024",TABLAS!CM107,CR107)) -> 505F | I107: =IF(ADMI!$J$21="HASTA 02-2024",TABLAS!CI107,IF(ADMI!$J$21="DESDE 03-2024",TABLAS!CN107,CS107)) -> Pago a no residentes - Otros Intereses y Rendimientos Financieros | J107: =IF(ADMI!$J$21="HASTA 02-2024",TABLAS!CJ107,IF(ADMI!$J$21="DESDE 03-2024",TABLAS!CO107,CT107)) -> 25 o 37 | AI107: CAMBOYA | AJ107: 304 | AK107: 304-CAMBOYA | CG107: 509-Pago a no residentes- Cánones, derechos de autor, marcas, patentes y similares | CH107: 509 | CI107: Pago a no residentes- Cánones, derechos de autor, marcas, patentes y similares | CJ107: 25 o 37 | CL107: 505F-Pago a no residentes - Otros Intereses y Rendimientos Financieros | CM107: 505F | CN107: Pago a no residentes - Otros Intereses y Rendimientos Financieros | CO107: 25 o 37 | CQ107: 505E-Pago a no residentes - Intereses de otros créditos externos | CR107: 505E | CS107: Pago a no residentes - Intereses de otros créditos externos | CT107: 25
G108: =IF(ADMI!$J$21="HASTA 02-2024",TABLAS!CG108,IF(ADMI!$J$21="DESDE 03-2024",TABLAS!CL108,CQ108)) -> 509-Pago a no residentes- Cánones, derechos de autor, marcas, patentes y similares | H108: =IF(ADMI!$J$21="HASTA 02-2024",TABLAS!CH108,IF(ADMI!$J$21="DESDE 03-2024",TABLAS!CM108,CR108)) -> 509 | I108: =IF(ADMI!$J$21="HASTA 02-2024",TABLAS!CI108,IF(ADMI!$J$21="DESDE 03-2024",TABLAS!CN108,CS108)) -> Pago a no residentes- Cánones, derechos de autor, marcas, patentes y similares | J108: =IF(ADMI!$J$21="HASTA 02-2024",TABLAS!CJ108,IF(ADMI!$J$21="DESDE 03-2024",TABLAS!CO108,CT108)) -> 25 o 37 | AI108: COREA NORTE | AJ108: 306 | AK108: 306-COREA NORTE | CG108: 509A-PPago a no residentes - Regalías por concepto de franquicias | CH108: 509A | CI108: PPago a no residentes - Regalías por concepto de franquicias | CJ108: 25 o 37 | CL108: 509-Pago a no residentes- Cánones, derechos de autor, marcas, patentes y similares | CM108: 509 | CN108: Pago a no residentes- Cánones, derechos de autor, marcas, patentes y similares | CO108: 25 o 37 | CQ108: 505F-Pago a no residentes - Otros Intereses y Rendimientos Financieros | CR108: 505F | CS108: Pago a no residentes - Otros Intereses y Rendimientos Financieros | CT108: 25 o 37
G109: =IF(ADMI!$J$21="HASTA 02-2024",TABLAS!CG109,IF(ADMI!$J$21="DESDE 03-2024",TABLAS!CL109,CQ109)) -> 509A-Pago a no residentes - Regalías por concepto de franquicias | H109: =IF(ADMI!$J$21="HASTA 02-2024",TABLAS!CH109,IF(ADMI!$J$21="DESDE 03-2024",TABLAS!CM109,CR109)) -> 509A | I109: =IF(ADMI!$J$21="HASTA 02-2024",TABLAS!CI109,IF(ADMI!$J$21="DESDE 03-2024",TABLAS!CN109,CS109)) -> Pago a no residentes - Regalías por concepto de franquicias | J109: =IF(ADMI!$J$21="HASTA 02-2024",TABLAS!CJ109,IF(ADMI!$J$21="DESDE 03-2024",TABLAS!CO109,CT109)) -> 25 o 37 | AI109: TAIWAN (CHINA) | AJ109: 307 | AK109: 307-TAIWAN (CHINA) | CG109: 510-Pago a no residentes - Otras ganancias de capital distintas de enajenación de derechos representativos de capital | CH109: 510 | CI109: Pago a no residentes - Otras ganancias de capital distintas de enajenación de derechos representativos de capital | CJ109: 5, 25, 37 | CL109: 509A-Pago a no residentes - Regalías por concepto de franquicias | CM109: 509A | CN109: Pago a no residentes - Regalías por concepto de franquicias | CO109: 25 o 37 | CQ109: 509-Pago a no residentes- Cánones, derechos de autor, marcas, patentes y similares | CR109: 509 | CS109: Pago a no residentes- Cánones, derechos de autor, marcas, patentes y similares | CT109: 25 o 37
G110: =IF(ADMI!$J$21="HASTA 02-2024",TABLAS!CG110,IF(ADMI!$J$21="DESDE 03-2024",TABLAS!CL110,CQ110)) -> 510-Pago a no residentes - Otras ganancias de capital distintas de enajenación de derechos representativos de capital | H110: =IF(ADMI!$J$21="HASTA 02-2024",TABLAS!CH110,IF(ADMI!$J$21="DESDE 03-2024",TABLAS!CM110,CR110)) -> 510 | I110: =IF(ADMI!$J$21="HASTA 02-2024",TABLAS!CI110,IF(ADMI!$J$21="DESDE 03-2024",TABLAS!CN110,CS110)) -> Pago a no residentes - Otras ganancias de capital distintas de enajenación de derechos representativos de capital | J110: =IF(ADMI!$J$21="HASTA 02-2024",TABLAS!CJ110,IF(ADMI!$J$21="DESDE 03-2024",TABLAS!CO110,CT110)) -> 5, 25, 37 | AI110: FILIPINAS | AJ110: 308 | AK110: 308-FILIPINAS | CG110: 511-Pago a no residentes - Servicios profesionales independientes | CH110: 511 | CI110: Pago a no residentes - Servicios profesionales independientes | CJ110: 25 o 37 | CL110: 510-Pago a no residentes - Otras ganancias de capital distintas de enajenación de derechos representativos de capital | CM110: 510 | CN110: Pago a no residentes - Otras ganancias de capital distintas de enajenación de derechos representativos de capital | CO110: 5, 25, 37 | CQ110: 509A-Pago a no residentes - Regalías por concepto de franquicias | CR110: 509A | CS110: Pago a no residentes - Regalías por concepto de franquicias | CT110: 25 o 37
G111: =IF(ADMI!$J$21="HASTA 02-2024",TABLAS!CG111,IF(ADMI!$J$21="DESDE 03-2024",TABLAS!CL111,CQ111)) -> 511-Pago a no residentes - Servicios profesionales independientes | H111: =IF(ADMI!$J$21="HASTA 02-2024",TABLAS!CH111,IF(ADMI!$J$21="DESDE 03-2024",TABLAS!CM111,CR111)) -> 511 | I111: =IF(ADMI!$J$21="HASTA 02-2024",TABLAS!CI111,IF(ADMI!$J$21="DESDE 03-2024",TABLAS!CN111,CS111)) -> Pago a no residentes - Servicios profesionales independientes | J111: =IF(ADMI!$J$21="HASTA 02-2024",TABLAS!CJ111,IF(ADMI!$J$21="DESDE 03-2024",TABLAS!CO111,CT111)) -> 25 o 37 | AI111: INDIA | AJ111: 307 | AK111: 307-INDIA | CG111: =CH111&"-"&CI111 -> 512-Pago a no residentes - Servicios profesionales dependientes | CH111: 512 | CI111: Pago a no residentes - Servicios profesionales dependientes | CJ111: 25 o 37 | CL111: =CM111&"-"&CN111 -> 511-Pago a no residentes - Servicios profesionales independientes | CM111: 511 | CN111: Pago a no residentes - Servicios profesionales independientes | CO111: 25 o 37 | CQ111: 510-Pago a no residentes - Otras ganancias de capital distintas de enajenación de derechos representativos de capital | CR111: 510 | CS111: Pago a no residentes - Otras ganancias de capital distintas de enajenación de derechos representativos de capital | CT111: 5, 25, 37
G112: =IF(ADMI!$J$21="HASTA 02-2024",TABLAS!CG112,IF(ADMI!$J$21="DESDE 03-2024",TABLAS!CL112,CQ112)) -> 512-Pago a no residentes - Servicios profesionales dependientes | H112: =IF(ADMI!$J$21="HASTA 02-2024",TABLAS!CH112,IF(ADMI!$J$21="DESDE 03-2024",TABLAS!CM112,CR112)) -> 512 | I112: =IF(ADMI!$J$21="HASTA 02-2024",TABLAS!CI112,IF(ADMI!$J$21="DESDE 03-2024",TABLAS!CN112,CS112)) -> Pago a no residentes - Servicios profesionales dependientes | J112: =IF(ADMI!$J$21="HASTA 02-2024",TABLAS!CJ112,IF(ADMI!$J$21="DESDE 03-2024",TABLAS!CO112,CT112)) -> 25 o 37 | AI112: INDONESIA | AJ112: 310 | AK112: 310-INDONESIA | CG112: 513-Pago a no residentes- Artistas | CH112: 513 | CI112: Pago a no residentes- Artistas | CJ112: 25 o 37 | CL112: 512-Pago a no residentes - Servicios profesionales dependientes | CM112: 512 | CN112: Pago a no residentes - Servicios profesionales dependientes | CO112: 25 o 37 | CQ112: 511-Pago a no residentes - Servicios profesionales independientes | CR112: 511 | CS112: Pago a no residentes - Servicios profesionales independientes | CT112: 25 o 37
G113: =IF(ADMI!$J$21="HASTA 02-2024",TABLAS!CG113,IF(ADMI!$J$21="DESDE 03-2024",TABLAS!CL113,CQ113)) -> 513-Pago a no residentes- Artistas | H113: =IF(ADMI!$J$21="HASTA 02-2024",TABLAS!CH113,IF(ADMI!$J$21="DESDE 03-2024",TABLAS!CM113,CR113)) -> 513 | I113: =IF(ADMI!$J$21="HASTA 02-2024",TABLAS!CI113,IF(ADMI!$J$21="DESDE 03-2024",TABLAS!CN113,CS113)) -> Pago a no residentes- Artistas | J113: =IF(ADMI!$J$21="HASTA 02-2024",TABLAS!CJ113,IF(ADMI!$J$21="DESDE 03-2024",TABLAS!CO113,CT113)) -> 25 o 37 | AI113: IRAK | AJ113: 311 | AK113: 311-IRAK | CG113: 513A-Pago a no residentes - Deportistas | CH113: 513A | CI113: Pago a no residentes - Deportistas | CJ113: 25 o 37 | CL113: 513-Pago a no residentes- Artistas | CM113: 513 | CN113: Pago a no residentes- Artistas | CO113: 25 o 37 | CQ113: 512-Pago a no residentes - Servicios profesionales dependientes | CR113: 512 | CS113: Pago a no residentes - Servicios profesionales dependientes | CT113: 25 o 37
G114: =IF(ADMI!$J$21="HASTA 02-2024",TABLAS!CG114,IF(ADMI!$J$21="DESDE 03-2024",TABLAS!CL114,CQ114)) -> 513A-Pago a no residentes - Deportistas | H114: =IF(ADMI!$J$21="HASTA 02-2024",TABLAS!CH114,IF(ADMI!$J$21="DESDE 03-2024",TABLAS!CM114,CR114)) -> 513A | I114: =IF(ADMI!$J$21="HASTA 02-2024",TABLAS!CI114,IF(ADMI!$J$21="DESDE 03-2024",TABLAS!CN114,CS114)) -> Pago a no residentes - Deportistas | J114: =IF(ADMI!$J$21="HASTA 02-2024",TABLAS!CJ114,IF(ADMI!$J$21="DESDE 03-2024",TABLAS!CO114,CT114)) -> 25 o 37 | AI114: IRAN (REPUBLICA ISLAMICA) | AJ114: 312 | AK114: 312-IRAN (REPUBLICA ISLAMICA) | CG114: 514-Pago a no residentes - Participación de consejeros | CH114: 514 | CI114: Pago a no residentes - Participación de consejeros | CJ114: 25 o 37 | CL114: 513A-Pago a no residentes - Deportistas | CM114: 513A | CN114: Pago a no residentes - Deportistas | CO114: 25 o 37 | CQ114: 513A-Pago a no residentes - Deportistas | CR114: 513A | CS114: Pago a no residentes - Deportistas | CT114: 25 o 37
G115: =IF(ADMI!$J$21="HASTA 02-2024",TABLAS!CG115,IF(ADMI!$J$21="DESDE 03-2024",TABLAS!CL115,CQ115)) -> 514-Pago a no residentes - Participación de consejeros | H115: =IF(ADMI!$J$21="HASTA 02-2024",TABLAS!CH115,IF(ADMI!$J$21="DESDE 03-2024",TABLAS!CM115,CR115)) -> 514 | I115: =IF(ADMI!$J$21="HASTA 02-2024",TABLAS!CI115,IF(ADMI!$J$21="DESDE 03-2024",TABLAS!CN115,CS115)) -> Pago a no residentes - Participación de consejeros | J115: =IF(ADMI!$J$21="HASTA 02-2024",TABLAS!CJ115,IF(ADMI!$J$21="DESDE 03-2024",TABLAS!CO115,CT115)) -> 25 o 37 | AI115: ISRAEL | AJ115: 313 | AK115: 313-ISRAEL | CG115: 515-Pago a no residentes - Entretenimiento Público | CH115: 515 | CI115: Pago a no residentes - Entretenimiento Público | CJ115: 25 o 37 | CL115: 514-Pago a no residentes - Participación de consejeros | CM115: 514 | CN115: Pago a no residentes - Participación de consejeros | CO115: 25 o 37 | CQ115: 514-Pago a no residentes - Participación de consejeros | CR115: 514 | CS115: Pago a no residentes - Participación de consejeros | CT115: 25 o 37
G116: =IF(ADMI!$J$21="HASTA 02-2024",TABLAS!CG116,IF(ADMI!$J$21="DESDE 03-2024",TABLAS!CL116,CQ116)) -> 515-Pago a no residentes - Entretenimiento Público | H116: =IF(ADMI!$J$21="HASTA 02-2024",TABLAS!CH116,IF(ADMI!$J$21="DESDE 03-2024",TABLAS!CM116,CR116)) -> 515 | I116: =IF(ADMI!$J$21="HASTA 02-2024",TABLAS!CI116,IF(ADMI!$J$21="DESDE 03-2024",TABLAS!CN116,CS116)) -> Pago a no residentes - Entretenimiento Público | J116: =IF(ADMI!$J$21="HASTA 02-2024",TABLAS!CJ116,IF(ADMI!$J$21="DESDE 03-2024",TABLAS!CO116,CT116)) -> 25 o 37 | AI116: JAPON | AJ116: 314 | AK116: 314-JAPON | CG116: 516-Pago a no residentes - Pensiones | CH116: 516 | CI116: Pago a no residentes - Pensiones | CJ116: 25 o 37 | CL116: 515-Pago a no residentes - Entretenimiento Público | CM116: 515 | CN116: Pago a no residentes - Entretenimiento Público | CO116: 25 o 37 | CQ116: 515-Pago a no residentes- Artistas y relacionados a organización, producción y espectáculos artísticos y culturales en Ecuador | CR116: 515 | CS116: Pago a no residentes- Artistas y relacionados a organización, producción y espectáculos artísticos y culturales en Ecuador | CT116: 0 al 15; 0 al 25 ; 37
G117: =IF(ADMI!$J$21="HASTA 02-2024",TABLAS!CG117,IF(ADMI!$J$21="DESDE 03-2024",TABLAS!CL117,CQ117)) -> 516-Pago a no residentes - Pensiones | H117: =IF(ADMI!$J$21="HASTA 02-2024",TABLAS!CH117,IF(ADMI!$J$21="DESDE 03-2024",TABLAS!CM117,CR117)) -> 516 | I117: =IF(ADMI!$J$21="HASTA 02-2024",TABLAS!CI117,IF(ADMI!$J$21="DESDE 03-2024",TABLAS!CN117,CS117)) -> Pago a no residentes - Pensiones | J117: =IF(ADMI!$J$21="HASTA 02-2024",TABLAS!CJ117,IF(ADMI!$J$21="DESDE 03-2024",TABLAS!CO117,CT117)) -> 25 o 37 | AI117: JORDANIA | AJ117: 315 | AK117: 315-JORDANIA | CG117: 517-Pago a no residentes- Reembolso de Gastos | CH117: 517 | CI117: Pago a no residentes- Reembolso de Gastos | CJ117: 25 o 37 | CL117: 516-Pago a no residentes - Pensiones | CM117: 516 | CN117: Pago a no residentes - Pensiones | CO117: 25 o 37 | CQ117: 516-Pago a no residentes - Pensiones | CR117: 516 | CS117: Pago a no residentes - Pensiones | CT117: 25 o 37
G118: =IF(ADMI!$J$21="HASTA 02-2024",TABLAS!CG118,IF(ADMI!$J$21="DESDE 03-2024",TABLAS!CL118,CQ118)) -> 517-Pago a no residentes- Reembolso de Gastos | H118: =IF(ADMI!$J$21="HASTA 02-2024",TABLAS!CH118,IF(ADMI!$J$21="DESDE 03-2024",TABLAS!CM118,CR118)) -> 517 | I118: =IF(ADMI!$J$21="HASTA 02-2024",TABLAS!CI118,IF(ADMI!$J$21="DESDE 03-2024",TABLAS!CN118,CS118)) -> Pago a no residentes- Reembolso de Gastos | J118: =IF(ADMI!$J$21="HASTA 02-2024",TABLAS!CJ118,IF(ADMI!$J$21="DESDE 03-2024",TABLAS!CO118,CT118)) -> 25 o 37 | AI118: KUWAIT | AJ118: 316 | AK118: 316-KUWAIT | CG118: 518-Pago a no residentes- Funciones Públicas | CH118: 518 | CI118: Pago a no residentes- Funciones Públicas | CJ118: 25 o 37 | CL118: 517-Pago a no residentes- Reembolso de Gastos | CM118: 517 | CN118: Pago a no residentes- Reembolso de Gastos | CO118: 25 o 37 | CQ118: 517-Pago a no residentes- Reembolso de Gastos | CR118: 517 | CS118: Pago a no residentes- Reembolso de Gastos | CT118: 25 o 37
G119: =IF(ADMI!$J$21="HASTA 02-2024",TABLAS!CG119,IF(ADMI!$J$21="DESDE 03-2024",TABLAS!CL119,CQ119)) -> 518-Pago a no residentes- Funciones Públicas | H119: =IF(ADMI!$J$21="HASTA 02-2024",TABLAS!CH119,IF(ADMI!$J$21="DESDE 03-2024",TABLAS!CM119,CR119)) -> 518 | I119: =IF(ADMI!$J$21="HASTA 02-2024",TABLAS!CI119,IF(ADMI!$J$21="DESDE 03-2024",TABLAS!CN119,CS119)) -> Pago a no residentes- Funciones Públicas | J119: =IF(ADMI!$J$21="HASTA 02-2024",TABLAS!CJ119,IF(ADMI!$J$21="DESDE 03-2024",TABLAS!CO119,CT119)) -> 25 o 37 | AI119: LAOS, REP. POP. DEMOC. | AJ119: 317 | AK119: 317-LAOS, REP. POP. DEMOC. | CG119: 519-Pago a no residentes - Estudiantes | CH119: 519 | CI119: Pago a no residentes - Estudiantes | CJ119: 25 o 37 | CL119: 518-Pago a no residentes- Funciones Públicas | CM119: 518 | CN119: Pago a no residentes- Funciones Públicas | CO119: 25 o 37 | CQ119: 518-Pago a no residentes- Funciones Públicas | CR119: 518 | CS119: Pago a no residentes- Funciones Públicas | CT119: 25 o 37
G120: =IF(ADMI!$J$21="HASTA 02-2024",TABLAS!CG120,IF(ADMI!$J$21="DESDE 03-2024",TABLAS!CL120,CQ120)) -> 519-Pago a no residentes - Estudiantes | H120: =IF(ADMI!$J$21="HASTA 02-2024",TABLAS!CH120,IF(ADMI!$J$21="DESDE 03-2024",TABLAS!CM120,CR120)) -> 519 | I120: =IF(ADMI!$J$21="HASTA 02-2024",TABLAS!CI120,IF(ADMI!$J$21="DESDE 03-2024",TABLAS!CN120,CS120)) -> Pago a no residentes - Estudiantes | J120: =IF(ADMI!$J$21="HASTA 02-2024",TABLAS!CJ120,IF(ADMI!$J$21="DESDE 03-2024",TABLAS!CO120,CT120)) -> 25 o 37 | AI120: LIBANO | AJ120: 318 | AK120: 318-LIBANO | CG120: 520A-Pago a no residentes - Pago a proveedores de servicios hoteleros y turísticos en el exterior | CH120: 520A | CI120: Pago a no residentes - Pago a proveedores de servicios hoteleros y turísticos en el exterior | CJ120: 25 o 37 | CL120: 519-Pago a no residentes - Estudiantes | CM120: 519 | CN120: Pago a no residentes - Estudiantes | CO120: 25 o 37 | CQ120: 519-Pago a no residentes - Estudiantes | CR120: 519 | CS120: Pago a no residentes - Estudiantes | CT120: 25 o 37
G121: =IF(ADMI!$J$21="HASTA 02-2024",TABLAS!CG121,IF(ADMI!$J$21="DESDE 03-2024",TABLAS!CL121,CQ121)) -> 520A-Pago a no residentes - Pago a proveedores de servicios hoteleros y turísticos en el exterior | H121: =IF(ADMI!$J$21="HASTA 02-2024",TABLAS!CH121,IF(ADMI!$J$21="DESDE 03-2024",TABLAS!CM121,CR121)) -> 520A | I121: =IF(ADMI!$J$21="HASTA 02-2024",TABLAS!CI121,IF(ADMI!$J$21="DESDE 03-2024",TABLAS!CN121,CS121)) -> Pago a no residentes - Pago a proveedores de servicios hoteleros y turísticos en el exterior | J121: =IF(ADMI!$J$21="HASTA 02-2024",TABLAS!CJ121,IF(ADMI!$J$21="DESDE 03-2024",TABLAS!CO121,CT121)) -> 25 o 37 | AI121: MALASIA | AJ121: 319 | AK121: 319-MALASIA | CG121: 520B-Pago a no residentes - Arrendamientos mercantil internacional | CH121: 520B | CI121: Pago a no residentes - Arrendamientos mercantil internacional | CJ121: 0, 25, 37 | CL121: 520A-Pago a no residentes - Pago a proveedores de servicios hoteleros y turísticos en el exterior | CM121: 520A | CN121: Pago a no residentes - Pago a proveedores de servicios hoteleros y turísticos en el exterior | CO121: 25 o 37 | CQ121: 520A-Pago a no residentes - Pago a proveedores de servicios hoteleros y turísticos en el exterior | CR121: 520A | CS121: Pago a no residentes - Pago a proveedores de servicios hoteleros y turísticos en el exterior | CT121: 25 o 37
G122: =IF(ADMI!$J$21="HASTA 02-2024",TABLAS!CG122,IF(ADMI!$J$21="DESDE 03-2024",TABLAS!CL122,CQ122)) -> 520B-Pago a no residentes - Arrendamientos mercantil internacional | H122: =IF(ADMI!$J$21="HASTA 02-2024",TABLAS!CH122,IF(ADMI!$J$21="DESDE 03-2024",TABLAS!CM122,CR122)) -> 520B | I122: =IF(ADMI!$J$21="HASTA 02-2024",TABLAS!CI122,IF(ADMI!$J$21="DESDE 03-2024",TABLAS!CN122,CS122)) -> Pago a no residentes - Arrendamientos mercantil internacional | J122: =IF(ADMI!$J$21="HASTA 02-2024",TABLAS!CJ122,IF(ADMI!$J$21="DESDE 03-2024",TABLAS!CO122,CT122)) -> 0, 25, 37 | AI122: MONGOLIA (MANCHURIA) | AJ122: 321 | AK122: 321-MONGOLIA (MANCHURIA) | CG122: 520D-Pago a no residentes - Comisiones por exportaciones y por promoción de turismo receptivo | CH122: 520D | CI122: Pago a no residentes - Comisiones por exportaciones y por promoción de turismo receptivo | CJ122: 0, 25, 37 | CL122: 520B-Pago a no residentes - Arrendamientos mercantil internacional | CM122: 520B | CN122: Pago a no residentes - Arrendamientos mercantil internacional | CO122: 0, 25, 37 | CQ122: 520B-Pago a no residentes - Arrendamientos mercantil internacional | CR122: 520B | CS122: Pago a no residentes - Arrendamientos mercantil internacional | CT122: 0, 25, 37
G123: =IF(ADMI!$J$21="HASTA 02-2024",TABLAS!CG123,IF(ADMI!$J$21="DESDE 03-2024",TABLAS!CL123,CQ123)) -> 520D-Pago a no residentes - Comisiones por exportaciones y por promoción de turismo receptivo | H123: =IF(ADMI!$J$21="HASTA 02-2024",TABLAS!CH123,IF(ADMI!$J$21="DESDE 03-2024",TABLAS!CM123,CR123)) -> 520D | I123: =IF(ADMI!$J$21="HASTA 02-2024",TABLAS!CI123,IF(ADMI!$J$21="DESDE 03-2024",TABLAS!CN123,CS123)) -> Pago a no residentes - Comisiones por exportaciones y por promoción de turismo receptivo | J123: =IF(ADMI!$J$21="HASTA 02-2024",TABLAS!CJ123,IF(ADMI!$J$21="DESDE 03-2024",TABLAS!CO123,CT123)) -> 0, 25, 37 | AI123: PAKISTAN | AJ123: 322 | AK123: 322-PAKISTAN | CG123: 520E-Pago a no residentes - Por las empresas de transporte marítimo o aéreo y por empresas pesqueras de alta mar, por su actividad. | CH123: 520E | CI123: Pago a no residentes - Por las empresas de transporte marítimo o aéreo y por empresas pesqueras de alta mar, por su actividad. | CJ123: 0 | CL123: 520D-Pago a no residentes - Comisiones por exportaciones y por promoción de turismo receptivo | CM123: 520D | CN123: Pago a no residentes - Comisiones por exportaciones y por promoción de turismo receptivo | CO123: 0, 25, 37 | CQ123: 520D-Pago a no residentes - Comisiones por exportaciones y por promoción de turismo receptivo | CR123: 520D | CS123: Pago a no residentes - Comisiones por exportaciones y por promoción de turismo receptivo | CT123: 0, 25, 37
G124: =IF(ADMI!$J$21="HASTA 02-2024",TABLAS!CG124,IF(ADMI!$J$21="DESDE 03-2024",TABLAS!CL124,CQ124)) -> 520E-Pago a no residentes - Por las empresas de transporte marítimo o aéreo y por empresas pesqueras de alta mar, por su actividad. | H124: =IF(ADMI!$J$21="HASTA 02-2024",TABLAS!CH124,IF(ADMI!$J$21="DESDE 03-2024",TABLAS!CM124,CR124)) -> 520E | I124: =IF(ADMI!$J$21="HASTA 02-2024",TABLAS!CI124,IF(ADMI!$J$21="DESDE 03-2024",TABLAS!CN124,CS124)) -> Pago a no residentes - Por las empresas de transporte marítimo o aéreo y por empresas pesqueras de alta mar, por su actividad. | J124: =IF(ADMI!$J$21="HASTA 02-2024",TABLAS!CJ124,IF(ADMI!$J$21="DESDE 03-2024",TABLAS!CO124,CT124)) -> 0 | AI124: SIRIA | AJ124: 323 | AK124: 323-SIRIA | CG124: 520F-Pago a no residentes - Por las agencias internacionales de prensa | CH124: 520F | CI124: Pago a no residentes - Por las agencias internacionales de prensa | CJ124: 0, 25, 37 | CL124: 520E-Pago a no residentes - Por las empresas de transporte marítimo o aéreo y por empresas pesqueras de alta mar, por su actividad. | CM124: 520E | CN124: Pago a no residentes - Por las empresas de transporte marítimo o aéreo y por empresas pesqueras de alta mar, por su actividad. | CO124: 0 | CQ124: 520E-Pago a no residentes - Por las empresas de transporte marítimo o aéreo y por empresas pesqueras de alta mar, por su actividad. | CR124: 520E | CS124: Pago a no residentes - Por las empresas de transporte marítimo o aéreo y por empresas pesqueras de alta mar, por su actividad. | CT124: 0
G125: =IF(ADMI!$J$21="HASTA 02-2024",TABLAS!CG125,IF(ADMI!$J$21="DESDE 03-2024",TABLAS!CL125,CQ125)) -> 520F-Pago a no residentes - Por las agencias internacionales de prensa | H125: =IF(ADMI!$J$21="HASTA 02-2024",TABLAS!CH125,IF(ADMI!$J$21="DESDE 03-2024",TABLAS!CM125,CR125)) -> 520F | I125: =IF(ADMI!$J$21="HASTA 02-2024",TABLAS!CI125,IF(ADMI!$J$21="DESDE 03-2024",TABLAS!CN125,CS125)) -> Pago a no residentes - Por las agencias internacionales de prensa | J125: =IF(ADMI!$J$21="HASTA 02-2024",TABLAS!CJ125,IF(ADMI!$J$21="DESDE 03-2024",TABLAS!CO125,CT125)) -> 0, 25, 37 | AI125: TAILANDIA | AJ125: 325 | AK125: 325-TAILANDIA | CG125: 520G-Pago a no residentes - Contratos de fletamento de naves para empresas de transporte aéreo o marítimo internacional | CH125: 520G | CI125: Pago a no residentes - Contratos de fletamento de naves para empresas de transporte aéreo o marítimo internacional | CJ125: 0, 25, 37 | CL125: 520F-Pago a no residentes - Por las agencias internacionales de prensa | CM125: 520F | CN125: Pago a no residentes - Por las agencias internacionales de prensa | CO125: 0, 25, 37 | CQ125: 520F-Pago a no residentes - Por las agencias internacionales de prensa | CR125: 520F | CS125: Pago a no residentes - Por las agencias internacionales de prensa | CT125: 0, 25, 37
G126: =IF(ADMI!$J$21="HASTA 02-2024",TABLAS!CG126,IF(ADMI!$J$21="DESDE 03-2024",TABLAS!CL126,CQ126)) -> 520G-Pago a no residentes - Contratos de fletamento de naves para empresas de transporte aéreo o marítimo internacional | H126: =IF(ADMI!$J$21="HASTA 02-2024",TABLAS!CH126,IF(ADMI!$J$21="DESDE 03-2024",TABLAS!CM126,CR126)) -> 520G | I126: =IF(ADMI!$J$21="HASTA 02-2024",TABLAS!CI126,IF(ADMI!$J$21="DESDE 03-2024",TABLAS!CN126,CS126)) -> Pago a no residentes - Contratos de fletamento de naves para empresas de transporte aéreo o marítimo internacional | J126: =IF(ADMI!$J$21="HASTA 02-2024",TABLAS!CJ126,IF(ADMI!$J$21="DESDE 03-2024",TABLAS!CO126,CT126)) -> 0, 25, 37 | AI126: BAHREIN | AJ126: 327 | AK126: 327-BAHREIN | CG126: 521-Pago a no residentes - Enajenación de derechos representativos de capital u otros derechos que permitan la exploración, explotación, concesión o similares de sociedades | CH126: 521 | CI126: Pago a no residentes - Enajenación de derechos representativos de capital u otros derechos que permitan la exploración, explotación, concesión o similares de sociedades | CJ126: 1, 10 | CL126: 520G-Pago a no residentes - Contratos de fletamento de naves para empresas de transporte aéreo o marítimo internacional | CM126: 520G | CN126: Pago a no residentes - Contratos de fletamento de naves para empresas de transporte aéreo o marítimo internacional | CO126: 0, 25, 37 | CQ126: 520G-Pago a no residentes - Contratos de fletamento de naves para empresas de transporte aéreo o marítimo internacional | CR126: 520G | CS126: Pago a no residentes - Contratos de fletamento de naves para empresas de transporte aéreo o marítimo internacional | CT126: 0, 25, 37
G127: =IF(ADMI!$J$21="HASTA 02-2024",TABLAS!CG127,IF(ADMI!$J$21="DESDE 03-2024",TABLAS!CL127,CQ127)) -> 521-Pago a no residentes - Enajenación de derechos representativos de capital u otros derechos que permitan la exploración, explotación, concesión o similares de sociedades | H127: =IF(ADMI!$J$21="HASTA 02-2024",TABLAS!CH127,IF(ADMI!$J$21="DESDE 03-2024",TABLAS!CM127,CR127)) -> 521 | I127: =IF(ADMI!$J$21="HASTA 02-2024",TABLAS!CI127,IF(ADMI!$J$21="DESDE 03-2024",TABLAS!CN127,CS127)) -> Pago a no residentes - Enajenación de derechos representativos de capital u otros derechos que permitan la exploración, explotación, concesión o similares de sociedades | J127: =IF(ADMI!$J$21="HASTA 02-2024",TABLAS!CJ127,IF(ADMI!$J$21="DESDE 03-2024",TABLAS!CO127,CT127)) -> 1 o 10 | AI127: BANGLADESH | AJ127: 328 | AK127: 328-BANGLADESH | CG127: 523A-Pago a no residentes - Seguros y reaseguros (primas y cesiones) | CH127: 523A | CI127: Pago a no residentes - Seguros y reaseguros (primas y cesiones) | CJ127: 0 ,22 ,37 | CL127: 521-Pago a no residentes - Enajenación de derechos representativos de capital u otros derechos que permitan la exploración, explotación, concesión o similares de sociedades | CM127: 521 | CN127: Pago a no residentes - Enajenación de derechos representativos de capital u otros derechos que permitan la exploración, explotación, concesión o similares de sociedades | CO127: 1 o 10 | CQ127: 521-Pago a no residentes - Enajenación de derechos representativos de capital u otros derechos que permitan la exploración, explotación, concesión o similares de sociedades | CR127: 521 | CS127: Pago a no residentes - Enajenación de derechos representativos de capital u otros derechos que permitan la exploración, explotación, concesión o similares de sociedades | CT127: 1 o 10
G128: =IF(ADMI!$J$21="HASTA 02-2024",TABLAS!CG128,IF(ADMI!$J$21="DESDE 03-2024",TABLAS!CL128,CQ128)) -> 523A-Pago a no residentes - Seguros y reaseguros (primas y cesiones) | H128: =IF(ADMI!$J$21="HASTA 02-2024",TABLAS!CH128,IF(ADMI!$J$21="DESDE 03-2024",TABLAS!CM128,CR128)) -> 523A | I128: =IF(ADMI!$J$21="HASTA 02-2024",TABLAS!CI128,IF(ADMI!$J$21="DESDE 03-2024",TABLAS!CN128,CS128)) -> Pago a no residentes - Seguros y reaseguros (primas y cesiones) | J128: =IF(ADMI!$J$21="HASTA 02-2024",TABLAS!CJ128,IF(ADMI!$J$21="DESDE 03-2024",TABLAS!CO128,CT128)) -> 0 ,22 ,37 | AI128: BUTAN | AJ128: 329 | AK128: 329-BUTAN | CG128: 525-Pago a no residentes- Donaciones en dinero -Impuesto a la donaciones | CH128: 525 | CI128: Pago a no residentes- Donaciones en dinero -Impuesto a la donaciones | CJ128: Según art 36 LRTI literal d) | CL128: 523A-Pago a no residentes - Seguros y reaseguros (primas y cesiones) | CM128: 523A | CN128: Pago a no residentes - Seguros y reaseguros (primas y cesiones) | CO128: 0 ,22 ,37 | CQ128: 523A-Pago a no residentes - Seguros y reaseguros (primas y cesiones) | CR128: 523A | CS128: Pago a no residentes - Seguros y reaseguros (primas y cesiones) | CT128: 0 ,25 ,37
G129: =IF(ADMI!$J$21="HASTA 02-2024",TABLAS!CG129,IF(ADMI!$J$21="DESDE 03-2024",TABLAS!CL129,CQ129)) -> 0 | H129: =IF(ADMI!$J$21="HASTA 02-2024",TABLAS!CH129,IF(ADMI!$J$21="DESDE 03-2024",TABLAS!CM129,CR129)) -> 525 | I129: =IF(ADMI!$J$21="HASTA 02-2024",TABLAS!CI129,IF(ADMI!$J$21="DESDE 03-2024",TABLAS!CN129,CS129)) -> Pago a no residentes- Donaciones en dinero -Impuesto a las donaciones | J129: =IF(ADMI!$J$21="HASTA 02-2024",TABLAS!CJ129,IF(ADMI!$J$21="DESDE 03-2024",TABLAS!CO129,CT129)) -> Según art 36 LRTI literal d) | AI129: COREA DEL SUR | AJ129: 330 | AK129: 330-COREA DEL SUR | CJ129: 0 ,22 ,35 | CM129: 525 | CN129: Pago a no residentes- Donaciones en dinero -Impuesto a las donaciones | CO129: Según art 36 LRTI literal d) | CQ129: 525-Pago a no residentes- Donaciones en dinero -Impuesto a las donaciones | CR129: 525 | CS129: Pago a no residentes- Donaciones en dinero -Impuesto a las donaciones | CT129: Según art 36 LRTI literal d)
G130: =IF(ADMI!$J$21="HASTA 02-2024",TABLAS!CG130,IF(ADMI!$J$21="DESDE 03-2024",TABLAS!CL130,CQ130)) -> 0 | H130: =IF(ADMI!$J$21="HASTA 02-2024",TABLAS!CH130,IF(ADMI!$J$21="DESDE 03-2024",TABLAS!CM130,CR130)) -> 0 | I130: =IF(ADMI!$J$21="HASTA 02-2024",TABLAS!CI130,IF(ADMI!$J$21="DESDE 03-2024",TABLAS!CN130,CS130)) -> 0 | J130: =IF(ADMI!$J$21="HASTA 02-2024",TABLAS!CJ130,IF(ADMI!$J$21="DESDE 03-2024",TABLAS!CO130,CT130)) -> 0 | AI130: CHINA POPULAR | AJ130: 331 | AK130: 331-CHINA POPULAR | CJ130: Según art 36 LRTI literal d)
G131: =IF(ADMI!$J$21="HASTA 02-2024",TABLAS!CG131,IF(ADMI!$J$21="DESDE 03-2024",TABLAS!CL131,CQ131)) -> --- | H131: =IF(ADMI!$J$21="HASTA 02-2024",TABLAS!CH131,IF(ADMI!$J$21="DESDE 03-2024",TABLAS!CM131,CR131)) -> --- | I131: =IF(ADMI!$J$21="HASTA 02-2024",TABLAS!CI131,IF(ADMI!$J$21="DESDE 03-2024",TABLAS!CN131,CS131)) -> --- | J131: =IF(ADMI!$J$21="HASTA 02-2024",TABLAS!CJ131,IF(ADMI!$J$21="DESDE 03-2024",TABLAS!CO131,CT131)) -> --- | AI131: CHIPRE | AJ131: 332 | AK131: =CONCATENATE(AJ131&"-"&AI131) -> 332-CHIPRE | CG131: --- | CH131: --- | CI131: --- | CJ131: --- | CL131: --- | CM131: --- | CN131: --- | CO131: ---
G132: =IF(ADMI!$J$21="HASTA 02-2024",TABLAS!CG132,IF(ADMI!$J$21="DESDE 03-2024",TABLAS!CL132,CQ132)) -> 0 | H132: =IF(ADMI!$J$21="HASTA 02-2024",TABLAS!CH132,IF(ADMI!$J$21="DESDE 03-2024",TABLAS!CM132,CR132)) -> 0 | I132: =IF(ADMI!$J$21="HASTA 02-2024",TABLAS!CI132,IF(ADMI!$J$21="DESDE 03-2024",TABLAS!CN132,CS132)) -> 0 | J132: =IF(ADMI!$J$21="HASTA 02-2024",TABLAS!CJ132,IF(ADMI!$J$21="DESDE 03-2024",TABLAS!CO132,CT132)) -> 0 | AI132: EMIRATOS ARABES UNIDOS | AJ132: 333 | AK132: 333-EMIRATOS ARABES UNIDOS
G133: =IF(ADMI!$J$21="HASTA 02-2024",TABLAS!CG133,IF(ADMI!$J$21="DESDE 03-2024",TABLAS!CL133,CQ133)) -> 0 | H133: =IF(ADMI!$J$21="HASTA 02-2024",TABLAS!CH133,IF(ADMI!$J$21="DESDE 03-2024",TABLAS!CM133,CR133)) -> 0 | I133: =IF(ADMI!$J$21="HASTA 02-2024",TABLAS!CI133,IF(ADMI!$J$21="DESDE 03-2024",TABLAS!CN133,CS133)) -> 0 | J133: =IF(ADMI!$J$21="HASTA 02-2024",TABLAS!CJ133,IF(ADMI!$J$21="DESDE 03-2024",TABLAS!CO133,CT133)) -> 0 | AI133: QATAR | AJ133: 334 | AK133: 334-QATAR
G134: =IF(ADMI!$J$21="HASTA 02-2024",TABLAS!CG134,IF(ADMI!$J$21="DESDE 03-2024",TABLAS!CL134,CQ134)) -> 0 | H134: =IF(ADMI!$J$21="HASTA 02-2024",TABLAS!CH134,IF(ADMI!$J$21="DESDE 03-2024",TABLAS!CM134,CR134)) -> 0 | I134: =IF(ADMI!$J$21="HASTA 02-2024",TABLAS!CI134,IF(ADMI!$J$21="DESDE 03-2024",TABLAS!CN134,CS134)) -> 0 | J134: =IF(ADMI!$J$21="HASTA 02-2024",TABLAS!CJ134,IF(ADMI!$J$21="DESDE 03-2024",TABLAS!CO134,CT134)) -> 0 | AI134: MALDIVAS | AJ134: 335 | AK134: 335-MALDIVAS
G135: =IF(ADMI!$J$21="HASTA 02-2024",TABLAS!CG135,IF(ADMI!$J$21="DESDE 03-2024",TABLAS!CL135,CQ135)) -> 0 | H135: =IF(ADMI!$J$21="HASTA 02-2024",TABLAS!CH135,IF(ADMI!$J$21="DESDE 03-2024",TABLAS!CM135,CR135)) -> 0 | I135: =IF(ADMI!$J$21="HASTA 02-2024",TABLAS!CI135,IF(ADMI!$J$21="DESDE 03-2024",TABLAS!CN135,CS135)) -> 0 | J135: =IF(ADMI!$J$21="HASTA 02-2024",TABLAS!CJ135,IF(ADMI!$J$21="DESDE 03-2024",TABLAS!CO135,CT135)) -> 0 | AI135: NEPAL | AJ135: 336 | AK135: 336-NEPAL
G136: =IF(ADMI!$J$21="HASTA 02-2024",TABLAS!CG136,IF(ADMI!$J$21="DESDE 03-2024",TABLAS!CL136,CQ136)) -> 0 | H136: =IF(ADMI!$J$21="HASTA 02-2024",TABLAS!CH136,IF(ADMI!$J$21="DESDE 03-2024",TABLAS!CM136,CR136)) -> 0 | I136: =IF(ADMI!$J$21="HASTA 02-2024",TABLAS!CI136,IF(ADMI!$J$21="DESDE 03-2024",TABLAS!CN136,CS136)) -> 0 | J136: =IF(ADMI!$J$21="HASTA 02-2024",TABLAS!CJ136,IF(ADMI!$J$21="DESDE 03-2024",TABLAS!CO136,CT136)) -> 0 | AI136: OMAN | AJ136: 337 | AK136: 337-OMAN
G137: =IF(ADMI!$J$21="HASTA 02-2024",TABLAS!CG137,IF(ADMI!$J$21="DESDE 03-2024",TABLAS!CL137,CQ137)) -> 0 | H137: =IF(ADMI!$J$21="HASTA 02-2024",TABLAS!CH137,IF(ADMI!$J$21="DESDE 03-2024",TABLAS!CM137,CR137)) -> 0 | I137: =IF(ADMI!$J$21="HASTA 02-2024",TABLAS!CI137,IF(ADMI!$J$21="DESDE 03-2024",TABLAS!CN137,CS137)) -> 0 | J137: =IF(ADMI!$J$21="HASTA 02-2024",TABLAS!CJ137,IF(ADMI!$J$21="DESDE 03-2024",TABLAS!CO137,CT137)) -> 0 | AI137: SINGAPUR | AJ137: 338 | AK137: 338-SINGAPUR
G138: =IF(ADMI!$J$21="HASTA 02-2024",TABLAS!CG138,IF(ADMI!$J$21="DESDE 03-2024",TABLAS!CL138,CQ138)) -> 0 | H138: =IF(ADMI!$J$21="HASTA 02-2024",TABLAS!CH138,IF(ADMI!$J$21="DESDE 03-2024",TABLAS!CM138,CR138)) -> 0 | I138: =IF(ADMI!$J$21="HASTA 02-2024",TABLAS!CI138,IF(ADMI!$J$21="DESDE 03-2024",TABLAS!CN138,CS138)) -> 0 | J138: =IF(ADMI!$J$21="HASTA 02-2024",TABLAS!CJ138,IF(ADMI!$J$21="DESDE 03-2024",TABLAS!CO138,CT138)) -> 0 | AI138: SRI LANKA (CEILAN) | AJ138: 339 | AK138: 339-SRI LANKA (CEILAN)
G139: =IF(ADMI!$J$21="HASTA 02-2024",TABLAS!CG139,IF(ADMI!$J$21="DESDE 03-2024",TABLAS!CL139,CQ139)) -> 0 | H139: =IF(ADMI!$J$21="HASTA 02-2024",TABLAS!CH139,IF(ADMI!$J$21="DESDE 03-2024",TABLAS!CM139,CR139)) -> 0 | I139: =IF(ADMI!$J$21="HASTA 02-2024",TABLAS!CI139,IF(ADMI!$J$21="DESDE 03-2024",TABLAS!CN139,CS139)) -> 0 | J139: =IF(ADMI!$J$21="HASTA 02-2024",TABLAS!CJ139,IF(ADMI!$J$21="DESDE 03-2024",TABLAS!CO139,CT139)) -> 0 | AI139: VIETNAM | AJ139: 341 | AK139: 341-VIETNAM
AI140: YEMEN | AJ140: 342 | AK140: 342-YEMEN
AI141: ISLAS HEARD Y MCDONALD | AJ141: 343 | AK141: 343-ISLAS HEARD Y MCDONALD
AI142: BRUNEI DARUSSALAM | AJ142: 344 | AK142: 344-BRUNEI DARUSSALAM
AI143: TURQUIA | AJ143: 346 | AK143: 346-TURQUIA
AI144: AZERBAIJAN | AJ144: 347 | AK144: 347-AZERBAIJAN
AI145: KAZAJSTAN | AJ145: 348 | AK145: 348-KAZAJSTAN
AI146: KIRGUIZISTAN | AJ146: 349 | AK146: 349-KIRGUIZISTAN
AI147: TAJIKISTAN | AJ147: 30000 | AK147: 30000-TAJIKISTAN
AI148: TURKMENISTAN | AJ148: 351 | AK148: 351-TURKMENISTAN
AI149: UZBEKISTAN | AJ149: 352 | AK149: 352-UZBEKISTAN
AI150: PALESTINA | AJ150: 353 | AK150: 353-PALESTINA
AI151: HONG KONG | AJ151: 354 | AK151: 354-HONG KONG
AI152: MACAO | AJ152: 355 | AK152: 355-MACAO
AI153: ARMENIA | AJ153: 356 | AK153: 356-ARMENIA
AI154: MONTENEGRO | AJ154: 382 | AK154: 382-MONTENEGRO
AI155: BURKINA FASO | AJ155: 402 | AK155: 402-BURKINA FASO
AI156: ARGELIA | AJ156: 403 | AK156: 403-ARGELIA
AI157: BURUNDI | AJ157: 404 | AK157: 404-BURUNDI
AI158: CAMERUN | AJ158: 405 | AK158: 405-CAMERUN
AI159: CONGO | AJ159: 406 | AK159: 406-CONGO
AI160: ETIOPIA | AJ160: 407 | AK160: 407-ETIOPIA
AI161: GAMBIA | AJ161: 408 | AK161: 408-GAMBIA
AI162: GUINEA | AJ162: 407 | AK162: 407-GUINEA
AI163: LIBERIA | AJ163: 410 | AK163: 410-LIBERIA
AI164: MADAGASCAR | AJ164: 412 | AK164: 412-MADAGASCAR
AI165: MALAWI | AJ165: 413 | AK165: 413-MALAWI
AI166: MALI | AJ166: 414 | AK166: 414-MALI
AI167: MARRUECOS | AJ167: 415 | AK167: 415-MARRUECOS
AI168: MAURITANIA | AJ168: 416 | AK168: 416-MAURITANIA
AI169: NIGERIA | AJ169: 417 | AK169: 417-NIGERIA
AI170: ZIMBABWE (RHODESIA) | AJ170: 419 | AK170: 419-ZIMBABWE (RHODESIA)
AI171: SENEGAL | AJ171: 420 | AK171: 420-SENEGAL
AI172: SUDAN | AJ172: 421 | AK172: 421-SUDAN
AI173: SUDAFRICA (CISKEI) | AJ173: 422 | AK173: 422-SUDAFRICA (CISKEI)
AI174: SIERRA LEONA | AJ174: 423 | AK174: 423-SIERRA LEONA
AI175: TANZANIA | AJ175: 425 | AK175: 425-TANZANIA
AI176: UGANDA | AJ176: 426 | AK176: 426-UGANDA
AI177: ZAMBIA | AJ177: 427 | AK177: 427-ZAMBIA
AI178: ÅLAND ISLANDS | AJ178: 428 | AK178: 428-ÅLAND ISLANDS
AI179: BENIN | AJ179: 429 | AK179: 429-BENIN
AI180: BOTSWANA | AJ180: 430 | AK180: 430-BOTSWANA
AI181: REPUBLICA CENTROAFRICANA | AJ181: 431 | AK181: 431-REPUBLICA CENTROAFRICANA
AI182: COSTA DE MARFIL | AJ182: 432 | AK182: 432-COSTA DE MARFIL
AI183: CHAD | AJ183: 433 | AK183: 433-CHAD
AI184: EGIPTO | AJ184: 434 | AK184: 434-EGIPTO
AI185: GABON | AJ185: 435 | AK185: 435-GABON
AI186: GHANA | AJ186: 436 | AK186: 436-GHANA
AI187: GUINEA-BISSAU | AJ187: 437 | AK187: 437-GUINEA-BISSAU
AI188: GUINEA ECUATORIAL | AJ188: 438 | AK188: 438-GUINEA ECUATORIAL
AI189: KENIA | AJ189: 439 | AK189: 439-KENIA
AI190: LESOTHO | AJ190: 440 | AK190: 440-LESOTHO
AI191: MAURICIO | AJ191: 441 | AK191: 441-MAURICIO
AI192: MOZAMBIQUE | AJ192: 442 | AK192: 442-MOZAMBIQUE
AI193: MAYOTTE | AJ193: 443 | AK193: 443-MAYOTTE
AI194: NIGER | AJ194: 444 | AK194: 444-NIGER
AI195: RWANDA | AJ195: 445 | AK195: 445-RWANDA
AI196: SEYCHELLES | AJ196: 446 | AK196: =CONCATENATE(AJ196&"-"&AI196) -> 446-SEYCHELLES
AI197: SAHARA OCCIDENTAL | AJ197: 447 | AK197: 447-SAHARA OCCIDENTAL
AI198: SOMALIA | AJ198: 448 | AK198: 448-SOMALIA
AI199: SANTO TOME Y PRINCIPE | AJ199: 449 | AK199: =CONCATENATE(AJ197&"-"&AI197) -> 447-SAHARA OCCIDENTAL
AI200: SWAZILANDIA | AJ200: 450 | AK200: 450-SWAZILANDIA
... 61 more rows

Sheet Hoja1 (hidden)
A1: VERSION ACTUAL | B1: 48 | C1: URL POST | E1: Public fechainiciodemo As String | F1: 2023-01-01 | H1: ORDEN RECIBIDOS | I1: ORDEN EMITIDOS
A2: BUSCARLICENCIA | B2: SI | C2: URL RIDE | E2: Public fechafindemo As String | F2: 2023-01-31 | H2: FECHA | I2: FECHA
A3: PRIMERAVEZ | B3: NO | E3: Public fechainiciolicencia As String | F3: 2023-01-01 | H3: NOMBRE | I3: NOMBRE
A4: VERSION ANTERIOR | B4: 47 | E4: Public fechafinlicencia As String | F4: 2023-01-31 | H4: SERIE | I4: SERIE
A5: MENSVERSION | B5: NO | E5: Public fechainicioprueba As String | F5: 2020-01-01 | H5: RUC | I5: RUC
A6: CLAVE DE PRODUCTO | B6: celviv123 | E6: Public fechafinprueba As String | F6: 2020-01-01 | H6: TIPO | I6: TIPO
E7: Public tipousiario As String | F7: ILIMITADA
E8: Public estadolicencia As String | F8: DEMO
E9: Public fechaservidor As String | F9: 2025-11-07
E10: Public pruebasistema As Boolean | F10: FALSE
E11: Public rucvalidado As String | F11: ILIMITADO
E12: Public urlrest As String | F12: https://gestor.celvivapps.com/usuarios/registrausers | G12: https://gestor.celvivapps.com/usuarios/registrausers
D13: SI ES FALSO HUBO ERROR AL CONSULTAR DE LA NUBE | E13: Public estadoconsulta As Boolean | F13: TRUE
E14: USER PRO
E15: ELIMINADO | F15: TRUE
E16: REPORTE GRUPO | F16: FALSE
E17: NOMBRE MI LIBRO | G17: ALIASPC
B18: CABIAR PRIBILEGIOS BASES DE DATOS | E18: ABRIÓ SESIÓN | F18: NO
E19: FECHA INICIO DESCARGAS | F19: 2023-01-01
E20: TOKEN | F20: dada871sa74d7a1da7
E21: URL pdf | F21: https://gestor.celvivapps.com/generaride | G21: https://gestor.celvivapps.com/generaride
E22: CARGAR HAR | F22: https://gestor.celvivapps.com/cargaArchivhartxt | G22: https://gestor.celvivapps.com/cargaArchivhartxt
E23: DESCARHA HAR | F23: https://gestor.celvivapps.com/descargarXmlHar | G23: https://gestor.celvivapps.com/descargarXmlHar
E24: DESCARGA NORMAL | F24: https://gestor.celvivapps.com/descargarXmlNormal | G24: https://gestor.celvivapps.com/descargarXmlNormal
E25: DESCARGA PN | F25: https://gestor.celvivapps.com/descargarpn | G25: https://gestor.celvivapps.com/descargarpn
E26: CANTIDAD NUBE | F26: 0
E27: JAVAXHACES
E28: COOKIE
E29: TOPE DESCARGAS HAR | F29: 5
E30: JAVA | F30: SI
E31: SRI | F31: SI
E32: EXCEL | F32: SI
E33: CARGAR HAR | F33: https://gestor.celvivapps.com/cargaArchivhar | G33: https://gestor.celvivapps.com/cargaArchivhar
E34: SALDO | F34: https://gestor.celvivapps.com/saldotoken | G34: https://gestor.celvivapps.com/saldotoken
E35: PUBLIC BASE ROOT | F35: https://gestor.celvivapps.com/

Sheet RUC
B1: LISTA DE EMPRESAS
B3: RAZON SOCIAL: * | C3: RUC * | D3: CLAVE SRI

Sheet ADMI
R2: 360 | S2: 5570,61
I3: DETALLE DE LICENCIA
I4: DESCARGAS MASIVAS DESDE: | J4: 2023-01-01
I5: CONVERSIONES XML/ATS DESDE: | J5: 2023-01-01
I6: CONVERSIONES XML/ATS HASTA: | J6: 2023-01-31
I7: TIPO DE LICENCIA: | J7: SIN REGISTRO
I8: ESTADO: | J8: DEMO
I9: USO TOKENS/MES | J9: 0
I11: AÑO: | J11: 2025
I12: MES | J12: 08-Agosto
I13: NOMBRE:
I14: RUC:
I16: PARÁMETROS PLANTILLA
I17: VERSIÓN DE EXCEL: | J17: V =>2013
I18: TIPO LICENCIA: | J18: ILIMITADA
I19: Correo de registro:
I20: Nombre usuario:
I21: % DE RETENCIONES | J21: DESDE 03-2024
I22: Ruta complemento | J22: SIN COMPLEMENTO
I23: NA
I24: Orden del nombre de comprobantes descargados
I25: RECIBIDOS | J25: EMITIDOS
I26: FECHA | J26: FECHA
I27: RUC | J27: TIPO
I28: TIPO | J28: RUC
I29: NOMBRE | J29: NOMBRE
I30: SERIE | J30: SERIE

Sheet Reporte

Sheet VALIDACIÓN

Sheet COMPRAS
A1: NO. | B1: PROVEEDOR: | C1: * CODIGO DE SUSTENTO | D1: * TIPO DE IDENTIFICA. PROVEEDOR | E1: IDENTIFICACION No. | F1: TIPO COMPRO. | G1: Tipo Prov | H1: Parte Rel | I1: ESTABLE. | J1: PUNTO E. | K1: SECUENCIAL | L1: FECHA EMISIÓN | M1: FECHA REGISTRO | N1: AUTORIZACIÓN SRI | O1: BASE NO OBJETO DE IVA | P1: BASE IVA 0% | Q1: BASE IVA 12 % |13% | 14% | 15% | R1: BASE IVA 5% | 8% | S1: BASE IMP EXENTA DE IVA | T1: IVA 12 % |13% | 14% | 15% | U1: IVA 5% | 8% | V1: ICE | W1: Retención IVA 10% | X1: Retención IVA 20% | Y1: IVA RET. 30% | Z1: IVA RET. 50% | AA1: IVA RET. 70% | AB1: IVA RET. 100% | AC1: Pago a residente o no residente | AD1: Tipos de regímen fiscal del exterior | AE1: País al que se realiza el pago régimen general | AF1: País al que se efectúa el pago paraíso fiscal | AG1: Denominación del régimen fiscal preferente o jurisdicción de menor imposición. | AH1: País al que se efectúa el pago | AI1: Aplica Convenio de Doble Tributación en el pago | AJ1: Pago al exterior sujeto a retención en aplicación a la norma legal | AK1: El pago es a un régimen fiscal preferente o de menor imposición? | AL1: TOTAL | AM1: Forma de pago | AN1: IVA NC | AO1: COMPENSACIÓN IVA (CASO DE APLICAR) | AP1: COD. | AQ1: BASE IMPONIBLE | AR1: % RET | AS1: VALOR DE RET. | AT1: Cantidad de cajas estandar de banano | AU1: Precio de la caja de banano | AV1: Fecha de pago del dividendo | AW1: Imp. a la renta pagado por la Soc. correspondiente al divd. | AX1: Año en el que se gene. las utili. atribuibles al divd. | AY1: Establecimiento retención | AZ1: Punto emisión retención | BA1: Secuencial retención | BB1: Autorización retención | BC1: Fecha retención | BD1: COD. RET 2 | BE1: BASE IMPONIBLE | BF1: % RET | BG1: VALOR DE RET. | BH1: Cantidad de cajas estandar de banano | BI1: Precio de la caja de banano | BJ1: DOCUMENTO MODIFICADO | BK1: ESTAB. MODIFICADO | BL1: PUNT. EMI. MODIFICADO | BM1: SECUENC. MODIFICADO | BN1: AUTORIZ. MODIFICADO | BO1: TOTAL BASE IMP REEMBOLSO | BP1: COD. RET 3 | BQ1: BASE IMPONIBLE | BR1: % RET | BS1: VALOR DE RET. | BT1: Cantidad de cajas estandar de banano | BU1: Precio de la caja de banano | BV1: COD. RET 4 | BW1: BASE IMPONIBLE | BX1: % RET | BY1: VALOR DE RET. | BZ1: Cantidad de cajas estandar de banano | CA1: Precio de la caja de banano | CB1: NOTA1 | CC1: SUMA BASES | CD1: SUMA IVA | CE1: CASILLERO GASTOS RENTA | CF1: CASILLERO GASTOS IVA | CG1: CASILLERO DEC. IVA T 12 | CH1: CASILLERO DEC. IVA T CERO | CI1: CASILLERO DEC. IVA T CINCO | CJ1: RESUMEN DETALLE

Sheet REEMBOLSOS
A1: NÚMERO DE COMPRA | B1: TIPO COMPRO. REEMB | C1: TIPO ID PROVEE REEMB | D1: ID PROV REEMB | E1: ESTABLE. REEMB | F1: PUNTO EMISION REEMB | G1: SECUENCIAL REEMB | H1: FECHA EMISION REEMB | I1: AUTORIZACION REEMB | J1: BASE IMPONIBLE 0% REEMB | K1: BASE IVA 12 % |13% | 14% | 15% | L1: BASE IVA 5% | 8% | M1: BASE NO GRAVA IVA REEMB | N1: Base imponible exenta de IVA Reembolso | O1: MONTO ICE REMB | P1: IVA 12 % |13% | 14% | 15% | Q1: IVA 5% | 8%

Sheet EXPORTACIONES
A1: # | B1: RAZON SOCIAL | C1: *Tipo de Identificación del Cliente | D1: * No. de Identificación del Cliente | E1: * Parte Relacionada | F1: TIPO DE CLIENTE | G1: * Tipos de regímen fiscal del exterior | H1: País de residencia o establecimiento permanente de quien proviene el ingreso régimen general | I1: País de residencia o establecimiento permanente de quien proviene el ingreso paraíso fiscal | J1: Denominación del régimen fiscal preferente o jurisdicción de menor imposición. | K1: País al que se Efectúa la exportación | L1: Exportación a paraíso fiscal, jurisdicción de menor imposición o régimen fiscal preferente | M1: Tipo de Exportación / Ingreso del exterior | N1: Tipos de Ingresos del exterior | O1: ¿El ingreso del exterior fue gravado con impuesto a la renta o uno similar, en el país en el que se obtuvo? | P1: Valor del impuesto a la renta o impuesto similar pagado en el exterior por el ingreso obtenido | Q1: TIPO DE COPMROBANTE | R1: DISTRITO | S1: AÑO | T1: REGIMEN | U1: CORRELATIVO | V1: VERIFICADOR | W1: FECHA DE REGISTRO CONTABLE* | X1: VALOR FOB | Y1: NO. DOC. TRANSPORTE | Z1: NO. FUE | AA1: ESTAB. | AB1: PUNT. EMI. | AC1: SECUENC. | AD1: AUTORIZ. | AE1: FECHA EMISION | AF1: VALOR FOB COMP. LOCAL

Sheet VENTAS
A1: NO. | B1: Tipo de emisión | C1: TIPO DE ID. | D1: IDENT. | E1: TIPO DE COMPROBANTE | F1: RAZÓN SOCIAL | G1: # DE FACT. | H1: No. DE COMPROB. EMITIDOS | I1: BASE NO OBJETO DE IVA | J1: SUBTOTAL TARIFA 0 % | K1: SUB TOTAL TARIFA 12% | L1: SUBTOTAL OTRO % IVA | M1: IVA COBRADO 12 | N1: IVA COBRADO OTRO % | O1: RETENCIÓN RENTA | P1: RETENCIÓN IVA | Q1: MONTO ICE | R1: Parte Relacionada | S1: TOTAL MENOS RETENCIÓN | T1: TIPO DE CLIENTE | U1: FECHA | V1: TOTAL SIN IVA | W1: Tipo de Compensaciones | X1: Monto de compensaciones | Y1: Forma de cobro | Z1: # RETENCION | AA1: ESTABLECIMIENTO | AB1: OBSERVACIONES: FORMAS COBRO, NOMBRES CLIENTES | AC1: COLUMNA PARA REVISIONES DEJAR VACIA

Sheet Ventas Estab.
AL2: =O2+P2+Q2+R2+S2+T2+U2+V2 -> 0 | AQ2: =+P2+Q2+R2+S2-BE2-BQ2-BW2+O2 -> 0 | AR2: =IFERROR(IF(OR(AP2=338,AP2=340,AP2=341,AP2=342,AP2="342A",AP2="342B"),PorcenRet(AP2,AT2,AU2),INDEX(PORCENTAJEBUSCAR,MATCH(AP2,CódigoRET,0),4)*1),"") -> 0 | AS2: =ROUND(IF(AP2="",0,AQ2*(AR2/100)),2) -> 0 | BF2: =IFERROR(IF(OR(BD2=338,BD2=340,BD2=341,BD2=342,BD2="342A",BD2="342B"),PorcenRet(BD2,BH2,BI2),INDEX(PORCENTAJEBUSCAR,MATCH(BD2,CódigoRET,0),4)*1),"") -> 0 | BG2: =ROUND(IF(BD2="",0,BE2*(BF2/100)),2) -> 0 | BO2: =IF(MID(F2,1,2)="41",SUM(O2:S2),0) -> 0 | CC2: =O2+P2+Q2+R2+S2 -> 0 | CD2: =T2+U2 -> 0 | CG2: =IFERROR(INDIRECT("IVA!X"&MATCH(MID(COMPRAS!#REF!,1,2)&MID(COMPRAS!#REF!,1,2)&MID(COMPRAS!#REF!,1,2),IVA!W:W,0)),"SIN COD.") -> SIN COD. | CH2: =IFERROR(INDIRECT("IVA!Y"&MATCH(MID(COMPRAS!#REF!,1,2)&MID(COMPRAS!#REF!,1,2)&MID(COMPRAS!#REF!,1,2),IVA!W:W,0)),"SIN COD.") -> SIN COD.
AL3: 0 | AQ3: 0 | AR3: =IFERROR(IF(OR(AP3=338,AP3=340,AP3=341,AP3=342,AP3="342A",AP3="342B"),PorcenRet(AP3,AT3,AU3),INDEX(PORCENTAJEBUSCAR,MATCH(AP3,CódigoRET,0),4)*1),"") -> 0 | AS3: 0 | BF3: =IFERROR(IF(OR(BD3=338,BD3=340,BD3=341,BD3=342,BD3="342A",BD3="342B"),PorcenRet(BD3,BH3,BI3),INDEX(PORCENTAJEBUSCAR,MATCH(BD3,CódigoRET,0),4)*1),"") -> 0 | BG3: 0 | BO3: 0 | CC3: 0 | CD3: 0 | CG3: =IFERROR(INDIRECT("IVA!X"&MATCH(MID(COMPRAS!#REF!,1,2)&MID(COMPRAS!#REF!,1,2)&MID(COMPRAS!#REF!,1,2),IVA!W:W,0)),"SIN COD.") -> SIN COD. | CH3: =IFERROR(INDIRECT("IVA!Y"&MATCH(MID(COMPRAS!#REF!,1,2)&MID(COMPRAS!#REF!,1,2)&MID(COMPRAS!#REF!,1,2),IVA!W:W,0)),"SIN COD.") -> SIN COD.
A5: ESTABLECIMIENTOS | B5: VENTAS | C5: COMPENSACIONES
D6: =D7-SUM(B6:B104) -> 0 | E6: DIFERENCIA EN VENTAS | AL6: 0 | AQ6: 0 | AR6: =IFERROR(IF(OR(AP6=338,AP6=340,AP6=341,AP6=342,AP6="342A",AP6="342B"),PorcenRet(AP6,AT6,AU6),INDEX(PORCENTAJEBUSCAR,MATCH(AP6,CódigoRET,0),4)*1),"") -> 0 | AS6: 0 | BF6: =IFERROR(IF(OR(BD6=338,BD6=340,BD6=341,BD6=342,BD6="342A",BD6="342B"),PorcenRet(BD6,BH6,BI6),INDEX(PORCENTAJEBUSCAR,MATCH(BD6,CódigoRET,0),4)*1),"") -> 0 | BG6: 0 | BO6: 0 | CC6: 0 | CD6: 0 | CG6: =IFERROR(INDIRECT("IVA!X"&MATCH(MID(COMPRAS!#REF!,1,2)&MID(COMPRAS!#REF!,1,2)&MID(COMPRAS!#REF!,1,2),IVA!W:W,0)),"SIN COD.") -> SIN COD. | CH6: =IFERROR(INDIRECT("IVA!Y"&MATCH(MID(COMPRAS!#REF!,1,2)&MID(COMPRAS!#REF!,1,2)&MID(COMPRAS!#REF!,1,2),IVA!W:W,0)),"SIN COD.") -> SIN COD.
E7: TOTAL VENTAS | AL7: 0 | AQ7: 0 | AR7: =IFERROR(IF(OR(AP7=338,AP7=340,AP7=341,AP7=342,AP7="342A",AP7="342B"),PorcenRet(AP7,AT7,AU7),INDEX(PORCENTAJEBUSCAR,MATCH(AP7,CódigoRET,0),4)*1),"") -> 0 | AS7: 0 | BF7: =IFERROR(IF(OR(BD7=338,BD7=340,BD7=341,BD7=342,BD7="342A",BD7="342B"),PorcenRet(BD7,BH7,BI7),INDEX(PORCENTAJEBUSCAR,MATCH(BD7,CódigoRET,0),4)*1),"") -> 0 | BG7: 0 | BO7: 0 | CC7: 0 | CD7: 0 | CG7: =IFERROR(INDIRECT("IVA!X"&MATCH(MID(COMPRAS!#REF!,1,2)&MID(COMPRAS!#REF!,1,2)&MID(COMPRAS!#REF!,1,2),IVA!W:W,0)),"SIN COD.") -> SIN COD. | CH7: =IFERROR(INDIRECT("IVA!Y"&MATCH(MID(COMPRAS!#REF!,1,2)&MID(COMPRAS!#REF!,1,2)&MID(COMPRAS!#REF!,1,2),IVA!W:W,0)),"SIN COD.") -> SIN COD.
AL8: 0 | AQ8: 0 | AR8: =IFERROR(IF(OR(AP8=338,AP8=340,AP8=341,AP8=342,AP8="342A",AP8="342B"),PorcenRet(AP8,AT8,AU8),INDEX(PORCENTAJEBUSCAR,MATCH(AP8,CódigoRET,0),4)*1),"") -> 0 | AS8: 0 | BF8: =IFERROR(IF(OR(BD8=338,BD8=340,BD8=341,BD8=342,BD8="342A",BD8="342B"),PorcenRet(BD8,BH8,BI8),INDEX(PORCENTAJEBUSCAR,MATCH(BD8,CódigoRET,0),4)*1),"") -> 0 | BG8: 0 | BO8: 0 | CC8: 0 | CD8: 0 | CG8: =IFERROR(INDIRECT("IVA!X"&MATCH(MID(COMPRAS!#REF!,1,2)&MID(COMPRAS!#REF!,1,2)&MID(COMPRAS!#REF!,1,2),IVA!W:W,0)),"SIN COD.") -> SIN COD. | CH8: =IFERROR(INDIRECT("IVA!Y"&MATCH(MID(COMPRAS!#REF!,1,2)&MID(COMPRAS!#REF!,1,2)&MID(COMPRAS!#REF!,1,2),IVA!W:W,0)),"SIN COD.") -> SIN COD.
D9: =D10-SUM(C6:C107) -> 0 | E9: DIFERENCIA EN COMPENSACIONES | AL9: 0 | AQ9: 0 | AR9: =IFERROR(IF(OR(AP9=338,AP9=340,AP9=341,AP9=342,AP9="342A",AP9="342B"),PorcenRet(AP9,AT9,AU9),INDEX(PORCENTAJEBUSCAR,MATCH(AP9,CódigoRET,0),4)*1),"") -> 0 | AS9: 0 | BF9: =IFERROR(IF(OR(BD9=338,BD9=340,BD9=341,BD9=342,BD9="342A",BD9="342B"),PorcenRet(BD9,BH9,BI9),INDEX(PORCENTAJEBUSCAR,MATCH(BD9,CódigoRET,0),4)*1),"") -> 0 | BG9: 0 | BO9: 0 | CC9: 0 | CD9: 0 | CG9: =IFERROR(INDIRECT("IVA!X"&MATCH(MID(COMPRAS!#REF!,1,2)&MID(COMPRAS!#REF!,1,2)&MID(COMPRAS!#REF!,1,2),IVA!W:W,0)),"SIN COD.") -> SIN COD. | CH9: =IFERROR(INDIRECT("IVA!Y"&MATCH(MID(COMPRAS!#REF!,1,2)&MID(COMPRAS!#REF!,1,2)&MID(COMPRAS!#REF!,1,2),IVA!W:W,0)),"SIN COD.") -> SIN COD.
E10: TOTAL COMPENSACIONES | AL10: 0 | AQ10: 0 | AR10: =IFERROR(IF(OR(AP10=338,AP10=340,AP10=341,AP10=342,AP10="342A",AP10="342B"),PorcenRet(AP10,AT10,AU10),INDEX(PORCENTAJEBUSCAR,MATCH(AP10,CódigoRET,0),4)*1),"") -> 0 | AS10: 0 | BF10: =IFERROR(IF(OR(BD10=338,BD10=340,BD10=341,BD10=342,BD10="342A",BD10="342B"),PorcenRet(BD10,BH10,BI10),INDEX(PORCENTAJEBUSCAR,MATCH(BD10,CódigoRET,0),4)*1),"") -> 0 | BG10: 0 | BO10: 0 | CC10: 0 | CD10: 0 | CG10: =IFERROR(INDIRECT("IVA!X"&MATCH(MID(COMPRAS!#REF!,1,2)&MID(COMPRAS!#REF!,1,2)&MID(COMPRAS!#REF!,1,2),IVA!W:W,0)),"SIN COD.") -> SIN COD. | CH10: =IFERROR(INDIRECT("IVA!Y"&MATCH(MID(COMPRAS!#REF!,1,2)&MID(COMPRAS!#REF!,1,2)&MID(COMPRAS!#REF!,1,2),IVA!W:W,0)),"SIN COD.") -> SIN COD.
AL11: 0 | AQ11: 0 | AR11: =IFERROR(IF(OR(AP11=338,AP11=340,AP11=341,AP11=342,AP11="342A",AP11="342B"),PorcenRet(AP11,AT11,AU11),INDEX(PORCENTAJEBUSCAR,MATCH(AP11,CódigoRET,0),4)*1),"") -> 0 | AS11: 0 | BF11: =IFERROR(IF(OR(BD11=338,BD11=340,BD11=341,BD11=342,BD11="342A",BD11="342B"),PorcenRet(BD11,BH11,BI11),INDEX(PORCENTAJEBUSCAR,MATCH(BD11,CódigoRET,0),4)*1),"") -> 0 | BG11: 0 | BO11: 0 | CC11: 0 | CD11: 0 | CG11: =IFERROR(INDIRECT("IVA!X"&MATCH(MID(COMPRAS!#REF!,1,2)&MID(COMPRAS!#REF!,1,2)&MID(COMPRAS!#REF!,1,2),IVA!W:W,0)),"SIN COD.") -> SIN COD. | CH11: =IFERROR(INDIRECT("IVA!Y"&MATCH(MID(COMPRAS!#REF!,1,2)&MID(COMPRAS!#REF!,1,2)&MID(COMPRAS!#REF!,1,2),IVA!W:W,0)),"SIN COD.") -> SIN COD.
AL12: 0 | AQ12: 0 | AR12: =IFERROR(IF(OR(AP12=338,AP12=340,AP12=341,AP12=342,AP12="342A",AP12="342B"),PorcenRet(AP12,AT12,AU12),INDEX(PORCENTAJEBUSCAR,MATCH(AP12,CódigoRET,0),4)*1),"") -> 0 | AS12: 0 | BF12: =IFERROR(IF(OR(BD12=338,BD12=340,BD12=341,BD12=342,BD12="342A",BD12="342B"),PorcenRet(BD12,BH12,BI12),INDEX(PORCENTAJEBUSCAR,MATCH(BD12,CódigoRET,0),4)*1),"") -> 0 | BG12: 0 | BO12: 0 | CC12: 0 | CD12: 0 | CG12: =IFERROR(INDIRECT("IVA!X"&MATCH(MID(COMPRAS!#REF!,1,2)&MID(COMPRAS!#REF!,1,2)&MID(COMPRAS!#REF!,1,2),IVA!W:W,0)),"SIN COD.") -> SIN COD. | CH12: =IFERROR(INDIRECT("IVA!Y"&MATCH(MID(COMPRAS!#REF!,1,2)&MID(COMPRAS!#REF!,1,2)&MID(COMPRAS!#REF!,1,2),IVA!W:W,0)),"SIN COD.") -> SIN COD.
AL13: 0 | AQ13: 0 | AR13: =IFERROR(IF(OR(AP13=338,AP13=340,AP13=341,AP13=342,AP13="342A",AP13="342B"),PorcenRet(AP13,AT13,AU13),INDEX(PORCENTAJEBUSCAR,MATCH(AP13,CódigoRET,0),4)*1),"") -> 0 | AS13: 0 | BF13: =IFERROR(IF(OR(BD13=338,BD13=340,BD13=341,BD13=342,BD13="342A",BD13="342B"),PorcenRet(BD13,BH13,BI13),INDEX(PORCENTAJEBUSCAR,MATCH(BD13,CódigoRET,0),4)*1),"") -> 0 | BG13: 0 | BO13: 0 | CC13: 0 | CD13: 0 | CG13: =IFERROR(INDIRECT("IVA!X"&MATCH(MID(COMPRAS!#REF!,1,2)&MID(COMPRAS!#REF!,1,2)&MID(COMPRAS!#REF!,1,2),IVA!W:W,0)),"SIN COD.") -> SIN COD. | CH13: =IFERROR(INDIRECT("IVA!Y"&MATCH(MID(COMPRAS!#REF!,1,2)&MID(COMPRAS!#REF!,1,2)&MID(COMPRAS!#REF!,1,2),IVA!W:W,0)),"SIN COD.") -> SIN COD.
AL14: 0 | AQ14: 0 | AR14: =IFERROR(IF(OR(AP14=338,AP14=340,AP14=341,AP14=342,AP14="342A",AP14="342B"),PorcenRet(AP14,AT14,AU14),INDEX(PORCENTAJEBUSCAR,MATCH(AP14,CódigoRET,0),4)*1),"") -> 0 | AS14: 0 | BF14: =IFERROR(IF(OR(BD14=338,BD14=340,BD14=341,BD14=342,BD14="342A",BD14="342B"),PorcenRet(BD14,BH14,BI14),INDEX(PORCENTAJEBUSCAR,MATCH(BD14,CódigoRET,0),4)*1),"") -> 0 | BG14: 0 | BO14: 0 | CC14: 0 | CD14: 0 | CG14: =IFERROR(INDIRECT("IVA!X"&MATCH(MID(COMPRAS!#REF!,1,2)&MID(COMPRAS!#REF!,1,2)&MID(COMPRAS!#REF!,1,2),IVA!W:W,0)),"SIN COD.") -> SIN COD. | CH14: =IFERROR(INDIRECT("IVA!Y"&MATCH(MID(COMPRAS!#REF!,1,2)&MID(COMPRAS!#REF!,1,2)&MID(COMPRAS!#REF!,1,2),IVA!W:W,0)),"SIN COD.") -> SIN COD.
AL15: 0 | AQ15: 0 | AR15: =IFERROR(IF(OR(AP15=338,AP15=340,AP15=341,AP15=342,AP15="342A",AP15="342B"),PorcenRet(AP15,AT15,AU15),INDEX(PORCENTAJEBUSCAR,MATCH(AP15,CódigoRET,0),4)*1),"") -> 0 | AS15: 0 | BF15: =IFERROR(IF(OR(BD15=338,BD15=340,BD15=341,BD15=342,BD15="342A",BD15="342B"),PorcenRet(BD15,BH15,BI15),INDEX(PORCENTAJEBUSCAR,MATCH(BD15,CódigoRET,0),4)*1),"") -> 0 | BG15: 0 | BO15: 0 | CC15: 0 | CD15: 0 | CG15: =IFERROR(INDIRECT("IVA!X"&MATCH(MID(COMPRAS!#REF!,1,2)&MID(COMPRAS!#REF!,1,2)&MID(COMPRAS!#REF!,1,2),IVA!W:W,0)),"SIN COD.") -> SIN COD. | CH15: =IFERROR(INDIRECT("IVA!Y"&MATCH(MID(COMPRAS!#REF!,1,2)&MID(COMPRAS!#REF!,1,2)&MID(COMPRAS!#REF!,1,2),IVA!W:W,0)),"SIN COD.") -> SIN COD.
AL16: 0 | AQ16: 0 | AR16: =IFERROR(IF(OR(AP16=338,AP16=340,AP16=341,AP16=342,AP16="342A",AP16="342B"),PorcenRet(AP16,AT16,AU16),INDEX(PORCENTAJEBUSCAR,MATCH(AP16,CódigoRET,0),4)*1),"") -> 0 | AS16: 0 | BF16: =IFERROR(IF(OR(BD16=338,BD16=340,BD16=341,BD16=342,BD16="342A",BD16="342B"),PorcenRet(BD16,BH16,BI16),INDEX(PORCENTAJEBUSCAR,MATCH(BD16,CódigoRET,0),4)*1),"") -> 0 | BG16: 0 | BO16: 0 | CC16: 0 | CD16: 0 | CG16: =IFERROR(INDIRECT("IVA!X"&MATCH(MID(COMPRAS!#REF!,1,2)&MID(COMPRAS!#REF!,1,2)&MID(COMPRAS!#REF!,1,2),IVA!W:W,0)),"SIN COD.") -> SIN COD. | CH16: =IFERROR(INDIRECT("IVA!Y"&MATCH(MID(COMPRAS!#REF!,1,2)&MID(COMPRAS!#REF!,1,2)&MID(COMPRAS!#REF!,1,2),IVA!W:W,0)),"SIN COD.") -> SIN COD.
AL17: 0 | AQ17: 0 | AR17: =IFERROR(IF(OR(AP17=338,AP17=340,AP17=341,AP17=342,AP17="342A",AP17="342B"),PorcenRet(AP17,AT17,AU17),INDEX(PORCENTAJEBUSCAR,MATCH(AP17,CódigoRET,0),4)*1),"") -> 0 | AS17: 0 | BF17: =IFERROR(IF(OR(BD17=338,BD17=340,BD17=341,BD17=342,BD17="342A",BD17="342B"),PorcenRet(BD17,BH17,BI17),INDEX(PORCENTAJEBUSCAR,MATCH(BD17,CódigoRET,0),4)*1),"") -> 0 | BG17: 0 | BO17: 0 | CC17: 0 | CD17: 0 | CG17: =IFERROR(INDIRECT("IVA!X"&MATCH(MID(COMPRAS!#REF!,1,2)&MID(COMPRAS!#REF!,1,2)&MID(COMPRAS!#REF!,1,2),IVA!W:W,0)),"SIN COD.") -> SIN COD. | CH17: =IFERROR(INDIRECT("IVA!Y"&MATCH(MID(COMPRAS!#REF!,1,2)&MID(COMPRAS!#REF!,1,2)&MID(COMPRAS!#REF!,1,2),IVA!W:W,0)),"SIN COD.") -> SIN COD.
AL18: 0 | AQ18: 0 | AR18: =IFERROR(IF(OR(AP18=338,AP18=340,AP18=341,AP18=342,AP18="342A",AP18="342B"),PorcenRet(AP18,AT18,AU18),INDEX(PORCENTAJEBUSCAR,MATCH(AP18,CódigoRET,0),4)*1),"") -> 0 | AS18: 0 | BF18: =IFERROR(IF(OR(BD18=338,BD18=340,BD18=341,BD18=342,BD18="342A",BD18="342B"),PorcenRet(BD18,BH18,BI18),INDEX(PORCENTAJEBUSCAR,MATCH(BD18,CódigoRET,0),4)*1),"") -> 0 | BG18: 0 | BO18: 0 | CC18: 0 | CD18: 0 | CG18: =IFERROR(INDIRECT("IVA!X"&MATCH(MID(COMPRAS!#REF!,1,2)&MID(COMPRAS!#REF!,1,2)&MID(COMPRAS!#REF!,1,2),IVA!W:W,0)),"SIN COD.") -> SIN COD. | CH18: =IFERROR(INDIRECT("IVA!Y"&MATCH(MID(COMPRAS!#REF!,1,2)&MID(COMPRAS!#REF!,1,2)&MID(COMPRAS!#REF!,1,2),IVA!W:W,0)),"SIN COD.") -> SIN COD.
AL19: 0 | AQ19: 0 | AR19: =IFERROR(IF(OR(AP19=338,AP19=340,AP19=341,AP19=342,AP19="342A",AP19="342B"),PorcenRet(AP19,AT19,AU19),INDEX(PORCENTAJEBUSCAR,MATCH(AP19,CódigoRET,0),4)*1),"") -> 0 | AS19: 0 | BF19: =IFERROR(IF(OR(BD19=338,BD19=340,BD19=341,BD19=342,BD19="342A",BD19="342B"),PorcenRet(BD19,BH19,BI19),INDEX(PORCENTAJEBUSCAR,MATCH(BD19,CódigoRET,0),4)*1),"") -> 0 | BG19: 0 | BO19: 0 | CC19: 0 | CD19: 0 | CG19: =IFERROR(INDIRECT("IVA!X"&MATCH(MID(COMPRAS!#REF!,1,2)&MID(COMPRAS!#REF!,1,2)&MID(COMPRAS!#REF!,1,2),IVA!W:W,0)),"SIN COD.") -> SIN COD. | CH19: =IFERROR(INDIRECT("IVA!Y"&MATCH(MID(COMPRAS!#REF!,1,2)&MID(COMPRAS!#REF!,1,2)&MID(COMPRAS!#REF!,1,2),IVA!W:W,0)),"SIN COD.") -> SIN COD.
AL20: 0 | AQ20: 0 | AR20: =IFERROR(IF(OR(AP20=338,AP20=340,AP20=341,AP20=342,AP20="342A",AP20="342B"),PorcenRet(AP20,AT20,AU20),INDEX(PORCENTAJEBUSCAR,MATCH(AP20,CódigoRET,0),4)*1),"") -> 0 | AS20: 0 | BF20: =IFERROR(IF(OR(BD20=338,BD20=340,BD20=341,BD20=342,BD20="342A",BD20="342B"),PorcenRet(BD20,BH20,BI20),INDEX(PORCENTAJEBUSCAR,MATCH(BD20,CódigoRET,0),4)*1),"") -> 0 | BG20: 0 | BO20: 0 | CC20: 0 | CD20: 0 | CG20: =IFERROR(INDIRECT("IVA!X"&MATCH(MID(COMPRAS!#REF!,1,2)&MID(COMPRAS!#REF!,1,2)&MID(COMPRAS!#REF!,1,2),IVA!W:W,0)),"SIN COD.") -> SIN COD. | CH20: =IFERROR(INDIRECT("IVA!Y"&MATCH(MID(COMPRAS!#REF!,1,2)&MID(COMPRAS!#REF!,1,2)&MID(COMPRAS!#REF!,1,2),IVA!W:W,0)),"SIN COD.") -> SIN COD.
AL21: 0 | AQ21: 0 | AR21: =IFERROR(IF(OR(AP21=338,AP21=340,AP21=341,AP21=342,AP21="342A",AP21="342B"),PorcenRet(AP21,AT21,AU21),INDEX(PORCENTAJEBUSCAR,MATCH(AP21,CódigoRET,0),4)*1),"") -> 0 | AS21: 0 | BF21: =IFERROR(IF(OR(BD21=338,BD21=340,BD21=341,BD21=342,BD21="342A",BD21="342B"),PorcenRet(BD21,BH21,BI21),INDEX(PORCENTAJEBUSCAR,MATCH(BD21,CódigoRET,0),4)*1),"") -> 0 | BG21: 0 | BO21: 0 | CC21: 0 | CD21: 0 | CG21: =IFERROR(INDIRECT("IVA!X"&MATCH(MID(COMPRAS!#REF!,1,2)&MID(COMPRAS!#REF!,1,2)&MID(COMPRAS!#REF!,1,2),IVA!W:W,0)),"SIN COD.") -> SIN COD. | CH21: =IFERROR(INDIRECT("IVA!Y"&MATCH(MID(COMPRAS!#REF!,1,2)&MID(COMPRAS!#REF!,1,2)&MID(COMPRAS!#REF!,1,2),IVA!W:W,0)),"SIN COD.") -> SIN COD.
AL22: 0 | AQ22: 0 | AR22: =IFERROR(IF(OR(AP22=338,AP22=340,AP22=341,AP22=342,AP22="342A",AP22="342B"),PorcenRet(AP22,AT22,AU22),INDEX(PORCENTAJEBUSCAR,MATCH(AP22,CódigoRET,0),4)*1),"") -> 0 | AS22: 0 | BF22: =IFERROR(IF(OR(BD22=338,BD22=340,BD22=341,BD22=342,BD22="342A",BD22="342B"),PorcenRet(BD22,BH22,BI22),INDEX(PORCENTAJEBUSCAR,MATCH(BD22,CódigoRET,0),4)*1),"") -> 0 | BG22: 0 | BO22: 0 | CC22: 0 | CD22: 0 | CG22: =IFERROR(INDIRECT("IVA!X"&MATCH(MID(COMPRAS!#REF!,1,2)&MID(COMPRAS!#REF!,1,2)&MID(COMPRAS!#REF!,1,2),IVA!W:W,0)),"SIN COD.") -> SIN COD. | CH22: =IFERROR(INDIRECT("IVA!Y"&MATCH(MID(COMPRAS!#REF!,1,2)&MID(COMPRAS!#REF!,1,2)&MID(COMPRAS!#REF!,1,2),IVA!W:W,0)),"SIN COD.") -> SIN COD.
AL23: 0 | AQ23: 0 | AR23: =IFERROR(IF(OR(AP23=338,AP23=340,AP23=341,AP23=342,AP23="342A",AP23="342B"),PorcenRet(AP23,AT23,AU23),INDEX(PORCENTAJEBUSCAR,MATCH(AP23,CódigoRET,0),4)*1),"") -> 0 | AS23: 0 | BF23: =IFERROR(IF(OR(BD23=338,BD23=340,BD23=341,BD23=342,BD23="342A",BD23="342B"),PorcenRet(BD23,BH23,BI23),INDEX(PORCENTAJEBUSCAR,MATCH(BD23,CódigoRET,0),4)*1),"") -> 0 | BG23: 0 | BO23: 0 | CC23: 0 | CD23: 0 | CG23: =IFERROR(INDIRECT("IVA!X"&MATCH(MID(COMPRAS!#REF!,1,2)&MID(COMPRAS!#REF!,1,2)&MID(COMPRAS!#REF!,1,2),IVA!W:W,0)),"SIN COD.") -> SIN COD. | CH23: =IFERROR(INDIRECT("IVA!Y"&MATCH(MID(COMPRAS!#REF!,1,2)&MID(COMPRAS!#REF!,1,2)&MID(COMPRAS!#REF!,1,2),IVA!W:W,0)),"SIN COD.") -> SIN COD.
AL24: 0 | AQ24: 0 | AR24: =IFERROR(IF(OR(AP24=338,AP24=340,AP24=341,AP24=342,AP24="342A",AP24="342B"),PorcenRet(AP24,AT24,AU24),INDEX(PORCENTAJEBUSCAR,MATCH(AP24,CódigoRET,0),4)*1),"") -> 0 | AS24: 0 | BF24: =IFERROR(IF(OR(BD24=338,BD24=340,BD24=341,BD24=342,BD24="342A",BD24="342B"),PorcenRet(BD24,BH24,BI24),INDEX(PORCENTAJEBUSCAR,MATCH(BD24,CódigoRET,0),4)*1),"") -> 0 | BG24: 0 | BO24: 0 | CC24: 0 | CD24: 0 | CG24: =IFERROR(INDIRECT("IVA!X"&MATCH(MID(COMPRAS!#REF!,1,2)&MID(COMPRAS!#REF!,1,2)&MID(COMPRAS!#REF!,1,2),IVA!W:W,0)),"SIN COD.") -> SIN COD. | CH24: =IFERROR(INDIRECT("IVA!Y"&MATCH(MID(COMPRAS!#REF!,1,2)&MID(COMPRAS!#REF!,1,2)&MID(COMPRAS!#REF!,1,2),IVA!W:W,0)),"SIN COD.") -> SIN COD.
AL25: 0 | AQ25: 0 | AR25: =IFERROR(IF(OR(AP25=338,AP25=340,AP25=341,AP25=342,AP25="342A",AP25="342B"),PorcenRet(AP25,AT25,AU25),INDEX(PORCENTAJEBUSCAR,MATCH(AP25,CódigoRET,0),4)*1),"") -> 0 | AS25: 0 | BF25: =IFERROR(IF(OR(BD25=338,BD25=340,BD25=341,BD25=342,BD25="342A",BD25="342B"),PorcenRet(BD25,BH25,BI25),INDEX(PORCENTAJEBUSCAR,MATCH(BD25,CódigoRET,0),4)*1),"") -> 0 | BG25: 0 | BO25: 0 | CC25: 0 | CD25: 0 | CG25: =IFERROR(INDIRECT("IVA!X"&MATCH(MID(COMPRAS!#REF!,1,2)&MID(COMPRAS!#REF!,1,2)&MID(COMPRAS!#REF!,1,2),IVA!W:W,0)),"SIN COD.") -> SIN COD. | CH25: =IFERROR(INDIRECT("IVA!Y"&MATCH(MID(COMPRAS!#REF!,1,2)&MID(COMPRAS!#REF!,1,2)&MID(COMPRAS!#REF!,1,2),IVA!W:W,0)),"SIN COD.") -> SIN COD.
AL26: 0 | AQ26: 0 | AR26: =IFERROR(IF(OR(AP26=338,AP26=340,AP26=341,AP26=342,AP26="342A",AP26="342B"),PorcenRet(AP26,AT26,AU26),INDEX(PORCENTAJEBUSCAR,MATCH(AP26,CódigoRET,0),4)*1),"") -> 0 | AS26: 0 | BF26: =IFERROR(IF(OR(BD26=338,BD26=340,BD26=341,BD26=342,BD26="342A",BD26="342B"),PorcenRet(BD26,BH26,BI26),INDEX(PORCENTAJEBUSCAR,MATCH(BD26,CódigoRET,0),4)*1),"") -> 0 | BG26: 0 | BO26: 0 | CC26: 0 | CD26: 0 | CG26: =IFERROR(INDIRECT("IVA!X"&MATCH(MID(COMPRAS!#REF!,1,2)&MID(COMPRAS!#REF!,1,2)&MID(COMPRAS!#REF!,1,2),IVA!W:W,0)),"SIN COD.") -> SIN COD. | CH26: =IFERROR(INDIRECT("IVA!Y"&MATCH(MID(COMPRAS!#REF!,1,2)&MID(COMPRAS!#REF!,1,2)&MID(COMPRAS!#REF!,1,2),IVA!W:W,0)),"SIN COD.") -> SIN COD.
AL27: 0 | AQ27: 0 | AR27: =IFERROR(IF(OR(AP27=338,AP27=340,AP27=341,AP27=342,AP27="342A",AP27="342B"),PorcenRet(AP27,AT27,AU27),INDEX(PORCENTAJEBUSCAR,MATCH(AP27,CódigoRET,0),4)*1),"") -> 0 | AS27: 0 | BF27: =IFERROR(IF(OR(BD27=338,BD27=340,BD27=341,BD27=342,BD27="342A",BD27="342B"),PorcenRet(BD27,BH27,BI27),INDEX(PORCENTAJEBUSCAR,MATCH(BD27,CódigoRET,0),4)*1),"") -> 0 | BG27: 0 | BO27: 0 | CC27: 0 | CD27: 0 | CG27: =IFERROR(INDIRECT("IVA!X"&MATCH(MID(COMPRAS!#REF!,1,2)&MID(COMPRAS!#REF!,1,2)&MID(COMPRAS!#REF!,1,2),IVA!W:W,0)),"SIN COD.") -> SIN COD. | CH27: =IFERROR(INDIRECT("IVA!Y"&MATCH(MID(COMPRAS!#REF!,1,2)&MID(COMPRAS!#REF!,1,2)&MID(COMPRAS!#REF!,1,2),IVA!W:W,0)),"SIN COD.") -> SIN COD.
AL28: 0 | AQ28: 0 | AR28: =IFERROR(IF(OR(AP28=338,AP28=340,AP28=341,AP28=342,AP28="342A",AP28="342B"),PorcenRet(AP28,AT28,AU28),INDEX(PORCENTAJEBUSCAR,MATCH(AP28,CódigoRET,0),4)*1),"") -> 0 | AS28: 0 | BF28: =IFERROR(IF(OR(BD28=338,BD28=340,BD28=341,BD28=342,BD28="342A",BD28="342B"),PorcenRet(BD28,BH28,BI28),INDEX(PORCENTAJEBUSCAR,MATCH(BD28,CódigoRET,0),4)*1),"") -> 0 | BG28: 0 | BO28: 0 | CC28: 0 | CD28: 0 | CG28: =IFERROR(INDIRECT("IVA!X"&MATCH(MID(COMPRAS!#REF!,1,2)&MID(COMPRAS!#REF!,1,2)&MID(COMPRAS!#REF!,1,2),IVA!W:W,0)),"SIN COD.") -> SIN COD. | CH28: =IFERROR(INDIRECT("IVA!Y"&MATCH(MID(COMPRAS!#REF!,1,2)&MID(COMPRAS!#REF!,1,2)&MID(COMPRAS!#REF!,1,2),IVA!W:W,0)),"SIN COD.") -> SIN COD.
AL29: 0 | AQ29: 0 | AR29: =IFERROR(IF(OR(AP29=338,AP29=340,AP29=341,AP29=342,AP29="342A",AP29="342B"),PorcenRet(AP29,AT29,AU29),INDEX(PORCENTAJEBUSCAR,MATCH(AP29,CódigoRET,0),4)*1),"") -> 0 | AS29: 0 | BF29: =IFERROR(IF(OR(BD29=338,BD29=340,BD29=341,BD29=342,BD29="342A",BD29="342B"),PorcenRet(BD29,BH29,BI29),INDEX(PORCENTAJEBUSCAR,MATCH(BD29,CódigoRET,0),4)*1),"") -> 0 | BG29: 0 | BO29: 0 | CC29: 0 | CD29: 0 | CG29: =IFERROR(INDIRECT("IVA!X"&MATCH(MID(COMPRAS!#REF!,1,2)&MID(COMPRAS!#REF!,1,2)&MID(COMPRAS!#REF!,1,2),IVA!W:W,0)),"SIN COD.") -> SIN COD. | CH29: =IFERROR(INDIRECT("IVA!Y"&MATCH(MID(COMPRAS!#REF!,1,2)&MID(COMPRAS!#REF!,1,2)&MID(COMPRAS!#REF!,1,2),IVA!W:W,0)),"SIN COD.") -> SIN COD.
AL30: 0 | AQ30: 0 | AR30: =IFERROR(IF(OR(AP30=338,AP30=340,AP30=341,AP30=342,AP30="342A",AP30="342B"),PorcenRet(AP30,AT30,AU30),INDEX(PORCENTAJEBUSCAR,MATCH(AP30,CódigoRET,0),4)*1),"") -> 0 | AS30: 0 | BF30: =IFERROR(IF(OR(BD30=338,BD30=340,BD30=341,BD30=342,BD30="342A",BD30="342B"),PorcenRet(BD30,BH30,BI30),INDEX(PORCENTAJEBUSCAR,MATCH(BD30,CódigoRET,0),4)*1),"") -> 0 | BG30: 0 | BO30: 0 | CC30: 0 | CD30: 0 | CG30: =IFERROR(INDIRECT("IVA!X"&MATCH(MID(COMPRAS!#REF!,1,2)&MID(COMPRAS!#REF!,1,2)&MID(COMPRAS!#REF!,1,2),IVA!W:W,0)),"SIN COD.") -> SIN COD. | CH30: =IFERROR(INDIRECT("IVA!Y"&MATCH(MID(COMPRAS!#REF!,1,2)&MID(COMPRAS!#REF!,1,2)&MID(COMPRAS!#REF!,1,2),IVA!W:W,0)),"SIN COD.") -> SIN COD.
AL31: 0 | AQ31: 0 | AR31: =IFERROR(IF(OR(AP31=338,AP31=340,AP31=341,AP31=342,AP31="342A",AP31="342B"),PorcenRet(AP31,AT31,AU31),INDEX(PORCENTAJEBUSCAR,MATCH(AP31,CódigoRET,0),4)*1),"") -> 0 | AS31: 0 | BF31: =IFERROR(IF(OR(BD31=338,BD31=340,BD31=341,BD31=342,BD31="342A",BD31="342B"),PorcenRet(BD31,BH31,BI31),INDEX(PORCENTAJEBUSCAR,MATCH(BD31,CódigoRET,0),4)*1),"") -> 0 | BG31: 0 | BO31: 0 | CC31: 0 | CD31: 0 | CG31: =IFERROR(INDIRECT("IVA!X"&MATCH(MID(COMPRAS!#REF!,1,2)&MID(COMPRAS!#REF!,1,2)&MID(COMPRAS!#REF!,1,2),IVA!W:W,0)),"SIN COD.") -> SIN COD. | CH31: =IFERROR(INDIRECT("IVA!Y"&MATCH(MID(COMPRAS!#REF!,1,2)&MID(COMPRAS!#REF!,1,2)&MID(COMPRAS!#REF!,1,2),IVA!W:W,0)),"SIN COD.") -> SIN COD.
AL32: 0 | AQ32: 0 | AR32: =IFERROR(IF(OR(AP32=338,AP32=340,AP32=341,AP32=342,AP32="342A",AP32="342B"),PorcenRet(AP32,AT32,AU32),INDEX(PORCENTAJEBUSCAR,MATCH(AP32,CódigoRET,0),4)*1),"") -> 0 | AS32: 0 | BF32: =IFERROR(IF(OR(BD32=338,BD32=340,BD32=341,BD32=342,BD32="342A",BD32="342B"),PorcenRet(BD32,BH32,BI32),INDEX(PORCENTAJEBUSCAR,MATCH(BD32,CódigoRET,0),4)*1),"") -> 0 | BG32: 0 | BO32: 0 | CC32: 0 | CD32: 0 | CG32: =IFERROR(INDIRECT("IVA!X"&MATCH(MID(COMPRAS!#REF!,1,2)&MID(COMPRAS!#REF!,1,2)&MID(COMPRAS!#REF!,1,2),IVA!W:W,0)),"SIN COD.") -> SIN COD. | CH32: =IFERROR(INDIRECT("IVA!Y"&MATCH(MID(COMPRAS!#REF!,1,2)&MID(COMPRAS!#REF!,1,2)&MID(COMPRAS!#REF!,1,2),IVA!W:W,0)),"SIN COD.") -> SIN COD.
AL33: 0 | AQ33: 0 | AR33: =IFERROR(IF(OR(AP33=338,AP33=340,AP33=341,AP33=342,AP33="342A",AP33="342B"),PorcenRet(AP33,AT33,AU33),INDEX(PORCENTAJEBUSCAR,MATCH(AP33,CódigoRET,0),4)*1),"") -> 0 | AS33: 0 | BF33: =IFERROR(IF(OR(BD33=338,BD33=340,BD33=341,BD33=342,BD33="342A",BD33="342B"),PorcenRet(BD33,BH33,BI33),INDEX(PORCENTAJEBUSCAR,MATCH(BD33,CódigoRET,0),4)*1),"") -> 0 | BG33: 0 | BO33: 0 | CC33: 0 | CD33: 0 | CG33: =IFERROR(INDIRECT("IVA!X"&MATCH(MID(COMPRAS!#REF!,1,2)&MID(COMPRAS!#REF!,1,2)&MID(COMPRAS!#REF!,1,2),IVA!W:W,0)),"SIN COD.") -> SIN COD. | CH33: =IFERROR(INDIRECT("IVA!Y"&MATCH(MID(COMPRAS!#REF!,1,2)&MID(COMPRAS!#REF!,1,2)&MID(COMPRAS!#REF!,1,2),IVA!W:W,0)),"SIN COD.") -> SIN COD.
AL34: 0 | AQ34: 0 | AR34: =IFERROR(IF(OR(AP34=338,AP34=340,AP34=341,AP34=342,AP34="342A",AP34="342B"),PorcenRet(AP34,AT34,AU34),INDEX(PORCENTAJEBUSCAR,MATCH(AP34,CódigoRET,0),4)*1),"") -> 0 | AS34: 0 | BF34: =IFERROR(IF(OR(BD34=338,BD34=340,BD34=341,BD34=342,BD34="342A",BD34="342B"),PorcenRet(BD34,BH34,BI34),INDEX(PORCENTAJEBUSCAR,MATCH(BD34,CódigoRET,0),4)*1),"") -> 0 | BG34: 0 | BO34: 0 | CC34: 0 | CD34: 0 | CG34: =IFERROR(INDIRECT("IVA!X"&MATCH(MID(COMPRAS!#REF!,1,2)&MID(COMPRAS!#REF!,1,2)&MID(COMPRAS!#REF!,1,2),IVA!W:W,0)),"SIN COD.") -> SIN COD. | CH34: =IFERROR(INDIRECT("IVA!Y"&MATCH(MID(COMPRAS!#REF!,1,2)&MID(COMPRAS!#REF!,1,2)&MID(COMPRAS!#REF!,1,2),IVA!W:W,0)),"SIN COD.") -> SIN COD.
AL35: 0 | AQ35: 0 | AR35: =IFERROR(IF(OR(AP35=338,AP35=340,AP35=341,AP35=342,AP35="342A",AP35="342B"),PorcenRet(AP35,AT35,AU35),INDEX(PORCENTAJEBUSCAR,MATCH(AP35,CódigoRET,0),4)*1),"") -> 0 | AS35: 0 | BF35: =IFERROR(IF(OR(BD35=338,BD35=340,BD35=341,BD35=342,BD35="342A",BD35="342B"),PorcenRet(BD35,BH35,BI35),INDEX(PORCENTAJEBUSCAR,MATCH(BD35,CódigoRET,0),4)*1),"") -> 0 | BG35: 0 | BO35: 0 | CC35: 0 | CD35: 0 | CG35: =IFERROR(INDIRECT("IVA!X"&MATCH(MID(COMPRAS!#REF!,1,2)&MID(COMPRAS!#REF!,1,2)&MID(COMPRAS!#REF!,1,2),IVA!W:W,0)),"SIN COD.") -> SIN COD. | CH35: =IFERROR(INDIRECT("IVA!Y"&MATCH(MID(COMPRAS!#REF!,1,2)&MID(COMPRAS!#REF!,1,2)&MID(COMPRAS!#REF!,1,2),IVA!W:W,0)),"SIN COD.") -> SIN COD.
AL36: 0 | AQ36: 0 | AR36: =IFERROR(IF(OR(AP36=338,AP36=340,AP36=341,AP36=342,AP36="342A",AP36="342B"),PorcenRet(AP36,AT36,AU36),INDEX(PORCENTAJEBUSCAR,MATCH(AP36,CódigoRET,0),4)*1),"") -> 0 | AS36: 0 | BF36: =IFERROR(IF(OR(BD36=338,BD36=340,BD36=341,BD36=342,BD36="342A",BD36="342B"),PorcenRet(BD36,BH36,BI36),INDEX(PORCENTAJEBUSCAR,MATCH(BD36,CódigoRET,0),4)*1),"") -> 0 | BG36: 0 | BO36: 0 | CC36: 0 | CD36: 0 | CG36: =IFERROR(INDIRECT("IVA!X"&MATCH(MID(COMPRAS!#REF!,1,2)&MID(COMPRAS!#REF!,1,2)&MID(COMPRAS!#REF!,1,2),IVA!W:W,0)),"SIN COD.") -> SIN COD. | CH36: =IFERROR(INDIRECT("IVA!Y"&MATCH(MID(COMPRAS!#REF!,1,2)&MID(COMPRAS!#REF!,1,2)&MID(COMPRAS!#REF!,1,2),IVA!W:W,0)),"SIN COD.") -> SIN COD.
AL37: 0 | AQ37: 0 | AR37: =IFERROR(IF(OR(AP37=338,AP37=340,AP37=341,AP37=342,AP37="342A",AP37="342B"),PorcenRet(AP37,AT37,AU37),INDEX(PORCENTAJEBUSCAR,MATCH(AP37,CódigoRET,0),4)*1),"") -> 0 | AS37: 0 | BF37: =IFERROR(IF(OR(BD37=338,BD37=340,BD37=341,BD37=342,BD37="342A",BD37="342B"),PorcenRet(BD37,BH37,BI37),INDEX(PORCENTAJEBUSCAR,MATCH(BD37,CódigoRET,0),4)*1),"") -> 0 | BG37: 0 | BO37: 0 | CC37: 0 | CD37: 0 | CG37: =IFERROR(INDIRECT("IVA!X"&MATCH(MID(COMPRAS!#REF!,1,2)&MID(COMPRAS!#REF!,1,2)&MID(COMPRAS!#REF!,1,2),IVA!W:W,0)),"SIN COD.") -> SIN COD. | CH37: =IFERROR(INDIRECT("IVA!Y"&MATCH(MID(COMPRAS!#REF!,1,2)&MID(COMPRAS!#REF!,1,2)&MID(COMPRAS!#REF!,1,2),IVA!W:W,0)),"SIN COD.") -> SIN COD.
AL38: 0 | AQ38: 0 | AR38: =IFERROR(IF(OR(AP38=338,AP38=340,AP38=341,AP38=342,AP38="342A",AP38="342B"),PorcenRet(AP38,AT38,AU38),INDEX(PORCENTAJEBUSCAR,MATCH(AP38,CódigoRET,0),4)*1),"") -> 0 | AS38: 0 | BF38: =IFERROR(IF(OR(BD38=338,BD38=340,BD38=341,BD38=342,BD38="342A",BD38="342B"),PorcenRet(BD38,BH38,BI38),INDEX(PORCENTAJEBUSCAR,MATCH(BD38,CódigoRET,0),4)*1),"") -> 0 | BG38: 0 | BO38: 0 | CC38: 0 | CD38: 0 | CG38: =IFERROR(INDIRECT("IVA!X"&MATCH(MID(COMPRAS!#REF!,1,2)&MID(COMPRAS!#REF!,1,2)&MID(COMPRAS!#REF!,1,2),IVA!W:W,0)),"SIN COD.") -> SIN COD. | CH38: =IFERROR(INDIRECT("IVA!Y"&MATCH(MID(COMPRAS!#REF!,1,2)&MID(COMPRAS!#REF!,1,2)&MID(COMPRAS!#REF!,1,2),IVA!W:W,0)),"SIN COD.") -> SIN COD.
AL39: 0 | AQ39: 0 | AR39: =IFERROR(IF(OR(AP39=338,AP39=340,AP39=341,AP39=342,AP39="342A",AP39="342B"),PorcenRet(AP39,AT39,AU39),INDEX(PORCENTAJEBUSCAR,MATCH(AP39,CódigoRET,0),4)*1),"") -> 0 | AS39: 0 | BF39: =IFERROR(IF(OR(BD39=338,BD39=340,BD39=341,BD39=342,BD39="342A",BD39="342B"),PorcenRet(BD39,BH39,BI39),INDEX(PORCENTAJEBUSCAR,MATCH(BD39,CódigoRET,0),4)*1),"") -> 0 | BG39: 0 | BO39: 0 | CC39: 0 | CD39: 0 | CG39: =IFERROR(INDIRECT("IVA!X"&MATCH(MID(COMPRAS!#REF!,1,2)&MID(COMPRAS!#REF!,1,2)&MID(COMPRAS!#REF!,1,2),IVA!W:W,0)),"SIN COD.") -> SIN COD. | CH39: =IFERROR(INDIRECT("IVA!Y"&MATCH(MID(COMPRAS!#REF!,1,2)&MID(COMPRAS!#REF!,1,2)&MID(COMPRAS!#REF!,1,2),IVA!W:W,0)),"SIN COD.") -> SIN COD.
AL40: 0 | AQ40: 0 | AR40: =IFERROR(IF(OR(AP40=338,AP40=340,AP40=341,AP40=342,AP40="342A",AP40="342B"),PorcenRet(AP40,AT40,AU40),INDEX(PORCENTAJEBUSCAR,MATCH(AP40,CódigoRET,0),4)*1),"") -> 0 | AS40: 0 | BF40: =IFERROR(IF(OR(BD40=338,BD40=340,BD40=341,BD40=342,BD40="342A",BD40="342B"),PorcenRet(BD40,BH40,BI40),INDEX(PORCENTAJEBUSCAR,MATCH(BD40,CódigoRET,0),4)*1),"") -> 0 | BG40: 0 | BO40: 0 | CC40: 0 | CD40: 0 | CG40: =IFERROR(INDIRECT("IVA!X"&MATCH(MID(COMPRAS!#REF!,1,2)&MID(COMPRAS!#REF!,1,2)&MID(COMPRAS!#REF!,1,2),IVA!W:W,0)),"SIN COD.") -> SIN COD. | CH40: =IFERROR(INDIRECT("IVA!Y"&MATCH(MID(COMPRAS!#REF!,1,2)&MID(COMPRAS!#REF!,1,2)&MID(COMPRAS!#REF!,1,2),IVA!W:W,0)),"SIN COD.") -> SIN COD.
AL41: 0 | AQ41: 0 | AR41: =IFERROR(IF(OR(AP41=338,AP41=340,AP41=341,AP41=342,AP41="342A",AP41="342B"),PorcenRet(AP41,AT41,AU41),INDEX(PORCENTAJEBUSCAR,MATCH(AP41,CódigoRET,0),4)*1),"") -> 0 | AS41: 0 | BF41: =IFERROR(IF(OR(BD41=338,BD41=340,BD41=341,BD41=342,BD41="342A",BD41="342B"),PorcenRet(BD41,BH41,BI41),INDEX(PORCENTAJEBUSCAR,MATCH(BD41,CódigoRET,0),4)*1),"") -> 0 | BG41: 0 | BO41: 0 | CC41: 0 | CD41: 0 | CG41: =IFERROR(INDIRECT("IVA!X"&MATCH(MID(COMPRAS!#REF!,1,2)&MID(COMPRAS!#REF!,1,2)&MID(COMPRAS!#REF!,1,2),IVA!W:W,0)),"SIN COD.") -> SIN COD. | CH41: =IFERROR(INDIRECT("IVA!Y"&MATCH(MID(COMPRAS!#REF!,1,2)&MID(COMPRAS!#REF!,1,2)&MID(COMPRAS!#REF!,1,2),IVA!W:W,0)),"SIN COD.") -> SIN COD.
AL42: 0 | AQ42: 0 | AR42: =IFERROR(IF(OR(AP42=338,AP42=340,AP42=341,AP42=342,AP42="342A",AP42="342B"),PorcenRet(AP42,AT42,AU42),INDEX(PORCENTAJEBUSCAR,MATCH(AP42,CódigoRET,0),4)*1),"") -> 0 | AS42: 0 | BF42: =IFERROR(IF(OR(BD42=338,BD42=340,BD42=341,BD42=342,BD42="342A",BD42="342B"),PorcenRet(BD42,BH42,BI42),INDEX(PORCENTAJEBUSCAR,MATCH(BD42,CódigoRET,0),4)*1),"") -> 0 | BG42: 0 | BO42: 0 | CC42: 0 | CD42: 0 | CG42: =IFERROR(INDIRECT("IVA!X"&MATCH(MID(COMPRAS!#REF!,1,2)&MID(COMPRAS!#REF!,1,2)&MID(COMPRAS!#REF!,1,2),IVA!W:W,0)),"SIN COD.") -> SIN COD. | CH42: =IFERROR(INDIRECT("IVA!Y"&MATCH(MID(COMPRAS!#REF!,1,2)&MID(COMPRAS!#REF!,1,2)&MID(COMPRAS!#REF!,1,2),IVA!W:W,0)),"SIN COD.") -> SIN COD.
AL43: 0 | AQ43: 0 | AR43: =IFERROR(IF(OR(AP43=338,AP43=340,AP43=341,AP43=342,AP43="342A",AP43="342B"),PorcenRet(AP43,AT43,AU43),INDEX(PORCENTAJEBUSCAR,MATCH(AP43,CódigoRET,0),4)*1),"") -> 0 | AS43: 0 | BF43: =IFERROR(IF(OR(BD43=338,BD43=340,BD43=341,BD43=342,BD43="342A",BD43="342B"),PorcenRet(BD43,BH43,BI43),INDEX(PORCENTAJEBUSCAR,MATCH(BD43,CódigoRET,0),4)*1),"") -> 0 | BG43: 0 | BO43: 0 | CC43: 0 | CD43: 0 | CG43: =IFERROR(INDIRECT("IVA!X"&MATCH(MID(COMPRAS!#REF!,1,2)&MID(COMPRAS!#REF!,1,2)&MID(COMPRAS!#REF!,1,2),IVA!W:W,0)),"SIN COD.") -> SIN COD. | CH43: =IFERROR(INDIRECT("IVA!Y"&MATCH(MID(COMPRAS!#REF!,1,2)&MID(COMPRAS!#REF!,1,2)&MID(COMPRAS!#REF!,1,2),IVA!W:W,0)),"SIN COD.") -> SIN COD.
AL44: 0 | AQ44: 0 | AR44: =IFERROR(IF(OR(AP44=338,AP44=340,AP44=341,AP44=342,AP44="342A",AP44="342B"),PorcenRet(AP44,AT44,AU44),INDEX(PORCENTAJEBUSCAR,MATCH(AP44,CódigoRET,0),4)*1),"") -> 0 | AS44: 0 | BF44: =IFERROR(IF(OR(BD44=338,BD44=340,BD44=341,BD44=342,BD44="342A",BD44="342B"),PorcenRet(BD44,BH44,BI44),INDEX(PORCENTAJEBUSCAR,MATCH(BD44,CódigoRET,0),4)*1),"") -> 0 | BG44: 0 | BO44: 0 | CC44: 0 | CD44: 0 | CG44: =IFERROR(INDIRECT("IVA!X"&MATCH(MID(COMPRAS!#REF!,1,2)&MID(COMPRAS!#REF!,1,2)&MID(COMPRAS!#REF!,1,2),IVA!W:W,0)),"SIN COD.") -> SIN COD. | CH44: =IFERROR(INDIRECT("IVA!Y"&MATCH(MID(COMPRAS!#REF!,1,2)&MID(COMPRAS!#REF!,1,2)&MID(COMPRAS!#REF!,1,2),IVA!W:W,0)),"SIN COD.") -> SIN COD.
AL45: 0 | AQ45: 0 | AR45: =IFERROR(IF(OR(AP45=338,AP45=340,AP45=341,AP45=342,AP45="342A",AP45="342B"),PorcenRet(AP45,AT45,AU45),INDEX(PORCENTAJEBUSCAR,MATCH(AP45,CódigoRET,0),4)*1),"") -> 0 | AS45: 0 | BF45: =IFERROR(IF(OR(BD45=338,BD45=340,BD45=341,BD45=342,BD45="342A",BD45="342B"),PorcenRet(BD45,BH45,BI45),INDEX(PORCENTAJEBUSCAR,MATCH(BD45,CódigoRET,0),4)*1),"") -> 0 | BG45: 0 | BO45: 0 | CC45: 0 | CD45: 0 | CG45: =IFERROR(INDIRECT("IVA!X"&MATCH(MID(COMPRAS!#REF!,1,2)&MID(COMPRAS!#REF!,1,2)&MID(COMPRAS!#REF!,1,2),IVA!W:W,0)),"SIN COD.") -> SIN COD. | CH45: =IFERROR(INDIRECT("IVA!Y"&MATCH(MID(COMPRAS!#REF!,1,2)&MID(COMPRAS!#REF!,1,2)&MID(COMPRAS!#REF!,1,2),IVA!W:W,0)),"SIN COD.") -> SIN COD.
AL46: 0 | AQ46: 0 | AR46: =IFERROR(IF(OR(AP46=338,AP46=340,AP46=341,AP46=342,AP46="342A",AP46="342B"),PorcenRet(AP46,AT46,AU46),INDEX(PORCENTAJEBUSCAR,MATCH(AP46,CódigoRET,0),4)*1),"") -> 0 | AS46: 0 | BF46: =IFERROR(IF(OR(BD46=338,BD46=340,BD46=341,BD46=342,BD46="342A",BD46="342B"),PorcenRet(BD46,BH46,BI46),INDEX(PORCENTAJEBUSCAR,MATCH(BD46,CódigoRET,0),4)*1),"") -> 0 | BG46: 0 | BO46: 0 | CC46: 0 | CD46: 0 | CG46: =IFERROR(INDIRECT("IVA!X"&MATCH(MID(COMPRAS!#REF!,1,2)&MID(COMPRAS!#REF!,1,2)&MID(COMPRAS!#REF!,1,2),IVA!W:W,0)),"SIN COD.") -> SIN COD. | CH46: =IFERROR(INDIRECT("IVA!Y"&MATCH(MID(COMPRAS!#REF!,1,2)&MID(COMPRAS!#REF!,1,2)&MID(COMPRAS!#REF!,1,2),IVA!W:W,0)),"SIN COD.") -> SIN COD.
AL47: 0 | AQ47: 0 | AR47: =IFERROR(IF(OR(AP47=338,AP47=340,AP47=341,AP47=342,AP47="342A",AP47="342B"),PorcenRet(AP47,AT47,AU47),INDEX(PORCENTAJEBUSCAR,MATCH(AP47,CódigoRET,0),4)*1),"") -> 0 | AS47: 0 | BF47: =IFERROR(IF(OR(BD47=338,BD47=340,BD47=341,BD47=342,BD47="342A",BD47="342B"),PorcenRet(BD47,BH47,BI47),INDEX(PORCENTAJEBUSCAR,MATCH(BD47,CódigoRET,0),4)*1),"") -> 0 | BG47: 0 | BO47: 0 | CC47: 0 | CD47: 0 | CG47: =IFERROR(INDIRECT("IVA!X"&MATCH(MID(COMPRAS!#REF!,1,2)&MID(COMPRAS!#REF!,1,2)&MID(COMPRAS!#REF!,1,2),IVA!W:W,0)),"SIN COD.") -> SIN COD. | CH47: =IFERROR(INDIRECT("IVA!Y"&MATCH(MID(COMPRAS!#REF!,1,2)&MID(COMPRAS!#REF!,1,2)&MID(COMPRAS!#REF!,1,2),IVA!W:W,0)),"SIN COD.") -> SIN COD.
AL48: 0 | AQ48: 0 | AR48: =IFERROR(IF(OR(AP48=338,AP48=340,AP48=341,AP48=342,AP48="342A",AP48="342B"),PorcenRet(AP48,AT48,AU48),INDEX(PORCENTAJEBUSCAR,MATCH(AP48,CódigoRET,0),4)*1),"") -> 0 | AS48: 0 | BF48: =IFERROR(IF(OR(BD48=338,BD48=340,BD48=341,BD48=342,BD48="342A",BD48="342B"),PorcenRet(BD48,BH48,BI48),INDEX(PORCENTAJEBUSCAR,MATCH(BD48,CódigoRET,0),4)*1),"") -> 0 | BG48: 0 | BO48: 0 | CC48: 0 | CD48: 0 | CG48: =IFERROR(INDIRECT("IVA!X"&MATCH(MID(COMPRAS!#REF!,1,2)&MID(COMPRAS!#REF!,1,2)&MID(COMPRAS!#REF!,1,2),IVA!W:W,0)),"SIN COD.") -> SIN COD. | CH48: =IFERROR(INDIRECT("IVA!Y"&MATCH(MID(COMPRAS!#REF!,1,2)&MID(COMPRAS!#REF!,1,2)&MID(COMPRAS!#REF!,1,2),IVA!W:W,0)),"SIN COD.") -> SIN COD.
AL49: 0 | AQ49: 0 | AR49: =IFERROR(IF(OR(AP49=338,AP49=340,AP49=341,AP49=342,AP49="342A",AP49="342B"),PorcenRet(AP49,AT49,AU49),INDEX(PORCENTAJEBUSCAR,MATCH(AP49,CódigoRET,0),4)*1),"") -> 0 | AS49: 0 | BF49: =IFERROR(IF(OR(BD49=338,BD49=340,BD49=341,BD49=342,BD49="342A",BD49="342B"),PorcenRet(BD49,BH49,BI49),INDEX(PORCENTAJEBUSCAR,MATCH(BD49,CódigoRET,0),4)*1),"") -> 0 | BG49: 0 | BO49: 0 | CC49: 0 | CD49: 0 | CG49: =IFERROR(INDIRECT("IVA!X"&MATCH(MID(COMPRAS!#REF!,1,2)&MID(COMPRAS!#REF!,1,2)&MID(COMPRAS!#REF!,1,2),IVA!W:W,0)),"SIN COD.") -> SIN COD. | CH49: =IFERROR(INDIRECT("IVA!Y"&MATCH(MID(COMPRAS!#REF!,1,2)&MID(COMPRAS!#REF!,1,2)&MID(COMPRAS!#REF!,1,2),IVA!W:W,0)),"SIN COD.") -> SIN COD.
AL50: 0 | AQ50: 0 | AR50: =IFERROR(IF(OR(AP50=338,AP50=340,AP50=341,AP50=342,AP50="342A",AP50="342B"),PorcenRet(AP50,AT50,AU50),INDEX(PORCENTAJEBUSCAR,MATCH(AP50,CódigoRET,0),4)*1),"") -> 0 | AS50: 0 | BF50: =IFERROR(IF(OR(BD50=338,BD50=340,BD50=341,BD50=342,BD50="342A",BD50="342B"),PorcenRet(BD50,BH50,BI50),INDEX(PORCENTAJEBUSCAR,MATCH(BD50,CódigoRET,0),4)*1),"") -> 0 | BG50: 0 | BO50: 0 | CC50: 0 | CD50: 0 | CG50: =IFERROR(INDIRECT("IVA!X"&MATCH(MID(COMPRAS!#REF!,1,2)&MID(COMPRAS!#REF!,1,2)&MID(COMPRAS!#REF!,1,2),IVA!W:W,0)),"SIN COD.") -> SIN COD. | CH50: =IFERROR(INDIRECT("IVA!Y"&MATCH(MID(COMPRAS!#REF!,1,2)&MID(COMPRAS!#REF!,1,2)&MID(COMPRAS!#REF!,1,2),IVA!W:W,0)),"SIN COD.") -> SIN COD.
AL51: 0 | AQ51: 0 | AR51: =IFERROR(IF(OR(AP51=338,AP51=340,AP51=341,AP51=342,AP51="342A",AP51="342B"),PorcenRet(AP51,AT51,AU51),INDEX(PORCENTAJEBUSCAR,MATCH(AP51,CódigoRET,0),4)*1),"") -> 0 | AS51: 0 | BF51: =IFERROR(IF(OR(BD51=338,BD51=340,BD51=341,BD51=342,BD51="342A",BD51="342B"),PorcenRet(BD51,BH51,BI51),INDEX(PORCENTAJEBUSCAR,MATCH(BD51,CódigoRET,0),4)*1),"") -> 0 | BG51: 0 | BO51: 0 | CC51: 0 | CD51: 0 | CG51: =IFERROR(INDIRECT("IVA!X"&MATCH(MID(COMPRAS!#REF!,1,2)&MID(COMPRAS!#REF!,1,2)&MID(COMPRAS!#REF!,1,2),IVA!W:W,0)),"SIN COD.") -> SIN COD. | CH51: =IFERROR(INDIRECT("IVA!Y"&MATCH(MID(COMPRAS!#REF!,1,2)&MID(COMPRAS!#REF!,1,2)&MID(COMPRAS!#REF!,1,2),IVA!W:W,0)),"SIN COD.") -> SIN COD.
AL52: 0 | AQ52: 0 | AR52: =IFERROR(IF(OR(AP52=338,AP52=340,AP52=341,AP52=342,AP52="342A",AP52="342B"),PorcenRet(AP52,AT52,AU52),INDEX(PORCENTAJEBUSCAR,MATCH(AP52,CódigoRET,0),4)*1),"") -> 0 | AS52: 0 | BF52: =IFERROR(IF(OR(BD52=338,BD52=340,BD52=341,BD52=342,BD52="342A",BD52="342B"),PorcenRet(BD52,BH52,BI52),INDEX(PORCENTAJEBUSCAR,MATCH(BD52,CódigoRET,0),4)*1),"") -> 0 | BG52: 0 | BO52: 0 | CC52: 0 | CD52: 0 | CG52: =IFERROR(INDIRECT("IVA!X"&MATCH(MID(COMPRAS!#REF!,1,2)&MID(COMPRAS!#REF!,1,2)&MID(COMPRAS!#REF!,1,2),IVA!W:W,0)),"SIN COD.") -> SIN COD. | CH52: =IFERROR(INDIRECT("IVA!Y"&MATCH(MID(COMPRAS!#REF!,1,2)&MID(COMPRAS!#REF!,1,2)&MID(COMPRAS!#REF!,1,2),IVA!W:W,0)),"SIN COD.") -> SIN COD.
AL53: 0 | AQ53: 0 | AR53: =IFERROR(IF(OR(AP53=338,AP53=340,AP53=341,AP53=342,AP53="342A",AP53="342B"),PorcenRet(AP53,AT53,AU53),INDEX(PORCENTAJEBUSCAR,MATCH(AP53,CódigoRET,0),4)*1),"") -> 0 | AS53: 0 | BF53: =IFERROR(IF(OR(BD53=338,BD53=340,BD53=341,BD53=342,BD53="342A",BD53="342B"),PorcenRet(BD53,BH53,BI53),INDEX(PORCENTAJEBUSCAR,MATCH(BD53,CódigoRET,0),4)*1),"") -> 0 | BG53: 0 | BO53: 0 | CC53: 0 | CD53: 0 | CG53: =IFERROR(INDIRECT("IVA!X"&MATCH(MID(COMPRAS!#REF!,1,2)&MID(COMPRAS!#REF!,1,2)&MID(COMPRAS!#REF!,1,2),IVA!W:W,0)),"SIN COD.") -> SIN COD. | CH53: =IFERROR(INDIRECT("IVA!Y"&MATCH(MID(COMPRAS!#REF!,1,2)&MID(COMPRAS!#REF!,1,2)&MID(COMPRAS!#REF!,1,2),IVA!W:W,0)),"SIN COD.") -> SIN COD.
AL54: 0 | AQ54: 0 | AR54: =IFERROR(IF(OR(AP54=338,AP54=340,AP54=341,AP54=342,AP54="342A",AP54="342B"),PorcenRet(AP54,AT54,AU54),INDEX(PORCENTAJEBUSCAR,MATCH(AP54,CódigoRET,0),4)*1),"") -> 0 | AS54: 0 | BF54: =IFERROR(IF(OR(BD54=338,BD54=340,BD54=341,BD54=342,BD54="342A",BD54="342B"),PorcenRet(BD54,BH54,BI54),INDEX(PORCENTAJEBUSCAR,MATCH(BD54,CódigoRET,0),4)*1),"") -> 0 | BG54: 0 | BO54: 0 | CC54: 0 | CD54: 0 | CG54: =IFERROR(INDIRECT("IVA!X"&MATCH(MID(COMPRAS!#REF!,1,2)&MID(COMPRAS!#REF!,1,2)&MID(COMPRAS!#REF!,1,2),IVA!W:W,0)),"SIN COD.") -> SIN COD. | CH54: =IFERROR(INDIRECT("IVA!Y"&MATCH(MID(COMPRAS!#REF!,1,2)&MID(COMPRAS!#REF!,1,2)&MID(COMPRAS!#REF!,1,2),IVA!W:W,0)),"SIN COD.") -> SIN COD.
AL55: 0 | AQ55: 0 | AR55: =IFERROR(IF(OR(AP55=338,AP55=340,AP55=341,AP55=342,AP55="342A",AP55="342B"),PorcenRet(AP55,AT55,AU55),INDEX(PORCENTAJEBUSCAR,MATCH(AP55,CódigoRET,0),4)*1),"") -> 0 | AS55: 0 | BF55: =IFERROR(IF(OR(BD55=338,BD55=340,BD55=341,BD55=342,BD55="342A",BD55="342B"),PorcenRet(BD55,BH55,BI55),INDEX(PORCENTAJEBUSCAR,MATCH(BD55,CódigoRET,0),4)*1),"") -> 0 | BG55: 0 | BO55: 0 | CC55: 0 | CD55: 0 | CG55: =IFERROR(INDIRECT("IVA!X"&MATCH(MID(COMPRAS!#REF!,1,2)&MID(COMPRAS!#REF!,1,2)&MID(COMPRAS!#REF!,1,2),IVA!W:W,0)),"SIN COD.") -> SIN COD. | CH55: =IFERROR(INDIRECT("IVA!Y"&MATCH(MID(COMPRAS!#REF!,1,2)&MID(COMPRAS!#REF!,1,2)&MID(COMPRAS!#REF!,1,2),IVA!W:W,0)),"SIN COD.") -> SIN COD.
AL56: 0 | AQ56: 0 | AR56: =IFERROR(IF(OR(AP56=338,AP56=340,AP56=341,AP56=342,AP56="342A",AP56="342B"),PorcenRet(AP56,AT56,AU56),INDEX(PORCENTAJEBUSCAR,MATCH(AP56,CódigoRET,0),4)*1),"") -> 0 | AS56: 0 | BF56: =IFERROR(IF(OR(BD56=338,BD56=340,BD56=341,BD56=342,BD56="342A",BD56="342B"),PorcenRet(BD56,BH56,BI56),INDEX(PORCENTAJEBUSCAR,MATCH(BD56,CódigoRET,0),4)*1),"") -> 0 | BG56: 0 | BO56: 0 | CC56: 0 | CD56: 0 | CG56: =IFERROR(INDIRECT("IVA!X"&MATCH(MID(COMPRAS!#REF!,1,2)&MID(COMPRAS!#REF!,1,2)&MID(COMPRAS!#REF!,1,2),IVA!W:W,0)),"SIN COD.") -> SIN COD. | CH56: =IFERROR(INDIRECT("IVA!Y"&MATCH(MID(COMPRAS!#REF!,1,2)&MID(COMPRAS!#REF!,1,2)&MID(COMPRAS!#REF!,1,2),IVA!W:W,0)),"SIN COD.") -> SIN COD.
AL57: 0 | AQ57: 0 | AR57: =IFERROR(IF(OR(AP57=338,AP57=340,AP57=341,AP57=342,AP57="342A",AP57="342B"),PorcenRet(AP57,AT57,AU57),INDEX(PORCENTAJEBUSCAR,MATCH(AP57,CódigoRET,0),4)*1),"") -> 0 | AS57: 0 | BF57: =IFERROR(IF(OR(BD57=338,BD57=340,BD57=341,BD57=342,BD57="342A",BD57="342B"),PorcenRet(BD57,BH57,BI57),INDEX(PORCENTAJEBUSCAR,MATCH(BD57,CódigoRET,0),4)*1),"") -> 0 | BG57: 0 | BO57: 0 | CC57: 0 | CD57: 0 | CG57: =IFERROR(INDIRECT("IVA!X"&MATCH(MID(COMPRAS!#REF!,1,2)&MID(COMPRAS!#REF!,1,2)&MID(COMPRAS!#REF!,1,2),IVA!W:W,0)),"SIN COD.") -> SIN COD. | CH57: =IFERROR(INDIRECT("IVA!Y"&MATCH(MID(COMPRAS!#REF!,1,2)&MID(COMPRAS!#REF!,1,2)&MID(COMPRAS!#REF!,1,2),IVA!W:W,0)),"SIN COD.") -> SIN COD.
AL58: 0 | AQ58: 0 | AR58: =IFERROR(IF(OR(AP58=338,AP58=340,AP58=341,AP58=342,AP58="342A",AP58="342B"),PorcenRet(AP58,AT58,AU58),INDEX(PORCENTAJEBUSCAR,MATCH(AP58,CódigoRET,0),4)*1),"") -> 0 | AS58: 0 | BF58: =IFERROR(IF(OR(BD58=338,BD58=340,BD58=341,BD58=342,BD58="342A",BD58="342B"),PorcenRet(BD58,BH58,BI58),INDEX(PORCENTAJEBUSCAR,MATCH(BD58,CódigoRET,0),4)*1),"") -> 0 | BG58: 0 | BO58: 0 | CC58: 0 | CD58: 0 | CG58: =IFERROR(INDIRECT("IVA!X"&MATCH(MID(COMPRAS!#REF!,1,2)&MID(COMPRAS!#REF!,1,2)&MID(COMPRAS!#REF!,1,2),IVA!W:W,0)),"SIN COD.") -> SIN COD. | CH58: =IFERROR(INDIRECT("IVA!Y"&MATCH(MID(COMPRAS!#REF!,1,2)&MID(COMPRAS!#REF!,1,2)&MID(COMPRAS!#REF!,1,2),IVA!W:W,0)),"SIN COD.") -> SIN COD.
AL59: 0 | AQ59: 0 | AR59: =IFERROR(IF(OR(AP59=338,AP59=340,AP59=341,AP59=342,AP59="342A",AP59="342B"),PorcenRet(AP59,AT59,AU59),INDEX(PORCENTAJEBUSCAR,MATCH(AP59,CódigoRET,0),4)*1),"") -> 0 | AS59: 0 | BF59: =IFERROR(IF(OR(BD59=338,BD59=340,BD59=341,BD59=342,BD59="342A",BD59="342B"),PorcenRet(BD59,BH59,BI59),INDEX(PORCENTAJEBUSCAR,MATCH(BD59,CódigoRET,0),4)*1),"") -> 0 | BG59: 0 | BO59: 0 | CC59: 0 | CD59: 0 | CG59: =IFERROR(INDIRECT("IVA!X"&MATCH(MID(COMPRAS!C2,1,2)&MID(COMPRAS!F2,1,2)&MID(COMPRAS!D2,1,2),IVA!W:W,0)),"SIN COD.") -> 0 | CH59: =IFERROR(INDIRECT("IVA!Y"&MATCH(MID(COMPRAS!C2,1,2)&MID(COMPRAS!F2,1,2)&MID(COMPRAS!D2,1,2),IVA!W:W,0)),"SIN COD.") -> 0
AL60: 0 | AQ60: 0 | AR60: =IFERROR(IF(OR(AP60=338,AP60=340,AP60=341,AP60=342,AP60="342A",AP60="342B"),PorcenRet(AP60,AT60,AU60),INDEX(PORCENTAJEBUSCAR,MATCH(AP60,CódigoRET,0),4)*1),"") -> 0 | AS60: 0 | BF60: =IFERROR(IF(OR(BD60=338,BD60=340,BD60=341,BD60=342,BD60="342A",BD60="342B"),PorcenRet(BD60,BH60,BI60),INDEX(PORCENTAJEBUSCAR,MATCH(BD60,CódigoRET,0),4)*1),"") -> 0 | BG60: 0 | BO60: 0 | CC60: 0 | CD60: 0 | CG60: =IFERROR(INDIRECT("IVA!X"&MATCH(MID(COMPRAS!C3,1,2)&MID(COMPRAS!F3,1,2)&MID(COMPRAS!D3,1,2),IVA!W:W,0)),"SIN COD.") -> 0 | CH60: =IFERROR(INDIRECT("IVA!Y"&MATCH(MID(COMPRAS!C3,1,2)&MID(COMPRAS!F3,1,2)&MID(COMPRAS!D3,1,2),IVA!W:W,0)),"SIN COD.") -> 0
AL61: 0 | AQ61: 0 | AR61: =IFERROR(IF(OR(AP61=338,AP61=340,AP61=341,AP61=342,AP61="342A",AP61="342B"),PorcenRet(AP61,AT61,AU61),INDEX(PORCENTAJEBUSCAR,MATCH(AP61,CódigoRET,0),4)*1),"") -> 0 | AS61: 0 | BF61: =IFERROR(IF(OR(BD61=338,BD61=340,BD61=341,BD61=342,BD61="342A",BD61="342B"),PorcenRet(BD61,BH61,BI61),INDEX(PORCENTAJEBUSCAR,MATCH(BD61,CódigoRET,0),4)*1),"") -> 0 | BG61: 0 | BO61: 0 | CC61: 0 | CD61: 0 | CG61: =IFERROR(INDIRECT("IVA!X"&MATCH(MID(COMPRAS!C4,1,2)&MID(COMPRAS!F4,1,2)&MID(COMPRAS!D4,1,2),IVA!W:W,0)),"SIN COD.") -> 0 | CH61: =IFERROR(INDIRECT("IVA!Y"&MATCH(MID(COMPRAS!C4,1,2)&MID(COMPRAS!F4,1,2)&MID(COMPRAS!D4,1,2),IVA!W:W,0)),"SIN COD.") -> 0
AL62: 0 | AQ62: 0 | AR62: =IFERROR(IF(OR(AP62=338,AP62=340,AP62=341,AP62=342,AP62="342A",AP62="342B"),PorcenRet(AP62,AT62,AU62),INDEX(PORCENTAJEBUSCAR,MATCH(AP62,CódigoRET,0),4)*1),"") -> 0 | AS62: 0 | BF62: =IFERROR(IF(OR(BD62=338,BD62=340,BD62=341,BD62=342,BD62="342A",BD62="342B"),PorcenRet(BD62,BH62,BI62),INDEX(PORCENTAJEBUSCAR,MATCH(BD62,CódigoRET,0),4)*1),"") -> 0 | BG62: 0 | BO62: 0 | CC62: 0 | CD62: 0 | CG62: =IFERROR(INDIRECT("IVA!X"&MATCH(MID(COMPRAS!#REF!,1,2)&MID(COMPRAS!#REF!,1,2)&MID(COMPRAS!#REF!,1,2),IVA!W:W,0)),"SIN COD.") -> SIN COD. | CH62: =IFERROR(INDIRECT("IVA!Y"&MATCH(MID(COMPRAS!#REF!,1,2)&MID(COMPRAS!#REF!,1,2)&MID(COMPRAS!#REF!,1,2),IVA!W:W,0)),"SIN COD.") -> SIN COD.
AL63: 0 | AQ63: 0 | AR63: =IFERROR(IF(OR(AP63=338,AP63=340,AP63=341,AP63=342,AP63="342A",AP63="342B"),PorcenRet(AP63,AT63,AU63),INDEX(PORCENTAJEBUSCAR,MATCH(AP63,CódigoRET,0),4)*1),"") -> 0 | AS63: 0 | BF63: =IFERROR(IF(OR(BD63=338,BD63=340,BD63=341,BD63=342,BD63="342A",BD63="342B"),PorcenRet(BD63,BH63,BI63),INDEX(PORCENTAJEBUSCAR,MATCH(BD63,CódigoRET,0),4)*1),"") -> 0 | BG63: 0 | BO63: 0 | CC63: 0 | CD63: 0 | CG63: =IFERROR(INDIRECT("IVA!X"&MATCH(MID(COMPRAS!#REF!,1,2)&MID(COMPRAS!#REF!,1,2)&MID(COMPRAS!#REF!,1,2),IVA!W:W,0)),"SIN COD.") -> SIN COD. | CH63: =IFERROR(INDIRECT("IVA!Y"&MATCH(MID(COMPRAS!#REF!,1,2)&MID(COMPRAS!#REF!,1,2)&MID(COMPRAS!#REF!,1,2),IVA!W:W,0)),"SIN COD.") -> SIN COD.
AL64: 0 | AQ64: 0 | AR64: =IFERROR(IF(OR(AP64=338,AP64=340,AP64=341,AP64=342,AP64="342A",AP64="342B"),PorcenRet(AP64,AT64,AU64),INDEX(PORCENTAJEBUSCAR,MATCH(AP64,CódigoRET,0),4)*1),"") -> 0 | AS64: 0 | BF64: =IFERROR(IF(OR(BD64=338,BD64=340,BD64=341,BD64=342,BD64="342A",BD64="342B"),PorcenRet(BD64,BH64,BI64),INDEX(PORCENTAJEBUSCAR,MATCH(BD64,CódigoRET,0),4)*1),"") -> 0 | BG64: 0 | BO64: 0 | CC64: 0 | CD64: 0 | CG64: =IFERROR(INDIRECT("IVA!X"&MATCH(MID(COMPRAS!#REF!,1,2)&MID(COMPRAS!#REF!,1,2)&MID(COMPRAS!#REF!,1,2),IVA!W:W,0)),"SIN COD.") -> SIN COD. | CH64: =IFERROR(INDIRECT("IVA!Y"&MATCH(MID(COMPRAS!#REF!,1,2)&MID(COMPRAS!#REF!,1,2)&MID(COMPRAS!#REF!,1,2),IVA!W:W,0)),"SIN COD.") -> SIN COD.
AL65: 0 | AQ65: 0 | AR65: =IFERROR(IF(OR(AP65=338,AP65=340,AP65=341,AP65=342,AP65="342A",AP65="342B"),PorcenRet(AP65,AT65,AU65),INDEX(PORCENTAJEBUSCAR,MATCH(AP65,CódigoRET,0),4)*1),"") -> 0 | AS65: 0 | BF65: =IFERROR(IF(OR(BD65=338,BD65=340,BD65=341,BD65=342,BD65="342A",BD65="342B"),PorcenRet(BD65,BH65,BI65),INDEX(PORCENTAJEBUSCAR,MATCH(BD65,CódigoRET,0),4)*1),"") -> 0 | BG65: 0 | BO65: 0 | CC65: 0 | CD65: 0 | CG65: =IFERROR(INDIRECT("IVA!X"&MATCH(MID(COMPRAS!#REF!,1,2)&MID(COMPRAS!#REF!,1,2)&MID(COMPRAS!#REF!,1,2),IVA!W:W,0)),"SIN COD.") -> SIN COD. | CH65: =IFERROR(INDIRECT("IVA!Y"&MATCH(MID(COMPRAS!#REF!,1,2)&MID(COMPRAS!#REF!,1,2)&MID(COMPRAS!#REF!,1,2),IVA!W:W,0)),"SIN COD.") -> SIN COD.
AL66: 0 | AQ66: 0 | AR66: =IFERROR(IF(OR(AP66=338,AP66=340,AP66=341,AP66=342,AP66="342A",AP66="342B"),PorcenRet(AP66,AT66,AU66),INDEX(PORCENTAJEBUSCAR,MATCH(AP66,CódigoRET,0),4)*1),"") -> 0 | AS66: 0 | BF66: =IFERROR(IF(OR(BD66=338,BD66=340,BD66=341,BD66=342,BD66="342A",BD66="342B"),PorcenRet(BD66,BH66,BI66),INDEX(PORCENTAJEBUSCAR,MATCH(BD66,CódigoRET,0),4)*1),"") -> 0 | BG66: 0 | BO66: 0 | CC66: 0 | CD66: 0 | CG66: =IFERROR(INDIRECT("IVA!X"&MATCH(MID(COMPRAS!#REF!,1,2)&MID(COMPRAS!#REF!,1,2)&MID(COMPRAS!#REF!,1,2),IVA!W:W,0)),"SIN COD.") -> SIN COD. | CH66: =IFERROR(INDIRECT("IVA!Y"&MATCH(MID(COMPRAS!#REF!,1,2)&MID(COMPRAS!#REF!,1,2)&MID(COMPRAS!#REF!,1,2),IVA!W:W,0)),"SIN COD.") -> SIN COD.
AL67: 0 | AQ67: 0 | AR67: =IFERROR(IF(OR(AP67=338,AP67=340,AP67=341,AP67=342,AP67="342A",AP67="342B"),PorcenRet(AP67,AT67,AU67),INDEX(PORCENTAJEBUSCAR,MATCH(AP67,CódigoRET,0),4)*1),"") -> 0 | AS67: 0 | BF67: =IFERROR(IF(OR(BD67=338,BD67=340,BD67=341,BD67=342,BD67="342A",BD67="342B"),PorcenRet(BD67,BH67,BI67),INDEX(PORCENTAJEBUSCAR,MATCH(BD67,CódigoRET,0),4)*1),"") -> 0 | BG67: 0 | BO67: 0 | CC67: 0 | CD67: 0 | CG67: =IFERROR(INDIRECT("IVA!X"&MATCH(MID(COMPRAS!#REF!,1,2)&MID(COMPRAS!#REF!,1,2)&MID(COMPRAS!#REF!,1,2),IVA!W:W,0)),"SIN COD.") -> SIN COD. | CH67: =IFERROR(INDIRECT("IVA!Y"&MATCH(MID(COMPRAS!#REF!,1,2)&MID(COMPRAS!#REF!,1,2)&MID(COMPRAS!#REF!,1,2),IVA!W:W,0)),"SIN COD.") -> SIN COD.
AL68: =O68+P68+Q68+R68+S68+T68+U68+V68 -> 0 | AQ68: =+P68+Q68+R68+S68-BE68-BQ68-BW68+O68 -> 0 | AR68: =IFERROR(IF(OR(AP68=338,AP68=340,AP68=341,AP68=342,AP68="342A",AP68="342B"),PorcenRet(AP68,AT68,AU68),INDEX(PORCENTAJEBUSCAR,MATCH(AP68,CódigoRET,0),4)*1),"") -> 0 | AS68: =ROUND(IF(AP68="",0,AQ68*(AR68/100)),2) -> 0 | BF68: =IFERROR(IF(OR(BD68=338,BD68=340,BD68=341,BD68=342,BD68="342A",BD68="342B"),PorcenRet(BD68,BH68,BI68),INDEX(PORCENTAJEBUSCAR,MATCH(BD68,CódigoRET,0),4)*1),"") -> 0 | BG68: =ROUND(IF(BD68="",0,BE68*(BF68/100)),2) -> 0 | BO68: =IF(MID(F68,1,2)="41",SUM(O68:S68),0) -> 0 | CC68: =O68+P68+Q68+R68+S68 -> 0 | CD68: =T68+U68 -> 0 | CG68: =IFERROR(INDIRECT("IVA!X"&MATCH(MID(COMPRAS!#REF!,1,2)&MID(COMPRAS!#REF!,1,2)&MID(COMPRAS!#REF!,1,2),IVA!W:W,0)),"SIN COD.") -> SIN COD. | CH68: =IFERROR(INDIRECT("IVA!Y"&MATCH(MID(COMPRAS!#REF!,1,2)&MID(COMPRAS!#REF!,1,2)&MID(COMPRAS!#REF!,1,2),IVA!W:W,0)),"SIN COD.") -> SIN COD.
AL69: 0 | AQ69: 0 | AR69: =IFERROR(IF(OR(AP69=338,AP69=340,AP69=341,AP69=342,AP69="342A",AP69="342B"),PorcenRet(AP69,AT69,AU69),INDEX(PORCENTAJEBUSCAR,MATCH(AP69,CódigoRET,0),4)*1),"") -> 0 | AS69: 0 | BF69: =IFERROR(IF(OR(BD69=338,BD69=340,BD69=341,BD69=342,BD69="342A",BD69="342B"),PorcenRet(BD69,BH69,BI69),INDEX(PORCENTAJEBUSCAR,MATCH(BD69,CódigoRET,0),4)*1),"") -> 0 | BG69: 0 | BO69: 0 | CC69: 0 | CD69: 0 | CG69: =IFERROR(INDIRECT("IVA!X"&MATCH(MID(COMPRAS!#REF!,1,2)&MID(COMPRAS!#REF!,1,2)&MID(COMPRAS!#REF!,1,2),IVA!W:W,0)),"SIN COD.") -> SIN COD. | CH69: =IFERROR(INDIRECT("IVA!Y"&MATCH(MID(COMPRAS!#REF!,1,2)&MID(COMPRAS!#REF!,1,2)&MID(COMPRAS!#REF!,1,2),IVA!W:W,0)),"SIN COD.") -> SIN COD.
AL70: 0 | AQ70: 0 | AR70: =IFERROR(IF(OR(AP70=338,AP70=340,AP70=341,AP70=342,AP70="342A",AP70="342B"),PorcenRet(AP70,AT70,AU70),INDEX(PORCENTAJEBUSCAR,MATCH(AP70,CódigoRET,0),4)*1),"") -> 0 | AS70: 0 | BF70: =IFERROR(IF(OR(BD70=338,BD70=340,BD70=341,BD70=342,BD70="342A",BD70="342B"),PorcenRet(BD70,BH70,BI70),INDEX(PORCENTAJEBUSCAR,MATCH(BD70,CódigoRET,0),4)*1),"") -> 0 | BG70: 0 | BO70: 0 | CC70: 0 | CD70: 0 | CG70: =IFERROR(INDIRECT("IVA!X"&MATCH(MID(COMPRAS!#REF!,1,2)&MID(COMPRAS!#REF!,1,2)&MID(COMPRAS!#REF!,1,2),IVA!W:W,0)),"SIN COD.") -> SIN COD. | CH70: =IFERROR(INDIRECT("IVA!Y"&MATCH(MID(COMPRAS!#REF!,1,2)&MID(COMPRAS!#REF!,1,2)&MID(COMPRAS!#REF!,1,2),IVA!W:W,0)),"SIN COD.") -> SIN COD.
AL71: 0 | AQ71: 0 | AR71: =IFERROR(IF(OR(AP71=338,AP71=340,AP71=341,AP71=342,AP71="342A",AP71="342B"),PorcenRet(AP71,AT71,AU71),INDEX(PORCENTAJEBUSCAR,MATCH(AP71,CódigoRET,0),4)*1),"") -> 0 | AS71: 0 | BF71: =IFERROR(IF(OR(BD71=338,BD71=340,BD71=341,BD71=342,BD71="342A",BD71="342B"),PorcenRet(BD71,BH71,BI71),INDEX(PORCENTAJEBUSCAR,MATCH(BD71,CódigoRET,0),4)*1),"") -> 0 | BG71: 0 | BO71: 0 | CC71: 0 | CD71: 0 | CG71: =IFERROR(INDIRECT("IVA!X"&MATCH(MID(COMPRAS!#REF!,1,2)&MID(COMPRAS!#REF!,1,2)&MID(COMPRAS!#REF!,1,2),IVA!W:W,0)),"SIN COD.") -> SIN COD. | CH71: =IFERROR(INDIRECT("IVA!Y"&MATCH(MID(COMPRAS!#REF!,1,2)&MID(COMPRAS!#REF!,1,2)&MID(COMPRAS!#REF!,1,2),IVA!W:W,0)),"SIN COD.") -> SIN COD.
AL72: 0 | AQ72: 0 | AR72: =IFERROR(IF(OR(AP72=338,AP72=340,AP72=341,AP72=342,AP72="342A",AP72="342B"),PorcenRet(AP72,AT72,AU72),INDEX(PORCENTAJEBUSCAR,MATCH(AP72,CódigoRET,0),4)*1),"") -> 0 | AS72: 0 | BF72: =IFERROR(IF(OR(BD72=338,BD72=340,BD72=341,BD72=342,BD72="342A",BD72="342B"),PorcenRet(BD72,BH72,BI72),INDEX(PORCENTAJEBUSCAR,MATCH(BD72,CódigoRET,0),4)*1),"") -> 0 | BG72: 0 | BO72: 0 | CC72: 0 | CD72: 0 | CG72: =IFERROR(INDIRECT("IVA!X"&MATCH(MID(COMPRAS!#REF!,1,2)&MID(COMPRAS!#REF!,1,2)&MID(COMPRAS!#REF!,1,2),IVA!W:W,0)),"SIN COD.") -> SIN COD. | CH72: =IFERROR(INDIRECT("IVA!Y"&MATCH(MID(COMPRAS!#REF!,1,2)&MID(COMPRAS!#REF!,1,2)&MID(COMPRAS!#REF!,1,2),IVA!W:W,0)),"SIN COD.") -> SIN COD.
AL73: 0 | AQ73: 0 | AR73: =IFERROR(IF(OR(AP73=338,AP73=340,AP73=341,AP73=342,AP73="342A",AP73="342B"),PorcenRet(AP73,AT73,AU73),INDEX(PORCENTAJEBUSCAR,MATCH(AP73,CódigoRET,0),4)*1),"") -> 0 | AS73: 0 | BF73: =IFERROR(IF(OR(BD73=338,BD73=340,BD73=341,BD73=342,BD73="342A",BD73="342B"),PorcenRet(BD73,BH73,BI73),INDEX(PORCENTAJEBUSCAR,MATCH(BD73,CódigoRET,0),4)*1),"") -> 0 | BG73: 0 | BO73: 0 | CC73: 0 | CD73: 0 | CG73: =IFERROR(INDIRECT("IVA!X"&MATCH(MID(COMPRAS!#REF!,1,2)&MID(COMPRAS!#REF!,1,2)&MID(COMPRAS!#REF!,1,2),IVA!W:W,0)),"SIN COD.") -> SIN COD. | CH73: =IFERROR(INDIRECT("IVA!Y"&MATCH(MID(COMPRAS!#REF!,1,2)&MID(COMPRAS!#REF!,1,2)&MID(COMPRAS!#REF!,1,2),IVA!W:W,0)),"SIN COD.") -> SIN COD.
AL74: 0 | AQ74: 0 | AR74: =IFERROR(IF(OR(AP74=338,AP74=340,AP74=341,AP74=342,AP74="342A",AP74="342B"),PorcenRet(AP74,AT74,AU74),INDEX(PORCENTAJEBUSCAR,MATCH(AP74,CódigoRET,0),4)*1),"") -> 0 | AS74: 0 | BF74: =IFERROR(IF(OR(BD74=338,BD74=340,BD74=341,BD74=342,BD74="342A",BD74="342B"),PorcenRet(BD74,BH74,BI74),INDEX(PORCENTAJEBUSCAR,MATCH(BD74,CódigoRET,0),4)*1),"") -> 0 | BG74: 0 | BO74: 0 | CC74: 0 | CD74: 0 | CG74: =IFERROR(INDIRECT("IVA!X"&MATCH(MID(COMPRAS!#REF!,1,2)&MID(COMPRAS!#REF!,1,2)&MID(COMPRAS!#REF!,1,2),IVA!W:W,0)),"SIN COD.") -> SIN COD. | CH74: =IFERROR(INDIRECT("IVA!Y"&MATCH(MID(COMPRAS!#REF!,1,2)&MID(COMPRAS!#REF!,1,2)&MID(COMPRAS!#REF!,1,2),IVA!W:W,0)),"SIN COD.") -> SIN COD.
AL75: 0 | AQ75: 0 | AR75: =IFERROR(IF(OR(AP75=338,AP75=340,AP75=341,AP75=342,AP75="342A",AP75="342B"),PorcenRet(AP75,AT75,AU75),INDEX(PORCENTAJEBUSCAR,MATCH(AP75,CódigoRET,0),4)*1),"") -> 0 | AS75: 0 | BF75: =IFERROR(IF(OR(BD75=338,BD75=340,BD75=341,BD75=342,BD75="342A",BD75="342B"),PorcenRet(BD75,BH75,BI75),INDEX(PORCENTAJEBUSCAR,MATCH(BD75,CódigoRET,0),4)*1),"") -> 0 | BG75: 0 | BO75: 0 | CC75: 0 | CD75: 0 | CG75: =IFERROR(INDIRECT("IVA!X"&MATCH(MID(COMPRAS!#REF!,1,2)&MID(COMPRAS!#REF!,1,2)&MID(COMPRAS!#REF!,1,2),IVA!W:W,0)),"SIN COD.") -> SIN COD. | CH75: =IFERROR(INDIRECT("IVA!Y"&MATCH(MID(COMPRAS!#REF!,1,2)&MID(COMPRAS!#REF!,1,2)&MID(COMPRAS!#REF!,1,2),IVA!W:W,0)),"SIN COD.") -> SIN COD.
AL76: 0 | AQ76: 0 | AR76: =IFERROR(IF(OR(AP76=338,AP76=340,AP76=341,AP76=342,AP76="342A",AP76="342B"),PorcenRet(AP76,AT76,AU76),INDEX(PORCENTAJEBUSCAR,MATCH(AP76,CódigoRET,0),4)*1),"") -> 0 | AS76: 0 | BF76: =IFERROR(IF(OR(BD76=338,BD76=340,BD76=341,BD76=342,BD76="342A",BD76="342B"),PorcenRet(BD76,BH76,BI76),INDEX(PORCENTAJEBUSCAR,MATCH(BD76,CódigoRET,0),4)*1),"") -> 0 | BG76: 0 | BO76: 0 | CC76: 0 | CD76: 0 | CG76: =IFERROR(INDIRECT("IVA!X"&MATCH(MID(COMPRAS!#REF!,1,2)&MID(COMPRAS!#REF!,1,2)&MID(COMPRAS!#REF!,1,2),IVA!W:W,0)),"SIN COD.") -> SIN COD. | CH76: =IFERROR(INDIRECT("IVA!Y"&MATCH(MID(COMPRAS!#REF!,1,2)&MID(COMPRAS!#REF!,1,2)&MID(COMPRAS!#REF!,1,2),IVA!W:W,0)),"SIN COD.") -> SIN COD.
AL77: 0 | AQ77: 0 | AR77: =IFERROR(IF(OR(AP77=338,AP77=340,AP77=341,AP77=342,AP77="342A",AP77="342B"),PorcenRet(AP77,AT77,AU77),INDEX(PORCENTAJEBUSCAR,MATCH(AP77,CódigoRET,0),4)*1),"") -> 0 | AS77: 0 | BF77: =IFERROR(IF(OR(BD77=338,BD77=340,BD77=341,BD77=342,BD77="342A",BD77="342B"),PorcenRet(BD77,BH77,BI77),INDEX(PORCENTAJEBUSCAR,MATCH(BD77,CódigoRET,0),4)*1),"") -> 0 | BG77: 0 | BO77: 0 | CC77: 0 | CD77: 0 | CG77: =IFERROR(INDIRECT("IVA!X"&MATCH(MID(COMPRAS!#REF!,1,2)&MID(COMPRAS!#REF!,1,2)&MID(COMPRAS!#REF!,1,2),IVA!W:W,0)),"SIN COD.") -> SIN COD. | CH77: =IFERROR(INDIRECT("IVA!Y"&MATCH(MID(COMPRAS!#REF!,1,2)&MID(COMPRAS!#REF!,1,2)&MID(COMPRAS!#REF!,1,2),IVA!W:W,0)),"SIN COD.") -> SIN COD.
AL78: 0 | AQ78: 0 | AR78: =IFERROR(IF(OR(AP78=338,AP78=340,AP78=341,AP78=342,AP78="342A",AP78="342B"),PorcenRet(AP78,AT78,AU78),INDEX(PORCENTAJEBUSCAR,MATCH(AP78,CódigoRET,0),4)*1),"") -> 0 | AS78: 0 | BF78: =IFERROR(IF(OR(BD78=338,BD78=340,BD78=341,BD78=342,BD78="342A",BD78="342B"),PorcenRet(BD78,BH78,BI78),INDEX(PORCENTAJEBUSCAR,MATCH(BD78,CódigoRET,0),4)*1),"") -> 0 | BG78: 0 | BO78: 0 | CC78: 0 | CD78: 0 | CG78: =IFERROR(INDIRECT("IVA!X"&MATCH(MID(COMPRAS!#REF!,1,2)&MID(COMPRAS!#REF!,1,2)&MID(COMPRAS!#REF!,1,2),IVA!W:W,0)),"SIN COD.") -> SIN COD. | CH78: =IFERROR(INDIRECT("IVA!Y"&MATCH(MID(COMPRAS!#REF!,1,2)&MID(COMPRAS!#REF!,1,2)&MID(COMPRAS!#REF!,1,2),IVA!W:W,0)),"SIN COD.") -> SIN COD.
AL79: 0 | AQ79: 0 | AR79: =IFERROR(IF(OR(AP79=338,AP79=340,AP79=341,AP79=342,AP79="342A",AP79="342B"),PorcenRet(AP79,AT79,AU79),INDEX(PORCENTAJEBUSCAR,MATCH(AP79,CódigoRET,0),4)*1),"") -> 0 | AS79: 0 | BF79: =IFERROR(IF(OR(BD79=338,BD79=340,BD79=341,BD79=342,BD79="342A",BD79="342B"),PorcenRet(BD79,BH79,BI79),INDEX(PORCENTAJEBUSCAR,MATCH(BD79,CódigoRET,0),4)*1),"") -> 0 | BG79: 0 | BO79: 0 | CC79: 0 | CD79: 0 | CG79: =IFERROR(INDIRECT("IVA!X"&MATCH(MID(COMPRAS!#REF!,1,2)&MID(COMPRAS!#REF!,1,2)&MID(COMPRAS!#REF!,1,2),IVA!W:W,0)),"SIN COD.") -> SIN COD. | CH79: =IFERROR(INDIRECT("IVA!Y"&MATCH(MID(COMPRAS!#REF!,1,2)&MID(COMPRAS!#REF!,1,2)&MID(COMPRAS!#REF!,1,2),IVA!W:W,0)),"SIN COD.") -> SIN COD.
AL80: 0 | AQ80: 0 | AR80: =IFERROR(IF(OR(AP80=338,AP80=340,AP80=341,AP80=342,AP80="342A",AP80="342B"),PorcenRet(AP80,AT80,AU80),INDEX(PORCENTAJEBUSCAR,MATCH(AP80,CódigoRET,0),4)*1),"") -> 0 | AS80: 0 | BF80: =IFERROR(IF(OR(BD80=338,BD80=340,BD80=341,BD80=342,BD80="342A",BD80="342B"),PorcenRet(BD80,BH80,BI80),INDEX(PORCENTAJEBUSCAR,MATCH(BD80,CódigoRET,0),4)*1),"") -> 0 | BG80: 0 | BO80: 0 | CC80: 0 | CD80: 0 | CG80: =IFERROR(INDIRECT("IVA!X"&MATCH(MID(COMPRAS!#REF!,1,2)&MID(COMPRAS!#REF!,1,2)&MID(COMPRAS!#REF!,1,2),IVA!W:W,0)),"SIN COD.") -> SIN COD. | CH80: =IFERROR(INDIRECT("IVA!Y"&MATCH(MID(COMPRAS!#REF!,1,2)&MID(COMPRAS!#REF!,1,2)&MID(COMPRAS!#REF!,1,2),IVA!W:W,0)),"SIN COD.") -> SIN COD.
AL81: 0 | AQ81: 0 | AR81: =IFERROR(IF(OR(AP81=338,AP81=340,AP81=341,AP81=342,AP81="342A",AP81="342B"),PorcenRet(AP81,AT81,AU81),INDEX(PORCENTAJEBUSCAR,MATCH(AP81,CódigoRET,0),4)*1),"") -> 0 | AS81: 0 | BF81: =IFERROR(IF(OR(BD81=338,BD81=340,BD81=341,BD81=342,BD81="342A",BD81="342B"),PorcenRet(BD81,BH81,BI81),INDEX(PORCENTAJEBUSCAR,MATCH(BD81,CódigoRET,0),4)*1),"") -> 0 | BG81: 0 | BO81: 0 | CC81: 0 | CD81: 0 | CG81: =IFERROR(INDIRECT("IVA!X"&MATCH(MID(COMPRAS!#REF!,1,2)&MID(COMPRAS!#REF!,1,2)&MID(COMPRAS!#REF!,1,2),IVA!W:W,0)),"SIN COD.") -> SIN COD. | CH81: =IFERROR(INDIRECT("IVA!Y"&MATCH(MID(COMPRAS!#REF!,1,2)&MID(COMPRAS!#REF!,1,2)&MID(COMPRAS!#REF!,1,2),IVA!W:W,0)),"SIN COD.") -> SIN COD.
AL82: 0 | AQ82: 0 | AR82: =IFERROR(IF(OR(AP82=338,AP82=340,AP82=341,AP82=342,AP82="342A",AP82="342B"),PorcenRet(AP82,AT82,AU82),INDEX(PORCENTAJEBUSCAR,MATCH(AP82,CódigoRET,0),4)*1),"") -> 0 | AS82: 0 | BF82: =IFERROR(IF(OR(BD82=338,BD82=340,BD82=341,BD82=342,BD82="342A",BD82="342B"),PorcenRet(BD82,BH82,BI82),INDEX(PORCENTAJEBUSCAR,MATCH(BD82,CódigoRET,0),4)*1),"") -> 0 | BG82: 0 | BO82: 0 | CC82: 0 | CD82: 0 | CG82: =IFERROR(INDIRECT("IVA!X"&MATCH(MID(COMPRAS!#REF!,1,2)&MID(COMPRAS!#REF!,1,2)&MID(COMPRAS!#REF!,1,2),IVA!W:W,0)),"SIN COD.") -> SIN COD. | CH82: =IFERROR(INDIRECT("IVA!Y"&MATCH(MID(COMPRAS!#REF!,1,2)&MID(COMPRAS!#REF!,1,2)&MID(COMPRAS!#REF!,1,2),IVA!W:W,0)),"SIN COD.") -> SIN COD.
AL83: 0 | AQ83: 0 | AR83: =IFERROR(IF(OR(AP83=338,AP83=340,AP83=341,AP83=342,AP83="342A",AP83="342B"),PorcenRet(AP83,AT83,AU83),INDEX(PORCENTAJEBUSCAR,MATCH(AP83,CódigoRET,0),4)*1),"") -> 0 | AS83: 0 | BF83: =IFERROR(IF(OR(BD83=338,BD83=340,BD83=341,BD83=342,BD83="342A",BD83="342B"),PorcenRet(BD83,BH83,BI83),INDEX(PORCENTAJEBUSCAR,MATCH(BD83,CódigoRET,0),4)*1),"") -> 0 | BG83: 0 | BO83: 0 | CC83: 0 | CD83: 0 | CG83: =IFERROR(INDIRECT("IVA!X"&MATCH(MID(COMPRAS!#REF!,1,2)&MID(COMPRAS!#REF!,1,2)&MID(COMPRAS!#REF!,1,2),IVA!W:W,0)),"SIN COD.") -> SIN COD. | CH83: =IFERROR(INDIRECT("IVA!Y"&MATCH(MID(COMPRAS!#REF!,1,2)&MID(COMPRAS!#REF!,1,2)&MID(COMPRAS!#REF!,1,2),IVA!W:W,0)),"SIN COD.") -> SIN COD.
AL84: 0 | AQ84: 0 | AR84: =IFERROR(IF(OR(AP84=338,AP84=340,AP84=341,AP84=342,AP84="342A",AP84="342B"),PorcenRet(AP84,AT84,AU84),INDEX(PORCENTAJEBUSCAR,MATCH(AP84,CódigoRET,0),4)*1),"") -> 0 | AS84: 0 | BF84: =IFERROR(IF(OR(BD84=338,BD84=340,BD84=341,BD84=342,BD84="342A",BD84="342B"),PorcenRet(BD84,BH84,BI84),INDEX(PORCENTAJEBUSCAR,MATCH(BD84,CódigoRET,0),4)*1),"") -> 0 | BG84: 0 | BO84: 0 | CC84: 0 | CD84: 0 | CG84: =IFERROR(INDIRECT("IVA!X"&MATCH(MID(COMPRAS!#REF!,1,2)&MID(COMPRAS!#REF!,1,2)&MID(COMPRAS!#REF!,1,2),IVA!W:W,0)),"SIN COD.") -> SIN COD. | CH84: =IFERROR(INDIRECT("IVA!Y"&MATCH(MID(COMPRAS!#REF!,1,2)&MID(COMPRAS!#REF!,1,2)&MID(COMPRAS!#REF!,1,2),IVA!W:W,0)),"SIN COD.") -> SIN COD.
AL85: 0 | AQ85: 0 | AR85: =IFERROR(IF(OR(AP85=338,AP85=340,AP85=341,AP85=342,AP85="342A",AP85="342B"),PorcenRet(AP85,AT85,AU85),INDEX(PORCENTAJEBUSCAR,MATCH(AP85,CódigoRET,0),4)*1),"") -> 0 | AS85: 0 | BF85: =IFERROR(IF(OR(BD85=338,BD85=340,BD85=341,BD85=342,BD85="342A",BD85="342B"),PorcenRet(BD85,BH85,BI85),INDEX(PORCENTAJEBUSCAR,MATCH(BD85,CódigoRET,0),4)*1),"") -> 0 | BG85: 0 | BO85: 0 | CC85: 0 | CD85: 0 | CG85: =IFERROR(INDIRECT("IVA!X"&MATCH(MID(COMPRAS!#REF!,1,2)&MID(COMPRAS!#REF!,1,2)&MID(COMPRAS!#REF!,1,2),IVA!W:W,0)),"SIN COD.") -> SIN COD. | CH85: =IFERROR(INDIRECT("IVA!Y"&MATCH(MID(COMPRAS!#REF!,1,2)&MID(COMPRAS!#REF!,1,2)&MID(COMPRAS!#REF!,1,2),IVA!W:W,0)),"SIN COD.") -> SIN COD.
AL86: 0 | AQ86: 0 | AR86: =IFERROR(IF(OR(AP86=338,AP86=340,AP86=341,AP86=342,AP86="342A",AP86="342B"),PorcenRet(AP86,AT86,AU86),INDEX(PORCENTAJEBUSCAR,MATCH(AP86,CódigoRET,0),4)*1),"") -> 0 | AS86: 0 | BF86: =IFERROR(IF(OR(BD86=338,BD86=340,BD86=341,BD86=342,BD86="342A",BD86="342B"),PorcenRet(BD86,BH86,BI86),INDEX(PORCENTAJEBUSCAR,MATCH(BD86,CódigoRET,0),4)*1),"") -> 0 | BG86: 0 | BO86: 0 | CC86: 0 | CD86: 0 | CG86: =IFERROR(INDIRECT("IVA!X"&MATCH(MID(COMPRAS!#REF!,1,2)&MID(COMPRAS!#REF!,1,2)&MID(COMPRAS!#REF!,1,2),IVA!W:W,0)),"SIN COD.") -> SIN COD. | CH86: =IFERROR(INDIRECT("IVA!Y"&MATCH(MID(COMPRAS!#REF!,1,2)&MID(COMPRAS!#REF!,1,2)&MID(COMPRAS!#REF!,1,2),IVA!W:W,0)),"SIN COD.") -> SIN COD.
AL87: 0 | AQ87: 0 | AR87: =IFERROR(IF(OR(AP87=338,AP87=340,AP87=341,AP87=342,AP87="342A",AP87="342B"),PorcenRet(AP87,AT87,AU87),INDEX(PORCENTAJEBUSCAR,MATCH(AP87,CódigoRET,0),4)*1),"") -> 0 | AS87: 0 | BF87: =IFERROR(IF(OR(BD87=338,BD87=340,BD87=341,BD87=342,BD87="342A",BD87="342B"),PorcenRet(BD87,BH87,BI87),INDEX(PORCENTAJEBUSCAR,MATCH(BD87,CódigoRET,0),4)*1),"") -> 0 | BG87: 0 | BO87: 0 | CC87: 0 | CD87: 0 | CG87: =IFERROR(INDIRECT("IVA!X"&MATCH(MID(COMPRAS!#REF!,1,2)&MID(COMPRAS!#REF!,1,2)&MID(COMPRAS!#REF!,1,2),IVA!W:W,0)),"SIN COD.") -> SIN COD. | CH87: =IFERROR(INDIRECT("IVA!Y"&MATCH(MID(COMPRAS!#REF!,1,2)&MID(COMPRAS!#REF!,1,2)&MID(COMPRAS!#REF!,1,2),IVA!W:W,0)),"SIN COD.") -> SIN COD.
AL88: 0 | AQ88: 0 | AR88: =IFERROR(IF(OR(AP88=338,AP88=340,AP88=341,AP88=342,AP88="342A",AP88="342B"),PorcenRet(AP88,AT88,AU88),INDEX(PORCENTAJEBUSCAR,MATCH(AP88,CódigoRET,0),4)*1),"") -> 0 | AS88: 0 | BF88: =IFERROR(IF(OR(BD88=338,BD88=340,BD88=341,BD88=342,BD88="342A",BD88="342B"),PorcenRet(BD88,BH88,BI88),INDEX(PORCENTAJEBUSCAR,MATCH(BD88,CódigoRET,0),4)*1),"") -> 0 | BG88: 0 | BO88: 0 | CC88: 0 | CD88: 0 | CG88: =IFERROR(INDIRECT("IVA!X"&MATCH(MID(COMPRAS!#REF!,1,2)&MID(COMPRAS!#REF!,1,2)&MID(COMPRAS!#REF!,1,2),IVA!W:W,0)),"SIN COD.") -> SIN COD. | CH88: =IFERROR(INDIRECT("IVA!Y"&MATCH(MID(COMPRAS!#REF!,1,2)&MID(COMPRAS!#REF!,1,2)&MID(COMPRAS!#REF!,1,2),IVA!W:W,0)),"SIN COD.") -> SIN COD.
AL89: 0 | AQ89: 0 | AR89: =IFERROR(IF(OR(AP89=338,AP89=340,AP89=341,AP89=342,AP89="342A",AP89="342B"),PorcenRet(AP89,AT89,AU89),INDEX(PORCENTAJEBUSCAR,MATCH(AP89,CódigoRET,0),4)*1),"") -> 0 | AS89: 0 | BF89: =IFERROR(IF(OR(BD89=338,BD89=340,BD89=341,BD89=342,BD89="342A",BD89="342B"),PorcenRet(BD89,BH89,BI89),INDEX(PORCENTAJEBUSCAR,MATCH(BD89,CódigoRET,0),4)*1),"") -> 0 | BG89: 0 | BO89: 0 | CC89: 0 | CD89: 0 | CG89: =IFERROR(INDIRECT("IVA!X"&MATCH(MID(COMPRAS!#REF!,1,2)&MID(COMPRAS!#REF!,1,2)&MID(COMPRAS!#REF!,1,2),IVA!W:W,0)),"SIN COD.") -> SIN COD. | CH89: =IFERROR(INDIRECT("IVA!Y"&MATCH(MID(COMPRAS!#REF!,1,2)&MID(COMPRAS!#REF!,1,2)&MID(COMPRAS!#REF!,1,2),IVA!W:W,0)),"SIN COD.") -> SIN COD.
AL90: 0 | AQ90: 0 | AR90: =IFERROR(IF(OR(AP90=338,AP90=340,AP90=341,AP90=342,AP90="342A",AP90="342B"),PorcenRet(AP90,AT90,AU90),INDEX(PORCENTAJEBUSCAR,MATCH(AP90,CódigoRET,0),4)*1),"") -> 0 | AS90: 0 | BF90: =IFERROR(IF(OR(BD90=338,BD90=340,BD90=341,BD90=342,BD90="342A",BD90="342B"),PorcenRet(BD90,BH90,BI90),INDEX(PORCENTAJEBUSCAR,MATCH(BD90,CódigoRET,0),4)*1),"") -> 0 | BG90: 0 | BO90: 0 | CC90: 0 | CD90: 0 | CG90: =IFERROR(INDIRECT("IVA!X"&MATCH(MID(COMPRAS!#REF!,1,2)&MID(COMPRAS!#REF!,1,2)&MID(COMPRAS!#REF!,1,2),IVA!W:W,0)),"SIN COD.") -> SIN COD. | CH90: =IFERROR(INDIRECT("IVA!Y"&MATCH(MID(COMPRAS!#REF!,1,2)&MID(COMPRAS!#REF!,1,2)&MID(COMPRAS!#REF!,1,2),IVA!W:W,0)),"SIN COD.") -> SIN COD.
AL91: 0 | AQ91: 0 | AR91: =IFERROR(IF(OR(AP91=338,AP91=340,AP91=341,AP91=342,AP91="342A",AP91="342B"),PorcenRet(AP91,AT91,AU91),INDEX(PORCENTAJEBUSCAR,MATCH(AP91,CódigoRET,0),4)*1),"") -> 0 | AS91: 0 | BF91: =IFERROR(IF(OR(BD91=338,BD91=340,BD91=341,BD91=342,BD91="342A",BD91="342B"),PorcenRet(BD91,BH91,BI91),INDEX(PORCENTAJEBUSCAR,MATCH(BD91,CódigoRET,0),4)*1),"") -> 0 | BG91: 0 | BO91: 0 | CC91: 0 | CD91: 0 | CG91: =IFERROR(INDIRECT("IVA!X"&MATCH(MID(COMPRAS!#REF!,1,2)&MID(COMPRAS!#REF!,1,2)&MID(COMPRAS!#REF!,1,2),IVA!W:W,0)),"SIN COD.") -> SIN COD. | CH91: =IFERROR(INDIRECT("IVA!Y"&MATCH(MID(COMPRAS!#REF!,1,2)&MID(COMPRAS!#REF!,1,2)&MID(COMPRAS!#REF!,1,2),IVA!W:W,0)),"SIN COD.") -> SIN COD.
AL92: 0 | AQ92: 0 | AR92: =IFERROR(IF(OR(AP92=338,AP92=340,AP92=341,AP92=342,AP92="342A",AP92="342B"),PorcenRet(AP92,AT92,AU92),INDEX(PORCENTAJEBUSCAR,MATCH(AP92,CódigoRET,0),4)*1),"") -> 0 | AS92: 0 | BF92: =IFERROR(IF(OR(BD92=338,BD92=340,BD92=341,BD92=342,BD92="342A",BD92="342B"),PorcenRet(BD92,BH92,BI92),INDEX(PORCENTAJEBUSCAR,MATCH(BD92,CódigoRET,0),4)*1),"") -> 0 | BG92: 0 | BO92: 0 | CC92: 0 | CD92: 0 | CG92: =IFERROR(INDIRECT("IVA!X"&MATCH(MID(COMPRAS!#REF!,1,2)&MID(COMPRAS!#REF!,1,2)&MID(COMPRAS!#REF!,1,2),IVA!W:W,0)),"SIN COD.") -> SIN COD. | CH92: =IFERROR(INDIRECT("IVA!Y"&MATCH(MID(COMPRAS!#REF!,1,2)&MID(COMPRAS!#REF!,1,2)&MID(COMPRAS!#REF!,1,2),IVA!W:W,0)),"SIN COD.") -> SIN COD.
AL93: 0 | AQ93: 0 | AR93: =IFERROR(IF(OR(AP93=338,AP93=340,AP93=341,AP93=342,AP93="342A",AP93="342B"),PorcenRet(AP93,AT93,AU93),INDEX(PORCENTAJEBUSCAR,MATCH(AP93,CódigoRET,0),4)*1),"") -> 0 | AS93: 0 | BF93: =IFERROR(IF(OR(BD93=338,BD93=340,BD93=341,BD93=342,BD93="342A",BD93="342B"),PorcenRet(BD93,BH93,BI93),INDEX(PORCENTAJEBUSCAR,MATCH(BD93,CódigoRET,0),4)*1),"") -> 0 | BG93: 0 | BO93: 0 | CC93: 0 | CD93: 0 | CG93: =IFERROR(INDIRECT("IVA!X"&MATCH(MID(COMPRAS!#REF!,1,2)&MID(COMPRAS!#REF!,1,2)&MID(COMPRAS!#REF!,1,2),IVA!W:W,0)),"SIN COD.") -> SIN COD. | CH93: =IFERROR(INDIRECT("IVA!Y"&MATCH(MID(COMPRAS!#REF!,1,2)&MID(COMPRAS!#REF!,1,2)&MID(COMPRAS!#REF!,1,2),IVA!W:W,0)),"SIN COD.") -> SIN COD.
AL94: 0 | AQ94: 0 | AR94: =IFERROR(IF(OR(AP94=338,AP94=340,AP94=341,AP94=342,AP94="342A",AP94="342B"),PorcenRet(AP94,AT94,AU94),INDEX(PORCENTAJEBUSCAR,MATCH(AP94,CódigoRET,0),4)*1),"") -> 0 | AS94: 0 | BF94: =IFERROR(IF(OR(BD94=338,BD94=340,BD94=341,BD94=342,BD94="342A",BD94="342B"),PorcenRet(BD94,BH94,BI94),INDEX(PORCENTAJEBUSCAR,MATCH(BD94,CódigoRET,0),4)*1),"") -> 0 | BG94: 0 | BO94: 0 | CC94: 0 | CD94: 0 | CG94: =IFERROR(INDIRECT("IVA!X"&MATCH(MID(COMPRAS!#REF!,1,2)&MID(COMPRAS!#REF!,1,2)&MID(COMPRAS!#REF!,1,2),IVA!W:W,0)),"SIN COD.") -> SIN COD. | CH94: =IFERROR(INDIRECT("IVA!Y"&MATCH(MID(COMPRAS!#REF!,1,2)&MID(COMPRAS!#REF!,1,2)&MID(COMPRAS!#REF!,1,2),IVA!W:W,0)),"SIN COD.") -> SIN COD.
AL95: 0 | AQ95: 0 | AR95: =IFERROR(IF(OR(AP95=338,AP95=340,AP95=341,AP95=342,AP95="342A",AP95="342B"),PorcenRet(AP95,AT95,AU95),INDEX(PORCENTAJEBUSCAR,MATCH(AP95,CódigoRET,0),4)*1),"") -> 0 | AS95: 0 | BF95: =IFERROR(IF(OR(BD95=338,BD95=340,BD95=341,BD95=342,BD95="342A",BD95="342B"),PorcenRet(BD95,BH95,BI95),INDEX(PORCENTAJEBUSCAR,MATCH(BD95,CódigoRET,0),4)*1),"") -> 0 | BG95: 0 | BO95: 0 | CC95: 0 | CD95: 0 | CG95: =IFERROR(INDIRECT("IVA!X"&MATCH(MID(COMPRAS!#REF!,1,2)&MID(COMPRAS!#REF!,1,2)&MID(COMPRAS!#REF!,1,2),IVA!W:W,0)),"SIN COD.") -> SIN COD. | CH95: =IFERROR(INDIRECT("IVA!Y"&MATCH(MID(COMPRAS!#REF!,1,2)&MID(COMPRAS!#REF!,1,2)&MID(COMPRAS!#REF!,1,2),IVA!W:W,0)),"SIN COD.") -> SIN COD.
AL96: 0 | AQ96: 0 | AR96: =IFERROR(IF(OR(AP96=338,AP96=340,AP96=341,AP96=342,AP96="342A",AP96="342B"),PorcenRet(AP96,AT96,AU96),INDEX(PORCENTAJEBUSCAR,MATCH(AP96,CódigoRET,0),4)*1),"") -> 0 | AS96: 0 | BF96: =IFERROR(IF(OR(BD96=338,BD96=340,BD96=341,BD96=342,BD96="342A",BD96="342B"),PorcenRet(BD96,BH96,BI96),INDEX(PORCENTAJEBUSCAR,MATCH(BD96,CódigoRET,0),4)*1),"") -> 0 | BG96: 0 | BO96: 0 | CC96: 0 | CD96: 0 | CG96: =IFERROR(INDIRECT("IVA!X"&MATCH(MID(COMPRAS!#REF!,1,2)&MID(COMPRAS!#REF!,1,2)&MID(COMPRAS!#REF!,1,2),IVA!W:W,0)),"SIN COD.") -> SIN COD. | CH96: =IFERROR(INDIRECT("IVA!Y"&MATCH(MID(COMPRAS!#REF!,1,2)&MID(COMPRAS!#REF!,1,2)&MID(COMPRAS!#REF!,1,2),IVA!W:W,0)),"SIN COD.") -> SIN COD.
AL97: 0 | AQ97: 0 | AR97: =IFERROR(IF(OR(AP97=338,AP97=340,AP97=341,AP97=342,AP97="342A",AP97="342B"),PorcenRet(AP97,AT97,AU97),INDEX(PORCENTAJEBUSCAR,MATCH(AP97,CódigoRET,0),4)*1),"") -> 0 | AS97: 0 | BF97: =IFERROR(IF(OR(BD97=338,BD97=340,BD97=341,BD97=342,BD97="342A",BD97="342B"),PorcenRet(BD97,BH97,BI97),INDEX(PORCENTAJEBUSCAR,MATCH(BD97,CódigoRET,0),4)*1),"") -> 0 | BG97: 0 | BO97: 0 | CC97: 0 | CD97: 0 | CG97: =IFERROR(INDIRECT("IVA!X"&MATCH(MID(COMPRAS!#REF!,1,2)&MID(COMPRAS!#REF!,1,2)&MID(COMPRAS!#REF!,1,2),IVA!W:W,0)),"SIN COD.") -> SIN COD. | CH97: =IFERROR(INDIRECT("IVA!Y"&MATCH(MID(COMPRAS!#REF!,1,2)&MID(COMPRAS!#REF!,1,2)&MID(COMPRAS!#REF!,1,2),IVA!W:W,0)),"SIN COD.") -> SIN COD.
AL98: 0 | AQ98: 0 | AR98: =IFERROR(IF(OR(AP98=338,AP98=340,AP98=341,AP98=342,AP98="342A",AP98="342B"),PorcenRet(AP98,AT98,AU98),INDEX(PORCENTAJEBUSCAR,MATCH(AP98,CódigoRET,0),4)*1),"") -> 0 | AS98: 0 | BF98: =IFERROR(IF(OR(BD98=338,BD98=340,BD98=341,BD98=342,BD98="342A",BD98="342B"),PorcenRet(BD98,BH98,BI98),INDEX(PORCENTAJEBUSCAR,MATCH(BD98,CódigoRET,0),4)*1),"") -> 0 | BG98: 0 | BO98: 0 | CC98: 0 | CD98: 0 | CG98: =IFERROR(INDIRECT("IVA!X"&MATCH(MID(COMPRAS!#REF!,1,2)&MID(COMPRAS!#REF!,1,2)&MID(COMPRAS!#REF!,1,2),IVA!W:W,0)),"SIN COD.") -> SIN COD. | CH98: =IFERROR(INDIRECT("IVA!Y"&MATCH(MID(COMPRAS!#REF!,1,2)&MID(COMPRAS!#REF!,1,2)&MID(COMPRAS!#REF!,1,2),IVA!W:W,0)),"SIN COD.") -> SIN COD.
AL99: 0 | AQ99: 0 | AR99: =IFERROR(IF(OR(AP99=338,AP99=340,AP99=341,AP99=342,AP99="342A",AP99="342B"),PorcenRet(AP99,AT99,AU99),INDEX(PORCENTAJEBUSCAR,MATCH(AP99,CódigoRET,0),4)*1),"") -> 0 | AS99: 0 | BF99: =IFERROR(IF(OR(BD99=338,BD99=340,BD99=341,BD99=342,BD99="342A",BD99="342B"),PorcenRet(BD99,BH99,BI99),INDEX(PORCENTAJEBUSCAR,MATCH(BD99,CódigoRET,0),4)*1),"") -> 0 | BG99: 0 | BO99: 0 | CC99: 0 | CD99: 0 | CG99: =IFERROR(INDIRECT("IVA!X"&MATCH(MID(COMPRAS!#REF!,1,2)&MID(COMPRAS!#REF!,1,2)&MID(COMPRAS!#REF!,1,2),IVA!W:W,0)),"SIN COD.") -> SIN COD. | CH99: =IFERROR(INDIRECT("IVA!Y"&MATCH(MID(COMPRAS!#REF!,1,2)&MID(COMPRAS!#REF!,1,2)&MID(COMPRAS!#REF!,1,2),IVA!W:W,0)),"SIN COD.") -> SIN COD.
AL100: 0 | AQ100: 0 | AR100: =IFERROR(IF(OR(AP100=338,AP100=340,AP100=341,AP100=342,AP100="342A",AP100="342B"),PorcenRet(AP100,AT100,AU100),INDEX(PORCENTAJEBUSCAR,MATCH(AP100,CódigoRET,0),4)*1),"") -> 0 | AS100: 0 | BF100: =IFERROR(IF(OR(BD100=338,BD100=340,BD100=341,BD100=342,BD100="342A",BD100="342B"),PorcenRet(BD100,BH100,BI100),INDEX(PORCENTAJEBUSCAR,MATCH(BD100,CódigoRET,0),4)*1),"") -> 0 | BG100: 0 | BO100: 0 | CC100: 0 | CD100: 0 | CG100: =IFERROR(INDIRECT("IVA!X"&MATCH(MID(COMPRAS!#REF!,1,2)&MID(COMPRAS!#REF!,1,2)&MID(COMPRAS!#REF!,1,2),IVA!W:W,0)),"SIN COD.") -> SIN COD. | CH100: =IFERROR(INDIRECT("IVA!Y"&MATCH(MID(COMPRAS!#REF!,1,2)&MID(COMPRAS!#REF!,1,2)&MID(COMPRAS!#REF!,1,2),IVA!W:W,0)),"SIN COD.") -> SIN COD.
AL101: 0 | AQ101: 0 | AR101: =IFERROR(IF(OR(AP101=338,AP101=340,AP101=341,AP101=342,AP101="342A",AP101="342B"),PorcenRet(AP101,AT101,AU101),INDEX(PORCENTAJEBUSCAR,MATCH(AP101,CódigoRET,0),4)*1),"") -> 0 | AS101: 0 | BF101: =IFERROR(IF(OR(BD101=338,BD101=340,BD101=341,BD101=342,BD101="342A",BD101="342B"),PorcenRet(BD101,BH101,BI101),INDEX(PORCENTAJEBUSCAR,MATCH(BD101,CódigoRET,0),4)*1),"") -> 0 | BG101: 0 | BO101: 0 | CC101: 0 | CD101: 0 | CG101: =IFERROR(INDIRECT("IVA!X"&MATCH(MID(COMPRAS!#REF!,1,2)&MID(COMPRAS!#REF!,1,2)&MID(COMPRAS!#REF!,1,2),IVA!W:W,0)),"SIN COD.") -> SIN COD. | CH101: =IFERROR(INDIRECT("IVA!Y"&MATCH(MID(COMPRAS!#REF!,1,2)&MID(COMPRAS!#REF!,1,2)&MID(COMPRAS!#REF!,1,2),IVA!W:W,0)),"SIN COD.") -> SIN COD.
AL102: 0 | AQ102: 0 | AR102: =IFERROR(IF(OR(AP102=338,AP102=340,AP102=341,AP102=342,AP102="342A",AP102="342B"),PorcenRet(AP102,AT102,AU102),INDEX(PORCENTAJEBUSCAR,MATCH(AP102,CódigoRET,0),4)*1),"") -> 0 | AS102: 0 | BF102: =IFERROR(IF(OR(BD102=338,BD102=340,BD102=341,BD102=342,BD102="342A",BD102="342B"),PorcenRet(BD102,BH102,BI102),INDEX(PORCENTAJEBUSCAR,MATCH(BD102,CódigoRET,0),4)*1),"") -> 0 | BG102: 0 | BO102: 0 | CC102: 0 | CD102: 0 | CG102: =IFERROR(INDIRECT("IVA!X"&MATCH(MID(COMPRAS!#REF!,1,2)&MID(COMPRAS!#REF!,1,2)&MID(COMPRAS!#REF!,1,2),IVA!W:W,0)),"SIN COD.") -> SIN COD. | CH102: =IFERROR(INDIRECT("IVA!Y"&MATCH(MID(COMPRAS!#REF!,1,2)&MID(COMPRAS!#REF!,1,2)&MID(COMPRAS!#REF!,1,2),IVA!W:W,0)),"SIN COD.") -> SIN COD.
AL103: 0 | AQ103: 0 | AR103: =IFERROR(IF(OR(AP103=338,AP103=340,AP103=341,AP103=342,AP103="342A",AP103="342B"),PorcenRet(AP103,AT103,AU103),INDEX(PORCENTAJEBUSCAR,MATCH(AP103,CódigoRET,0),4)*1),"") -> 0 | AS103: 0 | BF103: =IFERROR(IF(OR(BD103=338,BD103=340,BD103=341,BD103=342,BD103="342A",BD103="342B"),PorcenRet(BD103,BH103,BI103),INDEX(PORCENTAJEBUSCAR,MATCH(BD103,CódigoRET,0),4)*1),"") -> 0 | BG103: 0 | BO103: 0 | CC103: 0 | CD103: 0 | CG103: =IFERROR(INDIRECT("IVA!X"&MATCH(MID(COMPRAS!#REF!,1,2)&MID(COMPRAS!#REF!,1,2)&MID(COMPRAS!#REF!,1,2),IVA!W:W,0)),"SIN COD.") -> SIN COD. | CH103: =IFERROR(INDIRECT("IVA!Y"&MATCH(MID(COMPRAS!#REF!,1,2)&MID(COMPRAS!#REF!,1,2)&MID(COMPRAS!#REF!,1,2),IVA!W:W,0)),"SIN COD.") -> SIN COD.
AL104: 0 | AQ104: 0 | AR104: =IFERROR(IF(OR(AP104=338,AP104=340,AP104=341,AP104=342,AP104="342A",AP104="342B"),PorcenRet(AP104,AT104,AU104),INDEX(PORCENTAJEBUSCAR,MATCH(AP104,CódigoRET,0),4)*1),"") -> 0 | AS104: 0 | BF104: =IFERROR(IF(OR(BD104=338,BD104=340,BD104=341,BD104=342,BD104="342A",BD104="342B"),PorcenRet(BD104,BH104,BI104),INDEX(PORCENTAJEBUSCAR,MATCH(BD104,CódigoRET,0),4)*1),"") -> 0 | BG104: 0 | BO104: 0 | CC104: 0 | CD104: 0 | CG104: =IFERROR(INDIRECT("IVA!X"&MATCH(MID(COMPRAS!#REF!,1,2)&MID(COMPRAS!#REF!,1,2)&MID(COMPRAS!#REF!,1,2),IVA!W:W,0)),"SIN COD.") -> SIN COD. | CH104: =IFERROR(INDIRECT("IVA!Y"&MATCH(MID(COMPRAS!#REF!,1,2)&MID(COMPRAS!#REF!,1,2)&MID(COMPRAS!#REF!,1,2),IVA!W:W,0)),"SIN COD.") -> SIN COD.
AL105: 0 | AQ105: 0 | AR105: =IFERROR(IF(OR(AP105=338,AP105=340,AP105=341,AP105=342,AP105="342A",AP105="342B"),PorcenRet(AP105,AT105,AU105),INDEX(PORCENTAJEBUSCAR,MATCH(AP105,CódigoRET,0),4)*1),"") -> 0 | AS105: 0 | BF105: =IFERROR(IF(OR(BD105=338,BD105=340,BD105=341,BD105=342,BD105="342A",BD105="342B"),PorcenRet(BD105,BH105,BI105),INDEX(PORCENTAJEBUSCAR,MATCH(BD105,CódigoRET,0),4)*1),"") -> 0 | BG105: 0 | BO105: 0 | CC105: 0 | CD105: 0 | CG105: =IFERROR(INDIRECT("IVA!X"&MATCH(MID(COMPRAS!#REF!,1,2)&MID(COMPRAS!#REF!,1,2)&MID(COMPRAS!#REF!,1,2),IVA!W:W,0)),"SIN COD.") -> SIN COD. | CH105: =IFERROR(INDIRECT("IVA!Y"&MATCH(MID(COMPRAS!#REF!,1,2)&MID(COMPRAS!#REF!,1,2)&MID(COMPRAS!#REF!,1,2),IVA!W:W,0)),"SIN COD.") -> SIN COD.
AL106: 0 | AQ106: 0 | AR106: =IFERROR(IF(OR(AP106=338,AP106=340,AP106=341,AP106=342,AP106="342A",AP106="342B"),PorcenRet(AP106,AT106,AU106),INDEX(PORCENTAJEBUSCAR,MATCH(AP106,CódigoRET,0),4)*1),"") -> 0 | AS106: 0 | BF106: =IFERROR(IF(OR(BD106=338,BD106=340,BD106=341,BD106=342,BD106="342A",BD106="342B"),PorcenRet(BD106,BH106,BI106),INDEX(PORCENTAJEBUSCAR,MATCH(BD106,CódigoRET,0),4)*1),"") -> 0 | BG106: 0 | BO106: 0 | CC106: 0 | CD106: 0 | CG106: =IFERROR(INDIRECT("IVA!X"&MATCH(MID(COMPRAS!#REF!,1,2)&MID(COMPRAS!#REF!,1,2)&MID(COMPRAS!#REF!,1,2),IVA!W:W,0)),"SIN COD.") -> SIN COD. | CH106: =IFERROR(INDIRECT("IVA!Y"&MATCH(MID(COMPRAS!#REF!,1,2)&MID(COMPRAS!#REF!,1,2)&MID(COMPRAS!#REF!,1,2),IVA!W:W,0)),"SIN COD.") -> SIN COD.
AL107: 0 | AQ107: 0 | AR107: =IFERROR(IF(OR(AP107=338,AP107=340,AP107=341,AP107=342,AP107="342A",AP107="342B"),PorcenRet(AP107,AT107,AU107),INDEX(PORCENTAJEBUSCAR,MATCH(AP107,CódigoRET,0),4)*1),"") -> 0 | AS107: 0 | BF107: =IFERROR(IF(OR(BD107=338,BD107=340,BD107=341,BD107=342,BD107="342A",BD107="342B"),PorcenRet(BD107,BH107,BI107),INDEX(PORCENTAJEBUSCAR,MATCH(BD107,CódigoRET,0),4)*1),"") -> 0 | BG107: 0 | BO107: 0 | CC107: 0 | CD107: 0 | CG107: =IFERROR(INDIRECT("IVA!X"&MATCH(MID(COMPRAS!#REF!,1,2)&MID(COMPRAS!#REF!,1,2)&MID(COMPRAS!#REF!,1,2),IVA!W:W,0)),"SIN COD.") -> SIN COD. | CH107: =IFERROR(INDIRECT("IVA!Y"&MATCH(MID(COMPRAS!#REF!,1,2)&MID(COMPRAS!#REF!,1,2)&MID(COMPRAS!#REF!,1,2),IVA!W:W,0)),"SIN COD.") -> SIN COD.
AL108: 0 | AQ108: 0 | AR108: =IFERROR(IF(OR(AP108=338,AP108=340,AP108=341,AP108=342,AP108="342A",AP108="342B"),PorcenRet(AP108,AT108,AU108),INDEX(PORCENTAJEBUSCAR,MATCH(AP108,CódigoRET,0),4)*1),"") -> 0 | AS108: 0 | BF108: =IFERROR(IF(OR(BD108=338,BD108=340,BD108=341,BD108=342,BD108="342A",BD108="342B"),PorcenRet(BD108,BH108,BI108),INDEX(PORCENTAJEBUSCAR,MATCH(BD108,CódigoRET,0),4)*1),"") -> 0 | BG108: 0 | BO108: 0 | CC108: 0 | CD108: 0 | CG108: =IFERROR(INDIRECT("IVA!X"&MATCH(MID(COMPRAS!#REF!,1,2)&MID(COMPRAS!#REF!,1,2)&MID(COMPRAS!#REF!,1,2),IVA!W:W,0)),"SIN COD.") -> SIN COD. | CH108: =IFERROR(INDIRECT("IVA!Y"&MATCH(MID(COMPRAS!#REF!,1,2)&MID(COMPRAS!#REF!,1,2)&MID(COMPRAS!#REF!,1,2),IVA!W:W,0)),"SIN COD.") -> SIN COD.
AL109: 0 | AQ109: 0 | AR109: =IFERROR(IF(OR(AP109=338,AP109=340,AP109=341,AP109=342,AP109="342A",AP109="342B"),PorcenRet(AP109,AT109,AU109),INDEX(PORCENTAJEBUSCAR,MATCH(AP109,CódigoRET,0),4)*1),"") -> 0 | AS109: 0 | BF109: =IFERROR(IF(OR(BD109=338,BD109=340,BD109=341,BD109=342,BD109="342A",BD109="342B"),PorcenRet(BD109,BH109,BI109),INDEX(PORCENTAJEBUSCAR,MATCH(BD109,CódigoRET,0),4)*1),"") -> 0 | BG109: 0 | BO109: 0 | CC109: 0 | CD109: 0 | CG109: =IFERROR(INDIRECT("IVA!X"&MATCH(MID(COMPRAS!C5,1,2)&MID(COMPRAS!F5,1,2)&MID(COMPRAS!D5,1,2),IVA!W:W,0)),"SIN COD.") -> 0 | CH109: =IFERROR(INDIRECT("IVA!Y"&MATCH(MID(COMPRAS!C5,1,2)&MID(COMPRAS!F5,1,2)&MID(COMPRAS!D5,1,2),IVA!W:W,0)),"SIN COD.") -> 0
AL110: 0 | AQ110: 0 | AR110: =IFERROR(IF(OR(AP110=338,AP110=340,AP110=341,AP110=342,AP110="342A",AP110="342B"),PorcenRet(AP110,AT110,AU110),INDEX(PORCENTAJEBUSCAR,MATCH(AP110,CódigoRET,0),4)*1),"") -> 0 | AS110: 0 | BF110: =IFERROR(IF(OR(BD110=338,BD110=340,BD110=341,BD110=342,BD110="342A",BD110="342B"),PorcenRet(BD110,BH110,BI110),INDEX(PORCENTAJEBUSCAR,MATCH(BD110,CódigoRET,0),4)*1),"") -> 0 | BG110: 0 | BO110: 0 | CC110: 0 | CD110: 0 | CG110: =IFERROR(INDIRECT("IVA!X"&MATCH(MID(COMPRAS!C6,1,2)&MID(COMPRAS!F6,1,2)&MID(COMPRAS!D6,1,2),IVA!W:W,0)),"SIN COD.") -> 0 | CH110: =IFERROR(INDIRECT("IVA!Y"&MATCH(MID(COMPRAS!C6,1,2)&MID(COMPRAS!F6,1,2)&MID(COMPRAS!D6,1,2),IVA!W:W,0)),"SIN COD.") -> 0
AL111: 0 | AQ111: 0 | AR111: =IFERROR(IF(OR(AP111=338,AP111=340,AP111=341,AP111=342,AP111="342A",AP111="342B"),PorcenRet(AP111,AT111,AU111),INDEX(PORCENTAJEBUSCAR,MATCH(AP111,CódigoRET,0),4)*1),"") -> 0 | AS111: 0 | BF111: =IFERROR(IF(OR(BD111=338,BD111=340,BD111=341,BD111=342,BD111="342A",BD111="342B"),PorcenRet(BD111,BH111,BI111),INDEX(PORCENTAJEBUSCAR,MATCH(BD111,CódigoRET,0),4)*1),"") -> 0 | BG111: 0 | BO111: 0 | CC111: 0 | CD111: 0 | CG111: =IFERROR(INDIRECT("IVA!X"&MATCH(MID(COMPRAS!C7,1,2)&MID(COMPRAS!F7,1,2)&MID(COMPRAS!D7,1,2),IVA!W:W,0)),"SIN COD.") -> 0 | CH111: =IFERROR(INDIRECT("IVA!Y"&MATCH(MID(COMPRAS!C7,1,2)&MID(COMPRAS!F7,1,2)&MID(COMPRAS!D7,1,2),IVA!W:W,0)),"SIN COD.") -> 0
AL112: 0 | AQ112: 0 | AR112: =IFERROR(IF(OR(AP112=338,AP112=340,AP112=341,AP112=342,AP112="342A",AP112="342B"),PorcenRet(AP112,AT112,AU112),INDEX(PORCENTAJEBUSCAR,MATCH(AP112,CódigoRET,0),4)*1),"") -> 0 | AS112: 0 | BF112: =IFERROR(IF(OR(BD112=338,BD112=340,BD112=341,BD112=342,BD112="342A",BD112="342B"),PorcenRet(BD112,BH112,BI112),INDEX(PORCENTAJEBUSCAR,MATCH(BD112,CódigoRET,0),4)*1),"") -> 0 | BG112: 0 | BO112: 0 | CC112: 0 | CD112: 0 | CG112: =IFERROR(INDIRECT("IVA!X"&MATCH(MID(COMPRAS!C8,1,2)&MID(COMPRAS!F8,1,2)&MID(COMPRAS!D8,1,2),IVA!W:W,0)),"SIN COD.") -> 0 | CH112: =IFERROR(INDIRECT("IVA!Y"&MATCH(MID(COMPRAS!C8,1,2)&MID(COMPRAS!F8,1,2)&MID(COMPRAS!D8,1,2),IVA!W:W,0)),"SIN COD.") -> 0
AL113: 0 | AQ113: 0 | AR113: =IFERROR(IF(OR(AP113=338,AP113=340,AP113=341,AP113=342,AP113="342A",AP113="342B"),PorcenRet(AP113,AT113,AU113),INDEX(PORCENTAJEBUSCAR,MATCH(AP113,CódigoRET,0),4)*1),"") -> 0 | AS113: 0 | BF113: =IFERROR(IF(OR(BD113=338,BD113=340,BD113=341,BD113=342,BD113="342A",BD113="342B"),PorcenRet(BD113,BH113,BI113),INDEX(PORCENTAJEBUSCAR,MATCH(BD113,CódigoRET,0),4)*1),"") -> 0 | BG113: 0 | BO113: 0 | CC113: 0 | CD113: 0 | CG113: =IFERROR(INDIRECT("IVA!X"&MATCH(MID(COMPRAS!C9,1,2)&MID(COMPRAS!F9,1,2)&MID(COMPRAS!D9,1,2),IVA!W:W,0)),"SIN COD.") -> 0 | CH113: =IFERROR(INDIRECT("IVA!Y"&MATCH(MID(COMPRAS!C9,1,2)&MID(COMPRAS!F9,1,2)&MID(COMPRAS!D9,1,2),IVA!W:W,0)),"SIN COD.") -> 0
AL114: 0 | AQ114: 0 | AR114: =IFERROR(IF(OR(AP114=338,AP114=340,AP114=341,AP114=342,AP114="342A",AP114="342B"),PorcenRet(AP114,AT114,AU114),INDEX(PORCENTAJEBUSCAR,MATCH(AP114,CódigoRET,0),4)*1),"") -> 0 | AS114: 0 | BF114: =IFERROR(IF(OR(BD114=338,BD114=340,BD114=341,BD114=342,BD114="342A",BD114="342B"),PorcenRet(BD114,BH114,BI114),INDEX(PORCENTAJEBUSCAR,MATCH(BD114,CódigoRET,0),4)*1),"") -> 0 | BG114: 0 | BO114: 0 | CC114: 0 | CD114: 0 | CG114: =IFERROR(INDIRECT("IVA!X"&MATCH(MID(COMPRAS!C10,1,2)&MID(COMPRAS!F10,1,2)&MID(COMPRAS!D10,1,2),IVA!W:W,0)),"SIN COD.") -> 0 | CH114: =IFERROR(INDIRECT("IVA!Y"&MATCH(MID(COMPRAS!C10,1,2)&MID(COMPRAS!F10,1,2)&MID(COMPRAS!D10,1,2),IVA!W:W,0)),"SIN COD.") -> 0
AL115: 0 | AQ115: 0 | AR115: =IFERROR(IF(OR(AP115=338,AP115=340,AP115=341,AP115=342,AP115="342A",AP115="342B"),PorcenRet(AP115,AT115,AU115),INDEX(PORCENTAJEBUSCAR,MATCH(AP115,CódigoRET,0),4)*1),"") -> 0 | AS115: 0 | BF115: =IFERROR(IF(OR(BD115=338,BD115=340,BD115=341,BD115=342,BD115="342A",BD115="342B"),PorcenRet(BD115,BH115,BI115),INDEX(PORCENTAJEBUSCAR,MATCH(BD115,CódigoRET,0),4)*1),"") -> 0 | BG115: 0 | BO115: 0 | CC115: 0 | CD115: 0 | CG115: =IFERROR(INDIRECT("IVA!X"&MATCH(MID(COMPRAS!C11,1,2)&MID(COMPRAS!F11,1,2)&MID(COMPRAS!D11,1,2),IVA!W:W,0)),"SIN COD.") -> 0 | CH115: =IFERROR(INDIRECT("IVA!Y"&MATCH(MID(COMPRAS!C11,1,2)&MID(COMPRAS!F11,1,2)&MID(COMPRAS!D11,1,2),IVA!W:W,0)),"SIN COD.") -> 0
AL116: 0 | AQ116: 0 | AR116: =IFERROR(IF(OR(AP116=338,AP116=340,AP116=341,AP116=342,AP116="342A",AP116="342B"),PorcenRet(AP116,AT116,AU116),INDEX(PORCENTAJEBUSCAR,MATCH(AP116,CódigoRET,0),4)*1),"") -> 0 | AS116: 0 | BF116: =IFERROR(IF(OR(BD116=338,BD116=340,BD116=341,BD116=342,BD116="342A",BD116="342B"),PorcenRet(BD116,BH116,BI116),INDEX(PORCENTAJEBUSCAR,MATCH(BD116,CódigoRET,0),4)*1),"") -> 0 | BG116: 0 | BO116: 0 | CC116: 0 | CD116: 0 | CG116: =IFERROR(INDIRECT("IVA!X"&MATCH(MID(COMPRAS!C12,1,2)&MID(COMPRAS!F12,1,2)&MID(COMPRAS!D12,1,2),IVA!W:W,0)),"SIN COD.") -> 0 | CH116: =IFERROR(INDIRECT("IVA!Y"&MATCH(MID(COMPRAS!C12,1,2)&MID(COMPRAS!F12,1,2)&MID(COMPRAS!D12,1,2),IVA!W:W,0)),"SIN COD.") -> 0
AL117: 0 | AQ117: 0 | AR117: =IFERROR(IF(OR(AP117=338,AP117=340,AP117=341,AP117=342,AP117="342A",AP117="342B"),PorcenRet(AP117,AT117,AU117),INDEX(PORCENTAJEBUSCAR,MATCH(AP117,CódigoRET,0),4)*1),"") -> 0 | AS117: 0 | BF117: =IFERROR(IF(OR(BD117=338,BD117=340,BD117=341,BD117=342,BD117="342A",BD117="342B"),PorcenRet(BD117,BH117,BI117),INDEX(PORCENTAJEBUSCAR,MATCH(BD117,CódigoRET,0),4)*1),"") -> 0 | BG117: 0 | BO117: 0 | CC117: 0 | CD117: 0 | CG117: =IFERROR(INDIRECT("IVA!X"&MATCH(MID(COMPRAS!C13,1,2)&MID(COMPRAS!F13,1,2)&MID(COMPRAS!D13,1,2),IVA!W:W,0)),"SIN COD.") -> 0 | CH117: =IFERROR(INDIRECT("IVA!Y"&MATCH(MID(COMPRAS!C13,1,2)&MID(COMPRAS!F13,1,2)&MID(COMPRAS!D13,1,2),IVA!W:W,0)),"SIN COD.") -> 0
AL118: 0 | AQ118: 0 | AR118: =IFERROR(IF(OR(AP118=338,AP118=340,AP118=341,AP118=342,AP118="342A",AP118="342B"),PorcenRet(AP118,AT118,AU118),INDEX(PORCENTAJEBUSCAR,MATCH(AP118,CódigoRET,0),4)*1),"") -> 0 | AS118: 0 | BF118: =IFERROR(IF(OR(BD118=338,BD118=340,BD118=341,BD118=342,BD118="342A",BD118="342B"),PorcenRet(BD118,BH118,BI118),INDEX(PORCENTAJEBUSCAR,MATCH(BD118,CódigoRET,0),4)*1),"") -> 0 | BG118: 0 | BO118: 0 | CC118: 0 | CD118: 0 | CG118: =IFERROR(INDIRECT("IVA!X"&MATCH(MID(COMPRAS!C14,1,2)&MID(COMPRAS!F14,1,2)&MID(COMPRAS!D14,1,2),IVA!W:W,0)),"SIN COD.") -> 0 | CH118: =IFERROR(INDIRECT("IVA!Y"&MATCH(MID(COMPRAS!C14,1,2)&MID(COMPRAS!F14,1,2)&MID(COMPRAS!D14,1,2),IVA!W:W,0)),"SIN COD.") -> 0
AL119: 0 | AQ119: 0 | AR119: =IFERROR(IF(OR(AP119=338,AP119=340,AP119=341,AP119=342,AP119="342A",AP119="342B"),PorcenRet(AP119,AT119,AU119),INDEX(PORCENTAJEBUSCAR,MATCH(AP119,CódigoRET,0),4)*1),"") -> 0 | AS119: 0 | BF119: =IFERROR(IF(OR(BD119=338,BD119=340,BD119=341,BD119=342,BD119="342A",BD119="342B"),PorcenRet(BD119,BH119,BI119),INDEX(PORCENTAJEBUSCAR,MATCH(BD119,CódigoRET,0),4)*1),"") -> 0 | BG119: 0 | BO119: 0 | CC119: 0 | CD119: 0 | CG119: =IFERROR(INDIRECT("IVA!X"&MATCH(MID(COMPRAS!C15,1,2)&MID(COMPRAS!F15,1,2)&MID(COMPRAS!D15,1,2),IVA!W:W,0)),"SIN COD.") -> 0 | CH119: =IFERROR(INDIRECT("IVA!Y"&MATCH(MID(COMPRAS!C15,1,2)&MID(COMPRAS!F15,1,2)&MID(COMPRAS!D15,1,2),IVA!W:W,0)),"SIN COD.") -> 0
